Workbook

Sheet Instructions
A1: Instructions for MnDOT's 2016 Traffic Forecast MnESAL
G2: Last Updated: 2/2/2017
A3: There are 8 different worksheets:
A5: 1. Title: | B5: Do not need to manually enter anything, all information will automatically
B6: come from the Cover Sheet.
A8: 2. Cover: | B8: Enter all basic data in light orange filled cells that is copied to other
B9: worksheets.
B10: Use the dropdown to generate the number of B segments if any.
B11: (system only generates one segment at a time)
B12: Add all remarks.
A14: 3. Forecast A: | B14: Enter values in light orange filled cells, and then click copy AADT over to
B15: worksheet if AADT values appear on the right.
B16: If AADT values do not appear, manually type them in A7:B22.
A18: 4. ESAL A: | B18: In cell C3, the worksheet is saved to two-way. If you are working on a
B19: one-way road, ramp, or roundabout, change the drop down to one-way.
A21: 5. Forecast B: | B21: Follow same directions as Forecast A.
A23: 6. ESAL B: | B23: Follow same directions as ESAL A.
B24: Change User Adjustment to Base/Futue Yr Vol accordingly, so Base
B25: Volume and Future Volume of % change from A segment are within
B26: -50% and 50%.
B27: The Urban/Rural area is derived from the sequence number, but can be
B28: changed if needed.
A30: 7. VC 1-4: | B30: Enter values in light orange filled cells.
B31: Enter the Month Numer of Count and 16 or 24 HR if needed.
B32: Enter the raw count for each vehicle class in C8:C15 where indicated in
B33: light yellow if needed.
B34: The contrain AADT is derived from the sequence number of the A segment
B35: The Urban/Rural area is derived from the sequence number, but can be
B36: changed if needed.
A38: 8. VC Avg: | B38: Numbers are automatically transferred.
B39: If Heavy 5+ Ax Semi Percentages do not transfer for a manual count,
B40: enter the percent of Tank, Dump, Grain, and Stake Loaded.
A42: Save workbook as a PDF.
A44: Order of worksheets: | B44: Title Sheet
B45: Cover Sheet
B46: Project Location Map
B47: ESAL A Report
B48: ESAL A Worksheet
B49: ESAL B Report(s)
B50: ESAL B Worksheet(s)
B51: Appendix
B52: Least Square Analysis
B53: Vehicle Class Expansion Worksheet
B54: Vehicle Class Reports
B55: AADT Diagram
B56: Other Supporting Documents

Sheet Title
D2: Traffic Forecast for Cumulative ESALs
E5: =Cover!D18 -> Forecast #: | F5: =IF(Cover!E18=0," ",Cover!E18) ->  | I5: Note: The information on this sheet is pulled in from the "Cover" tab
E6: =Cover!D19 -> SP#: | F6: =IF(Cover!E19=0," ",Cover!E19) -> 
E8: =IF(Cover!E21=0," ",Cover!E21) ->  | F8: =IF(Cover!E20=0," ",Cover!E20) -> 
F9: =IF(Cover!$B$26=0," ",Cover!$B$26) -> 
F39: =Cover!B2 -> Office of Transportation System Management
F40: =Cover!B3 -> 395 John Ireland Boulevard, MS 450
F41: =Cover!B4 -> Saint Paul, MN 55155
H43: =Cover!B14 -> 2017-11-28T11:37:15.520

Sheet Cover
B1: Minnesota Department of Transportation | F1: Non-print area
B2: Office of Transportation System Management | E2: Phone: (651) 366-3856 | X2: Interstate
B3: 395 John Ireland Boulevard, MS 450 | E3: Fax: (651) 366-3886 | X3: MN Trunk
B4: Saint Paul, MN 55155 | X4: US Trunk
B5: Memo | X5: CSAH
X6: CR
A7: TO: | X7: Other
A10: FROM: | B10: Gene Hicks
B11: Section Director
B12: Traffic Forecasting and Analysis, MS 450
A14: DATE: | B14: =NOW() -> 2017-11-28T11:37:15.520 | N14: 0
N15: 1
A16: SUBJECT: | B16: Traffic Forecast for Cumulative ESALs | N16: 2
N17: 3
D18: Forecast #: | N18: 4
A19: Author: | D19: SP#: | H19: 0 | I19: No. of B Segments | N19: 5
A20: Author's District: | D20: Route Num:
A21: District: | D21: Route Type:
A22: Letting Date: | D22: County: | H22: Denotes fields to be filled in
A23: Program Category: | D23: Beg Reference Post:
A24: Project Manager: | D24: End Reference Post:
D25: Miles: | G25: Recommended Sheet Order:
A26: Project Limits: | H26: Title Sheet
H27: Cover Sheet
B28: Enclosures | C28: Appendix | H28: Project Location map
B29: Project Map | D29: Least Squares Analysis | H29: ESAL Report A
B30: Cumulative ESAL Report - A Segment | D30: Vehicle Class Expansion Worksheet | H30: ESAL Worksheet A
B31: Cumulative ESAL Report - B Segments | D31: Vehicle Class Reports | H31: ESAL Report(s) B
D32: AADT Diagram | H32: ESAL Worksheet(s) B
D33: Other Suppporting Documents | H33: Appendix
H34: Least Squares Analysis (A & B)
B35: REMARKS: | H35: Vehicle Class Expansion Worksheet
G36: OTHER | H36: Vehicle Class Reports
H37: AADT Diagram
H38: Other Suppporting Documents
G42: I
G43: US
G44: MN
G45: CSAH
G46: CR

Sheet Forecast A
A1: LEAST SQUARES WORKSHEET | E1: SEGMENT A1 | J1: Non-print area
A2: ROUTE: | B2: =IF(Cover!E21="Interstate",Cover!G42&Cover!E20,IF(Cover!E21="US Trunk",Cover!G43&Cover!E20,IF(Cover!E21="MN Trunk",Cover!G44&Cover!E20,IF(Cover!E21="CSAH",Cover!G45&Cover!E20,IF(Cover!E21="CR",Cover!G46&Cover!E20," "))))) ->  | D2: SP#: | E2: =IF(Cover!E19=0," ",Cover!E19) ->  | G2: DATE | H2: =Cover!B14 -> 2017-11-28T11:37:15.520
A3: LOCATION: | G3: Miles : | H3: =VLOOKUP(H4,AADT_Data!A:AA,27,FALSE) ->  | J3: =IF(B3="","Location field is empty. Please enter location description. E.g. MN 169 to CSAH 5","") -> Location field is empty. Please enter location description. E.g. MN 169 to CSAH 5
A4: BASE YEAR: | E4: FORECAST YEAR: | F4: =B4+20 -> 20 | G4: Seq # | J4: =IF(H4="","No Seq # is listed. Please enter sequence number","") -> No Seq # is listed. Please enter sequence number
G5: # of lanes | J5: =IF(H5="","Please indicate the number of lanes in this segment","") -> Please indicate the number of lanes in this segment
A6: YEAR | B6: FLOW MAP AADT (SEG A) | J6: Year | K6: AADT
C7: 850 | J7: =IF(LARGE($D$64:$D$88,E73)=0,"",LARGE($D$64:$D$88,E73)) ->  | K7: =IF(ISNA(VLOOKUP(F73,$A$64:$C$88,3,FALSE)),"",VLOOKUP(F73,$A$64:$C$88,3,FALSE)) ->  | L7: Note: only contains data
C8: 880 | L8: updated to 2016 AADT
C9: 880
C10: 1350
C11: 1150
C12: 1000
C13: 1150
C14: 1100
C15: 1100
C16: 1100
C17: 1000
J22: =IF(LARGE($D$64:$D$88,E88)=0,"",LARGE($D$64:$D$88,E88)) ->  | K22: =IF(ISNA(VLOOKUP(F88,$A$64:$C$88,3,FALSE)),"",VLOOKUP(F88,$A$64:$C$88,3,FALSE)) -> 
A24: LEAST SQUARES BASED FORECASTS:
A25: Year | B25: AADT | D25: Calc | E25: ADT Calc
A26: =INDEX(A7:A22,MATCH(9.99999999999999E+307,B7:B22)) ->  | B26: =FORECAST(A26,B7:B22,A7:A22) ->  | D26: =VLOOKUP(A26,$A$12:$B$22,2,FALSE)-B26 ->  | E26: =B26+D26 -> 
A27: =B4 -> 0 | B27: =FORECAST(A27,B7:B22,A7:A22) ->  | E27: =B27+D26 ->  | F27: =E27 -> 
A28: =F4 -> 20 | B28: =FORECAST(A28,B7:B22,A7:A22) ->  | E28: =B28+D26 ->  | F28: =E26+(E28-E26)*F40 -> 
A30: Statistics | B30: AADT | E30: Raw Least Squares Forecasts | H30: Demographically Adjusted Forecasts
A31: R 2 | B31: =RSQ(B7:B22,A7:A22) ->  | E31: YEAR | F31: AADT | H31: YEAR | I31: AADT
A32: SLOPE | B32: =SLOPE(B7:B22,A7:A22) ->  | E32: =A26 ->  | F32: =ROUND(E26,-1) ->  | H32: =A26 ->  | I32: =F32 -> 
A33: INTERCEPT | B33: =INTERCEPT(B7:B22,A7:A22) ->  | E33: =A27 -> 0 | F33: =ROUND(E27,-1) ->  | H33: =A27 -> 0 | I33: =ROUND(((I34-I32)/(H34-H32)*(H33-H32)+I32),-1) -> 
A34: N | B34: =COUNT(B7:B22) -> 0 | E34: =A28 -> 20 | F34: =ROUND(E28,-1) ->  | H34: =A28 -> 20 | I34: =ROUND(F32*(1+H38*(H34-H32)),-1) -> 
A35: NOTE:
A36: County Adjustment Factors were developed to Apply to Projected AADT. They are based on 1992-2007 VMT, Population, Labor Force, Household, and Employment Data. | E36: Slope Over Base Year | H36: Slope Over Base Year
E37: =B32/F33 ->  | H37: =((I34-I33)/(H34-H33)/I33) -> 
H38: =IF(E37*F40<=0.5%,0.5%,E37*F40) -> 
D39: COUNTY | F39: COUNTY FACTOR | H39: GROWTH PROFILE
D40: =UPPER(VLOOKUP(Cover!E22,$A$176:$C$263,1,FALSE)) ->  | F40: =VLOOKUP(Cover!E22,$A$176:$C$263,2,FALSE) ->  | H40: =UPPER(VLOOKUP(Cover!E22,$A$176:$C$263,3,FALSE)) -> 
B61: AADT_Data column reference
A63: year | C63: aadt | D63: data years | E63: nth largest
A64: 2017 | B64: 2 | C64: =VLOOKUP($H$4,AADT_Data!A:Z,B64,FALSE) ->  | D64: =IF(C64=0,0,A64) ->  | E64: 25 | F64: =IF(LARGE($D$64:$D$88,E64)=0,"",LARGE($D$64:$D$88,E64)) ->  | G64: =IF(ISNA(VLOOKUP(F64,$A$64:$C$88,3,FALSE)),"",VLOOKUP(F64,$A$64:$C$88,3,FALSE)) -> 
A65: 2016 | B65: 3 | C65: =VLOOKUP($H$4,AADT_Data!A:Z,B65,FALSE) ->  | D65: =IF(C65=0,0,A65) ->  | E65: 24
A66: 2015 | B66: 4 | C66: =VLOOKUP($H$4,AADT_Data!A:Z,B66,FALSE) ->  | D66: =IF(C66=0,0,A66) ->  | E66: 23
A67: 2014 | B67: 5 | C67: =VLOOKUP($H$4,AADT_Data!A:Z,B67,FALSE) ->  | D67: =IF(C67=0,0,A67) ->  | E67: 22
A68: 2013 | B68: 6 | C68: =VLOOKUP($H$4,AADT_Data!A:Z,B68,FALSE) ->  | D68: =IF(C68=0,0,A68) ->  | E68: 21
A69: 2012 | B69: 7 | C69: =VLOOKUP($H$4,AADT_Data!A:Z,B69,FALSE) ->  | E69: 20
A70: 2011 | B70: 8 | C70: =VLOOKUP($H$4,AADT_Data!A:Z,B70,FALSE) ->  | E70: 19
A71: 2010 | B71: 9 | C71: =VLOOKUP($H$4,AADT_Data!A:Z,B71,FALSE) ->  | E71: 18
A72: 2009 | B72: 10 | C72: =VLOOKUP($H$4,AADT_Data!A:Z,B72,FALSE) ->  | E72: 17
A73: 2008 | B73: 11 | C73: =VLOOKUP($H$4,AADT_Data!A:Z,B73,FALSE) ->  | E73: 16
A74: 2007 | B74: 12 | C74: =VLOOKUP($H$4,AADT_Data!A:Z,B74,FALSE) ->  | E74: 15
A75: 2006 | B75: 13 | C75: =VLOOKUP($H$4,AADT_Data!A:Z,B75,FALSE) ->  | E75: 14
A76: 2005 | B76: 14 | C76: =VLOOKUP($H$4,AADT_Data!A:Z,B76,FALSE) ->  | E76: 13
A77: 2004 | B77: 15 | C77: =VLOOKUP($H$4,AADT_Data!A:Z,B77,FALSE) ->  | E77: 12
A78: 2003 | B78: 16 | C78: =VLOOKUP($H$4,AADT_Data!A:Z,B78,FALSE) ->  | E78: 11
A79: 2002 | B79: 17 | C79: =VLOOKUP($H$4,AADT_Data!A:Z,B79,FALSE) ->  | E79: 10
A80: 2001 | B80: 18 | C80: =VLOOKUP($H$4,AADT_Data!A:Z,B80,FALSE) ->  | E80: 9
A81: 2000 | B81: 19 | C81: =VLOOKUP($H$4,AADT_Data!A:Z,B81,FALSE) ->  | E81: 8
A82: 1999 | B82: 20 | C82: =VLOOKUP($H$4,AADT_Data!A:Z,B82,FALSE) ->  | E82: 7
A83: 1998 | B83: 21 | C83: =VLOOKUP($H$4,AADT_Data!A:Z,B83,FALSE) ->  | E83: 6
A84: 1997 | B84: 22 | C84: =VLOOKUP($H$4,AADT_Data!A:Z,B84,FALSE) ->  | E84: 5
A85: 1996 | B85: 23 | C85: =VLOOKUP($H$4,AADT_Data!A:Z,B85,FALSE) ->  | E85: 4
A86: 1995 | B86: 24 | C86: =VLOOKUP($H$4,AADT_Data!A:Z,B86,FALSE) ->  | E86: 3
A87: 1994 | B87: 25 | C87: =VLOOKUP($H$4,AADT_Data!A:Z,B87,FALSE) ->  | E87: 2
A88: 1992 | B88: 26 | C88: =VLOOKUP($H$4,AADT_Data!A:Z,B88,FALSE) ->  | E88: 1 | F88: =IF(LARGE($D$64:$D$88,E88)=0,"",LARGE($D$64:$D$88,E88)) ->  | G88: =IF(ISNA(VLOOKUP(F88,$A$64:$C$88,3,FALSE)),"",VLOOKUP(F88,$A$64:$C$88,3,FALSE)) -> 
A176: County | B176: Factor | C176: Area Type
A177: Aitkin | B177: 0.95 | C177: High Growth Area
A178: Anoka | B178: 0.95 | C178: High Growth Area
A179: Becker | B179: 0.9387339609 | C179: Medium Growth Area
A180: Beltrami | B180: 0.95 | C180: High Growth Area
A181: Benton | B181: 0.95 | C181: High Growth Area
A182: Big Stone | B182: 0.8944759202 | C182: Low Growth Area
A183: Blue Earth | B183: 0.75 | C183: Medium Growth Area
A184: Brown | B184: 0.7896922659 | C184: Low Growth Area
A185: Carlton | B185: 0.95 | C185: Medium Growth Area
A186: Carver | B186: 0.95 | C186: High Growth Area
A187: Cass | B187: 0.95 | C187: High Growth Area
A188: Chippewa | B188: 0.8733104434 | C188: Low Growth Area
A189: Chisago | B189: 0.881279837 | C189: High Growth Area
A190: Clay | B190: 0.75 | C190: Low Growth Area
A191: Clearwater | B191: 0.8438234218 | C191: Low Growth Area
A192: Cook | B192: 0.75 | C192: Medium Growth Area
A193: Cottonwood | B193: 0.8331705696 | C193: Low Growth Area
A194: Crow Wing | B194: 0.8832312646 | C194: High Growth Area
A195: Dakota | B195: 0.8547421962 | C195: High Growth Area
A196: Dodge | B196: 0.95 | C196: High Growth Area
A197: Douglas | B197: 0.8873831958 | C197: High Growth Area
A198: Faribault | B198: 0.865981121 | C198: Low Growth Area
A199: Fillmore | B199: 0.8896061418 | C199: Low Growth Area
A200: Freeborn | B200: 0.755552827 | C200: Low Growth Area
A201: Goodhue | B201: 0.9273647987 | C201: Medium Growth Area
A202: Grant | B202: 0.75 | C202: Low Growth Area
A203: Hennepin | B203: 0.8272566422 | C203: Low Growth Area
A204: Houston | B204: 0.8378015226 | C204: Low Growth Area
A205: Hubbard | B205: 0.8346205138 | C205: High Growth Area
A206: Isanti | B206: 0.95 | C206: High Growth Area
A207: Itasca | B207: 0.8886716849 | C207: Medium Growth Area
A208: Jackson | B208: 0.9180626248 | C208: Medium Growth Area
A209: Kanabec | B209: 0.8135838922 | C209: Medium Growth Area
A210: Kandiyohi | B210: 0.8938419831 | C210: Medium Growth Area
A211: Kittson | B211: 0.8024358458 | C211: Low Growth Area
A212: Koochiching | B212: 0.7937489549 | C212: Low Growth Area
A213: Lac qui Parle | B213: 0.75 | C213: Low Growth Area
A214: Lake | B214: 0.8562919136 | C214: Low Growth Area
A215: Lake of the Woods | B215: 0.9138862817 | C215: Low Growth Area
A216: Le Sueur | B216: 0.95 | C216: Medium Growth Area
A217: Lincoln | B217: 0.8857449991 | C217: Low Growth Area
A218: Lyon | B218: 0.75 | C218: Low Growth Area
A219: Mahnomen | B219: 0.75 | C219: Low Growth Area
A220: Marshall | B220: 0.95 | C220: Low Growth Area
A221: Martin | B221: 0.8201303604 | C221: Low Growth Area
A222: McLeod | B222: 0.8928164106 | C222: Medium Growth Area
A223: Meeker | B223: 0.926111411 | C223: Medium Growth Area
A224: Mille Lacs | B224: 0.95 | C224: High Growth Area
A225: Morrison | B225: 0.9495694712 | C225: Medium Growth Area
A226: Mower | B226: 0.8302978459 | C226: Low Growth Area
A227: Murray | B227: 0.8387247211 | C227: Medium Growth Area
A228: Nicollet | B228: 0.8240013933 | C228: Medium Growth Area
A229: Nobles | B229: 0.7549960093 | C229: Low Growth Area
A230: Norman | B230: 0.8022447962 | C230: Low Growth Area
A231: Olmsted | B231: 0.95 | C231: High Growth Area
A232: Otter Tail | B232: 0.8614026285 | C232: Medium Growth Area
A233: Pennington | B233: 0.95 | C233: Medium Growth Area
A234: Pine | B234: 0.8448776659 | C234: High Growth Area
A235: Pipestone | B235: 0.75 | C235: Low Growth Area
A236: Polk | B236: 0.75 | C236: Low Growth Area
A237: Pope | B237: 0.9029074643 | C237: Medium Growth Area
A238: Ramsey | B238: 0.8087858109 | C238: Low Growth Area
A239: Red Lake | B239: 0.95 | C239: Medium Growth Area
A240: Redwood | B240: 0.75 | C240: Low Growth Area
A241: Renville | B241: 0.8480251476 | C241: Low Growth Area
A242: Rice | B242: 0.8220040162 | C242: Medium Growth Area
A243: Rock | B243: 0.75 | C243: Low Growth Area
A244: Roseau | B244: 0.8847517198 | C244: Medium Growth Area
A245: Scott | B245: 0.95 | C245: High Growth Area
A246: Sherburne | B246: 0.95 | C246: High Growth Area
A247: Sibley | B247: 0.8646549065 | C247: Medium Growth Area
A248: St. Louis | B248: 0.850777855 | C248: Low Growth Area
A249: Stearns | B249: 0.8586120378 | C249: High Growth Area
A250: Steele | B250: 0.8848664209 | C250: Medium Growth Area
A251: Stevens | B251: 0.7999567113 | C251: Low Growth Area
A252: Swift | B252: 0.8706429381 | C252: Low Growth Area
A253: Todd | B253: 0.8988708026 | C253: Medium Growth Area
A254: Traverse | B254: 0.7652278953 | C254: Low Growth Area
A255: Wabasha | B255: 0.8182478469 | C255: Low Growth Area
A256: Wadena | B256: 0.95 | C256: Medium Growth Area
A257: Waseca | B257: 0.7963073355 | C257: Low Growth Area
A258: Washington | B258: 0.95 | C258: High Growth Area
A259: Watonwan | B259: 0.75 | C259: Low Growth Area
A260: Wilkin | B260: 0.75 | C260: Low Growth Area
A261: Winona | B261: 0.8284012539 | C261: Low Growth Area
A262: Wright | B262: 0.95 | C262: High Growth Area
A263: Yellow Medicine | B263: 0.8780713455 | C263: Low Growth Area

Sheet ESAL A
A1: CUMULATIVE ESALS WORKSHEET | D1: ='Forecast A'!E1 -> SEGMENT A1 | H1: Non-print area | N1: ONE-WAY
A2: SP#: | B2: =IF(+Cover!E19=0," ",+Cover!E19) ->  | N2: TWO-WAY
A3: ROUTE: | B3: ='Forecast A'!B2:C2 ->  | C3: TWO-WAY | D3: # LANES: | E3: =IF('Forecast A'!H5=0," ",'Forecast A'!H5) ->  | F3: DATE: | G3: =+Cover!B14 -> 2017-11-28T11:37:15.520
A4: LOCATION: | B4: =IF('Forecast A'!B3=0," ",'Forecast A'!B3) -> 
A5: VCL SITE #: | B5: =+'VC Avg'!B2 ->  | H5: USE THE DEFAULTS WHEN AN "A" SEGMENT ON A LOCAL ROAD DOES NOT CONTAIN
B6: YEAR | C6: AADT | D6: CALC HCADT | F6: INIT CALC 5AX TST | H6: A VC SITE.
A7: BASE YEAR: | B7: ='Forecast A'!B4 -> 0 | C7: ='Forecast A'!I33 ->  | D7: =SUM(B11:B19)*C7 ->  | F7: =SUM(B15:B17)*C7 ->  | H7: IF THE SEGMENT SPLITS, MULTIPLE THE PERCENT HEAVIES BY 0.89% TO INDICATE THE
A8: FORECAST YEAR: | B8: ='Forecast A'!F4 -> 20 | C8: ='Forecast A'!I34 ->  | D8: =SUM(F11:F19)*C8 ->  | F8: =SUM(F15:F17)*C8 ->  | H8: 5AX+ TST MAX. THEN TAKE THE 5AX+ TST MAX AND SUBTRACT 0.89% TO INDICATE THE
H9: 5AX+ TST OTHER.
A10: BASE YEAR PROPORTIONS | D10: BASE YR. VOLUME | E10: Additonal Trucks | F10: FORECAST % | G10: FUTURE VOL. | I10: VEHICLE TYPE | J10: URBAN | K10: RURAL
A11: 2AX-6TIRE SU | B11: ='VC Avg'!L11 ->  | D11: =ROUND($C$7*B11+E11,0) ->  | E11: 0 | F11: =B11 ->  | G11: =ROUND($C$8*B11+E11,0) ->  | I11: 2AX-6TIRE SU | J11: 0.0152 | K11: 0.0317
A12: 3AX+ SU | B12: ='VC Avg'!L12 ->  | D12: =ROUND($C$7*B12+E12,0) ->  | E12: 0 | F12: =B12 ->  | G12: =ROUND($C$8*B12+E12,0) ->  | I12: 3AX+ SU | J12: 0.0046 | K12: 0.0164
A13: 3AX TST | B13: ='VC Avg'!L13 ->  | E13: 0 | I13: 3AX TST | J13: 0.0009 | K13: 0.0028
A14: 4AX TST | B14: ='VC Avg'!L14 ->  | E14: 0 | I14: 4AX TST | J14: 0.0012 | K14: 0.005
A15: 5AX+ TST | B15: =IF('VC Avg'!L20<=0.3,'VC Avg'!L15,"0") ->  | E15: 0 | I15: 5AX+ TST | J15: 0.0089 | K15: 0.0326
A16: (5AX+ TST MAX) | B16: =IF('VC Avg'!L20>=0.3,'VC Avg'!K24,0) ->  | E16: 0 | F16: =B16 ->  | I16: TR TR, BUSES | J16: 0.0047 | K16: 0.012
A17: (5AX+ TST OTH) | B17: =IF('VC Avg'!L20>=0.3,'VC Avg'!K25,0) ->  | E17: 0 | F17: =B17 ->  | I17: TWIN TRAILERS | J17: 0.0002 | K17: 0.0002
A18: TR TR, BUSES | B18: ='VC Avg'!L16 ->  | E18: 0 | F18: =B18 ->  | I18: TOTAL | J18: =SUM(J11:J17) -> 0.0357 | K18: =SUM(K11:K17) -> 0.1007
A19: TWIN TRAILERS | B19: ='VC Avg'!L17 ->  | E19: 0
F21: =A24-A23 -> 20 | G21: YR DESIGN
A22: SUMMARIES: | C22: AADT | D22: HCADT | E22: HCADT % | F22: LANE CUMULATIVE ESAL
A23: =B7 -> 0 | B23: FORECAST: | C23: =C7 ->  | D23: =D7 ->  | E23: =D7/C23 ->  | F23: | | G23: |
A24: =B8 -> 20 | B24: FORECAST: | C24: =C8 ->  | D24: =D8 ->  | E24: =D8/C24 ->  | F24: ***************** | G24: *****************
F25: FLEXIBLE | G25: RIGID
A26: DESIGN LANE FACTOR: | C26: =IF(C3=N2,CHOOSE((E3)+1,#VALUE!,1,0.5,0.5,0.45,0.45,0.35,0.35),CHOOSE(E3,1,0.9,0.7,0.7,0.7,0.7)) ->  | F26: =ROUND(CHOOSE(C119,F119,F120,F121,F122,F123,F124,F125,F126,F127,F128,F129,F130,F131,F132,F133,F134,F135,F136,F137,F138,F139,F140,F141,F142,F143,F144,F145,F146,F147,F148,F149,F150,F151,F152,F153,F154)*1.12,-3) ->  | G26: =ROUND(CHOOSE(C119,G119,G120,G121,G122,G123,G124,G125,G126,G127,G128,G129,G130,G131,G132,G133,G134,G135,G136,G137,G138,G139,G140,G141,G142,G143,G144,G145,G146,G147,G148,G149,G150,G151,G152,G153,G154)*1.12,-3) -> 
F27: ***************** | G27: *****************
A28: ADDITIONAL OUTPUTS: | E28: ESAL FACTORS
B29: BASE % | C29: FORECAST % | E29: FLEXIBLE | F29: RIGID
A30: 2AX-6TIRE SU | B30: =D11/$C$23 ->  | C30: =G11/$C$24 ->  | E30: 0.25 | F30: =IF(E30<0.11,E30,E30-0.01) -> 0.24
A31: 3AX+ SU | E31: 0.58 | F31: =IF(E31<0.36,(E31*1.62364-0.070909)+0.01,(IF(E31<0.4,E31*1.62364-0.07909,(IF(E31<0.66,(E31*1.62364-0.07909)-0.01,(IF(E31<0.69,E31*1.62364-0.07909,(E31*1.62364-0.07909)+0.02))))))) -> 0.8526212
A32: 3AX TST | E32: 0.39 | F32: =IF(E32<0.28,E32-0.01,(IF(E32<0.56,E32-0.02,E32-0.03))) -> 0.37
A33: 4AX TST | E33: 0.51 | F33: =IF(E33<0.41,E33,(IF(E33<0.47,E33+0.01,(IF(E33<0.54,E33+0.02,(IF(E33<0.61,E33+0.03,(IF(E33<0.67,E33+0.04,E33+0.05))))))))) -> 0.53
A34: 5AX+ TST | E34: 1.13 | F34: =(+E34*1.71536-0.05351)+0.005 -> 1.8898468
A35: (5AX+ TST MAX) | E35: 2.4 | F35: =(+E35*1.71536-0.05351)+0.005 -> 4.068354
A36: (5AX+ TST OTH) | E36: 0.87 | F36: =(+E36*1.71536-0.05351)+0.005 -> 1.4438532
A37: TR TR, BUSES | E37: 0.57 | F37: =E37*1.35636-0.03091 -> 0.7422152
A38: TWIN TRAILERS | E38: 2.4 | F38: =(+E38*0.97519-0.01494)+0.005 -> 2.330516
A39: Notes:
A48: CUMULATIVE ESAL REPORT | D48: ='Forecast A'!E1 -> SEGMENT A1
E49: DATE: | F49: =+Cover!B14 -> 2017-11-28T11:37:15.520
A50: ROUTE #: | B50: ='Forecast A'!B2:C2 ->  | C50: DISTRICT: | D50: =IF(Cover!B21=0," ",Cover!B21) ->  | E50: SP#: | F50: =IF(+Cover!E19=0," ",+Cover!E19) -> 
A51: FORECAST #: | B51: =IF(Cover!E18=0," ",Cover!E18) ->  | C51: COUNTY: | D51: =IF(+Cover!E22=0," ",Cover!E22) ->  | E51: MILES: | F51: ='Forecast A'!H3 -> 
A52: DESCRIPTION: | B52: ='Forecast A'!B3 -> 0
A53: AUTHOR: | B53: =IF(Cover!B19=0," ",Cover!B19) ->  | E53: AUTHOR'S DISTRICT: | F53: =IF(Cover!B20=0," ",Cover!B20) -> 
A55: BASE YEAR NUMBER OF LANES: | D55: =IF('Forecast A'!H5=0," ",'Forecast A'!H5) -> 
G56: GROWTH / YR (SIMPLE %)
A57: TRAFFIC SUMMARY | D57: BASE YEAR | F57: DESIGN YEAR
A58: =C3 -> TWO-WAY | D58: =B7 -> 0 | F58: =B8 -> 20
A59: AADT: | D59: =C7 ->  | F59: =C8 ->  | G59: =((F59-D59)/($F$58-$D$58))/D59 -> 
A60: DESIGN LANE: | D60: =ROUND(C26*D59,-1) ->  | F60: =ROUND(C26*F59,-1) -> 
A61: HCADT: | D61: =IF(+$C$114=0,10*ROUND(SUM(D11:D19)/10,0),10*ROUND((SUM(D11:D19)+SUM('ESAL B1'!D11:D19))/10,0)) ->  | F61: =IF(+C114=0,10*ROUND(SUM(G11:G19)/10,0),10*ROUND((SUM(G11:G19)+SUM('ESAL B1'!G11:G19))/10,0)) -> 
A62: SINGLE UNITS: | D62: =IF(C114=0,10*ROUND((D11+D12)/10,0),10*ROUND((+'ESAL B1'!D11+'ESAL B1'!D12+D11+D12)/10,0)) ->  | F62: =IF($C$114=0,10*ROUND((G11+G12)/10,0),10*ROUND((+'ESAL B1'!G11+'ESAL B1'!G12+G11+G12)/10,0)) -> 
A63: TST'S: | D63: =IF($C$114=0,SUM(D13:D17),SUM(D13:D17)+SUM('ESAL B1'!D13:D17)) ->  | F63: =IF($C$114=0,SUM(G13:G17),SUM(G13:G17)+SUM('ESAL B1'!G13:G17)) -> 
A64: 5 Ax+: | D64: =SUM(D15:D17) ->  | F64: =SUM(G15:G17) -> 
A66: ESAL SUMMARY
A67: ANNUAL DESIGN LANE ESAL
A68: FLEXIBLE: | D68: =D115*C26*365.25 ->  | F68: =F115*C26*365.25 -> 
A69: RIGID: | D69: =E115*C26*365.25 ->  | F69: =G115*C26*365.25 -> 
A72: CUMULATIVE DESIGN-LANE ESALS (10 TON) | F72: Design-lane factor: | G72: =C26 -> 
A73: FOR VARIABLE TIME PERIODS
A76: BASE | B76: DESIGN | C76: TIME | D76: DESIGN-LANE | F76: ESALS
A77: YEAR | B77: YEAR | C77: PERIOD | D77: TST'S | F77: FLEXIBLE | G77: RIGID
A78: =D58 -> 0 | B78: =D58+10 -> 10 | C78: 10 Year | D78: =G72*(10*($F$63-$D$63)/(F58-D58)+D63) ->  | F78: =ROUND(F129*1.12,-3) ->  | G78: =ROUND(G129*1.12,-3) -> 
A80: =D58 -> 0 | B80: =D58+15 -> 15 | C80: 15 Year | D80: =G72*(15*($F$63-$D$63)/(F58-D58)+D63) ->  | F80: =ROUND(F134*1.12,-3) ->  | G80: =ROUND(G134*1.12,-3) -> 
A82: =D58 -> 0 | B82: =D58+20 -> 20 | C82: 20 Year | D82: =G72*(20*($F$63-$D$63)/(F58-D58)+D63) ->  | F82: =ROUND(F139*1.12,-3) ->  | G82: =ROUND(G139*1.12,-3) -> 
A84: =D58 -> 0 | B84: =D58+25 -> 25 | C84: 25 Year | D84: =G72*(25*($F$63-$D$63)/(F58-D58)+D63) ->  | F84: =ROUND(F144*1.12,-3) ->  | G84: =ROUND(G144*1.12,-3) -> 
A86: =D58 -> 0 | B86: =D58+30 -> 30 | C86: 30 Year | D86: =G72*(30*($F$63-$D$63)/(F58-D58)+D63) ->  | F86: =ROUND(F149*1.12,-3) ->  | G86: =ROUND(G149*1.12,-3) -> 
A88: =D58 -> 0 | B88: =D58+35 -> 35 | C88: 35 Year | D88: =G72*(35*($F$63-$D$63)/(F58-D58)+D63) ->  | F88: =ROUND(F154*1.12,-3) ->  | G88: =ROUND(G154*1.12,-3) -> 
B95: APPROVED BY: | F95: DATE:
A103: CUMULATIVE ESAL WORK AREA | D103: BY VOL | E103: BY VOL | F103: FY VOL | G103: FY VOL
B104: BYVOLS | C104: FYVOLS | D104: *BESAL | E104: *CESAL | F104: *BESAL | G104: *CESAL
B105: =D11 ->  | C105: =G11 ->  | D105: =E30*B105 ->  | E105: =F30*B105 ->  | F105: =E30*C105 ->  | G105: =F30*C105 -> 
D114: FLEX ADL | E114: RIG ADL | F114: FLEX ADL | G114: RIG ADL
C115: Esals Per Day | D115: =(C7-SUM(B105:B113))*0.0007+SUM(D105:D113) ->  | E115: =(C7-SUM(B105:B113))*0.0007+SUM(E105:E113) ->  | F115: =(C8-SUM(C105:C113))*0.0007+SUM(F105:F113) ->  | G115: =(C8-SUM(C105:C113))*0.0007+SUM(G105:G113) -> 
A117: CUMULATIVE ESAL CALCULATIONS (DESIGN LANE) | F117: FLEXIBLE | G117: RIGID
B118: INCLUSIVE | C118: YEARS | E118: DAYS
B119: FUTURE YR - BASE YR = | C119: =B8-B7+1 -> 21 | E119: 365.25 | F119: =$D$115*$E119*$C$26+F118 ->  | G119: =$E$115*$E119*$C$26+G118 -> 
E120: =E119+365.25 -> 730.5 | F120: =(365.25*$D$115+$E119*$A$123)*$C$26+F119 ->  | G120: =(365.25*$E$115+$E119*$B$123)*$C$26+G119 -> 
A121: ANNUAL AVERAGE CHANGE IN 2 WAY ADL | E121: 1095.75 | F121: =(365.25*$D$115+$E120*$A$123)*$C$26+F120 -> 
A122: FLEXIBLE | B122: RIGID | E122: 1461
A123: =(F115-D115)/($C$119-1) ->  | B123: =(G115-E115)/($C$119-1) ->  | E123: 1826.25
E124: 2191.5
E125: 2556.75
E126: 2922
E127: 3287.25
E128: 3652.5
E129: 4017.75
E130: 4383
E131: 4748.25
E132: 5113.5
E133: 5478.75
E134: 5844
E135: 6209.25
E136: 6574.5
E137: 6939.75
E138: 7305
E139: 7670.25
E140: 8035.5
E141: 8400.75
E142: 8766
E143: 9131.25
E144: 9496.5
E145: 9861.75
E146: 10227
E147: 10592.25
E148: 10957.5
E149: 11322.75
E150: 11688
E151: 12053.25
E152: 12418.5
E153: 12783.75
E154: 13149

Sheet Forecast B1 (hidden)
A1: LEAST SQUARES WORKSHEET | E1: SEGMENT B1 | G1: Corresponds : | H1: ='Forecast A'!E1 -> SEGMENT A1 | J1: Non-print area
A2: ROUTE: | B2: =IF(Cover!E21="Interstate",Cover!G42&Cover!E20,IF(Cover!E21="US Trunk",Cover!G43&Cover!E20,IF(Cover!E21="MN Trunk",Cover!G44&Cover!E20,IF(Cover!E21="CSAH",Cover!G45&Cover!E20,IF(Cover!E21="CR",Cover!G46&Cover!E20," "))))) ->  | D2: SP#: | E2: =IF(Cover!E19=0," ",Cover!E19) ->  | G2: DATE : | H2: =Cover!B14 -> 2017-11-28T11:37:15.520
A3: LOCATION: | G3: Miles : | H3: =VLOOKUP(H4,AADT_Data!A:AA,27,FALSE) ->  | J3: =IF(B3="","Location field is empty. Please enter location description. E.g. MN 169 to CSAH 5","") -> Location field is empty. Please enter location description. E.g. MN 169 to CSAH 5
A4: BASE YEAR: | B4: =IF('Forecast A'!B4=0," ",'Forecast A'!B4) ->  | E4: FORECAST YEAR: | F4: =B4+20 ->  | G4: Seq # | J4: =IF(H4="","No Seq # is listed. Please enter sequence number","") -> No Seq # is listed. Please enter sequence number
G5: # of lanes | J5: =IF(H5="","Please indicate the number of lanes in this segment","") -> Please indicate the number of lanes in this segment
A6: YEAR | B6: FLOW MAP AADT (SEG A) | J6: Year | K6: AADT
C7: 850 | J7: =IF(LARGE($D$64:$D$88,E73)=0,"",LARGE($D$64:$D$88,E73)) ->  | K7: =IF(ISNA(VLOOKUP(F73,$A$64:$C$88,3,FALSE)),"",VLOOKUP(F73,$A$64:$C$88,3,FALSE)) ->  | L7: Note: only contains data
C8: 880 | L8: updated to 2016 AADT
C9: 880
C10: 1350
C11: 1150
C12: 1000
C13: 1150
C14: 1100
C15: 1100
C16: 1100
C17: 1000
J22: =IF(LARGE($D$64:$D$88,E88)=0,"",LARGE($D$64:$D$88,E88)) ->  | K22: =IF(ISNA(VLOOKUP(F88,$A$64:$C$88,3,FALSE)),"",VLOOKUP(F88,$A$64:$C$88,3,FALSE)) -> 
A24: LEAST SQUARES BASED FORECASTS:
A25: Year | B25: AADT | D25: Calc | E25: ADT Calc
A26: =INDEX(A7:A22,MATCH(9.99999999999999E+307,B7:B22)) ->  | B26: =FORECAST(A26,B7:B22,A7:A22) ->  | D26: =VLOOKUP(A26,$A$11:$B$22,2,FALSE)-B26 ->  | E26: =B26+D26 -> 
A27: =B4 ->  | B27: =FORECAST(A27,B7:B22,A7:A22) ->  | E27: =B27+D26 ->  | F27: =E27 -> 
A28: =F4 ->  | B28: =FORECAST(A28,B7:B22,A7:A22) ->  | E28: =B28+D26 ->  | F28: =E26+(E28-E26)*F40 -> 
A30: Statistics | B30: AADT | E30: Raw Least Squares Forecasts | H30: Demographically Adjusted Forecasts
A31: R 2 | B31: =RSQ(B7:B22,A7:A22) ->  | E31: YEAR | F31: AADT | H31: YEAR | I31: AADT
A32: SLOPE | B32: =SLOPE(B7:B22,A7:A22) ->  | E32: =A26 ->  | F32: =ROUND(E26,-1) ->  | H32: =A26 ->  | I32: =F32 -> 
A33: INTERCEPT | B33: =INTERCEPT(B7:B22,A7:A22) ->  | E33: =A27 ->  | F33: =ROUND(E27,-1) ->  | H33: =A27 ->  | I33: =ROUND(((I34-I32)/(H34-H32)*(H33-H32)+I32),-1) -> 
A34: N | B34: =COUNT(B7:B22) -> 0 | E34: =A28 ->  | F34: =ROUND(E28,-1) ->  | H34: =A28 ->  | I34: =ROUND(F32*(1+H38*(H34-H32)),-1) -> 
A35: NOTE:
A36: County Adjustment Factors were developed to Apply to Projected AADT. They are based on 1992-2007 VMT, Population, Labor Force, Household, and Employment Data. | E36: Slope Over Base Year | H36: Slope Over Base Year
E37: =B32/F33 ->  | H37: =((I34-I33)/(H34-H33)/I33) -> 
H38: =IF(E37*F40<=0.5%,0.5%,E37*F40) -> 
D39: COUNTY | F39: COUNTY FACTOR | H39: GROWTH PROFILE
D40: =UPPER(VLOOKUP(Cover!E22,$A$174:$C$261,1,FALSE)) ->  | F40: =VLOOKUP(Cover!E22,$A$174:$C$261,2,FALSE) ->  | H40: =UPPER(VLOOKUP(Cover!E22,$A$174:$C$261,3,FALSE)) -> 
B61: AADT_Data column reference
A63: year | C63: aadt | D63: data years | E63: nth largest
A64: 2017 | B64: 2 | C64: =VLOOKUP($H$4,AADT_Data!A:Z,B64,FALSE) ->  | D64: =IF(C64=0,0,A64) ->  | E64: 25 | F64: =IF(LARGE($D$64:$D$88,E64)=0,"",LARGE($D$64:$D$88,E64)) ->  | G64: =IF(ISNA(VLOOKUP(F64,$A$64:$C$88,3,FALSE)),"",VLOOKUP(F64,$A$64:$C$88,3,FALSE)) -> 
A65: 2016 | B65: 3 | C65: =VLOOKUP($H$4,AADT_Data!A:Z,B65,FALSE) ->  | D65: =IF(C65=0,0,A65) ->  | E65: 24
A66: 2015 | B66: 4 | C66: =VLOOKUP($H$4,AADT_Data!A:Z,B66,FALSE) ->  | D66: =IF(C66=0,0,A66) ->  | E66: 23
A67: 2014 | B67: 5 | C67: =VLOOKUP($H$4,AADT_Data!A:Z,B67,FALSE) ->  | D67: =IF(C67=0,0,A67) ->  | E67: 22
A68: 2013 | B68: 6 | C68: =VLOOKUP($H$4,AADT_Data!A:Z,B68,FALSE) ->  | D68: =IF(C68=0,0,A68) ->  | E68: 21
A69: 2012 | B69: 7 | C69: =VLOOKUP($H$4,AADT_Data!A:Z,B69,FALSE) ->  | E69: 20
A70: 2011 | B70: 8 | C70: =VLOOKUP($H$4,AADT_Data!A:Z,B70,FALSE) ->  | E70: 19
A71: 2010 | B71: 9 | C71: =VLOOKUP($H$4,AADT_Data!A:Z,B71,FALSE) ->  | E71: 18
A72: 2009 | B72: 10 | C72: =VLOOKUP($H$4,AADT_Data!A:Z,B72,FALSE) ->  | E72: 17
A73: 2008 | B73: 11 | C73: =VLOOKUP($H$4,AADT_Data!A:Z,B73,FALSE) ->  | E73: 16
A74: 2007 | B74: 12 | C74: =VLOOKUP($H$4,AADT_Data!A:Z,B74,FALSE) ->  | E74: 15
A75: 2006 | B75: 13 | C75: =VLOOKUP($H$4,AADT_Data!A:Z,B75,FALSE) ->  | E75: 14
A76: 2005 | B76: 14 | C76: =VLOOKUP($H$4,AADT_Data!A:Z,B76,FALSE) ->  | E76: 13
A77: 2004 | B77: 15 | C77: =VLOOKUP($H$4,AADT_Data!A:Z,B77,FALSE) ->  | E77: 12
A78: 2003 | B78: 16 | C78: =VLOOKUP($H$4,AADT_Data!A:Z,B78,FALSE) ->  | E78: 11
A79: 2002 | B79: 17 | C79: =VLOOKUP($H$4,AADT_Data!A:Z,B79,FALSE) ->  | E79: 10
A80: 2001 | B80: 18 | C80: =VLOOKUP($H$4,AADT_Data!A:Z,B80,FALSE) ->  | E80: 9
A81: 2000 | B81: 19 | C81: =VLOOKUP($H$4,AADT_Data!A:Z,B81,FALSE) ->  | E81: 8
A82: 1999 | B82: 20 | C82: =VLOOKUP($H$4,AADT_Data!A:Z,B82,FALSE) ->  | E82: 7
A83: 1998 | B83: 21 | C83: =VLOOKUP($H$4,AADT_Data!A:Z,B83,FALSE) ->  | E83: 6
A84: 1997 | B84: 22 | C84: =VLOOKUP($H$4,AADT_Data!A:Z,B84,FALSE) ->  | E84: 5
A85: 1996 | B85: 23 | C85: =VLOOKUP($H$4,AADT_Data!A:Z,B85,FALSE) ->  | E85: 4
A86: 1995 | B86: 24 | C86: =VLOOKUP($H$4,AADT_Data!A:Z,B86,FALSE) ->  | E86: 3
A87: 1994 | B87: 25 | C87: =VLOOKUP($H$4,AADT_Data!A:Z,B87,FALSE) ->  | E87: 2
A88: 1992 | B88: 26 | C88: =VLOOKUP($H$4,AADT_Data!A:Z,B88,FALSE) ->  | E88: 1 | F88: =IF(LARGE($D$64:$D$88,E88)=0,"",LARGE($D$64:$D$88,E88)) ->  | G88: =IF(ISNA(VLOOKUP(F88,$A$64:$C$88,3,FALSE)),"",VLOOKUP(F88,$A$64:$C$88,3,FALSE)) -> 
A174: County | B174: Factor | C174: Area Type
A175: Aitkin | B175: 0.95 | C175: High Growth Area
A176: Anoka | B176: 0.95 | C176: High Growth Area
A177: Becker | B177: 0.9387339609 | C177: Medium Growth Area
A178: Beltrami | B178: 0.95 | C178: High Growth Area
A179: Benton | B179: 0.95 | C179: High Growth Area
A180: Big Stone | B180: 0.8944759202 | C180: Low Growth Area
A181: Blue Earth | B181: 0.75 | C181: Medium Growth Area
A182: Brown | B182: 0.7896922659 | C182: Low Growth Area
A183: Carlton | B183: 0.95 | C183: Medium Growth Area
A184: Carver | B184: 0.95 | C184: High Growth Area
A185: Cass | B185: 0.95 | C185: High Growth Area
A186: Chippewa | B186: 0.8733104434 | C186: Low Growth Area
A187: Chisago | B187: 0.881279837 | C187: High Growth Area
A188: Clay | B188: 0.75 | C188: Low Growth Area
A189: Clearwater | B189: 0.8438234218 | C189: Low Growth Area
A190: Cook | B190: 0.75 | C190: Medium Growth Area
A191: Cottonwood | B191: 0.8331705696 | C191: Low Growth Area
A192: Crow Wing | B192: 0.8832312646 | C192: High Growth Area
A193: Dakota | B193: 0.8547421962 | C193: High Growth Area
A194: Dodge | B194: 0.95 | C194: High Growth Area
A195: Douglas | B195: 0.8873831958 | C195: High Growth Area
A196: Faribault | B196: 0.865981121 | C196: Low Growth Area
A197: Fillmore | B197: 0.8896061418 | C197: Low Growth Area
A198: Freeborn | B198: 0.755552827 | C198: Low Growth Area
A199: Goodhue | B199: 0.9273647987 | C199: Medium Growth Area
A200: Grant | B200: 0.75 | C200: Low Growth Area
A201: Hennepin | B201: 0.8272566422 | C201: Low Growth Area
A202: Houston | B202: 0.8378015226 | C202: Low Growth Area
A203: Hubbard | B203: 0.8346205138 | C203: High Growth Area
A204: Isanti | B204: 0.95 | C204: High Growth Area
A205: Itasca | B205: 0.8886716849 | C205: Medium Growth Area
A206: Jackson | B206: 0.9180626248 | C206: Medium Growth Area
A207: Kanabec | B207: 0.8135838922 | C207: Medium Growth Area
A208: Kandiyohi | B208: 0.8938419831 | C208: Medium Growth Area
A209: Kittson | B209: 0.8024358458 | C209: Low Growth Area
A210: Koochiching | B210: 0.7937489549 | C210: Low Growth Area
A211: Lac qui Parle | B211: 0.75 | C211: Low Growth Area
A212: Lake | B212: 0.8562919136 | C212: Low Growth Area
A213: Lake of the Woods | B213: 0.9138862817 | C213: Low Growth Area
A214: Le Sueur | B214: 0.95 | C214: Medium Growth Area
A215: Lincoln | B215: 0.8857449991 | C215: Low Growth Area
A216: Lyon | B216: 0.75 | C216: Low Growth Area
A217: Mahnomen | B217: 0.75 | C217: Low Growth Area
A218: Marshall | B218: 0.95 | C218: Low Growth Area
A219: Martin | B219: 0.8201303604 | C219: Low Growth Area
A220: McLeod | B220: 0.8928164106 | C220: Medium Growth Area
A221: Meeker | B221: 0.926111411 | C221: Medium Growth Area
A222: Mille Lacs | B222: 0.95 | C222: High Growth Area
A223: Morrison | B223: 0.9495694712 | C223: Medium Growth Area
A224: Mower | B224: 0.8302978459 | C224: Low Growth Area
A225: Murray | B225: 0.8387247211 | C225: Medium Growth Area
A226: Nicollet | B226: 0.8240013933 | C226: Medium Growth Area
A227: Nobles | B227: 0.7549960093 | C227: Low Growth Area
A228: Norman | B228: 0.8022447962 | C228: Low Growth Area
A229: Olmsted | B229: 0.95 | C229: High Growth Area
A230: Otter Tail | B230: 0.8614026285 | C230: Medium Growth Area
A231: Pennington | B231: 0.95 | C231: Medium Growth Area
A232: Pine | B232: 0.8448776659 | C232: High Growth Area
A233: Pipestone | B233: 0.75 | C233: Low Growth Area
A234: Polk | B234: 0.75 | C234: Low Growth Area
A235: Pope | B235: 0.9029074643 | C235: Medium Growth Area
A236: Ramsey | B236: 0.8087858109 | C236: Low Growth Area
A237: Red Lake | B237: 0.95 | C237: Medium Growth Area
A238: Redwood | B238: 0.75 | C238: Low Growth Area
A239: Renville | B239: 0.8480251476 | C239: Low Growth Area
A240: Rice | B240: 0.8220040162 | C240: Medium Growth Area
A241: Rock | B241: 0.75 | C241: Low Growth Area
A242: Roseau | B242: 0.8847517198 | C242: Medium Growth Area
A243: Scott | B243: 0.95 | C243: High Growth Area
A244: Sherburne | B244: 0.95 | C244: High Growth Area
A245: Sibley | B245: 0.8646549065 | C245: Medium Growth Area
A246: St. Louis | B246: 0.850777855 | C246: Low Growth Area
A247: Stearns | B247: 0.8586120378 | C247: High Growth Area
A248: Steele | B248: 0.8848664209 | C248: Medium Growth Area
A249: Stevens | B249: 0.7999567113 | C249: Low Growth Area
A250: Swift | B250: 0.8706429381 | C250: Low Growth Area
A251: Todd | B251: 0.8988708026 | C251: Medium Growth Area
A252: Traverse | B252: 0.7652278953 | C252: Low Growth Area
A253: Wabasha | B253: 0.8182478469 | C253: Low Growth Area
A254: Wadena | B254: 0.95 | C254: Medium Growth Area
A255: Waseca | B255: 0.7963073355 | C255: Low Growth Area
A256: Washington | B256: 0.95 | C256: High Growth Area
A257: Watonwan | B257: 0.75 | C257: Low Growth Area
A258: Wilkin | B258: 0.75 | C258: Low Growth Area
A259: Winona | B259: 0.8284012539 | C259: Low Growth Area
A260: Wright | B260: 0.95 | C260: High Growth Area
A261: Yellow Medicine | B261: 0.8780713455 | C261: Low Growth Area

Sheet ESAL B1 (hidden)
A1: CUMULATIVE ESAL WORKSHEET | D1: ='Forecast B1'!E1 -> SEGMENT B1 | I1: Non-print area | O1: ONE-WAY
A2: SP#: | B2: =IF(+Cover!E19=0," ",Cover!E19) ->  | F2: CORRESPONDS: | G2: ='Forecast B1'!H1 -> SEGMENT A1 | O2: TWO-WAY
A3: ROUTE: | B3: ='Forecast B1'!B2:C2 ->  | C3: TWO-WAY | D3: # LANES: | E3: =IF('Forecast B1'!H5=0," ",'Forecast B1'!H5) ->  | F3: DATE: | G3: =Cover!B14 -> 2017-11-28T11:37:15.520 | I3: Urban/Rural Classification
A4: LOCATION: | B4: =IF('Forecast B1'!B3=0," ",'Forecast B1'!B3) ->  | I4: =VLOOKUP('Forecast B1'!H4,'Urban&Rural'!A2:B19001,2,FALSE) -> 
B5: YEAR | C5: AADT | E5: AADT Difference from A Seg
A6: BASE YEAR: | B6: ='Forecast B1'!B4 ->  | C6: ='Forecast B1'!I33 ->  | E6: =C6-'ESAL A'!C7 ->  | I6: For reference when Adjusting Base Yr/Future Yr Truck Volumes
A7: FORECAST YEAR: | B7: ='Forecast B1'!F4 ->  | C7: ='Forecast B1'!I34 ->  | E7: =C7-'ESAL A'!C8 ->  | M7: RURAL
C8: User Adjustment to Base Yr Vol | D8: Base Year Incremental Volume | E8: Base Year Volume | F8: User Adjustment to Future Yr Vol | G8: Future Year Incremental Volume | H8: Future Year Volume | M8: URBAN
A9: INCREMENTAL HCADT SEGMENT | I9: % change from A segment
A10: BASE YEAR PROPORTIONS | I10: Base volume | J10: future volume | L10: VEHICLE TYPE | M10: URBAN | N10: RURAL
A11: 2AX-6TIRE SU | B11: =IF($E$6=0,'ESAL A'!B11,D11/$E$6) ->  | C11: 0 | D11: =IF($I$4="urban",M11*$E$6+C11,IF($I$4="rural",N11*$E$6+C11,"See J3")) ->  | E11: ='ESAL A'!D11+D11 ->  | F11: 0 | G11: =B11*$E$7+F11 ->  | H11: ='ESAL A'!G11+G11 ->  | I11: =D11/'ESAL A'!D11 ->  | J11: =G11/'ESAL A'!G11 ->  | L11: 2AX-6TIRE SU | M11: 0.0152 | N11: 0.0317
A12: 3AX+ SU | B12: =IF($E$6=0,'ESAL A'!B12,D12/$E$6) ->  | C12: 0 | D12: =IF($I$4="urban",M12*$E$6+C12,IF($I$4="rural",N12*$E$6+C12,"See J3")) ->  | E12: ='ESAL A'!D12+D12 ->  | F12: 0 | H12: ='ESAL A'!G12+G12 ->  | I12: =D12/'ESAL A'!D12 ->  | J12: =G12/'ESAL A'!G12 ->  | L12: 3AX+ SU | M12: 0.0046 | N12: 0.0164
A13: 3AX TST | B13: =IF($E$6=0,'ESAL A'!B13,D13/$E$6) ->  | C13: 0 | D13: =IF($I$4="urban",M13*$E$6+C13,IF($I$4="rural",N13*$E$6+C13,"See J3")) ->  | E13: ='ESAL A'!D13+D13 ->  | F13: 0 | H13: ='ESAL A'!G13+G13 ->  | I13: =D13/'ESAL A'!D13 ->  | J13: =G13/'ESAL A'!G13 ->  | L13: 3AX TST | M13: 0.0009 | N13: 0.0028
A14: 4AX TST | B14: =IF($E$6=0,'ESAL A'!B14,D14/$E$6) ->  | C14: 0 | D14: =IF($I$4="urban",M14*$E$6+C14,IF($I$4="rural",N14*$E$6+C14,"See J3")) ->  | E14: ='ESAL A'!D14+D14 ->  | F14: 0 | H14: ='ESAL A'!G14+G14 ->  | I14: =D14/'ESAL A'!D14 ->  | J14: =G14/'ESAL A'!G14 ->  | L14: 4AX TST | M14: 0.0012 | N14: 0.005
A15: 5AX+ TST | B15: =IF($E$6=0,'ESAL A'!B15,D15/$E$6) ->  | C15: 0 | D15: =IF($I$4="urban",M15*$E$6+C15,IF($I$4="rural",N15*$E$6+C15,"See J3")) ->  | E15: ='ESAL A'!D15+D15 ->  | F15: 0 | H15: ='ESAL A'!G15+G15 ->  | I15: =D15/SUM('ESAL A'!D15:D17) ->  | J15: =G15/SUM('ESAL A'!G15:G17) ->  | L15: 5AX+ TST | M15: 0.0089 | N15: 0.0326
A16: (5AX+ TST MAX) | B16: =IF($E$6=0,'ESAL A'!B16,D16/$E$6) ->  | C16: 0 | D16: =0+C16 -> 0 | E16: ='ESAL A'!D16+D16 ->  | F16: 0 | H16: ='ESAL A'!G16+G16 ->  | I16: =IF('ESAL A'!D16=0,0,D16/'ESAL A'!D16) ->  | J16: =IF('ESAL A'!G16=0,0,G16/'ESAL A'!G16) ->  | L16: TR TR, BUSES | M16: 0.0047 | N16: 0.012
A17: (5AX+ TST OTH) | B17: =IF($E$6=0,'ESAL A'!B17,D17/$E$6) ->  | C17: 0 | D17: =0+C17 -> 0 | E17: ='ESAL A'!D17+D17 ->  | F17: 0 | H17: ='ESAL A'!G17+G17 ->  | I17: =IF('ESAL A'!D17=0,0,D17/'ESAL A'!D17) ->  | J17: =IF('ESAL A'!G17=0,0,G17/'ESAL A'!G17) ->  | L17: TWIN TRAILERS | M17: 0.0002 | N17: 0.0002
A18: TR TR, BUSES | B18: =IF($E$6=0,'ESAL A'!B18,D18/$E$6) ->  | C18: 0 | D18: =IF($I$4="urban",M16*$E$6+C18,IF($I$4="rural",N16*$E$6+C18,"See J3")) ->  | E18: ='ESAL A'!D18+D18 ->  | F18: 0 | H18: ='ESAL A'!G18+G18 ->  | I18: =D18/'ESAL A'!D18 ->  | J18: =G18/'ESAL A'!G18 ->  | L18: TOTAL | M18: =SUM(M11:M17) -> 0.0357 | N18: =SUM(N11:N17) -> 0.1007
A19: TWIN TRAILERS | B19: =IF($E$6=0,'ESAL A'!B19,D19/$E$6) ->  | C19: 0 | D19: =IF($I$4="urban",M17*$E$6+C19,IF($I$4="rural",N17*$E$6+C19,"See J3")) ->  | E19: ='ESAL A'!D19+D19 ->  | F19: 0 | H19: ='ESAL A'!G19+G19 ->  | I19: =IF('ESAL A'!D19=0,0,D19/'ESAL A'!D19) ->  | J19: =IF('ESAL A'!G19=0,0,G19/'ESAL A'!G19) -> 
A20: CLASSIFICATION: | B20: =I4 ->  | D20: ADDED | E20: COMBINED | F20: =B23-B22 ->  | G20: YR DESIGN
C21: AADT | D21: HCADT % | E21: HCADT % | F21: LANE CUMULATIVE ESAL | I21: When B segment ESALS and AADT vary significantly from each other with no trunk highway junction in between segments, then the difference may be mainly cars. In these instances, the default B segment percentages may need to be adjusted to reflect logical addition or subtraction of trucks, or to smooth out the volume of trucks between all B segments
A22: BASE YEAR: | B22: =B6 ->  | C22: =E6 ->  | D22: =SUM(D11:D19)/C22 ->  | E22: =SUM(D11:D19)+SUM('ESAL A'!D11:D19)/C6 ->  | F22: | | G22: |
A23: FORECAST YEAR: | B23: =B7 ->  | C23: =E7 ->  | D23: =SUM(G11:G19)/C23 ->  | E23: =SUM(G11:G19)+SUM('ESAL A'!G11:G19)/C7 ->  | F23: ***************** | G23: *****************
A24: DESIGN LANE FACTOR: | C24: =IF(C3=O2,CHOOSE((E3)+1,#VALUE!,1,0.5,0.5,0.45,0.45,0.35,0.35),CHOOSE(E3,1,0.9,0.7,0.7,0.7,0.7)) ->  | F24: FLEXIBLE | G24: RIGID
E25: SEGMENT B INCREMENT ONLY: | F25: =ROUND(CHOOSE(C129,F129,F130,F131,F132,F133,F134,F135,F136,F137,F138,F139,F140,F141,F142,F143,F144,F145,F146,F147,F148,F149,F150,F151,F152,F153,F154,F155,F156,F157,F158,F159,F160,F161,F162,F163,F164)*1.12,-3) ->  | G25: =ROUND(CHOOSE(C129,G129,G130,G131,G132,G133,G134,G135,G136,G137,G138,G139,G140,G141,G142,G143,G144,G145,G146,G147,G148,G149,G150,G151,G152,G153,G154,G155,G156,G157,G158,G159,G160,G161,G162,G163,G164)*1.12,-3) -> 
E26: SEGMENT A + SEGMENT B: | F26: =ROUND(F25+'ESAL A'!F26*C24/'ESAL A'!C26,-3) ->  | G26: =ROUND(G25+'ESAL A'!G26*C24/'ESAL A'!C26,-3) -> 
F27: ***************** | G27: ***************** | I27: When adjusting volumes for this reason, edit "User Adjustment to Base Yr/Future Yr Vol" columns until all items in the "% change from A segment" table are within the -50% to 50% range
A28: ADDITIONAL OUTPUTS: | E28: ESAL FACTORS
B29: BASE % | C29: FORECAST % | E29: FLEXIBLE | F29: RIGID
A30: 2AX-6TIRE SU | B30: =D11/$C$22 ->  | C30: =G11/$C$23 ->  | E30: 0.25 | F30: =IF(E30<0.11,E30,E30-0.01) -> 0.24
A31: 3AX+ SU | E31: 0.58 | F31: =IF(E31<0.36,(E31*1.62364-0.070909)+0.01,(IF(E31<0.4,E31*1.62364-0.07909,(IF(E31<0.66,(E31*1.62364-0.07909)-0.01,(IF(E31<0.69,E31*1.62364-0.07909,(E31*1.62364-0.07909)+0.02))))))) -> 0.8526212
A32: 3AX TST | E32: 0.39 | F32: =IF(E32<0.28,E32-0.01,(IF(E32<0.56,E32-0.02,E32-0.03))) -> 0.37
A33: 4AX TST | E33: 0.51 | F33: =IF(E33<0.41,E33,(IF(E33<0.47,E33+0.01,(IF(E33<0.54,E33+0.02,(IF(E33<0.61,E33+0.03,(IF(E33<0.67,E33+0.04,E33+0.05))))))))) -> 0.53
A34: 5AX+ TST | E34: 1.13 | F34: =(+E34*1.71536-0.05351)+0.005 -> 1.8898468
A35: (5AX+ TST MAX) | E35: 2.4 | F35: =(+E35*1.71536-0.05351)+0.005 -> 4.068354
A36: (5AX+ TST OTH) | E36: 0.87 | F36: =(+E36*1.71536-0.05351)+0.005 -> 1.4438532
A37: TR TR, BUSES | E37: 0.57 | F37: =E37*1.35636-0.03091 -> 0.7422152
A38: TWIN TRAILERS | E38: 2.4 | F38: =(+E38*0.97519-0.01494)+0.005 -> 2.330516
A40: BASE YEAR | D40: FUTURE YEAR
A41: =IF(OR(I11>0.5,I12>0.5,I13>0.5,I14>0.5,I15>0.5,I16>0.5,I17>0.5,I18>0.5,I19>0.5),"Taking away more than 50% of trucks from A segment. Reduce B segment truck percentages in base year","OK") ->  | C41: Subtraction of Trucks | D41: =IF(OR(J11>0.5,J12>0.5,J13>0.5,J14>0.5,J15>0.5,J16>0.5,J17>0.5,J18>0.5,J19>0.5),"Taking away more than 50% of trucks from A segment. Reduce B segment truck percentages in base year","OK") -> 
A45: =IF(OR(I11<-0.5,I12<-0.5,I13<-0.5,I14<-0.5,I15<-0.5,I16<-0.5,I17<-0.5,I18<-0.5,I19<-0.5),"Adding more than 50% of trucks from A segment. Reduce B segment truck percentages in base year","OK") ->  | C45: Addition of Trucks | D45: =IF(OR(J11<-0.5,J12<-0.5,J13<-0.5,J14<-0.5,J15<-0.5,J16<-0.5,J17<-0.5,J18<-0.5,J19<-0.5),"Adding more than 50% of trucks from A segment. Reduce B segment truck percentages in base year","OK") -> 
A59: CUMULATIVE ESAL REPORT | D59: =D1 -> SEGMENT B1 | F59: CORRESPONDS: | G59: ='Forecast B1'!H1 -> SEGMENT A1
F60: DATE: | G60: =Cover!B14 -> 2017-11-28T11:37:15.520
A61: ROUTE #: | B61: ='Forecast A'!B2:C2 ->  | C61: DISTRICT: | D61: =IF(Cover!B21=0," ",Cover!B21) ->  | E61: SP#: | F61: =IF(+Cover!E19=0," ",+Cover!E19) -> 
A62: FORECAST #: | B62: =IF(Cover!E18=0," ",Cover!E18) ->  | C62: COUNTY: | D62: =IF(+Cover!E22=0," ",Cover!E22) ->  | E62: MILES: | F62: ='Forecast B1'!H3 -> 
A63: DESCRIPTION: | B63: =B4 -> 
A64: AUTHOR: | B64: =IF(Cover!B19=0," ",Cover!B19) ->  | E64: AUTHOR'S DISTRICT: | F64: =IF(Cover!B20=0," ",Cover!B20) -> 
A66: BASE YEAR NUMBER OF LANES: | D66: =IF('Forecast B1'!H5=0," ",'Forecast B1'!H5) -> 
G67: GROWTH / YR (SIMPLE %)
A68: TRAFFIC SUMMARY | D68: BASE YEAR | F68: DESIGN YEAR
A69: =C3 -> TWO-WAY | D69: =B6 ->  | F69: =B7 -> 
A70: AADT: | D70: =C6 ->  | F70: =C7 ->  | G70: =((F70-D70)/($F$69-$D$69))/D70 -> 
A71: DESIGN LANE: | D71: =ROUND(C24*D70,-2) ->  | F71: =ROUND(C24*F70,-2) -> 
A72: HCADT: | D72: =ROUND(SUM('ESAL A'!D11:D19)+SUM(D11:D19),-2) ->  | F72: =ROUND(SUM('ESAL A'!G11:G19)+SUM(G11:G19),-2) -> 
A73: SINGLE UNITS: | D73: =ROUND('ESAL A'!D11+'ESAL A'!D12+D11+D12,-2) ->  | F73: =ROUND(('ESAL A'!G11+'ESAL A'!G12+G11+G12),-2) -> 
A74: TST'S: | D74: =SUM('ESAL A'!D13:D17)+SUM(D13:D17) ->  | F74: =SUM('ESAL A'!G13:G17)+SUM(G13:G17) -> 
A75: 5 Ax+: | D75: =SUM('ESAL A'!D15:D17)+SUM(D15:D17) ->  | F75: =SUM('ESAL A'!G15:G17)+SUM(G15:G17) -> 
A77: ESAL SUMMARY
A78: ANNUAL DESIGN LANE ESAL
A79: FLEXIBLE: | D79: =('ESAL A'!D115*'ESAL A'!C26+D125*C24)*365.25 ->  | F79: =('ESAL A'!F115*'ESAL A'!C26+F125*C24)*365.25 -> 
A80: RIGID: | D80: =('ESAL A'!E115*'ESAL A'!C26+E125*C24)*365.25 ->  | F80: =('ESAL A'!G115*'ESAL A'!C26+G125*C24)*365.25 -> 
A82: CUMULATIVE DESIGN-LANE ESALS (10 TON) | F82: Design-lane factor: | G82: =C24 -> 
A83: FOR VARIABLE TIME PERIODS
A87: BASE | B87: DESIGN | C87: TIME | D87: DESIGN-LANE | F87: ESALS
A88: YEAR | B88: YEAR | C88: PERIOD | D88: TST'S | F88: FLEXIBLE | G88: RIGID
A89: =D69 ->  | B89: =A89+10 ->  | C89: 10 Year | D89: =G82*(10*(F74-D74)/(F69-D69)+D74) ->  | F89: =ROUND(('ESAL A'!F129*C24/'ESAL A'!C26+F139)*1.12,-3) ->  | G89: =ROUND(('ESAL A'!G129*C24/'ESAL A'!C26+G139)*1.12,-3) -> 
A91: =D69 ->  | B91: =A91+15 ->  | C91: 15 Year | D91: =G82*(15*(F74-D74)/(F69-D69)+D74) ->  | F91: =ROUND(('ESAL A'!F134*C24/'ESAL A'!C26+F144)*1.12,-3) ->  | G91: =ROUND(('ESAL A'!G134*C24/'ESAL A'!C26+G144)*1.12,-3) -> 
A93: =D69 ->  | B93: =A93+20 ->  | C93: 20 Year | D93: =G82*(20*(F74-D74)/(F69-D69)+D74) ->  | F93: =ROUND(('ESAL A'!F139*C24/'ESAL A'!C26+F149)*1.12,-3) ->  | G93: =ROUND(('ESAL A'!G139*C24/'ESAL A'!C26+G149)*1.12,-3) -> 
A95: =D69 ->  | B95: =A95+25 ->  | C95: 25 Year | D95: =G82*(25*(F74-D74)/(F69-D69)+D74) ->  | F95: =ROUND(('ESAL A'!F144*C24/'ESAL A'!C26+F154)*1.12,-3) ->  | G95: =ROUND(('ESAL A'!G144*C24/'ESAL A'!C26+G154)*1.12,-3) -> 
A97: =D69 ->  | B97: =A97+30 ->  | C97: 30 Year | D97: =G82*(30*(F74-D74)/(F69-D69)+D74) ->  | F97: =ROUND(('ESAL A'!F149*C24/'ESAL A'!C26+F159)*1.12,-3) ->  | G97: =ROUND(('ESAL A'!G149*C24/'ESAL A'!C26+G159)*1.12,-3) -> 
A99: =D69 ->  | B99: =A99+35 ->  | C99: 35 Year | D99: =G82*(35*(F74-D74)/(F69-D69)+D74) ->  | F99: =ROUND(('ESAL A'!F154*C24/'ESAL A'!C26+F164)*1.12,-3) ->  | G99: =ROUND(('ESAL A'!G154*C24/'ESAL A'!C26+G164)*1.12,-3) -> 
B106: APPROVED BY: | F106: DATE:
A113: CUMULATIVE ESAL WORK AREA
B114: BYVOLS | C114: FYVOLS | D114: BY VOL * BESAL | E114: BY VOL *CESAL | F114: FY VOL *BESAL | G114: FY VOL *CESAL
B115: =D11 ->  | C115: =G11 ->  | D115: =E30*B115 ->  | E115: =F30*B115 ->  | F115: =E30*C115 ->  | G115: =F30*C115 -> 
B120: 0 | D120: 0 | E120: 0
B121: 0 | D121: 0 | E121: 0
A124: TWO WAY ADL --> | D124: FLEX ADL | E124: RIG ADL | F124: FLEX ADL | G124: RIG ADL
A125: | | D125: =$C$22*0.0007+SUM(D115:D123) ->  | E125: =$C$22*0.0007+SUM(E115:E123) ->  | F125: =$C$23*0.0007+SUM(F115:F123) ->  | G125: =$C$23*0.0007+SUM(G115:G123) -> 
A127: CUMULATIVE ESAL CALCULATIONS (DESIGN LANE) | F127: FLEXIBLE | G127: RIGID
B128: INCLUSIVE | C128: YEARS | E128: DAYS
A129: FUTURE YR - BASE YR = | C129: =B7-B6+1 ->  | E129: 365.25 | F129: =$D$125*$E129*$C$24+F128 ->  | G129: =$E$125*$E129*$C$24+G128 -> 
E130: 730.5 | F130: =(365.25*$D$125+$E129*$A$133)*$C$24+F129 ->  | G130: =(365.25*$E$125+$E129*$B$133)*$C$24+G129 -> 
A131: ANNUAL AVERAGE CHANGE IN 2 WAY ADL | E131: 1095.75
A132: FLEXIBLE | B132: RIGID | E132: 1461
A133: =(+F125-D125)/($C$129-1) ->  | B133: =(+G125-E125)/($C$129-1) ->  | E133: 1826.25
E134: 2191.5
E135: 2556.75
E136: 2922
E137: 3287.25
E138: 3652.5
E139: 4017.75
E140: 4383
E141: 4748.25
E142: 5113.5
E143: 5478.75
E144: 5844
E145: 6209.25
E146: 6574.5
E147: 6939.75
E148: 7305
E149: 7670.25
E150: 8035.5
E151: 8400.75
E152: 8766
E153: 9131.25
E154: 9496.5
E155: 9861.75
E156: 10227
E157: 10592.25
E158: 10957.5
E159: 11322.75
E160: 11688
E161: 12053.25
E162: 12418.5
E163: 12783.75
E164: 13149

Sheet Forecast B2 (hidden)
A1: LEAST SQUARES WORKSHEET | E1: SEGMENT B2 | G1: Corresponds : | H1: ='Forecast A'!E1 -> SEGMENT A1 | J1: Non-print area
A2: ROUTE: | B2: =IF(Cover!E21="Interstate",Cover!G42&Cover!E20,IF(Cover!E21="US Trunk",Cover!G43&Cover!E20,IF(Cover!E21="MN Trunk",Cover!G44&Cover!E20,IF(Cover!E21="CSAH",Cover!G45&Cover!E20,IF(Cover!E21="CR",Cover!G46&Cover!E20," "))))) ->  | D2: SP#: | E2: =IF(Cover!E19=0," ",Cover!E19) ->  | G2: DATE : | H2: =Cover!B14 -> 2017-11-28T11:37:15.520
A3: LOCATION: | G3: Miles : | H3: =VLOOKUP(H4,AADT_Data!A:AA,27,FALSE) ->  | J3: =IF(B3="","Location field is empty. Please enter location description. E.g. MN 169 to CSAH 5","") -> Location field is empty. Please enter location description. E.g. MN 169 to CSAH 5
A4: BASE YEAR: | B4: =IF('Forecast A'!B4=0," ",'Forecast A'!B4) ->  | E4: FORECAST YEAR: | F4: =B4+20 ->  | G4: Seq # | J4: =IF(H4="","No Seq # is listed. Please enter sequence number","") -> No Seq # is listed. Please enter sequence number
G5: # of lanes | J5: =IF(H5="","Please indicate the number of lanes in this segment","") -> Please indicate the number of lanes in this segment
A6: YEAR | B6: FLOW MAP AADT (SEG A) | J6: Year | K6: AADT
C7: 850 | J7: =IF(LARGE($D$64:$D$88,E73)=0,"",LARGE($D$64:$D$88,E73)) ->  | K7: =IF(ISNA(VLOOKUP(F73,$A$64:$C$88,3,FALSE)),"",VLOOKUP(F73,$A$64:$C$88,3,FALSE)) ->  | L7: Note: only contains data
C8: 880 | L8: updated to 2016 AADT
C9: 880
C10: 1350
C11: 1150
C12: 1000
C13: 1150
C14: 1100
C15: 1100
C16: 1100
C17: 1000
J22: =IF(LARGE($D$64:$D$88,E88)=0,"",LARGE($D$64:$D$88,E88)) ->  | K22: =IF(ISNA(VLOOKUP(F88,$A$64:$C$88,3,FALSE)),"",VLOOKUP(F88,$A$64:$C$88,3,FALSE)) -> 
A24: LEAST SQUARES BASED FORECASTS:
A25: Year | B25: AADT | D25: Calc | E25: ADT Calc
A26: =INDEX(A7:A22,MATCH(9.99999999999999E+307,B7:B22)) ->  | B26: =FORECAST(A26,B7:B22,A7:A22) ->  | D26: =VLOOKUP(A26,$A$13:$B$22,2,FALSE)-B26 ->  | E26: =B26+D26 -> 
A27: =B4 ->  | B27: =FORECAST(A27,B7:B22,A7:A22) ->  | E27: =B27+D26 ->  | F27: =E27 -> 
A28: =F4 ->  | B28: =FORECAST(A28,B7:B22,A7:A22) ->  | E28: =B28+D26 ->  | F28: =E26+(E28-E26)*F40 -> 
A30: Statistics | B30: AADT | E30: Raw Least Squares Forecasts | H30: Demographically Adjusted Forecasts
A31: R 2 | B31: =RSQ(B7:B22,A7:A22) ->  | E31: YEAR | F31: AADT | H31: YEAR | I31: AADT
A32: SLOPE | B32: =SLOPE(B7:B22,A7:A22) ->  | E32: =A26 ->  | F32: =ROUND(E26,-1) ->  | H32: =A26 ->  | I32: =F32 -> 
A33: INTERCEPT | B33: =INTERCEPT(B7:B22,A7:A22) ->  | E33: =A27 ->  | F33: =ROUND(E27,-1) ->  | H33: =A27 ->  | I33: =ROUND(((I34-I32)/(H34-H32)*(H33-H32)+I32),-1) -> 
A34: N | B34: =COUNT(B7:B22) -> 0 | E34: =A28 ->  | F34: =ROUND(E28,-1) ->  | H34: =A28 ->  | I34: =ROUND(F32*(1+H38*(H34-H32)),-1) -> 
A35: NOTE:
A36: County Adjustment Factors were developed to Apply to Projected AADT. They are based on 1992-2007 VMT, Population, Labor Force, Household, and Employment Data. | E36: Slope Over Base Year | H36: Slope Over Base Year
E37: =B32/F33 ->  | H37: =((I34-I33)/(H34-H33)/I33) -> 
H38: =IF(E37*F40<=0.5%,0.5%,E37*F40) -> 
D39: COUNTY | F39: COUNTY FACTOR | H39: GROWTH PROFILE
D40: =UPPER(VLOOKUP(Cover!E22,$A$174:$C$261,1,FALSE)) ->  | F40: =VLOOKUP(Cover!E22,$A$174:$C$261,2,FALSE) ->  | H40: =UPPER(VLOOKUP(Cover!E22,$A$174:$C$261,3,FALSE)) -> 
B61: AADT_Data column reference
A63: year | C63: aadt | D63: data years | E63: nth largest
A64: 2017 | B64: 2 | C64: =VLOOKUP($H$4,AADT_Data!A:Z,B64,FALSE) ->  | D64: =IF(C64=0,0,A64) ->  | E64: 25 | F64: =IF(LARGE($D$64:$D$88,E64)=0,"",LARGE($D$64:$D$88,E64)) ->  | G64: =IF(ISNA(VLOOKUP(F64,$A$64:$C$88,3,FALSE)),"",VLOOKUP(F64,$A$64:$C$88,3,FALSE)) -> 
A65: 2016 | B65: 3 | C65: =VLOOKUP($H$4,AADT_Data!A:Z,B65,FALSE) ->  | D65: =IF(C65=0,0,A65) ->  | E65: 24
A66: 2015 | B66: 4 | C66: =VLOOKUP($H$4,AADT_Data!A:Z,B66,FALSE) ->  | D66: =IF(C66=0,0,A66) ->  | E66: 23
A67: 2014 | B67: 5 | C67: =VLOOKUP($H$4,AADT_Data!A:Z,B67,FALSE) ->  | D67: =IF(C67=0,0,A67) ->  | E67: 22
A68: 2013 | B68: 6 | C68: =VLOOKUP($H$4,AADT_Data!A:Z,B68,FALSE) ->  | D68: =IF(C68=0,0,A68) ->  | E68: 21
A69: 2012 | B69: 7 | C69: =VLOOKUP($H$4,AADT_Data!A:Z,B69,FALSE) ->  | E69: 20
A70: 2011 | B70: 8 | C70: =VLOOKUP($H$4,AADT_Data!A:Z,B70,FALSE) ->  | E70: 19
A71: 2010 | B71: 9 | C71: =VLOOKUP($H$4,AADT_Data!A:Z,B71,FALSE) ->  | E71: 18
A72: 2009 | B72: 10 | C72: =VLOOKUP($H$4,AADT_Data!A:Z,B72,FALSE) ->  | E72: 17
A73: 2008 | B73: 11 | C73: =VLOOKUP($H$4,AADT_Data!A:Z,B73,FALSE) ->  | E73: 16
A74: 2007 | B74: 12 | C74: =VLOOKUP($H$4,AADT_Data!A:Z,B74,FALSE) ->  | E74: 15
A75: 2006 | B75: 13 | C75: =VLOOKUP($H$4,AADT_Data!A:Z,B75,FALSE) ->  | E75: 14
A76: 2005 | B76: 14 | C76: =VLOOKUP($H$4,AADT_Data!A:Z,B76,FALSE) ->  | E76: 13
A77: 2004 | B77: 15 | C77: =VLOOKUP($H$4,AADT_Data!A:Z,B77,FALSE) ->  | E77: 12
A78: 2003 | B78: 16 | C78: =VLOOKUP($H$4,AADT_Data!A:Z,B78,FALSE) ->  | E78: 11
A79: 2002 | B79: 17 | C79: =VLOOKUP($H$4,AADT_Data!A:Z,B79,FALSE) ->  | E79: 10
A80: 2001 | B80: 18 | C80: =VLOOKUP($H$4,AADT_Data!A:Z,B80,FALSE) ->  | E80: 9
A81: 2000 | B81: 19 | C81: =VLOOKUP($H$4,AADT_Data!A:Z,B81,FALSE) ->  | E81: 8
A82: 1999 | B82: 20 | C82: =VLOOKUP($H$4,AADT_Data!A:Z,B82,FALSE) ->  | E82: 7
A83: 1998 | B83: 21 | C83: =VLOOKUP($H$4,AADT_Data!A:Z,B83,FALSE) ->  | E83: 6
A84: 1997 | B84: 22 | C84: =VLOOKUP($H$4,AADT_Data!A:Z,B84,FALSE) ->  | E84: 5
A85: 1996 | B85: 23 | C85: =VLOOKUP($H$4,AADT_Data!A:Z,B85,FALSE) ->  | E85: 4
A86: 1995 | B86: 24 | C86: =VLOOKUP($H$4,AADT_Data!A:Z,B86,FALSE) ->  | E86: 3
A87: 1994 | B87: 25 | C87: =VLOOKUP($H$4,AADT_Data!A:Z,B87,FALSE) ->  | E87: 2
A88: 1992 | B88: 26 | C88: =VLOOKUP($H$4,AADT_Data!A:Z,B88,FALSE) ->  | E88: 1 | F88: =IF(LARGE($D$64:$D$88,E88)=0,"",LARGE($D$64:$D$88,E88)) ->  | G88: =IF(ISNA(VLOOKUP(F88,$A$64:$C$88,3,FALSE)),"",VLOOKUP(F88,$A$64:$C$88,3,FALSE)) -> 
A174: County | B174: Factor | C174: Area Type
A175: Aitkin | B175: 0.95 | C175: High Growth Area
A176: Anoka | B176: 0.95 | C176: High Growth Area
A177: Becker | B177: 0.9387339609 | C177: Medium Growth Area
A178: Beltrami | B178: 0.95 | C178: High Growth Area
A179: Benton | B179: 0.95 | C179: High Growth Area
A180: Big Stone | B180: 0.8944759202 | C180: Low Growth Area
A181: Blue Earth | B181: 0.75 | C181: Medium Growth Area
A182: Brown | B182: 0.7896922659 | C182: Low Growth Area
A183: Carlton | B183: 0.95 | C183: Medium Growth Area
A184: Carver | B184: 0.95 | C184: High Growth Area
A185: Cass | B185: 0.95 | C185: High Growth Area
A186: Chippewa | B186: 0.8733104434 | C186: Low Growth Area
A187: Chisago | B187: 0.881279837 | C187: High Growth Area
A188: Clay | B188: 0.75 | C188: Low Growth Area
A189: Clearwater | B189: 0.8438234218 | C189: Low Growth Area
A190: Cook | B190: 0.75 | C190: Medium Growth Area
A191: Cottonwood | B191: 0.8331705696 | C191: Low Growth Area
A192: Crow Wing | B192: 0.8832312646 | C192: High Growth Area
A193: Dakota | B193: 0.8547421962 | C193: High Growth Area
A194: Dodge | B194: 0.95 | C194: High Growth Area
A195: Douglas | B195: 0.8873831958 | C195: High Growth Area
A196: Faribault | B196: 0.865981121 | C196: Low Growth Area
A197: Fillmore | B197: 0.8896061418 | C197: Low Growth Area
A198: Freeborn | B198: 0.755552827 | C198: Low Growth Area
A199: Goodhue | B199: 0.9273647987 | C199: Medium Growth Area
A200: Grant | B200: 0.75 | C200: Low Growth Area
A201: Hennepin | B201: 0.8272566422 | C201: Low Growth Area
A202: Houston | B202: 0.8378015226 | C202: Low Growth Area
A203: Hubbard | B203: 0.8346205138 | C203: High Growth Area
A204: Isanti | B204: 0.95 | C204: High Growth Area
A205: Itasca | B205: 0.8886716849 | C205: Medium Growth Area
A206: Jackson | B206: 0.9180626248 | C206: Medium Growth Area
A207: Kanabec | B207: 0.8135838922 | C207: Medium Growth Area
A208: Kandiyohi | B208: 0.8938419831 | C208: Medium Growth Area
A209: Kittson | B209: 0.8024358458 | C209: Low Growth Area
A210: Koochiching | B210: 0.7937489549 | C210: Low Growth Area
A211: Lac qui Parle | B211: 0.75 | C211: Low Growth Area
A212: Lake | B212: 0.8562919136 | C212: Low Growth Area
A213: Lake of the Woods | B213: 0.9138862817 | C213: Low Growth Area
A214: Le Sueur | B214: 0.95 | C214: Medium Growth Area
A215: Lincoln | B215: 0.8857449991 | C215: Low Growth Area
A216: Lyon | B216: 0.75 | C216: Low Growth Area
A217: Mahnomen | B217: 0.75 | C217: Low Growth Area
A218: Marshall | B218: 0.95 | C218: Low Growth Area
A219: Martin | B219: 0.8201303604 | C219: Low Growth Area
A220: McLeod | B220: 0.8928164106 | C220: Medium Growth Area
A221: Meeker | B221: 0.926111411 | C221: Medium Growth Area
A222: Mille Lacs | B222: 0.95 | C222: High Growth Area
A223: Morrison | B223: 0.9495694712 | C223: Medium Growth Area
A224: Mower | B224: 0.8302978459 | C224: Low Growth Area
A225: Murray | B225: 0.8387247211 | C225: Medium Growth Area
A226: Nicollet | B226: 0.8240013933 | C226: Medium Growth Area
A227: Nobles | B227: 0.7549960093 | C227: Low Growth Area
A228: Norman | B228: 0.8022447962 | C228: Low Growth Area
A229: Olmsted | B229: 0.95 | C229: High Growth Area
A230: Otter Tail | B230: 0.8614026285 | C230: Medium Growth Area
A231: Pennington | B231: 0.95 | C231: Medium Growth Area
A232: Pine | B232: 0.8448776659 | C232: High Growth Area
A233: Pipestone | B233: 0.75 | C233: Low Growth Area
A234: Polk | B234: 0.75 | C234: Low Growth Area
A235: Pope | B235: 0.9029074643 | C235: Medium Growth Area
A236: Ramsey | B236: 0.8087858109 | C236: Low Growth Area
A237: Red Lake | B237: 0.95 | C237: Medium Growth Area
A238: Redwood | B238: 0.75 | C238: Low Growth Area
A239: Renville | B239: 0.8480251476 | C239: Low Growth Area
A240: Rice | B240: 0.8220040162 | C240: Medium Growth Area
A241: Rock | B241: 0.75 | C241: Low Growth Area
A242: Roseau | B242: 0.8847517198 | C242: Medium Growth Area
A243: Scott | B243: 0.95 | C243: High Growth Area
A244: Sherburne | B244: 0.95 | C244: High Growth Area
A245: Sibley | B245: 0.8646549065 | C245: Medium Growth Area
A246: St. Louis | B246: 0.850777855 | C246: Low Growth Area
A247: Stearns | B247: 0.8586120378 | C247: High Growth Area
A248: Steele | B248: 0.8848664209 | C248: Medium Growth Area
A249: Stevens | B249: 0.7999567113 | C249: Low Growth Area
A250: Swift | B250: 0.8706429381 | C250: Low Growth Area
A251: Todd | B251: 0.8988708026 | C251: Medium Growth Area
A252: Traverse | B252: 0.7652278953 | C252: Low Growth Area
A253: Wabasha | B253: 0.8182478469 | C253: Low Growth Area
A254: Wadena | B254: 0.95 | C254: Medium Growth Area
A255: Waseca | B255: 0.7963073355 | C255: Low Growth Area
A256: Washington | B256: 0.95 | C256: High Growth Area
A257: Watonwan | B257: 0.75 | C257: Low Growth Area
A258: Wilkin | B258: 0.75 | C258: Low Growth Area
A259: Winona | B259: 0.8284012539 | C259: Low Growth Area
A260: Wright | B260: 0.95 | C260: High Growth Area
A261: Yellow Medicine | B261: 0.8780713455 | C261: Low Growth Area

Sheet ESAL B2 (hidden)
A1: CUMULATIVE ESAL WORKSHEET | D1: ='Forecast B2'!E1 -> SEGMENT B2 | I1: Non-print area | O1: ONE-WAY
A2: SP#: | B2: =IF(+Cover!E19=0," ",Cover!E19) ->  | F2: CORRESPONDS: | G2: ='Forecast B2'!H1 -> SEGMENT A1 | O2: TWO-WAY
A3: ROUTE: | B3: ='Forecast B2'!B2:C2 ->  | C3: TWO-WAY | D3: # LANES: | E3: =IF('Forecast B2'!H5=0," ",'Forecast B2'!H5) ->  | F3: DATE: | G3: =Cover!B14 -> 2017-11-28T11:37:15.520 | I3: Urban/Rural Classification
A4: LOCATION: | B4: =IF('Forecast B2'!B3=0," ",'Forecast B2'!B3) ->  | I4: =VLOOKUP('Forecast B2'!H4,'Urban&Rural'!A2:B19001,2,FALSE) -> 
B5: YEAR | C5: AADT | E5: AADT Difference from A Seg
A6: BASE YEAR: | B6: ='Forecast B2'!B4 ->  | C6: ='Forecast B2'!I33 ->  | E6: =IF(C6=0,0,+C6-'ESAL A'!C7) ->  | I6: For reference when Adjusting Base Yr/Future Yr Truck Volumes
A7: FORECAST YEAR: | B7: ='Forecast B2'!F4 ->  | C7: ='Forecast B2'!I34 ->  | E7: =IF(C7=0,0,+C7-'ESAL A'!C8) ->  | M7: RURAL
C8: User Adjustment to Base Yr Vol | D8: Base Year Incremental Volume | E8: Base Year Volume | F8: User Adjustment to Future Yr Vol | G8: Future Year Incremental Volume | H8: Future Year Volume | M8: URBAN
A9: INCREMENTAL HCADT SEGMENT | I9: % change from A segment
A10: BASE YEAR PROPORTIONS | I10: Base volume | J10: future volume | L10: VEHICLE TYPE | M10: URBAN | N10: RURAL
A11: 2AX-6TIRE SU | B11: =IF($E$6=0,'ESAL A'!B11,D11/$E$6) ->  | C11: 0 | D11: =IF($I$4="urban",M11*$E$6+C11,IF($I$4="rural",N11*$E$6+C11,"See J3")) ->  | E11: ='ESAL A'!D11+D11 ->  | F11: 0 | G11: =B11*$E$7+F11 ->  | H11: ='ESAL A'!G11+G11 ->  | I11: =D11/'ESAL A'!D11 ->  | J11: =G11/'ESAL A'!G11 ->  | L11: 2AX-6TIRE SU | M11: 0.0152 | N11: 0.0317
A12: 3AX+ SU | B12: =IF($E$6=0,'ESAL A'!B12,D12/$E$6) ->  | C12: 0 | D12: =IF($I$4="urban",M12*$E$6+C12,IF($I$4="rural",N12*$E$6+C12,"See J3")) ->  | E12: ='ESAL A'!D12+D12 ->  | F12: 0 | H12: ='ESAL A'!G12+G12 ->  | I12: =D12/'ESAL A'!D12 ->  | J12: =G12/'ESAL A'!G12 ->  | L12: 3AX+ SU | M12: 0.0046 | N12: 0.0164
A13: 3AX TST | B13: =IF($E$6=0,'ESAL A'!B13,D13/$E$6) ->  | C13: 0 | D13: =IF($I$4="urban",M13*$E$6+C13,IF($I$4="rural",N13*$E$6+C13,"See J3")) ->  | E13: ='ESAL A'!D13+D13 ->  | F13: 0 | H13: ='ESAL A'!G13+G13 ->  | I13: =D13/'ESAL A'!D13 ->  | J13: =G13/'ESAL A'!G13 ->  | L13: 3AX TST | M13: 0.0009 | N13: 0.0028
A14: 4AX TST | B14: =IF($E$6=0,'ESAL A'!B14,D14/$E$6) ->  | C14: 0 | D14: =IF($I$4="urban",M14*$E$6+C14,IF($I$4="rural",N14*$E$6+C14,"See J3")) ->  | E14: ='ESAL A'!D14+D14 ->  | F14: 0 | H14: ='ESAL A'!G14+G14 ->  | I14: =D14/'ESAL A'!D14 ->  | J14: =G14/'ESAL A'!G14 ->  | L14: 4AX TST | M14: 0.0012 | N14: 0.005
A15: 5AX+ TST | B15: =IF($E$6=0,'ESAL A'!B15,D15/$E$6) ->  | C15: 0 | D15: =IF($I$4="urban",M15*$E$6+C15,IF($I$4="rural",N15*$E$6+C15,"See J3")) ->  | E15: ='ESAL A'!D15+D15 ->  | F15: 0 | H15: ='ESAL A'!G15+G15 ->  | I15: =D15/SUM('ESAL A'!D15:D17) ->  | J15: =G15/SUM('ESAL A'!G15:G17) ->  | L15: 5AX+ TST | M15: 0.0089 | N15: 0.0326
A16: (5AX+ TST MAX) | B16: =IF($E$6=0,'ESAL A'!B16,D16/$E$6) ->  | C16: 0 | D16: =0+C16 -> 0 | E16: ='ESAL A'!D16+D16 ->  | F16: 0 | H16: ='ESAL A'!G16+G16 ->  | I16: =IF('ESAL A'!D16=0,0,D16/'ESAL A'!D16) ->  | J16: =IF('ESAL A'!G16=0,0,G16/'ESAL A'!G16) ->  | L16: TR TR, BUSES | M16: 0.0047 | N16: 0.012
A17: (5AX+ TST OTH) | B17: =IF($E$6=0,'ESAL A'!B17,D17/$E$6) ->  | C17: 0 | D17: =0+C17 -> 0 | E17: ='ESAL A'!D17+D17 ->  | F17: 0 | H17: ='ESAL A'!G17+G17 ->  | I17: =IF('ESAL A'!D17=0,0,D17/'ESAL A'!D17) ->  | J17: =IF('ESAL A'!G17=0,0,G17/'ESAL A'!G17) ->  | L17: TWIN TRAILERS | M17: 0.0002 | N17: 0.0002
A18: TR TR, BUSES | B18: =IF($E$6=0,'ESAL A'!B18,D18/$E$6) ->  | C18: 0 | D18: =IF($I$4="urban",M16*$E$6+C18,IF($I$4="rural",N16*$E$6+C18,"See J3")) ->  | E18: ='ESAL A'!D18+D18 ->  | F18: 0 | H18: ='ESAL A'!G18+G18 ->  | I18: =D18/'ESAL A'!D18 ->  | J18: =G18/'ESAL A'!G18 ->  | L18: TOTAL | M18: =SUM(M11:M17) -> 0.0357 | N18: =SUM(N11:N17) -> 0.1007
A19: TWIN TRAILERS | B19: =IF($E$6=0,'ESAL A'!B19,D19/$E$6) ->  | C19: 0 | D19: =IF($I$4="urban",M17*$E$6+C19,IF($I$4="rural",N17*$E$6+C19,"See J3")) ->  | E19: ='ESAL A'!D19+D19 ->  | F19: 0 | H19: ='ESAL A'!G19+G19 ->  | I19: =IF('ESAL A'!D19=0,0,D19/'ESAL A'!D19) ->  | J19: =IF('ESAL A'!G19=0,0,G19/'ESAL A'!G19) -> 
A20: CLASSIFICATION: | B20: =I4 ->  | D20: ADDED | E20: COMBINED | F20: =B23-B22 ->  | G20: YR DESIGN
C21: AADT | D21: HCADT % | E21: HCADT % | F21: LANE CUMULATIVE ESAL | I21: When B segment ESALS and AADT vary significantly from each other with no trunk highway junction in between segments, then the difference may be mainly cars. In these instances, the default B segment percentages may need to be adjusted to reflect logical addition or subtraction of trucks, or to smooth out the volume of trucks between all B segments
A22: BASE YEAR: | B22: =B6 ->  | C22: =E6 ->  | D22: =SUM(D11:D19)/C22 ->  | E22: =SUM(D11:D19)+SUM('ESAL A'!D11:D19)/C6 ->  | F22: | | G22: |
A23: FORECAST YEAR: | B23: =B7 ->  | C23: =E7 ->  | D23: =SUM(G11:G19)/C23 ->  | E23: =SUM(G11:G19)+SUM('ESAL A'!G11:G19)/C7 ->  | F23: ***************** | G23: *****************
A24: DESIGN LANE FACTOR: | C24: =IF(C3=O2,CHOOSE((E3)+1,#VALUE!,1,0.5,0.5,0.45,0.45,0.35,0.35),CHOOSE(E3,1,0.9,0.7,0.7,0.7,0.7)) ->  | F24: FLEXIBLE | G24: RIGID
E25: SEGMENT B INCREMENT ONLY: | F25: =ROUND(CHOOSE(C129,F129,F130,F131,F132,F133,F134,F135,F136,F137,F138,F139,F140,F141,F142,F143,F144,F145,F146,F147,F148,F149,F150,F151,F152,F153,F154,F155,F156,F157,F158,F159,F160,F161,F162,F163,F164)*1.12,-3) ->  | G25: =ROUND(CHOOSE(C129,G129,G130,G131,G132,G133,G134,G135,G136,G137,G138,G139,G140,G141,G142,G143,G144,G145,G146,G147,G148,G149,G150,G151,G152,G153,G154,G155,G156,G157,G158,G159,G160,G161,G162,G163,G164)*1.12,-3) -> 
E26: SEGMENT A + SEGMENT B: | F26: =ROUND(F25+'ESAL A'!F26*C24/'ESAL A'!C26,-3) ->  | G26: =ROUND(G25+'ESAL A'!G26*C24/'ESAL A'!C26,-3) -> 
F27: ***************** | G27: ***************** | I27: When adjusting volumes for this reason, edit "User Adjustment to Base Yr/Future Yr Vol" columns until all items in the "% change from A segment" table are within the -50% to 50% range
A28: ADDITIONAL OUTPUTS: | E28: ESAL FACTORS
B29: BASE % | C29: FORECAST % | E29: FLEXIBLE | F29: RIGID
A30: 2AX-6TIRE SU | B30: =D11/$C$22 ->  | C30: =G11/$C$23 ->  | E30: 0.25 | F30: =IF(E30<0.11,E30,E30-0.01) -> 0.24
A31: 3AX+ SU | E31: 0.58 | F31: =IF(E31<0.36,(E31*1.62364-0.070909)+0.01,(IF(E31<0.4,E31*1.62364-0.07909,(IF(E31<0.66,(E31*1.62364-0.07909)-0.01,(IF(E31<0.69,E31*1.62364-0.07909,(E31*1.62364-0.07909)+0.02))))))) -> 0.8526212
A32: 3AX TST | E32: 0.39 | F32: =IF(E32<0.28,E32-0.01,(IF(E32<0.56,E32-0.02,E32-0.03))) -> 0.37
A33: 4AX TST | E33: 0.51 | F33: =IF(E33<0.41,E33,(IF(E33<0.47,E33+0.01,(IF(E33<0.54,E33+0.02,(IF(E33<0.61,E33+0.03,(IF(E33<0.67,E33+0.04,E33+0.05))))))))) -> 0.53
A34: 5AX+ TST | E34: 1.13 | F34: =(+E34*1.71536-0.05351)+0.005 -> 1.8898468
A35: (5AX+ TST MAX) | E35: 2.4 | F35: =(+E35*1.71536-0.05351)+0.005 -> 4.068354
A36: (5AX+ TST OTH) | E36: 0.87 | F36: =(+E36*1.71536-0.05351)+0.005 -> 1.4438532
A37: TR TR, BUSES | E37: 0.57 | F37: =E37*1.35636-0.03091 -> 0.7422152
A38: TWIN TRAILERS | E38: 2.4 | F38: =(+E38*0.97519-0.01494)+0.005 -> 2.330516
A40: BASE YEAR | D40: FUTURE YEAR
A41: =IF(OR(I11>0.5,I12>0.5,I13>0.5,I14>0.5,I15>0.5,I16>0.5,I17>0.5,I18>0.5,I19>0.5),"Taking away more than 50% of trucks from A segment. Reduce B segment truck percentages in base year","OK") ->  | C41: Subtraction of Trucks | D41: =IF(OR(J11>0.5,J12>0.5,J13>0.5,J14>0.5,J15>0.5,J16>0.5,J17>0.5,J18>0.5,J19>0.5),"Taking away more than 50% of trucks from A segment. Reduce B segment truck percentages in base year","OK") -> 
A45: =IF(OR(I11<-0.5,I12<-0.5,I13<-0.5,I14<-0.5,I15<-0.5,I16<-0.5,I17<-0.5,I18<-0.5,I19<-0.5),"Adding more than 50% of trucks from A segment. Reduce B segment truck percentages in base year","OK") ->  | C45: Addition of Trucks | D45: =IF(OR(J11<-0.5,J12<-0.5,J13<-0.5,J14<-0.5,J15<-0.5,J16<-0.5,J17<-0.5,J18<-0.5,J19<-0.5),"Adding more than 50% of trucks from A segment. Reduce B segment truck percentages in base year","OK") -> 
A59: CUMULATIVE ESAL REPORT | D59: =D1 -> SEGMENT B2 | F59: CORRESPONDS: | G59: ='Forecast B2'!H1 -> SEGMENT A1
F60: DATE: | G60: =Cover!B14 -> 2017-11-28T11:37:15.520
A61: ROUTE #: | B61: ='Forecast A'!B2:C2 ->  | C61: DISTRICT: | D61: =IF(Cover!B21=0," ",Cover!B21) ->  | E61: SP#: | F61: =IF(+Cover!E19=0," ",+Cover!E19) -> 
A62: FORECAST #: | B62: =IF(Cover!E18=0," ",Cover!E18) ->  | C62: COUNTY: | D62: =IF(+Cover!E22=0," ",Cover!E22) ->  | E62: MILES: | F62: ='Forecast B2'!H3 -> 
A63: DESCRIPTION: | B63: =B4 -> 
A64: AUTHOR: | B64: =IF(Cover!B19=0," ",Cover!B19) ->  | E64: AUTHOR'S DISTRICT: | F64: =IF(Cover!B20=0," ",Cover!B20) -> 
A66: BASE YEAR NUMBER OF LANES: | D66: =IF('Forecast B2'!H5=0," ",'Forecast B2'!H5) -> 
G67: GROWTH / YR (SIMPLE %)
A68: TRAFFIC SUMMARY | D68: BASE YEAR | F68: DESIGN YEAR
A69: =C3 -> TWO-WAY | D69: =B6 ->  | F69: =B7 -> 
A70: AADT: | D70: =C6 ->  | F70: =C7 ->  | G70: =((F70-D70)/($F$69-$D$69))/D70 -> 
A71: DESIGN LANE: | D71: =ROUND(C24*D70,-2) ->  | F71: =ROUND(C24*F70,-2) -> 
A72: HCADT: | D72: =ROUND(SUM('ESAL A'!D11:D19)+SUM(D11:D19),-2) ->  | F72: =ROUND(SUM('ESAL A'!G11:G19)+SUM(G11:G19),-2) -> 
A73: SINGLE UNITS: | D73: =ROUND('ESAL A'!D11+'ESAL A'!D12+D11+D12,-2) ->  | F73: =ROUND(('ESAL A'!G11+'ESAL A'!G12+G11+G12),-2) -> 
A74: TST'S: | D74: =SUM('ESAL A'!D13:D17)+SUM(D13:D17) ->  | F74: =SUM('ESAL A'!G13:G17)+SUM(G13:G17) -> 
A75: 5 Ax+: | D75: =SUM('ESAL A'!D15:D17)+SUM(D15:D17) ->  | F75: =SUM('ESAL A'!G15:G17)+SUM(G15:G17) -> 
A77: ESAL SUMMARY
A78: ANNUAL DESIGN LANE ESAL
A79: FLEXIBLE: | D79: =('ESAL A'!D115*'ESAL A'!C26+D125*C24)*365.25 ->  | F79: =('ESAL A'!F115*'ESAL A'!C26+F125*C24)*365.25 -> 
A80: RIGID: | D80: =('ESAL A'!E115*'ESAL A'!C26+E125*C24)*365.25 ->  | F80: =('ESAL A'!G115*'ESAL A'!C26+G125*C24)*365.25 -> 
A82: CUMULATIVE DESIGN-LANE ESALS (10 TON) | F82: Design-lane factor: | G82: =C24 -> 
A83: FOR VARIABLE TIME PERIODS
A87: BASE | B87: DESIGN | C87: TIME | D87: DESIGN-LANE | F87: ESALS
A88: YEAR | B88: YEAR | C88: PERIOD | D88: TST'S | F88: FLEXIBLE | G88: RIGID
A89: =D69 ->  | B89: =A89+10 ->  | C89: 10 Year | D89: =G82*(10*(F74-D74)/(F69-D69)+D74) ->  | F89: =ROUND(('ESAL A'!F129*C24/'ESAL A'!C26+F139)*1.12,-3) ->  | G89: =ROUND(('ESAL A'!G129*C24/'ESAL A'!C26+G139)*1.12,-3) -> 
A91: =D69 ->  | B91: =A91+15 ->  | C91: 15 Year | D91: =G82*(15*(F74-D74)/(F69-D69)+D74) ->  | F91: =ROUND(('ESAL A'!F134*C24/'ESAL A'!C26+F144)*1.12,-3) ->  | G91: =ROUND(('ESAL A'!G134*C24/'ESAL A'!C26+G144)*1.12,-3) -> 
A93: =D69 ->  | B93: =A93+20 ->  | C93: 20 Year | D93: =G82*(20*(F74-D74)/(F69-D69)+D74) ->  | F93: =ROUND(('ESAL A'!F139*C24/'ESAL A'!C26+F149)*1.12,-3) ->  | G93: =ROUND(('ESAL A'!G139*C24/'ESAL A'!C26+G149)*1.12,-3) -> 
A95: =D69 ->  | B95: =A95+25 ->  | C95: 25 Year | D95: =G82*(25*(F74-D74)/(F69-D69)+D74) ->  | F95: =ROUND(('ESAL A'!F144*C24/'ESAL A'!C26+F154)*1.12,-3) ->  | G95: =ROUND(('ESAL A'!G144*C24/'ESAL A'!C26+G154)*1.12,-3) -> 
A97: =D69 ->  | B97: =A97+30 ->  | C97: 30 Year | D97: =G82*(30*(F74-D74)/(F69-D69)+D74) ->  | F97: =ROUND(('ESAL A'!F149*C24/'ESAL A'!C26+F159)*1.12,-3) ->  | G97: =ROUND(('ESAL A'!G149*C24/'ESAL A'!C26+G159)*1.12,-3) -> 
A99: =D69 ->  | B99: =A99+35 ->  | C99: 35 Year | D99: =G82*(35*(F74-D74)/(F69-D69)+D74) ->  | F99: =ROUND(('ESAL A'!F154*C24/'ESAL A'!C26+F164)*1.12,-3) ->  | G99: =ROUND(('ESAL A'!G154*C24/'ESAL A'!C26+G164)*1.12,-3) -> 
B106: APPROVED BY: | F106: DATE:
A113: CUMULATIVE ESAL WORK AREA
B114: BYVOLS | C114: FYVOLS | D114: BY VOL * BESAL | E114: BY VOL *CESAL | F114: FY VOL *BESAL | G114: FY VOL *CESAL
B115: =D11 ->  | C115: =G11 ->  | D115: =E30*B115 ->  | E115: =F30*B115 ->  | F115: =E30*C115 ->  | G115: =F30*C115 -> 
B120: 0 | D120: 0 | E120: 0
B121: 0 | D121: 0 | E121: 0
A124: TWO WAY ADL --> | D124: FLEX ADL | E124: RIG ADL | F124: FLEX ADL | G124: RIG ADL
A125: | | D125: =$C$22*0.0007+SUM(D115:D123) ->  | E125: =$C$22*0.0007+SUM(E115:E123) ->  | F125: =$C$23*0.0007+SUM(F115:F123) ->  | G125: =$C$23*0.0007+SUM(G115:G123) -> 
A127: CUMULATIVE ESAL CALCULATIONS (DESIGN LANE) | F127: FLEXIBLE | G127: RIGID
B128: INCLUSIVE | C128: YEARS | E128: DAYS
A129: FUTURE YR - BASE YR = | C129: =B7-B6+1 ->  | E129: 365.25 | F129: =$D$125*$E129*$C$24+F128 ->  | G129: =$E$125*$E129*$C$24+G128 -> 
E130: 730.5 | F130: =(365.25*$D$125+$E129*$A$133)*$C$24+F129 ->  | G130: =(365.25*$E$125+$E129*$B$133)*$C$24+G129 -> 
A131: ANNUAL AVERAGE CHANGE IN 2 WAY ADL | E131: 1095.75
A132: FLEXIBLE | B132: RIGID | E132: 1461
A133: =(+F125-D125)/($C$129-1) ->  | B133: =(+G125-E125)/($C$129-1) ->  | E133: 1826.25
E134: 2191.5
E135: 2556.75
E136: 2922
E137: 3287.25
E138: 3652.5
E139: 4017.75
E140: 4383
E141: 4748.25
E142: 5113.5
E143: 5478.75
E144: 5844
E145: 6209.25
E146: 6574.5
E147: 6939.75
E148: 7305
E149: 7670.25
E150: 8035.5
E151: 8400.75
E152: 8766
E153: 9131.25
E154: 9496.5
E155: 9861.75
E156: 10227
E157: 10592.25
E158: 10957.5
E159: 11322.75
E160: 11688
E161: 12053.25
E162: 12418.5
E163: 12783.75
E164: 13149

Sheet Forecast B3 (hidden)
A1: LEAST SQUARES WORKSHEET | E1: SEGMENT B3 | G1: Corresponds : | H1: ='Forecast A'!E1 -> SEGMENT A1 | J1: Non-print area
A2: ROUTE: | B2: =IF(Cover!E21="Interstate",Cover!G42&Cover!E20,IF(Cover!E21="US Trunk",Cover!G43&Cover!E20,IF(Cover!E21="MN Trunk",Cover!G44&Cover!E20,IF(Cover!E21="CSAH",Cover!G45&Cover!E20,IF(Cover!E21="CR",Cover!G46&Cover!E20," "))))) ->  | D2: SP#: | E2: =IF(Cover!E19=0," ",Cover!E19) ->  | G2: DATE : | H2: =Cover!B14 -> 2017-11-28T11:37:15.520
A3: LOCATION: | G3: Miles : | H3: =VLOOKUP(H4,AADT_Data!A:AA,27,FALSE) ->  | J3: =IF(B3="","Location field is empty. Please enter location description. E.g. MN 169 to CSAH 5","") -> Location field is empty. Please enter location description. E.g. MN 169 to CSAH 5
A4: BASE YEAR: | B4: =IF('Forecast A'!B4=0," ",'Forecast A'!B4) ->  | E4: FORECAST YEAR: | F4: =B4+20 ->  | G4: Seq # | J4: =IF(H4="","No Seq # is listed. Please enter sequence number","") -> No Seq # is listed. Please enter sequence number
G5: # of lanes | J5: =IF(H5="","Please indicate the number of lanes in this segment","") -> Please indicate the number of lanes in this segment
A6: YEAR | B6: FLOW MAP AADT (SEG A) | J6: Year | K6: AADT
C7: 850 | J7: =IF(LARGE($D$64:$D$88,E73)=0,"",LARGE($D$64:$D$88,E73)) ->  | K7: =IF(ISNA(VLOOKUP(F73,$A$64:$C$88,3,FALSE)),"",VLOOKUP(F73,$A$64:$C$88,3,FALSE)) ->  | L7: Note: only contains data
C8: 880 | L8: updated to 2016 AADT
C9: 880
C10: 1350
C11: 1150
C12: 1000
C13: 1150
C14: 1100
C15: 1100
C16: 1100
C17: 1000
J22: =IF(LARGE($D$64:$D$88,E88)=0,"",LARGE($D$64:$D$88,E88)) ->  | K22: =IF(ISNA(VLOOKUP(F88,$A$64:$C$88,3,FALSE)),"",VLOOKUP(F88,$A$64:$C$88,3,FALSE)) -> 
A24: LEAST SQUARES BASED FORECASTS:
A25: Year | B25: AADT | D25: Calc | E25: ADT Calc
A26: =INDEX(A7:A22,MATCH(9.99999999999999E+307,B7:B22)) ->  | B26: =FORECAST(A26,B7:B22,A7:A22) ->  | D26: =VLOOKUP(A26,$A$11:$B$22,2,FALSE)-B26 ->  | E26: =B26+D26 -> 
A27: =B4 ->  | B27: =FORECAST(A27,B7:B22,A7:A22) ->  | E27: =B27+D26 ->  | F27: =E27 -> 
A28: =F4 ->  | B28: =FORECAST(A28,B7:B22,A7:A22) ->  | E28: =B28+D26 ->  | F28: =E26+(E28-E26)*F40 -> 
A30: Statistics | B30: AADT | E30: Raw Least Squares Forecasts | H30: Demographically Adjusted Forecasts
A31: R 2 | B31: =RSQ(B7:B22,A7:A22) ->  | E31: YEAR | F31: AADT | H31: YEAR | I31: AADT
A32: SLOPE | B32: =SLOPE(B7:B22,A7:A22) ->  | E32: =A26 ->  | F32: =ROUND(E26,-1) ->  | H32: =A26 ->  | I32: =F32 -> 
A33: INTERCEPT | B33: =INTERCEPT(B7:B22,A7:A22) ->  | E33: =A27 ->  | F33: =ROUND(E27,-1) ->  | H33: =A27 ->  | I33: =ROUND(((I34-I32)/(H34-H32)*(H33-H32)+I32),-1) -> 
A34: N | B34: =COUNT(B7:B22) -> 0 | E34: =A28 ->  | F34: =ROUND(E28,-1) ->  | H34: =A28 ->  | I34: =ROUND(F32*(1+H38*(H34-H32)),-1) -> 
A35: NOTE:
A36: County Adjustment Factors were developed to Apply to Projected AADT. They are based on 1992-2007 VMT, Population, Labor Force, Household, and Employment Data. | E36: Slope Over Base Year | H36: Slope Over Base Year
E37: =B32/F33 ->  | H37: =((I34-I33)/(H34-H33)/I33) -> 
H38: =IF(E37*F40<=0.5%,0.5%,E37*F40) -> 
D39: COUNTY | F39: COUNTY FACTOR | H39: GROWTH PROFILE
D40: =UPPER(VLOOKUP(Cover!E22,$A$174:$C$261,1,FALSE)) ->  | F40: =VLOOKUP(Cover!E22,$A$174:$C$261,2,FALSE) ->  | H40: =UPPER(VLOOKUP(Cover!E22,$A$174:$C$261,3,FALSE)) -> 
B61: AADT_Data column reference
A63: year | C63: aadt | D63: data years | E63: nth largest
A64: 2017 | B64: 2 | C64: =VLOOKUP($H$4,AADT_Data!A:Z,B64,FALSE) ->  | D64: =IF(C64=0,0,A64) ->  | E64: 25 | F64: =IF(LARGE($D$64:$D$88,E64)=0,"",LARGE($D$64:$D$88,E64)) ->  | G64: =IF(ISNA(VLOOKUP(F64,$A$64:$C$88,3,FALSE)),"",VLOOKUP(F64,$A$64:$C$88,3,FALSE)) -> 
A65: 2016 | B65: 3 | C65: =VLOOKUP($H$4,AADT_Data!A:Z,B65,FALSE) ->  | D65: =IF(C65=0,0,A65) ->  | E65: 24
A66: 2015 | B66: 4 | C66: =VLOOKUP($H$4,AADT_Data!A:Z,B66,FALSE) ->  | D66: =IF(C66=0,0,A66) ->  | E66: 23
A67: 2014 | B67: 5 | C67: =VLOOKUP($H$4,AADT_Data!A:Z,B67,FALSE) ->  | D67: =IF(C67=0,0,A67) ->  | E67: 22
A68: 2013 | B68: 6 | C68: =VLOOKUP($H$4,AADT_Data!A:Z,B68,FALSE) ->  | D68: =IF(C68=0,0,A68) ->  | E68: 21
A69: 2012 | B69: 7 | C69: =VLOOKUP($H$4,AADT_Data!A:Z,B69,FALSE) ->  | E69: 20
A70: 2011 | B70: 8 | C70: =VLOOKUP($H$4,AADT_Data!A:Z,B70,FALSE) ->  | E70: 19
A71: 2010 | B71: 9 | C71: =VLOOKUP($H$4,AADT_Data!A:Z,B71,FALSE) ->  | E71: 18
A72: 2009 | B72: 10 | C72: =VLOOKUP($H$4,AADT_Data!A:Z,B72,FALSE) ->  | E72: 17
A73: 2008 | B73: 11 | C73: =VLOOKUP($H$4,AADT_Data!A:Z,B73,FALSE) ->  | E73: 16
A74: 2007 | B74: 12 | C74: =VLOOKUP($H$4,AADT_Data!A:Z,B74,FALSE) ->  | E74: 15
A75: 2006 | B75: 13 | C75: =VLOOKUP($H$4,AADT_Data!A:Z,B75,FALSE) ->  | E75: 14
A76: 2005 | B76: 14 | C76: =VLOOKUP($H$4,AADT_Data!A:Z,B76,FALSE) ->  | E76: 13
A77: 2004 | B77: 15 | C77: =VLOOKUP($H$4,AADT_Data!A:Z,B77,FALSE) ->  | E77: 12
A78: 2003 | B78: 16 | C78: =VLOOKUP($H$4,AADT_Data!A:Z,B78,FALSE) ->  | E78: 11
A79: 2002 | B79: 17 | C79: =VLOOKUP($H$4,AADT_Data!A:Z,B79,FALSE) ->  | E79: 10
A80: 2001 | B80: 18 | C80: =VLOOKUP($H$4,AADT_Data!A:Z,B80,FALSE) ->  | E80: 9
A81: 2000 | B81: 19 | C81: =VLOOKUP($H$4,AADT_Data!A:Z,B81,FALSE) ->  | E81: 8
A82: 1999 | B82: 20 | C82: =VLOOKUP($H$4,AADT_Data!A:Z,B82,FALSE) ->  | E82: 7
A83: 1998 | B83: 21 | C83: =VLOOKUP($H$4,AADT_Data!A:Z,B83,FALSE) ->  | E83: 6
A84: 1997 | B84: 22 | C84: =VLOOKUP($H$4,AADT_Data!A:Z,B84,FALSE) ->  | E84: 5
A85: 1996 | B85: 23 | C85: =VLOOKUP($H$4,AADT_Data!A:Z,B85,FALSE) ->  | E85: 4
A86: 1995 | B86: 24 | C86: =VLOOKUP($H$4,AADT_Data!A:Z,B86,FALSE) ->  | E86: 3
A87: 1994 | B87: 25 | C87: =VLOOKUP($H$4,AADT_Data!A:Z,B87,FALSE) ->  | E87: 2
A88: 1992 | B88: 26 | C88: =VLOOKUP($H$4,AADT_Data!A:Z,B88,FALSE) ->  | E88: 1 | F88: =IF(LARGE($D$64:$D$88,E88)=0,"",LARGE($D$64:$D$88,E88)) ->  | G88: =IF(ISNA(VLOOKUP(F88,$A$64:$C$88,3,FALSE)),"",VLOOKUP(F88,$A$64:$C$88,3,FALSE)) -> 
A174: County | B174: Factor | C174: Area Type
A175: Aitkin | B175: 0.95 | C175: High Growth Area
A176: Anoka | B176: 0.95 | C176: High Growth Area
A177: Becker | B177: 0.9387339609 | C177: Medium Growth Area
A178: Beltrami | B178: 0.95 | C178: High Growth Area
A179: Benton | B179: 0.95 | C179: High Growth Area
A180: Big Stone | B180: 0.8944759202 | C180: Low Growth Area
A181: Blue Earth | B181: 0.75 | C181: Medium Growth Area
A182: Brown | B182: 0.7896922659 | C182: Low Growth Area
A183: Carlton | B183: 0.95 | C183: Medium Growth Area
A184: Carver | B184: 0.95 | C184: High Growth Area
A185: Cass | B185: 0.95 | C185: High Growth Area
A186: Chippewa | B186: 0.8733104434 | C186: Low Growth Area
A187: Chisago | B187: 0.881279837 | C187: High Growth Area
A188: Clay | B188: 0.75 | C188: Low Growth Area
A189: Clearwater | B189: 0.8438234218 | C189: Low Growth Area
A190: Cook | B190: 0.75 | C190: Medium Growth Area
A191: Cottonwood | B191: 0.8331705696 | C191: Low Growth Area
A192: Crow Wing | B192: 0.8832312646 | C192: High Growth Area
A193: Dakota | B193: 0.8547421962 | C193: High Growth Area
A194: Dodge | B194: 0.95 | C194: High Growth Area
A195: Douglas | B195: 0.8873831958 | C195: High Growth Area
A196: Faribault | B196: 0.865981121 | C196: Low Growth Area
A197: Fillmore | B197: 0.8896061418 | C197: Low Growth Area
A198: Freeborn | B198: 0.755552827 | C198: Low Growth Area
A199: Goodhue | B199: 0.9273647987 | C199: Medium Growth Area
A200: Grant | B200: 0.75 | C200: Low Growth Area
A201: Hennepin | B201: 0.8272566422 | C201: Low Growth Area
A202: Houston | B202: 0.8378015226 | C202: Low Growth Area
A203: Hubbard | B203: 0.8346205138 | C203: High Growth Area
A204: Isanti | B204: 0.95 | C204: High Growth Area
A205: Itasca | B205: 0.8886716849 | C205: Medium Growth Area
A206: Jackson | B206: 0.9180626248 | C206: Medium Growth Area
A207: Kanabec | B207: 0.8135838922 | C207: Medium Growth Area
A208: Kandiyohi | B208: 0.8938419831 | C208: Medium Growth Area
A209: Kittson | B209: 0.8024358458 | C209: Low Growth Area
A210: Koochiching | B210: 0.7937489549 | C210: Low Growth Area
A211: Lac qui Parle | B211: 0.75 | C211: Low Growth Area
A212: Lake | B212: 0.8562919136 | C212: Low Growth Area
A213: Lake of the Woods | B213: 0.9138862817 | C213: Low Growth Area
A214: Le Sueur | B214: 0.95 | C214: Medium Growth Area
A215: Lincoln | B215: 0.8857449991 | C215: Low Growth Area
A216: Lyon | B216: 0.75 | C216: Low Growth Area
A217: Mahnomen | B217: 0.75 | C217: Low Growth Area
A218: Marshall | B218: 0.95 | C218: Low Growth Area
A219: Martin | B219: 0.8201303604 | C219: Low Growth Area
A220: McLeod | B220: 0.8928164106 | C220: Medium Growth Area
A221: Meeker | B221: 0.926111411 | C221: Medium Growth Area
A222: Mille Lacs | B222: 0.95 | C222: High Growth Area
A223: Morrison | B223: 0.9495694712 | C223: Medium Growth Area
A224: Mower | B224: 0.8302978459 | C224: Low Growth Area
A225: Murray | B225: 0.8387247211 | C225: Medium Growth Area
A226: Nicollet | B226: 0.8240013933 | C226: Medium Growth Area
A227: Nobles | B227: 0.7549960093 | C227: Low Growth Area
A228: Norman | B228: 0.8022447962 | C228: Low Growth Area
A229: Olmsted | B229: 0.95 | C229: High Growth Area
A230: Otter Tail | B230: 0.8614026285 | C230: Medium Growth Area
A231: Pennington | B231: 0.95 | C231: Medium Growth Area
A232: Pine | B232: 0.8448776659 | C232: High Growth Area
A233: Pipestone | B233: 0.75 | C233: Low Growth Area
A234: Polk | B234: 0.75 | C234: Low Growth Area
A235: Pope | B235: 0.9029074643 | C235: Medium Growth Area
A236: Ramsey | B236: 0.8087858109 | C236: Low Growth Area
A237: Red Lake | B237: 0.95 | C237: Medium Growth Area
A238: Redwood | B238: 0.75 | C238: Low Growth Area
A239: Renville | B239: 0.8480251476 | C239: Low Growth Area
A240: Rice | B240: 0.8220040162 | C240: Medium Growth Area
A241: Rock | B241: 0.75 | C241: Low Growth Area
A242: Roseau | B242: 0.8847517198 | C242: Medium Growth Area
A243: Scott | B243: 0.95 | C243: High Growth Area
A244: Sherburne | B244: 0.95 | C244: High Growth Area
A245: Sibley | B245: 0.8646549065 | C245: Medium Growth Area
A246: St. Louis | B246: 0.850777855 | C246: Low Growth Area
A247: Stearns | B247: 0.8586120378 | C247: High Growth Area
A248: Steele | B248: 0.8848664209 | C248: Medium Growth Area
A249: Stevens | B249: 0.7999567113 | C249: Low Growth Area
A250: Swift | B250: 0.8706429381 | C250: Low Growth Area
A251: Todd | B251: 0.8988708026 | C251: Medium Growth Area
A252: Traverse | B252: 0.7652278953 | C252: Low Growth Area
A253: Wabasha | B253: 0.8182478469 | C253: Low Growth Area
A254: Wadena | B254: 0.95 | C254: Medium Growth Area
A255: Waseca | B255: 0.7963073355 | C255: Low Growth Area
A256: Washington | B256: 0.95 | C256: High Growth Area
A257: Watonwan | B257: 0.75 | C257: Low Growth Area
A258: Wilkin | B258: 0.75 | C258: Low Growth Area
A259: Winona | B259: 0.8284012539 | C259: Low Growth Area
A260: Wright | B260: 0.95 | C260: High Growth Area
A261: Yellow Medicine | B261: 0.8780713455 | C261: Low Growth Area

Sheet ESAL B3 (hidden)
A1: CUMULATIVE ESAL WORKSHEET | D1: ='Forecast B3'!E1 -> SEGMENT B3 | I1: Non-print area | O1: ONE-WAY
A2: SP#: | B2: =IF(+Cover!E19=0," ",Cover!E19) ->  | F2: CORRESPONDS: | G2: ='Forecast B3'!H1 -> SEGMENT A1 | O2: TWO-WAY
A3: ROUTE: | B3: ='Forecast B3'!B2:C2 ->  | C3: TWO-WAY | D3: # LANES: | E3: =IF('Forecast B3'!H5=0," ",'Forecast B3'!H5) ->  | F3: DATE: | G3: =Cover!B14 -> 2017-11-28T11:37:15.520 | I3: Urban/Rural Classification
A4: LOCATION: | B4: =IF('Forecast B3'!B3=0," ",'Forecast B3'!B3) ->  | I4: =VLOOKUP('Forecast B3'!H4,'Urban&Rural'!A2:B19001,2,FALSE) -> 
B5: YEAR | C5: AADT | E5: AADT Difference from A Seg
A6: BASE YEAR: | B6: ='Forecast B3'!B4 ->  | C6: ='Forecast B3'!I33 ->  | E6: =IF(C6=0,0,+C6-'ESAL A'!C7) ->  | I6: For reference when Adjusting Base Yr/Future Yr Truck Volumes
A7: FORECAST YEAR: | B7: ='Forecast B3'!F4 ->  | C7: ='Forecast B3'!I34 ->  | E7: =IF(C7=0,0,+C7-'ESAL A'!C8) ->  | M7: RURAL
C8: User Adjustment to Base Yr Vol | D8: Base Year Incremental Volume | E8: Base Year Volume | F8: User Adjustment to Future Yr Vol | G8: Future Year Incremental Volume | H8: Future Year Volume | M8: URBAN
A9: INCREMENTAL HCADT SEGMENT | I9: % change from A segment
A10: BASE YEAR PROPORTIONS | I10: Base volume | J10: future volume | L10: VEHICLE TYPE | M10: URBAN | N10: RURAL
A11: 2AX-6TIRE SU | B11: =IF($E$6=0,'ESAL A'!B11,D11/$E$6) ->  | C11: 0 | D11: =IF($I$4="urban",M11*$E$6+C11,IF($I$4="rural",N11*$E$6+C11,"See J3")) ->  | E11: ='ESAL A'!D11+D11 ->  | F11: 0 | G11: =B11*$E$7+F11 ->  | H11: ='ESAL A'!G11+G11 ->  | I11: =D11/'ESAL A'!D11 ->  | J11: =G11/'ESAL A'!G11 ->  | L11: 2AX-6TIRE SU | M11: 0.0152 | N11: 0.0317
A12: 3AX+ SU | B12: =IF($E$6=0,'ESAL A'!B12,D12/$E$6) ->  | C12: 0 | D12: =IF($I$4="urban",M12*$E$6+C12,IF($I$4="rural",N12*$E$6+C12,"See J3")) ->  | E12: ='ESAL A'!D12+D12 ->  | F12: 0 | H12: ='ESAL A'!G12+G12 ->  | I12: =D12/'ESAL A'!D12 ->  | J12: =G12/'ESAL A'!G12 ->  | L12: 3AX+ SU | M12: 0.0046 | N12: 0.0164
A13: 3AX TST | B13: =IF($E$6=0,'ESAL A'!B13,D13/$E$6) ->  | C13: 0 | D13: =IF($I$4="urban",M13*$E$6+C13,IF($I$4="rural",N13*$E$6+C13,"See J3")) ->  | E13: ='ESAL A'!D13+D13 ->  | F13: 0 | H13: ='ESAL A'!G13+G13 ->  | I13: =D13/'ESAL A'!D13 ->  | J13: =G13/'ESAL A'!G13 ->  | L13: 3AX TST | M13: 0.0009 | N13: 0.0028
A14: 4AX TST | B14: =IF($E$6=0,'ESAL A'!B14,D14/$E$6) ->  | C14: 0 | D14: =IF($I$4="urban",M14*$E$6+C14,IF($I$4="rural",N14*$E$6+C14,"See J3")) ->  | E14: ='ESAL A'!D14+D14 ->  | F14: 0 | H14: ='ESAL A'!G14+G14 ->  | I14: =D14/'ESAL A'!D14 ->  | J14: =G14/'ESAL A'!G14 ->  | L14: 4AX TST | M14: 0.0012 | N14: 0.005
A15: 5AX+ TST | B15: =IF($E$6=0,'ESAL A'!B15,D15/$E$6) ->  | C15: 0 | D15: =IF($I$4="urban",M15*$E$6+C15,IF($I$4="rural",N15*$E$6+C15,"See J3")) ->  | E15: ='ESAL A'!D15+D15 ->  | F15: 0 | H15: ='ESAL A'!G15+G15 ->  | I15: =D15/SUM('ESAL A'!D15:D17) ->  | J15: =G15/SUM('ESAL A'!G15:G17) ->  | L15: 5AX+ TST | M15: 0.0089 | N15: 0.0326
A16: (5AX+ TST MAX) | B16: =IF($E$6=0,'ESAL A'!B16,D16/$E$6) ->  | C16: 0 | D16: =0+C16 -> 0 | E16: ='ESAL A'!D16+D16 ->  | F16: 0 | H16: ='ESAL A'!G16+G16 ->  | I16: =IF('ESAL A'!D16=0,0,D16/'ESAL A'!D16) ->  | J16: =IF('ESAL A'!G16=0,0,G16/'ESAL A'!G16) ->  | L16: TR TR, BUSES | M16: 0.0047 | N16: 0.012
A17: (5AX+ TST OTH) | B17: =IF($E$6=0,'ESAL A'!B17,D17/$E$6) ->  | C17: 0 | D17: =0+C17 -> 0 | E17: ='ESAL A'!D17+D17 ->  | F17: 0 | H17: ='ESAL A'!G17+G17 ->  | I17: =IF('ESAL A'!D17=0,0,D17/'ESAL A'!D17) ->  | J17: =IF('ESAL A'!G17=0,0,G17/'ESAL A'!G17) ->  | L17: TWIN TRAILERS | M17: 0.0002 | N17: 0.0002
A18: TR TR, BUSES | B18: =IF($E$6=0,'ESAL A'!B18,D18/$E$6) ->  | C18: 0 | D18: =IF($I$4="urban",M16*$E$6+C18,IF($I$4="rural",N16*$E$6+C18,"See J3")) ->  | E18: ='ESAL A'!D18+D18 ->  | F18: 0 | H18: ='ESAL A'!G18+G18 ->  | I18: =D18/'ESAL A'!D18 ->  | J18: =G18/'ESAL A'!G18 ->  | L18: TOTAL | M18: =SUM(M11:M17) -> 0.0357 | N18: =SUM(N11:N17) -> 0.1007
A19: TWIN TRAILERS | B19: =IF($E$6=0,'ESAL A'!B19,D19/$E$6) ->  | C19: 0 | D19: =IF($I$4="urban",M17*$E$6+C19,IF($I$4="rural",N17*$E$6+C19,"See J3")) ->  | E19: ='ESAL A'!D19+D19 ->  | F19: 0 | H19: ='ESAL A'!G19+G19 ->  | I19: =IF('ESAL A'!D19=0,0,D19/'ESAL A'!D19) ->  | J19: =IF('ESAL A'!G19=0,0,G19/'ESAL A'!G19) -> 
A20: CLASSIFICATION: | B20: =I4 ->  | D20: ADDED | E20: COMBINED | F20: =B23-B22 ->  | G20: YR DESIGN
C21: AADT | D21: HCADT % | E21: HCADT % | F21: LANE CUMULATIVE ESAL | I21: When B segment ESALS and AADT vary significantly from each other with no trunk highway junction in between segments, then the difference may be mainly cars. In these instances, the default B segment percentages may need to be adjusted to reflect logical addition or subtraction of trucks, or to smooth out the volume of trucks between all B segments
A22: BASE YEAR: | B22: =B6 ->  | C22: =E6 ->  | D22: =SUM(D11:D19)/C22 ->  | E22: =SUM(D11:D19)+SUM('ESAL A'!D11:D19)/C6 ->  | F22: | | G22: |
A23: FORECAST YEAR: | B23: =B7 ->  | C23: =E7 ->  | D23: =SUM(G11:G19)/C23 ->  | E23: =SUM(G11:G19)+SUM('ESAL A'!G11:G19)/C7 ->  | F23: ***************** | G23: *****************
A24: DESIGN LANE FACTOR: | C24: =IF(C3=O2,CHOOSE((E3)+1,#VALUE!,1,0.5,0.5,0.45,0.45,0.35,0.35),CHOOSE(E3,1,0.9,0.7,0.7,0.7,0.7)) ->  | F24: FLEXIBLE | G24: RIGID
E25: SEGMENT B INCREMENT ONLY: | F25: =ROUND(CHOOSE(C129,F129,F130,F131,F132,F133,F134,F135,F136,F137,F138,F139,F140,F141,F142,F143,F144,F145,F146,F147,F148,F149,F150,F151,F152,F153,F154,F155,F156,F157,F158,F159,F160,F161,F162,F163,F164)*1.12,-3) ->  | G25: =ROUND(CHOOSE(C129,G129,G130,G131,G132,G133,G134,G135,G136,G137,G138,G139,G140,G141,G142,G143,G144,G145,G146,G147,G148,G149,G150,G151,G152,G153,G154,G155,G156,G157,G158,G159,G160,G161,G162,G163,G164)*1.12,-3) -> 
E26: SEGMENT A + SEGMENT B: | F26: =ROUND(F25+'ESAL A'!F26*C24/'ESAL A'!C26,-3) ->  | G26: =ROUND(G25+'ESAL A'!G26*C24/'ESAL A'!C26,-3) -> 
F27: ***************** | G27: ***************** | I27: When adjusting volumes for this reason, edit "User Adjustment to Base Yr/Future Yr Vol" columns until all items in the "% change from A segment" table are within the -50% to 50% range
A28: ADDITIONAL OUTPUTS: | E28: ESAL FACTORS
B29: BASE % | C29: FORECAST % | E29: FLEXIBLE | F29: RIGID
A30: 2AX-6TIRE SU | B30: =D11/$C$22 ->  | C30: =G11/$C$23 ->  | E30: 0.25 | F30: =IF(E30<0.11,E30,E30-0.01) -> 0.24
A31: 3AX+ SU | E31: 0.58 | F31: =IF(E31<0.36,(E31*1.62364-0.070909)+0.01,(IF(E31<0.4,E31*1.62364-0.07909,(IF(E31<0.66,(E31*1.62364-0.07909)-0.01,(IF(E31<0.69,E31*1.62364-0.07909,(E31*1.62364-0.07909)+0.02))))))) -> 0.8526212
A32: 3AX TST | E32: 0.39 | F32: =IF(E32<0.28,E32-0.01,(IF(E32<0.56,E32-0.02,E32-0.03))) -> 0.37
A33: 4AX TST | E33: 0.51 | F33: =IF(E33<0.41,E33,(IF(E33<0.47,E33+0.01,(IF(E33<0.54,E33+0.02,(IF(E33<0.61,E33+0.03,(IF(E33<0.67,E33+0.04,E33+0.05))))))))) -> 0.53
A34: 5AX+ TST | E34: 1.13 | F34: =(+E34*1.71536-0.05351)+0.005 -> 1.8898468
A35: (5AX+ TST MAX) | E35: 2.4 | F35: =(+E35*1.71536-0.05351)+0.005 -> 4.068354
A36: (5AX+ TST OTH) | E36: 0.87 | F36: =(+E36*1.71536-0.05351)+0.005 -> 1.4438532
A37: TR TR, BUSES | E37: 0.57 | F37: =E37*1.35636-0.03091 -> 0.7422152
A38: TWIN TRAILERS | E38: 2.4 | F38: =(+E38*0.97519-0.01494)+0.005 -> 2.330516
A40: BASE YEAR | D40: FUTURE YEAR
A41: =IF(OR(I11>0.5,I12>0.5,I13>0.5,I14>0.5,I15>0.5,I16>0.5,I17>0.5,I18>0.5,I19>0.5),"Taking away more than 50% of trucks from A segment. Reduce B segment truck percentages in base year","OK") ->  | C41: Subtraction of Trucks | D41: =IF(OR(J11>0.5,J12>0.5,J13>0.5,J14>0.5,J15>0.5,J16>0.5,J17>0.5,J18>0.5,J19>0.5),"Taking away more than 50% of trucks from A segment. Reduce B segment truck percentages in base year","OK") -> 
A45: =IF(OR(I11<-0.5,I12<-0.5,I13<-0.5,I14<-0.5,I15<-0.5,I16<-0.5,I17<-0.5,I18<-0.5,I19<-0.5),"Adding more than 50% of trucks from A segment. Reduce B segment truck percentages in base year","OK") ->  | C45: Addition of Trucks | D45: =IF(OR(J11<-0.5,J12<-0.5,J13<-0.5,J14<-0.5,J15<-0.5,J16<-0.5,J17<-0.5,J18<-0.5,J19<-0.5),"Adding more than 50% of trucks from A segment. Reduce B segment truck percentages in base year","OK") -> 
A59: CUMULATIVE ESAL REPORT | D59: =D1 -> SEGMENT B3 | F59: CORRESPONDS: | G59: ='Forecast B3'!H1 -> SEGMENT A1
F60: DATE: | G60: =Cover!B14 -> 2017-11-28T11:37:15.520
A61: ROUTE #: | B61: ='Forecast A'!B2:C2 ->  | C61: DISTRICT: | D61: =IF(Cover!B21=0," ",Cover!B21) ->  | E61: SP#: | F61: =IF(+Cover!E19=0," ",+Cover!E19) -> 
A62: FORECAST #: | B62: =IF(Cover!E18=0," ",Cover!E18) ->  | C62: COUNTY: | D62: =IF(+Cover!E22=0," ",Cover!E22) ->  | E62: MILES: | F62: ='Forecast B3'!H3 -> 
A63: DESCRIPTION: | B63: =B4 -> 
A64: AUTHOR: | B64: =IF(Cover!B19=0," ",Cover!B19) ->  | E64: AUTHOR'S DISTRICT: | F64: =IF(Cover!B20=0," ",Cover!B20) -> 
A66: BASE YEAR NUMBER OF LANES: | D66: =IF('Forecast B3'!H5=0," ",'Forecast B3'!H5) -> 
G67: GROWTH / YR (SIMPLE %)
A68: TRAFFIC SUMMARY | D68: BASE YEAR | F68: DESIGN YEAR
A69: =C3 -> TWO-WAY | D69: =B6 ->  | F69: =B7 -> 
A70: AADT: | D70: =C6 ->  | F70: =C7 ->  | G70: =((F70-D70)/($F$69-$D$69))/D70 -> 
A71: DESIGN LANE: | D71: =ROUND(C24*D70,-2) ->  | F71: =ROUND(C24*F70,-2) -> 
A72: HCADT: | D72: =ROUND(SUM('ESAL A'!D11:D19)+SUM(D11:D19),-2) ->  | F72: =ROUND(SUM('ESAL A'!G11:G19)+SUM(G11:G19),-2) -> 
A73: SINGLE UNITS: | D73: =ROUND('ESAL A'!D11+'ESAL A'!D12+D11+D12,-2) ->  | F73: =ROUND('ESAL A'!G11+'ESAL A'!G12+G11+G12,-2) -> 
A74: TST'S: | D74: =SUM('ESAL A'!D13:D17)+SUM(D13:D17) ->  | F74: =SUM('ESAL A'!G13:G17)+SUM(G13:G17) -> 
A75: 5 Ax+: | D75: =SUM('ESAL A'!D15:D17)+SUM(D15:D17) ->  | F75: =SUM('ESAL A'!G15:G17)+SUM(G15:G17) -> 
A77: ESAL SUMMARY
A78: ANNUAL DESIGN LANE ESAL
A79: FLEXIBLE: | D79: =('ESAL A'!D115*'ESAL A'!C26+D125*C24)*365.25 ->  | F79: =('ESAL A'!F115*'ESAL A'!C26+F125*C24)*365.25 -> 
A80: RIGID: | D80: =('ESAL A'!E115*'ESAL A'!C26+E125*C24)*365.25 ->  | F80: =('ESAL A'!G115*'ESAL A'!C26+G125*C24)*365.25 -> 
A82: CUMULATIVE DESIGN-LANE ESALS (10 TON) | F82: Design-lane factor: | G82: =C24 -> 
A83: FOR VARIABLE TIME PERIODS
A87: BASE | B87: DESIGN | C87: TIME | D87: DESIGN-LANE | F87: ESALS
A88: YEAR | B88: YEAR | C88: PERIOD | D88: TST'S | F88: FLEXIBLE | G88: RIGID
A89: =D69 ->  | B89: =A89+10 ->  | C89: 10 Year | D89: =G82*(10*(F74-D74)/(F69-D69)+D74) ->  | F89: =ROUND(('ESAL A'!F129*C24/'ESAL A'!C26+F139)*1.12,-3) ->  | G89: =ROUND(('ESAL A'!G129*C24/'ESAL A'!C26+G139)*1.12,-3) -> 
A91: =D69 ->  | B91: =A91+15 ->  | C91: 15 Year | D91: =G82*(15*(F74-D74)/(F69-D69)+D74) ->  | F91: =ROUND(('ESAL A'!F134*C24/'ESAL A'!C26+F144)*1.12,-3) ->  | G91: =ROUND(('ESAL A'!G134*C24/'ESAL A'!C26+G144)*1.12,-3) -> 
A93: =D69 ->  | B93: =A93+20 ->  | C93: 20 Year | D93: =G82*(20*(F74-D74)/(F69-D69)+D74) ->  | F93: =ROUND(('ESAL A'!F139*C24/'ESAL A'!C26+F149)*1.12,-3) ->  | G93: =ROUND(('ESAL A'!G139*C24/'ESAL A'!C26+G149)*1.12,-3) -> 
A95: =D69 ->  | B95: =A95+25 ->  | C95: 25 Year | D95: =G82*(25*(F74-D74)/(F69-D69)+D74) ->  | F95: =ROUND(('ESAL A'!F144*C24/'ESAL A'!C26+F154)*1.12,-3) ->  | G95: =ROUND(('ESAL A'!G144*C24/'ESAL A'!C26+G154)*1.12,-3) -> 
A97: =D69 ->  | B97: =A97+30 ->  | C97: 30 Year | D97: =G82*(30*(F74-D74)/(F69-D69)+D74) ->  | F97: =ROUND(('ESAL A'!F149*C24/'ESAL A'!C26+F159)*1.12,-3) ->  | G97: =ROUND(('ESAL A'!G149*C24/'ESAL A'!C26+G159)*1.12,-3) -> 
A99: =D69 ->  | B99: =A99+35 ->  | C99: 35 Year | D99: =G82*(35*(F74-D74)/(F69-D69)+D74) ->  | F99: =ROUND(('ESAL A'!F154*C24/'ESAL A'!C26+F164)*1.12,-3) ->  | G99: =ROUND(('ESAL A'!G154*C24/'ESAL A'!C26+G164)*1.12,-3) -> 
B106: APPROVED BY: | F106: DATE:
A113: CUMULATIVE ESAL WORK AREA
B114: BYVOLS | C114: FYVOLS | D114: BY VOL * BESAL | E114: BY VOL *CESAL | F114: FY VOL *BESAL | G114: FY VOL *CESAL
B115: =D11 ->  | C115: =G11 ->  | D115: =E30*B115 ->  | E115: =F30*B115 ->  | F115: =E30*C115 ->  | G115: =F30*C115 -> 
B120: 0 | D120: 0 | E120: 0
B121: 0 | D121: 0 | E121: 0
A124: TWO WAY ADL --> | D124: FLEX ADL | E124: RIG ADL | F124: FLEX ADL | G124: RIG ADL
A125: | | D125: =$C$22*0.0007+SUM(D115:D123) ->  | E125: =$C$22*0.0007+SUM(E115:E123) ->  | F125: =$C$23*0.0007+SUM(F115:F123) ->  | G125: =$C$23*0.0007+SUM(G115:G123) -> 
A127: CUMULATIVE ESAL CALCULATIONS (DESIGN LANE) | F127: FLEXIBLE | G127: RIGID
B128: INCLUSIVE | C128: YEARS | E128: DAYS
A129: FUTURE YR - BASE YR = | C129: =B7-B6+1 ->  | E129: 365.25 | F129: =$D$125*$E129*$C$24+F128 ->  | G129: =$E$125*$E129*$C$24+G128 -> 
E130: 730.5 | F130: =(365.25*$D$125+$E129*$A$133)*$C$24+F129 ->  | G130: =(365.25*$E$125+$E129*$B$133)*$C$24+G129 -> 
A131: ANNUAL AVERAGE CHANGE IN 2 WAY ADL | E131: 1095.75
A132: FLEXIBLE | B132: RIGID | E132: 1461
A133: =(+F125-D125)/($C$129-1) ->  | B133: =(+G125-E125)/($C$129-1) ->  | E133: 1826.25
E134: 2191.5
E135: 2556.75
E136: 2922
E137: 3287.25
E138: 3652.5
E139: 4017.75
E140: 4383
E141: 4748.25
E142: 5113.5
E143: 5478.75
E144: 5844
E145: 6209.25
E146: 6574.5
E147: 6939.75
E148: 7305
E149: 7670.25
E150: 8035.5
E151: 8400.75
E152: 8766
E153: 9131.25
E154: 9496.5
E155: 9861.75
E156: 10227
E157: 10592.25
E158: 10957.5
E159: 11322.75
E160: 11688
E161: 12053.25
E162: 12418.5
E163: 12783.75
E164: 13149

Sheet Forecast B4 (hidden)
A1: LEAST SQUARES WORKSHEET | E1: SEGMENT B4 | G1: Corresponds : | H1: ='Forecast A'!E1 -> SEGMENT A1 | J1: Non-print area
A2: ROUTE: | B2: =IF(Cover!E21="Interstate",Cover!G42&Cover!E20,IF(Cover!E21="US Trunk",Cover!G43&Cover!E20,IF(Cover!E21="MN Trunk",Cover!G44&Cover!E20,IF(Cover!E21="CSAH",Cover!G45&Cover!E20,IF(Cover!E21="CR",Cover!G46&Cover!E20," "))))) ->  | D2: SP#: | E2: =IF(Cover!E19=0," ",Cover!E19) ->  | G2: DATE : | H2: =Cover!B14 -> 2017-11-28T11:37:15.520
A3: LOCATION: | G3: Miles : | H3: =VLOOKUP(H4,AADT_Data!A:AA,27,FALSE) ->  | J3: =IF(B3="","Location field is empty. Please enter location description. E.g. MN 169 to CSAH 5","") -> Location field is empty. Please enter location description. E.g. MN 169 to CSAH 5
A4: BASE YEAR: | B4: =IF('Forecast A'!B4=0," ",'Forecast A'!B4) ->  | E4: FORECAST YEAR: | F4: =B4+20 ->  | G4: Seq # | J4: =IF(H4="","No Seq # is listed. Please enter sequence number","") -> No Seq # is listed. Please enter sequence number
G5: # of lanes | J5: =IF(H5="","Please indicate the number of lanes in this segment","") -> Please indicate the number of lanes in this segment
A6: YEAR | B6: FLOW MAP AADT (SEG A) | J6: Year | K6: AADT
C7: 850 | J7: =IF(LARGE($D$64:$D$88,E73)=0,"",LARGE($D$64:$D$88,E73)) ->  | K7: =IF(ISNA(VLOOKUP(F73,$A$64:$C$88,3,FALSE)),"",VLOOKUP(F73,$A$64:$C$88,3,FALSE)) ->  | L7: Note: only contains data
C8: 880 | L8: updated to 2016 AADT
C9: 880
C10: 1350
C11: 1150
C12: 1000
C13: 1150
C14: 1100
C15: 1100
C16: 1100
C17: 1000
J22: =IF(LARGE($D$64:$D$88,E88)=0,"",LARGE($D$64:$D$88,E88)) ->  | K22: =IF(ISNA(VLOOKUP(F88,$A$64:$C$88,3,FALSE)),"",VLOOKUP(F88,$A$64:$C$88,3,FALSE)) -> 
A24: LEAST SQUARES BASED FORECASTS:
A25: Year | B25: AADT | D25: Calc | E25: ADT Calc
A26: =INDEX(A7:A22,MATCH(9.99999999999999E+307,B7:B22)) ->  | B26: =FORECAST(A26,B7:B22,A7:A22) ->  | D26: =VLOOKUP(A26,$A$11:$B$22,2,FALSE)-B26 ->  | E26: =B26+D26 -> 
A27: =B4 ->  | B27: =FORECAST(A27,B7:B22,A7:A22) ->  | E27: =B27+D26 ->  | F27: =E27 -> 
A28: =F4 ->  | B28: =FORECAST(A28,B7:B22,A7:A22) ->  | E28: =B28+D26 ->  | F28: =E26+(E28-E26)*F40 -> 
A30: Statistics | B30: AADT | E30: Raw Least Squares Forecasts | H30: Demographically Adjusted Forecasts
A31: R 2 | B31: =RSQ(B7:B22,A7:A22) ->  | E31: YEAR | F31: AADT | H31: YEAR | I31: AADT
A32: SLOPE | B32: =SLOPE(B7:B22,A7:A22) ->  | E32: =A26 ->  | F32: =ROUND(E26,-1) ->  | H32: =A26 ->  | I32: =F32 -> 
A33: INTERCEPT | B33: =INTERCEPT(B7:B22,A7:A22) ->  | E33: =A27 ->  | F33: =ROUND(E27,-1) ->  | H33: =A27 ->  | I33: =ROUND(((I34-I32)/(H34-H32)*(H33-H32)+I32),-1) -> 
A34: N | B34: =COUNT(B7:B22) -> 0 | E34: =A28 ->  | F34: =ROUND(E28,-1) ->  | H34: =A28 ->  | I34: =ROUND(F32*(1+H38*(H34-H32)),-1) -> 
A35: NOTE:
A36: County Adjustment Factors were developed to Apply to Projected AADT. They are based on 1992-2007 VMT, Population, Labor Force, Household, and Employment Data. | E36: Slope Over Base Year | H36: Slope Over Base Year
E37: =B32/F33 ->  | H37: =((I34-I33)/(H34-H33)/I33) -> 
H38: =IF(E37*F40<=0.5%,0.5%,E37*F40) -> 
D39: COUNTY | F39: COUNTY FACTOR | H39: GROWTH PROFILE
D40: =UPPER(VLOOKUP(Cover!E22,$A$174:$C$261,1,FALSE)) ->  | F40: =VLOOKUP(Cover!E22,$A$174:$C$261,2,FALSE) ->  | H40: =UPPER(VLOOKUP(Cover!E22,$A$174:$C$261,3,FALSE)) -> 
B61: AADT_Data column reference
A63: year | C63: aadt | D63: data years | E63: nth largest
A64: 2017 | B64: 2 | C64: =VLOOKUP($H$4,AADT_Data!A:Z,B64,FALSE) ->  | D64: =IF(C64=0,0,A64) ->  | E64: 25 | F64: =IF(LARGE($D$64:$D$88,E64)=0,"",LARGE($D$64:$D$88,E64)) ->  | G64: =IF(ISNA(VLOOKUP(F64,$A$64:$C$88,3,FALSE)),"",VLOOKUP(F64,$A$64:$C$88,3,FALSE)) -> 
A65: 2016 | B65: 3 | C65: =VLOOKUP($H$4,AADT_Data!A:Z,B65,FALSE) ->  | D65: =IF(C65=0,0,A65) ->  | E65: 24
A66: 2015 | B66: 4 | C66: =VLOOKUP($H$4,AADT_Data!A:Z,B66,FALSE) ->  | D66: =IF(C66=0,0,A66) ->  | E66: 23
A67: 2014 | B67: 5 | C67: =VLOOKUP($H$4,AADT_Data!A:Z,B67,FALSE) ->  | D67: =IF(C67=0,0,A67) ->  | E67: 22
A68: 2013 | B68: 6 | C68: =VLOOKUP($H$4,AADT_Data!A:Z,B68,FALSE) ->  | D68: =IF(C68=0,0,A68) ->  | E68: 21
A69: 2012 | B69: 7 | C69: =VLOOKUP($H$4,AADT_Data!A:Z,B69,FALSE) ->  | E69: 20
A70: 2011 | B70: 8 | C70: =VLOOKUP($H$4,AADT_Data!A:Z,B70,FALSE) ->  | E70: 19
A71: 2010 | B71: 9 | C71: =VLOOKUP($H$4,AADT_Data!A:Z,B71,FALSE) ->  | E71: 18
A72: 2009 | B72: 10 | C72: =VLOOKUP($H$4,AADT_Data!A:Z,B72,FALSE) ->  | E72: 17
A73: 2008 | B73: 11 | C73: =VLOOKUP($H$4,AADT_Data!A:Z,B73,FALSE) ->  | E73: 16
A74: 2007 | B74: 12 | C74: =VLOOKUP($H$4,AADT_Data!A:Z,B74,FALSE) ->  | E74: 15
A75: 2006 | B75: 13 | C75: =VLOOKUP($H$4,AADT_Data!A:Z,B75,FALSE) ->  | E75: 14
A76: 2005 | B76: 14 | C76: =VLOOKUP($H$4,AADT_Data!A:Z,B76,FALSE) ->  | E76: 13
A77: 2004 | B77: 15 | C77: =VLOOKUP($H$4,AADT_Data!A:Z,B77,FALSE) ->  | E77: 12
A78: 2003 | B78: 16 | C78: =VLOOKUP($H$4,AADT_Data!A:Z,B78,FALSE) ->  | E78: 11
A79: 2002 | B79: 17 | C79: =VLOOKUP($H$4,AADT_Data!A:Z,B79,FALSE) ->  | E79: 10
A80: 2001 | B80: 18 | C80: =VLOOKUP($H$4,AADT_Data!A:Z,B80,FALSE) ->  | E80: 9
A81: 2000 | B81: 19 | C81: =VLOOKUP($H$4,AADT_Data!A:Z,B81,FALSE) ->  | E81: 8
A82: 1999 | B82: 20 | C82: =VLOOKUP($H$4,AADT_Data!A:Z,B82,FALSE) ->  | E82: 7
A83: 1998 | B83: 21 | C83: =VLOOKUP($H$4,AADT_Data!A:Z,B83,FALSE) ->  | E83: 6
A84: 1997 | B84: 22 | C84: =VLOOKUP($H$4,AADT_Data!A:Z,B84,FALSE) ->  | E84: 5
A85: 1996 | B85: 23 | C85: =VLOOKUP($H$4,AADT_Data!A:Z,B85,FALSE) ->  | E85: 4
A86: 1995 | B86: 24 | C86: =VLOOKUP($H$4,AADT_Data!A:Z,B86,FALSE) ->  | E86: 3
A87: 1994 | B87: 25 | C87: =VLOOKUP($H$4,AADT_Data!A:Z,B87,FALSE) ->  | E87: 2
A88: 1992 | B88: 26 | C88: =VLOOKUP($H$4,AADT_Data!A:Z,B88,FALSE) ->  | E88: 1 | F88: =IF(LARGE($D$64:$D$88,E88)=0,"",LARGE($D$64:$D$88,E88)) ->  | G88: =IF(ISNA(VLOOKUP(F88,$A$64:$C$88,3,FALSE)),"",VLOOKUP(F88,$A$64:$C$88,3,FALSE)) -> 
A174: County | B174: Factor | C174: Area Type
A175: Aitkin | B175: 0.95 | C175: High Growth Area
A176: Anoka | B176: 0.95 | C176: High Growth Area
A177: Becker | B177: 0.9387339609 | C177: Medium Growth Area
A178: Beltrami | B178: 0.95 | C178: High Growth Area
A179: Benton | B179: 0.95 | C179: High Growth Area
A180: Big Stone | B180: 0.8944759202 | C180: Low Growth Area
A181: Blue Earth | B181: 0.75 | C181: Medium Growth Area
A182: Brown | B182: 0.7896922659 | C182: Low Growth Area
A183: Carlton | B183: 0.95 | C183: Medium Growth Area
A184: Carver | B184: 0.95 | C184: High Growth Area
A185: Cass | B185: 0.95 | C185: High Growth Area
A186: Chippewa | B186: 0.8733104434 | C186: Low Growth Area
A187: Chisago | B187: 0.881279837 | C187: High Growth Area
A188: Clay | B188: 0.75 | C188: Low Growth Area
A189: Clearwater | B189: 0.8438234218 | C189: Low Growth Area
A190: Cook | B190: 0.75 | C190: Medium Growth Area
A191: Cottonwood | B191: 0.8331705696 | C191: Low Growth Area
A192: Crow Wing | B192: 0.8832312646 | C192: High Growth Area
A193: Dakota | B193: 0.8547421962 | C193: High Growth Area
A194: Dodge | B194: 0.95 | C194: High Growth Area
A195: Douglas | B195: 0.8873831958 | C195: High Growth Area
A196: Faribault | B196: 0.865981121 | C196: Low Growth Area
A197: Fillmore | B197: 0.8896061418 | C197: Low Growth Area
A198: Freeborn | B198: 0.755552827 | C198: Low Growth Area
A199: Goodhue | B199: 0.9273647987 | C199: Medium Growth Area
A200: Grant | B200: 0.75 | C200: Low Growth Area
A201: Hennepin | B201: 0.8272566422 | C201: Low Growth Area
A202: Houston | B202: 0.8378015226 | C202: Low Growth Area
A203: Hubbard | B203: 0.8346205138 | C203: High Growth Area
A204: Isanti | B204: 0.95 | C204: High Growth Area
A205: Itasca | B205: 0.8886716849 | C205: Medium Growth Area
A206: Jackson | B206: 0.9180626248 | C206: Medium Growth Area
A207: Kanabec | B207: 0.8135838922 | C207: Medium Growth Area
A208: Kandiyohi | B208: 0.8938419831 | C208: Medium Growth Area
A209: Kittson | B209: 0.8024358458 | C209: Low Growth Area
A210: Koochiching | B210: 0.7937489549 | C210: Low Growth Area
A211: Lac qui Parle | B211: 0.75 | C211: Low Growth Area
A212: Lake | B212: 0.8562919136 | C212: Low Growth Area
A213: Lake of the Woods | B213: 0.9138862817 | C213: Low Growth Area
A214: Le Sueur | B214: 0.95 | C214: Medium Growth Area
A215: Lincoln | B215: 0.8857449991 | C215: Low Growth Area
A216: Lyon | B216: 0.75 | C216: Low Growth Area
A217: Mahnomen | B217: 0.75 | C217: Low Growth Area
A218: Marshall | B218: 0.95 | C218: Low Growth Area
A219: Martin | B219: 0.8201303604 | C219: Low Growth Area
A220: McLeod | B220: 0.8928164106 | C220: Medium Growth Area
A221: Meeker | B221: 0.926111411 | C221: Medium Growth Area
A222: Mille Lacs | B222: 0.95 | C222: High Growth Area
A223: Morrison | B223: 0.9495694712 | C223: Medium Growth Area
A224: Mower | B224: 0.8302978459 | C224: Low Growth Area
A225: Murray | B225: 0.8387247211 | C225: Medium Growth Area
A226: Nicollet | B226: 0.8240013933 | C226: Medium Growth Area
A227: Nobles | B227: 0.7549960093 | C227: Low Growth Area
A228: Norman | B228: 0.8022447962 | C228: Low Growth Area
A229: Olmsted | B229: 0.95 | C229: High Growth Area
A230: Otter Tail | B230: 0.8614026285 | C230: Medium Growth Area
A231: Pennington | B231: 0.95 | C231: Medium Growth Area
A232: Pine | B232: 0.8448776659 | C232: High Growth Area
A233: Pipestone | B233: 0.75 | C233: Low Growth Area
A234: Polk | B234: 0.75 | C234: Low Growth Area
A235: Pope | B235: 0.9029074643 | C235: Medium Growth Area
A236: Ramsey | B236: 0.8087858109 | C236: Low Growth Area
A237: Red Lake | B237: 0.95 | C237: Medium Growth Area
A238: Redwood | B238: 0.75 | C238: Low Growth Area
A239: Renville | B239: 0.8480251476 | C239: Low Growth Area
A240: Rice | B240: 0.8220040162 | C240: Medium Growth Area
A241: Rock | B241: 0.75 | C241: Low Growth Area
A242: Roseau | B242: 0.8847517198 | C242: Medium Growth Area
A243: Scott | B243: 0.95 | C243: High Growth Area
A244: Sherburne | B244: 0.95 | C244: High Growth Area
A245: Sibley | B245: 0.8646549065 | C245: Medium Growth Area
A246: St. Louis | B246: 0.850777855 | C246: Low Growth Area
A247: Stearns | B247: 0.8586120378 | C247: High Growth Area
A248: Steele | B248: 0.8848664209 | C248: Medium Growth Area
A249: Stevens | B249: 0.7999567113 | C249: Low Growth Area
A250: Swift | B250: 0.8706429381 | C250: Low Growth Area
A251: Todd | B251: 0.8988708026 | C251: Medium Growth Area
A252: Traverse | B252: 0.7652278953 | C252: Low Growth Area
A253: Wabasha | B253: 0.8182478469 | C253: Low Growth Area
A254: Wadena | B254: 0.95 | C254: Medium Growth Area
A255: Waseca | B255: 0.7963073355 | C255: Low Growth Area
A256: Washington | B256: 0.95 | C256: High Growth Area
A257: Watonwan | B257: 0.75 | C257: Low Growth Area
A258: Wilkin | B258: 0.75 | C258: Low Growth Area
A259: Winona | B259: 0.8284012539 | C259: Low Growth Area
A260: Wright | B260: 0.95 | C260: High Growth Area
A261: Yellow Medicine | B261: 0.8780713455 | C261: Low Growth Area

Sheet ESAL B4 (hidden)
A1: CUMULATIVE ESAL WORKSHEET | D1: ='Forecast B4'!E1 -> SEGMENT B4 | I1: Non-print area | O1: ONE-WAY
A2: SP#: | B2: =IF(+Cover!E19=0," ",Cover!E19) ->  | F2: CORRESPONDS: | G2: ='Forecast B4'!H1 -> SEGMENT A1 | O2: TWO-WAY
A3: ROUTE: | B3: ='Forecast B4'!B2:C2 ->  | C3: TWO-WAY | D3: # LANES: | E3: =IF('Forecast B4'!H5=0," ",'Forecast B4'!H5) ->  | F3: DATE: | G3: =Cover!B14 -> 2017-11-28T11:37:15.520 | I3: Urban/Rural Classification
A4: LOCATION: | B4: =IF('Forecast B4'!B3=0," ",'Forecast B4'!B3) ->  | I4: =VLOOKUP('Forecast B4'!H4,'Urban&Rural'!A2:B19001,2,FALSE) -> 
B5: YEAR | C5: AADT | E5: AADT Difference from A Seg
A6: BASE YEAR: | B6: ='Forecast B4'!B4 ->  | C6: ='Forecast B4'!I33 ->  | E6: =IF(C6=0,0,+C6-'ESAL A'!C7) ->  | I6: For reference when Adjusting Base Yr/Future Yr Truck Volumes
A7: FORECAST YEAR: | B7: ='Forecast B4'!F4 ->  | C7: ='Forecast B4'!I34 ->  | E7: =IF(C7=0,0,+C7-'ESAL A'!C8) ->  | M7: RURAL
C8: User Adjustment to Base Yr Vol | D8: Base Year Incremental Volume | E8: Base Year Volume | F8: User Adjustment to Future Yr Vol | G8: Future Year Incremental Volume | H8: Future Year Volume | M8: URBAN
A9: INCREMENTAL HCADT SEGMENT | I9: % change from A segment
A10: BASE YEAR PROPORTIONS | I10: Base volume | J10: future volume | L10: VEHICLE TYPE | M10: URBAN | N10: RURAL
A11: 2AX-6TIRE SU | B11: =IF($E$6=0,'ESAL A'!B11,D11/$E$6) ->  | C11: 0 | D11: =IF($I$4="urban",M11*$E$6+C11,IF($I$4="rural",N11*$E$6+C11,"See J3")) ->  | E11: ='ESAL A'!D11+D11 ->  | F11: 0 | G11: =B11*$E$7+F11 ->  | H11: ='ESAL A'!G11+G11 ->  | I11: =D11/'ESAL A'!D11 ->  | J11: =G11/'ESAL A'!G11 ->  | L11: 2AX-6TIRE SU | M11: 0.0152 | N11: 0.0317
A12: 3AX+ SU | B12: =IF($E$6=0,'ESAL A'!B12,D12/$E$6) ->  | C12: 0 | D12: =IF($I$4="urban",M12*$E$6+C12,IF($I$4="rural",N12*$E$6+C12,"See J3")) ->  | E12: ='ESAL A'!D12+D12 ->  | F12: 0 | H12: ='ESAL A'!G12+G12 ->  | I12: =D12/'ESAL A'!D12 ->  | J12: =G12/'ESAL A'!G12 ->  | L12: 3AX+ SU | M12: 0.0046 | N12: 0.0164
A13: 3AX TST | B13: =IF($E$6=0,'ESAL A'!B13,D13/$E$6) ->  | C13: 0 | D13: =IF($I$4="urban",M13*$E$6+C13,IF($I$4="rural",N13*$E$6+C13,"See J3")) ->  | E13: ='ESAL A'!D13+D13 ->  | F13: 0 | H13: ='ESAL A'!G13+G13 ->  | I13: =D13/'ESAL A'!D13 ->  | J13: =G13/'ESAL A'!G13 ->  | L13: 3AX TST | M13: 0.0009 | N13: 0.0028
A14: 4AX TST | B14: =IF($E$6=0,'ESAL A'!B14,D14/$E$6) ->  | C14: 0 | D14: =IF($I$4="urban",M14*$E$6+C14,IF($I$4="rural",N14*$E$6+C14,"See J3")) ->  | E14: ='ESAL A'!D14+D14 ->  | F14: 0 | H14: ='ESAL A'!G14+G14 ->  | I14: =D14/'ESAL A'!D14 ->  | J14: =G14/'ESAL A'!G14 ->  | L14: 4AX TST | M14: 0.0012 | N14: 0.005
A15: 5AX+ TST | B15: =IF($E$6=0,'ESAL A'!B15,D15/$E$6) ->  | C15: 0 | D15: =IF($I$4="urban",M15*$E$6+C15,IF($I$4="rural",N15*$E$6+C15,"See J3")) ->  | E15: ='ESAL A'!D15+D15 ->  | F15: 0 | H15: ='ESAL A'!G15+G15 ->  | I15: =D15/SUM('ESAL A'!D15:D17) ->  | J15: =G15/SUM('ESAL A'!G15:G17) ->  | L15: 5AX+ TST | M15: 0.0089 | N15: 0.0326
A16: (5AX+ TST MAX) | B16: =IF($E$6=0,'ESAL A'!B16,D16/$E$6) ->  | C16: 0 | D16: =0+C16 -> 0 | E16: ='ESAL A'!D16+D16 ->  | F16: 0 | H16: ='ESAL A'!G16+G16 ->  | I16: =IF('ESAL A'!D16=0,0,D16/'ESAL A'!D16) ->  | J16: =IF('ESAL A'!G16=0,0,G16/'ESAL A'!G16) ->  | L16: TR TR, BUSES | M16: 0.0047 | N16: 0.012
A17: (5AX+ TST OTH) | B17: =IF($E$6=0,'ESAL A'!B17,D17/$E$6) ->  | C17: 0 | D17: =0+C17 -> 0 | E17: ='ESAL A'!D17+D17 ->  | F17: 0 | H17: ='ESAL A'!G17+G17 ->  | I17: =IF('ESAL A'!D17=0,0,D17/'ESAL A'!D17) ->  | J17: =IF('ESAL A'!G17=0,0,G17/'ESAL A'!G17) ->  | L17: TWIN TRAILERS | M17: 0.0002 | N17: 0.0002
A18: TR TR, BUSES | B18: =IF($E$6=0,'ESAL A'!B18,D18/$E$6) ->  | C18: 0 | D18: =IF($I$4="urban",M16*$E$6+C18,IF($I$4="rural",N16*$E$6+C18,"See J3")) ->  | E18: ='ESAL A'!D18+D18 ->  | F18: 0 | H18: ='ESAL A'!G18+G18 ->  | I18: =D18/'ESAL A'!D18 ->  | J18: =G18/'ESAL A'!G18 ->  | L18: TOTAL | M18: =SUM(M11:M17) -> 0.0357 | N18: =SUM(N11:N17) -> 0.1007
A19: TWIN TRAILERS | B19: =IF($E$6=0,'ESAL A'!B19,D19/$E$6) ->  | C19: 0 | D19: =IF($I$4="urban",M17*$E$6+C19,IF($I$4="rural",N17*$E$6+C19,"See J3")) ->  | E19: ='ESAL A'!D19+D19 ->  | F19: 0 | H19: ='ESAL A'!G19+G19 ->  | I19: =IF('ESAL A'!D19=0,0,D19/'ESAL A'!D19) ->  | J19: =IF('ESAL A'!G19=0,0,G19/'ESAL A'!G19) -> 
A20: CLASSIFICATION: | B20: =I4 ->  | D20: ADDED | E20: COMBINED | F20: =B23-B22 ->  | G20: YR DESIGN
C21: AADT | D21: HCADT % | E21: HCADT % | F21: LANE CUMULATIVE ESAL | I21: When B segment ESALS and AADT vary significantly from each other with no trunk highway junction in between segments, then the difference may be mainly cars. In these instances, the default B segment percentages may need to be adjusted to reflect logical addition or subtraction of trucks, or to smooth out the volume of trucks between all B segments
A22: BASE YEAR: | B22: =B6 ->  | C22: =E6 ->  | D22: =SUM(D11:D19)/C22 ->  | E22: =SUM(D11:D19)+SUM('ESAL A'!D11:D19)/C6 ->  | F22: | | G22: |
A23: FORECAST YEAR: | B23: =B7 ->  | C23: =E7 ->  | D23: =SUM(G11:G19)/C23 ->  | E23: =SUM(G11:G19)+SUM('ESAL A'!G11:G19)/C7 ->  | F23: ***************** | G23: *****************
A24: DESIGN LANE FACTOR: | C24: =IF(C3=O2,CHOOSE((E3)+1,#VALUE!,1,0.5,0.5,0.45,0.45,0.35,0.35),CHOOSE(E3,1,0.9,0.7,0.7,0.7,0.7)) ->  | F24: FLEXIBLE | G24: RIGID
E25: SEGMENT B INCREMENT ONLY: | F25: =ROUND(CHOOSE(C129,F129,F130,F131,F132,F133,F134,F135,F136,F137,F138,F139,F140,F141,F142,F143,F144,F145,F146,F147,F148,F149,F150,F151,F152,F153,F154,F155,F156,F157,F158,F159,F160,F161,F162,F163,F164)*1.12,-3) ->  | G25: =ROUND(CHOOSE(C129,G129,G130,G131,G132,G133,G134,G135,G136,G137,G138,G139,G140,G141,G142,G143,G144,G145,G146,G147,G148,G149,G150,G151,G152,G153,G154,G155,G156,G157,G158,G159,G160,G161,G162,G163,G164)*1.12,-3) -> 
E26: SEGMENT A + SEGMENT B: | F26: =ROUND(F25+'ESAL A'!F26*C24/'ESAL A'!C26,-3) ->  | G26: =ROUND(G25+'ESAL A'!G26*C24/'ESAL A'!C26,-3) -> 
F27: ***************** | G27: ***************** | I27: When adjusting volumes for this reason, edit "User Adjustment to Base Yr/Future Yr Vol" columns until all items in the "% change from A segment" table are within the -50% to 50% range
A28: ADDITIONAL OUTPUTS: | E28: ESAL FACTORS
B29: BASE % | C29: FORECAST % | E29: FLEXIBLE | F29: RIGID
A30: 2AX-6TIRE SU | B30: =D11/$C$22 ->  | C30: =G11/$C$23 ->  | E30: 0.25 | F30: =IF(E30<0.11,E30,E30-0.01) -> 0.24
A31: 3AX+ SU | E31: 0.58 | F31: =IF(E31<0.36,(E31*1.62364-0.070909)+0.01,(IF(E31<0.4,E31*1.62364-0.07909,(IF(E31<0.66,(E31*1.62364-0.07909)-0.01,(IF(E31<0.69,E31*1.62364-0.07909,(E31*1.62364-0.07909)+0.02))))))) -> 0.8526212
A32: 3AX TST | E32: 0.39 | F32: =IF(E32<0.28,E32-0.01,(IF(E32<0.56,E32-0.02,E32-0.03))) -> 0.37
A33: 4AX TST | E33: 0.51 | F33: =IF(E33<0.41,E33,(IF(E33<0.47,E33+0.01,(IF(E33<0.54,E33+0.02,(IF(E33<0.61,E33+0.03,(IF(E33<0.67,E33+0.04,E33+0.05))))))))) -> 0.53
A34: 5AX+ TST | E34: 1.13 | F34: =(+E34*1.71536-0.05351)+0.005 -> 1.8898468
A35: (5AX+ TST MAX) | E35: 2.4 | F35: =(+E35*1.71536-0.05351)+0.005 -> 4.068354
A36: (5AX+ TST OTH) | E36: 0.87 | F36: =(+E36*1.71536-0.05351)+0.005 -> 1.4438532
A37: TR TR, BUSES | E37: 0.57 | F37: =E37*1.35636-0.03091 -> 0.7422152
A38: TWIN TRAILERS | E38: 2.4 | F38: =(+E38*0.97519-0.01494)+0.005 -> 2.330516
A40: BASE YEAR | D40: FUTURE YEAR
A41: =IF(OR(I11>0.5,I12>0.5,I13>0.5,I14>0.5,I15>0.5,I16>0.5,I17>0.5,I18>0.5,I19>0.5),"Taking away more than 50% of trucks from A segment. Reduce B segment truck percentages in base year","OK") ->  | C41: Subtraction of Trucks | D41: =IF(OR(J11>0.5,J12>0.5,J13>0.5,J14>0.5,J15>0.5,J16>0.5,J17>0.5,J18>0.5,J19>0.5),"Taking away more than 50% of trucks from A segment. Reduce B segment truck percentages in base year","OK") -> 
A45: =IF(OR(I11<-0.5,I12<-0.5,I13<-0.5,I14<-0.5,I15<-0.5,I16<-0.5,I17<-0.5,I18<-0.5,I19<-0.5),"Adding more than 50% of trucks from A segment. Reduce B segment truck percentages in base year","OK") ->  | C45: Addition of Trucks | D45: =IF(OR(J11<-0.5,J12<-0.5,J13<-0.5,J14<-0.5,J15<-0.5,J16<-0.5,J17<-0.5,J18<-0.5,J19<-0.5),"Adding more than 50% of trucks from A segment. Reduce B segment truck percentages in base year","OK") -> 
A59: CUMULATIVE ESAL REPORT | D59: =D1 -> SEGMENT B4 | F59: CORRESPONDS: | G59: ='Forecast B4'!H1 -> SEGMENT A1
F60: DATE: | G60: =Cover!B14 -> 2017-11-28T11:37:15.520
A61: ROUTE #: | B61: ='Forecast A'!B2:C2 ->  | C61: DISTRICT: | D61: =IF(Cover!B21=0," ",Cover!B21) ->  | E61: SP#: | F61: =IF(+Cover!E19=0," ",+Cover!E19) -> 
A62: FORECAST #: | B62: =IF(Cover!E18=0," ",Cover!E18) ->  | C62: COUNTY: | D62: =IF(+Cover!E22=0," ",Cover!E22) ->  | E62: MILES: | F62: ='Forecast B4'!H3 -> 
A63: DESCRIPTION: | B63: =B4 -> 
A64: AUTHOR: | B64: =IF(Cover!B19=0," ",Cover!B19) ->  | E64: AUTHOR'S DISTRICT: | F64: =IF(Cover!B20=0," ",Cover!B20) -> 
A66: BASE YEAR NUMBER OF LANES: | D66: =IF('Forecast B4'!H5=0," ",'Forecast B4'!H5) -> 
G67: GROWTH / YR (SIMPLE %)
A68: TRAFFIC SUMMARY | D68: BASE YEAR | F68: DESIGN YEAR
A69: =C3 -> TWO-WAY | D69: =B6 ->  | F69: =B7 -> 
A70: AADT: | D70: =C6 ->  | F70: =C7 ->  | G70: =((F70-D70)/($F$69-$D$69))/D70 -> 
A71: DESIGN LANE: | D71: =ROUND(C24*D70,-2) ->  | F71: =ROUND(C24*F70,-2) -> 
A72: HCADT: | D72: =ROUND(SUM('ESAL A'!D11:D19)+SUM(D11:D19),-2) ->  | F72: =ROUND(SUM('ESAL A'!G11:G19)+SUM(G11:G19),-2) -> 
A73: SINGLE UNITS: | D73: =ROUND('ESAL A'!D11+'ESAL A'!D12+D11+D12,-2) ->  | F73: =ROUND('ESAL A'!G11+'ESAL A'!G12+G11+G12,-2) -> 
A74: TST'S: | D74: =SUM('ESAL A'!D13:D17)+SUM(D13:D17) ->  | F74: =SUM('ESAL A'!G13:G17)+SUM(G13:G17) -> 
A75: 5 Ax+: | D75: =SUM('ESAL A'!D15:D17)+SUM(D15:D17) ->  | F75: =SUM('ESAL A'!G15:G17)+SUM(G15:G17) -> 
A77: ESAL SUMMARY
A78: ANNUAL DESIGN LANE ESAL
A79: FLEXIBLE: | D79: =('ESAL A'!D115*'ESAL A'!C26+D125*C24)*365.25 ->  | F79: =('ESAL A'!F115*'ESAL A'!C26+F125*C24)*365.25 -> 
A80: RIGID: | D80: =('ESAL A'!E115*'ESAL A'!C26+E125*C24)*365.25 ->  | F80: =('ESAL A'!G115*'ESAL A'!C26+G125*C24)*365.25 -> 
A82: CUMULATIVE DESIGN-LANE ESALS (10 TON) | F82: Design-lane factor: | G82: =C24 -> 
A83: FOR VARIABLE TIME PERIODS
A87: BASE | B87: DESIGN | C87: TIME | D87: DESIGN-LANE | F87: ESALS
A88: YEAR | B88: YEAR | C88: PERIOD | D88: TST'S | F88: FLEXIBLE | G88: RIGID
A89: =D69 ->  | B89: =A89+10 ->  | C89: 10 Year | D89: =G82*(10*(F74-D74)/(F69-D69)+D74) ->  | F89: =ROUND(('ESAL A'!F129*C24/'ESAL A'!C26+F139)*1.12,3) ->  | G89: =ROUND(('ESAL A'!G129*C24/'ESAL A'!C26+G139)*1.12,-3) -> 
A91: =D69 ->  | B91: =A91+15 ->  | C91: 15 Year | D91: =G82*(15*(F74-D74)/(F69-D69)+D74) ->  | F91: =ROUND(('ESAL A'!F134*C24/'ESAL A'!C26+F144)*1.12,-3) ->  | G91: =ROUND(('ESAL A'!G134*C24/'ESAL A'!C26+G144)*1.12,-3) -> 
A93: =D69 ->  | B93: =A93+20 ->  | C93: 20 Year | D93: =G82*(20*(F74-D74)/(F69-D69)+D74) ->  | F93: =ROUND(('ESAL A'!F139*C24/'ESAL A'!C26+F149)*1.12,-3) ->  | G93: =ROUND(('ESAL A'!G139*C24/'ESAL A'!C26+G149)*1.12,-3) -> 
A95: =D69 ->  | B95: =A95+25 ->  | C95: 25 Year | D95: =G82*(25*(F74-D74)/(F69-D69)+D74) ->  | F95: =ROUND(('ESAL A'!F144*C24/'ESAL A'!C26+F154)*1.12,-3) ->  | G95: =ROUND(('ESAL A'!G144*C24/'ESAL A'!C26+G154)*1.12,-3) -> 
A97: =D69 ->  | B97: =A97+30 ->  | C97: 30 Year | D97: =G82*(30*(F74-D74)/(F69-D69)+D74) ->  | F97: =ROUND(('ESAL A'!F149*C24/'ESAL A'!C26+F159)*1.12,-3) ->  | G97: =ROUND(('ESAL A'!G149*C24/'ESAL A'!C26+G159)*1.12,-3) -> 
A99: =D69 ->  | B99: =A99+35 ->  | C99: 35 Year | D99: =G82*(35*(F74-D74)/(F69-D69)+D74) ->  | F99: =ROUND(('ESAL A'!F154*C24/'ESAL A'!C26+F164)*1.12,-3) ->  | G99: =ROUND(('ESAL A'!G154*C24/'ESAL A'!C26+G164)*1.12,-3) -> 
B106: APPROVED BY: | F106: DATE:
A113: CUMULATIVE ESAL WORK AREA
B114: BYVOLS | C114: FYVOLS | D114: BY VOL * BESAL | E114: BY VOL *CESAL | F114: FY VOL *BESAL | G114: FY VOL *CESAL
B115: =D11 ->  | C115: =G11 ->  | D115: =E30*B115 ->  | E115: =F30*B115 ->  | F115: =E30*C115 ->  | G115: =F30*C115 -> 
B120: 0 | D120: 0 | E120: 0
B121: 0 | D121: 0 | E121: 0
A124: TWO WAY ADL --> | D124: FLEX ADL | E124: RIG ADL | F124: FLEX ADL | G124: RIG ADL
A125: | | D125: =$C$22*0.0007+SUM(D115:D123) ->  | E125: =$C$22*0.0007+SUM(E115:E123) ->  | F125: =$C$23*0.0007+SUM(F115:F123) ->  | G125: =$C$23*0.0007+SUM(G115:G123) -> 
A127: CUMULATIVE ESAL CALCULATIONS (DESIGN LANE) | F127: FLEXIBLE | G127: RIGID
B128: INCLUSIVE | C128: YEARS | E128: DAYS
A129: FUTURE YR - BASE YR = | C129: =B7-B6+1 ->  | E129: 365.25 | F129: =$D$125*$E129*$C$24+F128 ->  | G129: =$E$125*$E129*$C$24+G128 -> 
E130: 730.5 | F130: =(365.25*$D$125+$E129*$A$133)*$C$24+F129 ->  | G130: =(365.25*$E$125+$E129*$B$133)*$C$24+G129 -> 
A131: ANNUAL AVERAGE CHANGE IN 2 WAY ADL | E131: 1095.75
A132: FLEXIBLE | B132: RIGID | E132: 1461
A133: =(+F125-D125)/($C$129-1) ->  | B133: =(+G125-E125)/($C$129-1) ->  | E133: 1826.25
E134: 2191.5
E135: 2556.75
E136: 2922
E137: 3287.25
E138: 3652.5
E139: 4017.75
E140: 4383
E141: 4748.25
E142: 5113.5
E143: 5478.75
E144: 5844
E145: 6209.25
E146: 6574.5
E147: 6939.75
E148: 7305
E149: 7670.25
E150: 8035.5
E151: 8400.75
E152: 8766
E153: 9131.25
E154: 9496.5
E155: 9861.75
E156: 10227
E157: 10592.25
E158: 10957.5
E159: 11322.75
E160: 11688
E161: 12053.25
E162: 12418.5
E163: 12783.75
E164: 13149

Sheet Forecast B5 (hidden)
A1: LEAST SQUARES WORKSHEET | E1: SEGMENT B5 | G1: Corresponds : | H1: ='Forecast A'!E1 -> SEGMENT A1 | J1: Non-print area
A2: ROUTE: | B2: =IF(Cover!E21="Interstate",Cover!G42&Cover!E20,IF(Cover!E21="US Trunk",Cover!G43&Cover!E20,IF(Cover!E21="MN Trunk",Cover!G44&Cover!E20,IF(Cover!E21="CSAH",Cover!G45&Cover!E20,IF(Cover!E21="CR",Cover!G46&Cover!E20," "))))) ->  | D2: SP#: | E2: =IF(Cover!E19=0," ",Cover!E19) ->  | G2: DATE : | H2: =Cover!B14 -> 2017-11-28T11:37:15.520
A3: LOCATION: | G3: Miles : | H3: =VLOOKUP(H4,AADT_Data!A:AA,27,FALSE) ->  | J3: =IF(B3="","Location field is empty. Please enter location description. E.g. MN 169 to CSAH 5","") -> Location field is empty. Please enter location description. E.g. MN 169 to CSAH 5
A4: BASE YEAR: | B4: =IF('Forecast A'!B4=0," ",'Forecast A'!B4) ->  | E4: FORECAST YEAR: | F4: =B4+20 ->  | G4: Seq # | J4: =IF(H4="","No Seq # is listed. Please enter sequence number","") -> No Seq # is listed. Please enter sequence number
G5: # of lanes | J5: =IF(H5="","Please indicate the number of lanes in this segment","") -> Please indicate the number of lanes in this segment
A6: YEAR | B6: FLOW MAP AADT (SEG A) | J6: Year | K6: AADT
C7: 850 | J7: =IF(LARGE($D$64:$D$88,E73)=0,"",LARGE($D$64:$D$88,E73)) ->  | K7: =IF(ISNA(VLOOKUP(F73,$A$64:$C$88,3,FALSE)),"",VLOOKUP(F73,$A$64:$C$88,3,FALSE)) ->  | L7: Note: only contains data
C8: 880 | L8: updated to 2016 AADT
C9: 880
C10: 1350
C11: 1150
C12: 1000
C13: 1150
C14: 1100
C15: 1100
C16: 1100
C17: 1000
J22: =IF(LARGE($D$64:$D$88,E88)=0,"",LARGE($D$64:$D$88,E88)) ->  | K22: =IF(ISNA(VLOOKUP(F88,$A$64:$C$88,3,FALSE)),"",VLOOKUP(F88,$A$64:$C$88,3,FALSE)) -> 
A24: LEAST SQUARES BASED FORECASTS:
A25: Year | B25: AADT | D25: Calc | E25: ADT Calc
A26: =INDEX(A7:A22,MATCH(9.99999999999999E+307,B7:B22)) ->  | B26: =FORECAST(A26,B7:B22,A7:A22) ->  | D26: =VLOOKUP(A26,$A$11:$B$22,2,FALSE)-B26 ->  | E26: =B26+D26 -> 
A27: =B4 ->  | B27: =FORECAST(A27,B7:B22,A7:A22) ->  | E27: =B27+D26 ->  | F27: =E27 -> 
A28: =F4 ->  | B28: =FORECAST(A28,B7:B22,A7:A22) ->  | E28: =B28+D26 ->  | F28: =E26+(E28-E26)*F40 -> 
A30: Statistics | B30: AADT | E30: Raw Least Squares Forecasts | H30: Demographically Adjusted Forecasts
A31: R 2 | B31: =RSQ(B7:B22,A7:A22) ->  | E31: YEAR | F31: AADT | H31: YEAR | I31: AADT
A32: SLOPE | B32: =SLOPE(B7:B22,A7:A22) ->  | E32: =A26 ->  | F32: =ROUND(E26,-1) ->  | H32: =A26 ->  | I32: =F32 -> 
A33: INTERCEPT | B33: =INTERCEPT(B7:B22,A7:A22) ->  | E33: =A27 ->  | F33: =ROUND(E27,-1) ->  | H33: =A27 ->  | I33: =ROUND(((I34-I32)/(H34-H32)*(H33-H32)+I32),-1) -> 
A34: N | B34: =COUNT(B7:B22) -> 0 | E34: =A28 ->  | F34: =ROUND(E28,-1) ->  | H34: =A28 ->  | I34: =ROUND(F32*(1+H38*(H34-H32)),-1) -> 
A35: NOTE:
A36: County Adjustment Factors were developed to Apply to Projected AADT. They are based on 1992-2007 VMT, Population, Labor Force, Household, and Employment Data. | E36: Slope Over Base Year | H36: Slope Over Base Year
E37: =B32/F33 ->  | H37: =((I34-I33)/(H34-H33)/I33) -> 
H38: =IF(E37*F40<=0.5%,0.5%,E37*F40) -> 
D39: COUNTY | F39: COUNTY FACTOR | H39: GROWTH PROFILE
D40: =UPPER(VLOOKUP(Cover!E22,$A$174:$C$261,1,FALSE)) ->  | F40: =VLOOKUP(Cover!E22,$A$174:$C$261,2,FALSE) ->  | H40: =UPPER(VLOOKUP(Cover!E22,$A$174:$C$261,3,FALSE)) -> 
B61: AADT_Data column reference
A63: year | C63: aadt | D63: data years | E63: nth largest
A64: 2017 | B64: 2 | C64: =VLOOKUP($H$4,AADT_Data!A:Z,B64,FALSE) ->  | D64: =IF(C64=0,0,A64) ->  | E64: 25 | F64: =IF(LARGE($D$64:$D$88,E64)=0,"",LARGE($D$64:$D$88,E64)) ->  | G64: =IF(ISNA(VLOOKUP(F64,$A$64:$C$88,3,FALSE)),"",VLOOKUP(F64,$A$64:$C$88,3,FALSE)) -> 
A65: 2016 | B65: 3 | C65: =VLOOKUP($H$4,AADT_Data!A:Z,B65,FALSE) ->  | D65: =IF(C65=0,0,A65) ->  | E65: 24
A66: 2015 | B66: 4 | C66: =VLOOKUP($H$4,AADT_Data!A:Z,B66,FALSE) ->  | D66: =IF(C66=0,0,A66) ->  | E66: 23
A67: 2014 | B67: 5 | C67: =VLOOKUP($H$4,AADT_Data!A:Z,B67,FALSE) ->  | D67: =IF(C67=0,0,A67) ->  | E67: 22
A68: 2013 | B68: 6 | C68: =VLOOKUP($H$4,AADT_Data!A:Z,B68,FALSE) ->  | D68: =IF(C68=0,0,A68) ->  | E68: 21
A69: 2012 | B69: 7 | C69: =VLOOKUP($H$4,AADT_Data!A:Z,B69,FALSE) ->  | E69: 20
A70: 2011 | B70: 8 | C70: =VLOOKUP($H$4,AADT_Data!A:Z,B70,FALSE) ->  | E70: 19
A71: 2010 | B71: 9 | C71: =VLOOKUP($H$4,AADT_Data!A:Z,B71,FALSE) ->  | E71: 18
A72: 2009 | B72: 10 | C72: =VLOOKUP($H$4,AADT_Data!A:Z,B72,FALSE) ->  | E72: 17
A73: 2008 | B73: 11 | C73: =VLOOKUP($H$4,AADT_Data!A:Z,B73,FALSE) ->  | E73: 16
A74: 2007 | B74: 12 | C74: =VLOOKUP($H$4,AADT_Data!A:Z,B74,FALSE) ->  | E74: 15
A75: 2006 | B75: 13 | C75: =VLOOKUP($H$4,AADT_Data!A:Z,B75,FALSE) ->  | E75: 14
A76: 2005 | B76: 14 | C76: =VLOOKUP($H$4,AADT_Data!A:Z,B76,FALSE) ->  | E76: 13
A77: 2004 | B77: 15 | C77: =VLOOKUP($H$4,AADT_Data!A:Z,B77,FALSE) ->  | E77: 12
A78: 2003 | B78: 16 | C78: =VLOOKUP($H$4,AADT_Data!A:Z,B78,FALSE) ->  | E78: 11
A79: 2002 | B79: 17 | C79: =VLOOKUP($H$4,AADT_Data!A:Z,B79,FALSE) ->  | E79: 10
A80: 2001 | B80: 18 | C80: =VLOOKUP($H$4,AADT_Data!A:Z,B80,FALSE) ->  | E80: 9
A81: 2000 | B81: 19 | C81: =VLOOKUP($H$4,AADT_Data!A:Z,B81,FALSE) ->  | E81: 8
A82: 1999 | B82: 20 | C82: =VLOOKUP($H$4,AADT_Data!A:Z,B82,FALSE) ->  | E82: 7
A83: 1998 | B83: 21 | C83: =VLOOKUP($H$4,AADT_Data!A:Z,B83,FALSE) ->  | E83: 6
A84: 1997 | B84: 22 | C84: =VLOOKUP($H$4,AADT_Data!A:Z,B84,FALSE) ->  | E84: 5
A85: 1996 | B85: 23 | C85: =VLOOKUP($H$4,AADT_Data!A:Z,B85,FALSE) ->  | E85: 4
A86: 1995 | B86: 24 | C86: =VLOOKUP($H$4,AADT_Data!A:Z,B86,FALSE) ->  | E86: 3
A87: 1994 | B87: 25 | C87: =VLOOKUP($H$4,AADT_Data!A:Z,B87,FALSE) ->  | E87: 2
A88: 1992 | B88: 26 | C88: =VLOOKUP($H$4,AADT_Data!A:Z,B88,FALSE) ->  | E88: 1 | F88: =IF(LARGE($D$64:$D$88,E88)=0,"",LARGE($D$64:$D$88,E88)) ->  | G88: =IF(ISNA(VLOOKUP(F88,$A$64:$C$88,3,FALSE)),"",VLOOKUP(F88,$A$64:$C$88,3,FALSE)) -> 
A174: County | B174: Factor | C174: Area Type
A175: Aitkin | B175: 0.95 | C175: High Growth Area
A176: Anoka | B176: 0.95 | C176: High Growth Area
A177: Becker | B177: 0.9387339609 | C177: Medium Growth Area
A178: Beltrami | B178: 0.95 | C178: High Growth Area
A179: Benton | B179: 0.95 | C179: High Growth Area
A180: Big Stone | B180: 0.8944759202 | C180: Low Growth Area
A181: Blue Earth | B181: 0.75 | C181: Medium Growth Area
A182: Brown | B182: 0.7896922659 | C182: Low Growth Area
A183: Carlton | B183: 0.95 | C183: Medium Growth Area
A184: Carver | B184: 0.95 | C184: High Growth Area
A185: Cass | B185: 0.95 | C185: High Growth Area
A186: Chippewa | B186: 0.8733104434 | C186: Low Growth Area
A187: Chisago | B187: 0.881279837 | C187: High Growth Area
A188: Clay | B188: 0.75 | C188: Low Growth Area
A189: Clearwater | B189: 0.8438234218 | C189: Low Growth Area
A190: Cook | B190: 0.75 | C190: Medium Growth Area
A191: Cottonwood | B191: 0.8331705696 | C191: Low Growth Area
A192: Crow Wing | B192: 0.8832312646 | C192: High Growth Area
A193: Dakota | B193: 0.8547421962 | C193: High Growth Area
A194: Dodge | B194: 0.95 | C194: High Growth Area
A195: Douglas | B195: 0.8873831958 | C195: High Growth Area
A196: Faribault | B196: 0.865981121 | C196: Low Growth Area
A197: Fillmore | B197: 0.8896061418 | C197: Low Growth Area
A198: Freeborn | B198: 0.755552827 | C198: Low Growth Area
A199: Goodhue | B199: 0.9273647987 | C199: Medium Growth Area
A200: Grant | B200: 0.75 | C200: Low Growth Area
A201: Hennepin | B201: 0.8272566422 | C201: Low Growth Area
A202: Houston | B202: 0.8378015226 | C202: Low Growth Area
A203: Hubbard | B203: 0.8346205138 | C203: High Growth Area
A204: Isanti | B204: 0.95 | C204: High Growth Area
A205: Itasca | B205: 0.8886716849 | C205: Medium Growth Area
A206: Jackson | B206: 0.9180626248 | C206: Medium Growth Area
A207: Kanabec | B207: 0.8135838922 | C207: Medium Growth Area
A208: Kandiyohi | B208: 0.8938419831 | C208: Medium Growth Area
A209: Kittson | B209: 0.8024358458 | C209: Low Growth Area
A210: Koochiching | B210: 0.7937489549 | C210: Low Growth Area
A211: Lac qui Parle | B211: 0.75 | C211: Low Growth Area
A212: Lake | B212: 0.8562919136 | C212: Low Growth Area
A213: Lake of the Woods | B213: 0.9138862817 | C213: Low Growth Area
A214: Le Sueur | B214: 0.95 | C214: Medium Growth Area
A215: Lincoln | B215: 0.8857449991 | C215: Low Growth Area
A216: Lyon | B216: 0.75 | C216: Low Growth Area
A217: Mahnomen | B217: 0.75 | C217: Low Growth Area
A218: Marshall | B218: 0.95 | C218: Low Growth Area
A219: Martin | B219: 0.8201303604 | C219: Low Growth Area
A220: McLeod | B220: 0.8928164106 | C220: Medium Growth Area
A221: Meeker | B221: 0.926111411 | C221: Medium Growth Area
A222: Mille Lacs | B222: 0.95 | C222: High Growth Area
A223: Morrison | B223: 0.9495694712 | C223: Medium Growth Area
A224: Mower | B224: 0.8302978459 | C224: Low Growth Area
A225: Murray | B225: 0.8387247211 | C225: Medium Growth Area
A226: Nicollet | B226: 0.8240013933 | C226: Medium Growth Area
A227: Nobles | B227: 0.7549960093 | C227: Low Growth Area
A228: Norman | B228: 0.8022447962 | C228: Low Growth Area
A229: Olmsted | B229: 0.95 | C229: High Growth Area
A230: Otter Tail | B230: 0.8614026285 | C230: Medium Growth Area
A231: Pennington | B231: 0.95 | C231: Medium Growth Area
A232: Pine | B232: 0.8448776659 | C232: High Growth Area
A233: Pipestone | B233: 0.75 | C233: Low Growth Area
A234: Polk | B234: 0.75 | C234: Low Growth Area
A235: Pope | B235: 0.9029074643 | C235: Medium Growth Area
A236: Ramsey | B236: 0.8087858109 | C236: Low Growth Area
A237: Red Lake | B237: 0.95 | C237: Medium Growth Area
A238: Redwood | B238: 0.75 | C238: Low Growth Area
A239: Renville | B239: 0.8480251476 | C239: Low Growth Area
A240: Rice | B240: 0.8220040162 | C240: Medium Growth Area
A241: Rock | B241: 0.75 | C241: Low Growth Area
A242: Roseau | B242: 0.8847517198 | C242: Medium Growth Area
A243: Scott | B243: 0.95 | C243: High Growth Area
A244: Sherburne | B244: 0.95 | C244: High Growth Area
A245: Sibley | B245: 0.8646549065 | C245: Medium Growth Area
A246: St. Louis | B246: 0.850777855 | C246: Low Growth Area
A247: Stearns | B247: 0.8586120378 | C247: High Growth Area
A248: Steele | B248: 0.8848664209 | C248: Medium Growth Area
A249: Stevens | B249: 0.7999567113 | C249: Low Growth Area
A250: Swift | B250: 0.8706429381 | C250: Low Growth Area
A251: Todd | B251: 0.8988708026 | C251: Medium Growth Area
A252: Traverse | B252: 0.7652278953 | C252: Low Growth Area
A253: Wabasha | B253: 0.8182478469 | C253: Low Growth Area
A254: Wadena | B254: 0.95 | C254: Medium Growth Area
A255: Waseca | B255: 0.7963073355 | C255: Low Growth Area
A256: Washington | B256: 0.95 | C256: High Growth Area
A257: Watonwan | B257: 0.75 | C257: Low Growth Area
A258: Wilkin | B258: 0.75 | C258: Low Growth Area
A259: Winona | B259: 0.8284012539 | C259: Low Growth Area
A260: Wright | B260: 0.95 | C260: High Growth Area
A261: Yellow Medicine | B261: 0.8780713455 | C261: Low Growth Area

Sheet ESAL B5 (hidden)
A1: CUMULATIVE ESAL WORKSHEET | D1: ='Forecast B5'!E1 -> SEGMENT B5 | I1: Non-print area | O1: ONE-WAY
A2: SP#: | B2: =IF(+Cover!E19=0," ",Cover!E19) ->  | F2: CORRESPONDS: | G2: ='Forecast B5'!H1 -> SEGMENT A1 | O2: TWO-WAY
A3: ROUTE: | B3: ='Forecast B5'!B2:C2 ->  | C3: TWO-WAY | D3: # LANES: | E3: =IF('Forecast B5'!$H$5=0," ",'Forecast B5'!$H$5) ->  | F3: DATE: | G3: =Cover!B14 -> 2017-11-28T11:37:15.520 | I3: Urban/Rural Classification
A4: LOCATION: | B4: =IF('Forecast B5'!$B$3=0," ",'Forecast B5'!$B$3) ->  | I4: =VLOOKUP('Forecast B5'!H4,'Urban&Rural'!A2:B19001,2,FALSE) -> 
B5: YEAR | C5: AADT | E5: AADT Difference from A Seg
A6: BASE YEAR: | B6: ='Forecast B5'!B4 ->  | C6: ='Forecast B5'!I33 ->  | E6: =IF(C6=0,0,+C6-'ESAL A'!C7) ->  | I6: For reference when Adjusting Base Yr/Future Yr Truck Volumes
A7: FORECAST YEAR: | B7: ='Forecast B5'!F4 ->  | C7: ='Forecast B5'!I34 ->  | E7: =IF(C7=0,0,+C7-'ESAL A'!C8) ->  | M7: RURAL
C8: User Adjustment to Base Yr Vol | D8: Base Year Incremental Volume | E8: Base Year Volume | F8: User Adjustment to Future Yr Vol | G8: Future Year Incremental Volume | H8: Future Year Volume | M8: URBAN
A9: INCREMENTAL HCADT SEGMENT | I9: % change from A segment
A10: BASE YEAR PROPORTIONS | I10: Base volume | J10: future volume | L10: VEHICLE TYPE | M10: URBAN | N10: RURAL
A11: 2AX-6TIRE SU | B11: =IF($E$6=0,'ESAL A'!B11,D11/$E$6) ->  | C11: 0 | D11: =IF($I$4="urban",M11*$E$6+C11,IF($I$4="rural",N11*$E$6+C11,"See J3")) ->  | E11: ='ESAL A'!D11+D11 ->  | F11: 0 | G11: =B11*$E$7+F11 ->  | H11: ='ESAL A'!G11+G11 ->  | I11: =D11/'ESAL A'!D11 ->  | J11: =G11/'ESAL A'!G11 ->  | L11: 2AX-6TIRE SU | M11: 0.0152 | N11: 0.0317
A12: 3AX+ SU | B12: =IF($E$6=0,'ESAL A'!B12,D12/$E$6) ->  | C12: 0 | D12: =IF($I$4="urban",M12*$E$6+C12,IF($I$4="rural",N12*$E$6+C12,"See J3")) ->  | E12: ='ESAL A'!D12+D12 ->  | F12: 0 | H12: ='ESAL A'!G12+G12 ->  | I12: =D12/'ESAL A'!D12 ->  | J12: =G12/'ESAL A'!G12 ->  | L12: 3AX+ SU | M12: 0.0046 | N12: 0.0164
A13: 3AX TST | B13: =IF($E$6=0,'ESAL A'!B13,D13/$E$6) ->  | C13: 0 | D13: =IF($I$4="urban",M13*$E$6+C13,IF($I$4="rural",N13*$E$6+C13,"See J3")) ->  | E13: ='ESAL A'!D13+D13 ->  | F13: 0 | H13: ='ESAL A'!G13+G13 ->  | I13: =D13/'ESAL A'!D13 ->  | J13: =G13/'ESAL A'!G13 ->  | L13: 3AX TST | M13: 0.0009 | N13: 0.0028
A14: 4AX TST | B14: =IF($E$6=0,'ESAL A'!B14,D14/$E$6) ->  | C14: 0 | D14: =IF($I$4="urban",M14*$E$6+C14,IF($I$4="rural",N14*$E$6+C14,"See J3")) ->  | E14: ='ESAL A'!D14+D14 ->  | F14: 0 | H14: ='ESAL A'!G14+G14 ->  | I14: =D14/'ESAL A'!D14 ->  | J14: =G14/'ESAL A'!G14 ->  | L14: 4AX TST | M14: 0.0012 | N14: 0.005
A15: 5AX+ TST | B15: =IF($E$6=0,'ESAL A'!B15,D15/$E$6) ->  | C15: 0 | D15: =IF($I$4="urban",M15*$E$6+C15,IF($I$4="rural",N15*$E$6+C15,"See J3")) ->  | E15: ='ESAL A'!D15+D15 ->  | F15: 0 | H15: ='ESAL A'!G15+G15 ->  | I15: =D15/SUM('ESAL A'!D15:D17) ->  | J15: =G15/SUM('ESAL A'!G15:G17) ->  | L15: 5AX+ TST | M15: 0.0089 | N15: 0.0326
A16: (5AX+ TST MAX) | B16: =IF($E$6=0,'ESAL A'!B16,D16/$E$6) ->  | C16: 0 | D16: =0+C16 -> 0 | E16: ='ESAL A'!D16+D16 ->  | F16: 0 | H16: ='ESAL A'!G16+G16 ->  | I16: =IF('ESAL A'!D16=0,0,D16/'ESAL A'!D16) ->  | J16: =IF('ESAL A'!G16=0,0,G16/'ESAL A'!G16) ->  | L16: TR TR, BUSES | M16: 0.0047 | N16: 0.012
A17: (5AX+ TST OTH) | B17: =IF($E$6=0,'ESAL A'!B17,D17/$E$6) ->  | C17: 0 | D17: =0+C17 -> 0 | E17: ='ESAL A'!D17+D17 ->  | F17: 0 | H17: ='ESAL A'!G17+G17 ->  | I17: =IF('ESAL A'!D17=0,0,D17/'ESAL A'!D17) ->  | J17: =IF('ESAL A'!G17=0,0,G17/'ESAL A'!G17) ->  | L17: TWIN TRAILERS | M17: 0.0002 | N17: 0.0002
A18: TR TR, BUSES | B18: =IF($E$6=0,'ESAL A'!B18,D18/$E$6) ->  | C18: 0 | D18: =IF($I$4="urban",M16*$E$6+C18,IF($I$4="rural",N16*$E$6+C18,"See J3")) ->  | E18: ='ESAL A'!D18+D18 ->  | F18: 0 | H18: ='ESAL A'!G18+G18 ->  | I18: =D18/'ESAL A'!D18 ->  | J18: =G18/'ESAL A'!G18 ->  | L18: TOTAL | M18: =SUM(M11:M17) -> 0.0357 | N18: =SUM(N11:N17) -> 0.1007
A19: TWIN TRAILERS | B19: =IF($E$6=0,'ESAL A'!B19,D19/$E$6) ->  | C19: 0 | D19: =IF($I$4="urban",M17*$E$6+C19,IF($I$4="rural",N17*$E$6+C19,"See J3")) ->  | E19: ='ESAL A'!D19+D19 ->  | F19: 0 | H19: ='ESAL A'!G19+G19 ->  | I19: =IF('ESAL A'!D19=0,0,D19/'ESAL A'!D19) ->  | J19: =IF('ESAL A'!G19=0,0,G19/'ESAL A'!G19) -> 
A20: CLASSIFICATION: | B20: =I4 ->  | D20: ADDED | E20: COMBINED | F20: =B23-B22 ->  | G20: YR DESIGN
C21: AADT | D21: HCADT % | E21: HCADT % | F21: LANE CUMULATIVE ESAL | I21: When B segment ESALS and AADT vary significantly from each other with no trunk highway junction in between segments, then the difference may be mainly cars. In these instances, the default B segment percentages may need to be adjusted to reflect logical addition or subtraction of trucks, or to smooth out the volume of trucks between all B segments
A22: BASE YEAR: | B22: =B6 ->  | C22: =E6 ->  | D22: =SUM(D11:D19)/C22 ->  | E22: =SUM(D11:D19)+SUM('ESAL A'!D11:D19)/C6 ->  | F22: | | G22: |
A23: FORECAST YEAR: | B23: =B7 ->  | C23: =E7 ->  | D23: =SUM(G11:G19)/C23 ->  | E23: =SUM(G11:G19)+SUM('ESAL A'!G11:G19)/C7 ->  | F23: ***************** | G23: *****************
A24: DESIGN LANE FACTOR: | C24: =IF(C3=O2,CHOOSE((E3)+1,#VALUE!,1,0.5,0.5,0.45,0.45,0.35,0.35),CHOOSE(E3,1,0.9,0.7,0.7,0.7,0.7)) ->  | F24: FLEXIBLE | G24: RIGID
E25: SEGMENT B INCREMENT ONLY: | F25: =ROUND(CHOOSE(C129,F129,F130,F131,F132,F133,F134,F135,F136,F137,F138,F139,F140,F141,F142,F143,F144,F145,F146,F147,F148,F149,F150,F151,F152,F153,F154,F155,F156,F157,F158,F159,F160,F161,F162,F163,F164)*1.12,-3) ->  | G25: =ROUND(CHOOSE(C129,G129,G130,G131,G132,G133,G134,G135,G136,G137,G138,G139,G140,G141,G142,G143,G144,G145,G146,G147,G148,G149,G150,G151,G152,G153,G154,G155,G156,G157,G158,G159,G160,G161,G162,G163,G164)*1.12,-3) -> 
E26: SEGMENT A + SEGMENT B: | F26: =ROUND(F25+'ESAL A'!F26*C24/'ESAL A'!C26,-3) ->  | G26: =ROUND(G25+'ESAL A'!G26*C24/'ESAL A'!C26,-3) -> 
F27: ***************** | G27: ***************** | I27: When adjusting volumes for this reason, edit "User Adjustment to Base Yr/Future Yr Vol" columns until all items in the "% change from A segment" table are within the -50% to 50% range
A28: ADDITIONAL OUTPUTS: | E28: ESAL FACTORS
B29: BASE % | C29: FORECAST % | E29: FLEXIBLE | F29: RIGID
A30: 2AX-6TIRE SU | B30: =D11/$C$22 ->  | C30: =G11/$C$23 ->  | E30: 0.25 | F30: =IF(E30<0.11,E30,E30-0.01) -> 0.24
A31: 3AX+ SU | E31: 0.58 | F31: =IF(E31<0.36,(E31*1.62364-0.070909)+0.01,(IF(E31<0.4,E31*1.62364-0.07909,(IF(E31<0.66,(E31*1.62364-0.07909)-0.01,(IF(E31<0.69,E31*1.62364-0.07909,(E31*1.62364-0.07909)+0.02))))))) -> 0.8526212
A32: 3AX TST | E32: 0.39 | F32: =IF(E32<0.28,E32-0.01,(IF(E32<0.56,E32-0.02,E32-0.03))) -> 0.37
A33: 4AX TST | E33: 0.51 | F33: =IF(E33<0.41,E33,(IF(E33<0.47,E33+0.01,(IF(E33<0.54,E33+0.02,(IF(E33<0.61,E33+0.03,(IF(E33<0.67,E33+0.04,E33+0.05))))))))) -> 0.53
A34: 5AX+ TST | E34: 1.13 | F34: =(+E34*1.71536-0.05351)+0.005 -> 1.8898468
A35: (5AX+ TST MAX) | E35: 2.4 | F35: =(+E35*1.71536-0.05351)+0.005 -> 4.068354
A36: (5AX+ TST OTH) | E36: 0.87 | F36: =(+E36*1.71536-0.05351)+0.005 -> 1.4438532
A37: TR TR, BUSES | E37: 0.57 | F37: =E37*1.35636-0.03091 -> 0.7422152
A38: TWIN TRAILERS | E38: 2.4 | F38: =(+E38*0.97519-0.01494)+0.005 -> 2.330516
A40: BASE YEAR | D40: FUTURE YEAR
A41: =IF(OR(I11>0.5,I12>0.5,I13>0.5,I14>0.5,I15>0.5,I16>0.5,I17>0.5,I18>0.5,I19>0.5),"Taking away more than 50% of trucks from A segment. Reduce B segment truck percentages in base year","OK") ->  | C41: Subtraction of Trucks | D41: =IF(OR(J11>0.5,J12>0.5,J13>0.5,J14>0.5,J15>0.5,J16>0.5,J17>0.5,J18>0.5,J19>0.5),"Taking away more than 50% of trucks from A segment. Reduce B segment truck percentages in base year","OK") -> 
A45: =IF(OR(I11<-0.5,I12<-0.5,I13<-0.5,I14<-0.5,I15<-0.5,I16<-0.5,I17<-0.5,I18<-0.5,I19<-0.5),"Adding more than 50% of trucks from A segment. Reduce B segment truck percentages in base year","OK") ->  | C45: Addition of Trucks | D45: =IF(OR(J11<-0.5,J12<-0.5,J13<-0.5,J14<-0.5,J15<-0.5,J16<-0.5,J17<-0.5,J18<-0.5,J19<-0.5),"Adding more than 50% of trucks from A segment. Reduce B segment truck percentages in base year","OK") -> 
A59: CUMULATIVE ESAL REPORT | D59: =D1 -> SEGMENT B5 | F59: CORRESPONDS: | G59: ='Forecast B5'!H1 -> SEGMENT A1
F60: DATE: | G60: =Cover!B14 -> 2017-11-28T11:37:15.520
A61: ROUTE #: | B61: ='Forecast A'!B2:C2 ->  | C61: DISTRICT: | D61: =IF(Cover!B21=0," ",Cover!B21) ->  | E61: SP#: | F61: =IF(+Cover!E19=0," ",+Cover!E19) -> 
A62: FORECAST #: | B62: =IF(Cover!E18=0," ",Cover!E18) ->  | C62: COUNTY: | D62: =IF(+Cover!E22=0," ",Cover!E22) ->  | E62: MILES: | F62: ='Forecast B5'!H3 -> 
A63: DESCRIPTION: | B63: =B4 -> 
A64: AUTHOR: | B64: =IF(Cover!B19=0," ",Cover!B19) ->  | E64: AUTHOR'S DISTRICT: | F64: =IF(Cover!B20=0," ",Cover!B20) -> 
A66: BASE YEAR NUMBER OF LANES: | D66: =IF('Forecast B5'!H5=0," ",'Forecast B5'!H5) -> 
G67: GROWTH / YR (SIMPLE %)
A68: TRAFFIC SUMMARY | D68: BASE YEAR | F68: DESIGN YEAR
A69: =C3 -> TWO-WAY | D69: =B6 ->  | F69: =B7 -> 
A70: AADT: | D70: =C6 ->  | F70: =C7 ->  | G70: =((F70-D70)/($F$69-$D$69))/D70 -> 
A71: DESIGN LANE: | D71: =ROUND(C24*D70,-2) ->  | F71: =ROUND(C24*F70,-2) -> 
A72: HCADT: | D72: =10*ROUND((SUM('ESAL A'!D11:D19)+SUM(D11:D19))/10,0) ->  | F72: =ROUND(SUM('ESAL A'!G11:G19)+SUM(G11:G19),-2) -> 
A73: SINGLE UNITS: | D73: =ROUND('ESAL A'!D11+'ESAL A'!D12+D11+D12,-2) ->  | F73: =ROUND('ESAL A'!G11+'ESAL A'!G12+G11+G12,-2) -> 
A74: TST'S: | D74: =SUM('ESAL A'!D13:D17)+SUM(D13:D17) ->  | F74: =SUM('ESAL A'!G13:G17)+SUM(G13:G17) -> 
A75: 5 Ax+: | D75: =SUM('ESAL A'!D15:D17)+SUM(D15:D17) ->  | F75: =SUM('ESAL A'!G15:G17)+SUM(G15:G17) -> 
A77: ESAL SUMMARY
A78: ANNUAL DESIGN LANE ESAL
A79: FLEXIBLE: | D79: =('ESAL A'!D115*'ESAL A'!C26+D125*C24)*365.25 ->  | F79: =('ESAL A'!F115*'ESAL A'!C26+F125*C24)*365.25 -> 
A80: RIGID: | D80: =('ESAL A'!E115*'ESAL A'!C26+E125*C24)*365.25 ->  | F80: =('ESAL A'!G115*'ESAL A'!C26+G125*C24)*365.25 -> 
A82: CUMULATIVE DESIGN-LANE ESALS (10 TON) | F82: Design-lane factor: | G82: =C24 -> 
A83: FOR VARIABLE TIME PERIODS
A87: BASE | B87: DESIGN | C87: TIME | D87: DESIGN-LANE | F87: ESALS
A88: YEAR | B88: YEAR | C88: PERIOD | D88: TST'S | F88: FLEXIBLE | G88: RIGID
A89: =D69 ->  | B89: =A89+10 ->  | C89: 10 Year | D89: =G82*(10*(F74-D74)/(F69-D69)+D74) ->  | F89: =ROUND(('ESAL A'!F129*C24/'ESAL A'!C26+F139)*1.12,-3) ->  | G89: =ROUND(('ESAL A'!G129*C24/'ESAL A'!C26+G139)*1.12,-3) -> 
A91: =D69 ->  | B91: =A91+15 ->  | C91: 15 Year | D91: =G82*(15*(F74-D74)/(F69-D69)+D74) ->  | F91: =ROUND(('ESAL A'!F134*C24/'ESAL A'!C26+F144)*1.12,-3) ->  | G91: =ROUND(('ESAL A'!G134*C24/'ESAL A'!C26+G144)*1.12,-3) -> 
A93: =D69 ->  | B93: =A93+20 ->  | C93: 20 Year | D93: =G82*(20*(F74-D74)/(F69-D69)+D74) ->  | F93: =ROUND(('ESAL A'!F139*C24/'ESAL A'!C26+F149)*1.12,-3) ->  | G93: =ROUND(('ESAL A'!G139*C24/'ESAL A'!C26+G149)*1.12,-3) -> 
A95: =D69 ->  | B95: =A95+25 ->  | C95: 25 Year | D95: =G82*(25*(F74-D74)/(F69-D69)+D74) ->  | F95: =ROUND(('ESAL A'!F144*C24/'ESAL A'!C26+F154)*1.12,-3) ->  | G95: =ROUND(('ESAL A'!G144*C24/'ESAL A'!C26+G154)*1.12,-3) -> 
A97: =D69 ->  | B97: =A97+30 ->  | C97: 30 Year | D97: =G82*(30*(F74-D74)/(F69-D69)+D74) ->  | F97: =ROUND(('ESAL A'!F149*C24/'ESAL A'!C26+F159)*1.12,-3) ->  | G97: =ROUND(('ESAL A'!G149*C24/'ESAL A'!C26+G159)*1.12,-3) -> 
A99: =D69 ->  | B99: =A99+35 ->  | C99: 35 Year | D99: =G82*(35*(F74-D74)/(F69-D69)+D74) ->  | F99: =ROUND(('ESAL A'!F154*C24/'ESAL A'!C26+F164)*1.12,-3) ->  | G99: =ROUND(('ESAL A'!G154*C24/'ESAL A'!C26+G164)*1.12,-3) -> 
B106: APPROVED BY: | F106: DATE:
A113: CUMULATIVE ESAL WORK AREA
B114: BYVOLS | C114: FYVOLS | D114: BY VOL * BESAL | E114: BY VOL *CESAL | F114: FY VOL *BESAL | G114: FY VOL *CESAL
B115: =D11 ->  | C115: =G11 ->  | D115: =E30*B115 ->  | E115: =F30*B115 ->  | F115: =E30*C115 ->  | G115: =F30*C115 -> 
B120: 0 | D120: 0 | E120: 0
B121: 0 | D121: 0 | E121: 0
A124: TWO WAY ADL --> | D124: FLEX ADL | E124: RIG ADL | F124: FLEX ADL | G124: RIG ADL
A125: | | D125: =$C$22*0.0007+SUM(D115:D123) ->  | E125: =$C$22*0.0007+SUM(E115:E123) ->  | F125: =$C$23*0.0007+SUM(F115:F123) ->  | G125: =$C$23*0.0007+SUM(G115:G123) -> 
A127: CUMULATIVE ESAL CALCULATIONS (DESIGN LANE) | F127: FLEXIBLE | G127: RIGID
B128: INCLUSIVE | C128: YEARS | E128: DAYS
A129: FUTURE YR - BASE YR = | C129: =B7-B6+1 ->  | E129: 365.25 | F129: =$D$125*$E129*$C$24+F128 ->  | G129: =$E$125*$E129*$C$24+G128 -> 
E130: 730.5 | F130: =(365.25*$D$125+$E129*$A$133)*$C$24+F129 ->  | G130: =(365.25*$E$125+$E129*$B$133)*$C$24+G129 -> 
A131: ANNUAL AVERAGE CHANGE IN 2 WAY ADL | E131: 1095.75
A132: FLEXIBLE | B132: RIGID | E132: 1461
A133: =(+F125-D125)/($C$129-1) ->  | B133: =(+G125-E125)/($C$129-1) ->  | E133: 1826.25
E134: 2191.5
E135: 2556.75
E136: 2922
E137: 3287.25
E138: 3652.5
E139: 4017.75
E140: 4383
E141: 4748.25
E142: 5113.5
E143: 5478.75
E144: 5844
E145: 6209.25
E146: 6574.5
E147: 6939.75
E148: 7305
E149: 7670.25
E150: 8035.5
E151: 8400.75
E152: 8766
E153: 9131.25
E154: 9496.5
E155: 9861.75
E156: 10227
E157: 10592.25
E158: 10957.5
E159: 11322.75
E160: 11688
E161: 12053.25
E162: 12418.5
E163: 12783.75
E164: 13149

Sheet Appendix
D4: Appendix
D7: Least Squares Analysis
D8: Vehicle Class Expansion Worksheet
D9: Vehicle Class Reports
D10: AADT Diagram
D11: Other Suppporting Documents

Sheet VC 1
A1: VEHICLE CLASS COUNT EXPANSION WORKSHEET 1 | J1: Non-print area | R1: New Seasonal Adjustment Factors For Urban Area
A2: SITE NUMBER: | G2: COUNTY: | H2: =IF(+Cover!$E$22=0," ",+Cover!$E$22) -> 
A3: SITE DESCRIPTION: | B3: =VLOOKUP(B2,'VC History'!A:F,6,FALSE) ->  | R3: Body Type | S3: Jan | T3: Feb | U3: Mar | V3: Apr | W3: May | X3: Jun | Y3: Jul | Z3: Aug | AA3: Sep | AB3: Oct | AC3: Nov | AD3: Dec
A4: PROJECT SP#: | B4: =IF(+Cover!$E$19=0," ",+Cover!$E$19) ->  | H4: YEAR OF COUNT: | R4: CARS+PICKUP | S4: 1.101818568 | T4: 1.042399606 | U4: 1.020715235 | V4: 0.9825595111 | W4: 0.9804214303 | X4: 0.9524454101 | Y4: 0.9021672653 | Z4: 0.8851863969 | AA4: 0.8463204291 | AB4: 0.9766528447 | AC4: 1.054754554 | AD4: 1.129700419
A5: MONTH NUMBER OF COUNT: | C5: =VLOOKUP(B2&I4,'VC Data'!A:M,4,FALSE) ->  | H5: CONSTRAIN AADT: | I5: =IF('Forecast A'!H4="","",VLOOKUP(I4,'Forecast A'!A7:B22,2)) ->  | K5: Constrain AADT is automated from the sequence number of the A segment | R5: 2ASU | S5: 0.9026364913 | T5: 0.9152095345 | U5: 0.8809693435 | V5: 0.8433149801 | W5: 0.8049514058 | X5: 0.9077923889 | Y5: 0.79842163 | Z5: 0.7463956493 | AA5: 0.6742423882 | AB5: 0.8110823695 | AC5: 0.878061286 | AD5: 0.9497618566
A6: 16 or 24 HR | B6: =IF(VLOOKUP(I4,K$15:L$25,2)="Manual",16,24) ->  | R6: 3+ASU | S6: 1.192485605 | T6: 1.196781163 | U6: 1.149691715 | V6: 0.8838166574 | W6: 0.7900560436 | X6: 0.8404904399 | Y6: 0.6830196815 | Z6: 0.6685616697 | AA6: 0.5786451918 | AB6: 0.6134526971 | AC6: 0.7366804617 | AD6: 1.001165084
A7: VEHICLE TYPE | C7: RAW COUNT | D7: AADT ADJ FACTOR | F7: ADJUSTED RAW | G7: VEH. TYPE PERCENTS | H7: A.C.F. | K7: URBAN / RURAL CLASSIFICATION | R7: 3A Semi | S7: 1.119647785 | T7: 1.098865688 | U7: 1.032355984 | V7: 0.9031212033 | W7: 0.8352405532 | X7: 0.8564495131 | Y7: 0.7867958545 | Z7: 0.6742755593 | AA7: 0.6669477105 | AB7: 0.8886683685 | AC7: 0.827933027 | AD7: 1.080772858
A8: CARS AND PICKUPS | C8: =VLOOKUP(B2&I4,'VC Data'!A:M,6,FALSE) ->  | D8: =IF(K8="RURAL",IF(+I5=0,(IF(B6=16,1.09,1)*CHOOSE((C5)+1,1,1.31,1.23,1.19,1.06,0.98,0.92,0.84,0.88,0.91,0.95,1.08,1.12)),NA()),IF(+I5=0,(IF(B6=16,1.09,1)*CHOOSE((C5)+1,1,1.08,1.04,1.04,0.97,0.97,0.96,0.91,0.9,0.93,0.88,0.97,1)),NA())) ->  | F8: =IF(+I5=0,ROUND(+D8*C8,0),+I5-SUM(F9:F15)) ->  | H8: =IF(C16=0,"",C16/(((C8+C9)*2+(C10+C11)*3+(C12+C14)*4+(C13+C15)*5)/2)) ->  | K8: URBAN | M8: <- Derived from the sequence number of the A segment | R8: 4A Semi | S8: 1.119647785 | T8: 1.098865688 | U8: 1.032355984 | V8: 0.9031212033 | W8: 0.8352405532 | X8: 0.8564495131 | Y8: 0.7867958545 | Z8: 0.6742755593 | AA8: 0.6669477105 | AB8: 0.8886683685 | AC8: 0.827933027 | AD8: 1.080772858
A9: 2 AXLE 6 TIRE | C9: =VLOOKUP(B2&I4,'VC Data'!A:M,7,FALSE) ->  | D9: =IF(K8="RURAL",IF(B6=16,1.08,1)*CHOOSE((C5)+1,1,1.02,0.93,0.96,0.89,0.85,0.87,0.83,0.83,0.76,0.77,0.88,1),IF(B6=16,1.08,1)*CHOOSE((C5)+1,1,0.96,0.88,0.92,0.9,0.89,0.86,0.8,0.76,0.83,0.76,0.79,0.84)) ->  | F9: =ROUND(D9*C9,0) ->  | G9: =F9/F16 ->  | R9: 5+A SEMI | S9: 0.8694207179 | T9: 0.8776904625 | U9: 0.8647540382 | V9: 0.8094064142 | W9: 0.792292913 | X9: 0.8333092409 | Y9: 0.7149806283 | Z9: 0.7108350254 | AA9: 0.6598929083 | AB9: 0.7505864443 | AC9: 0.8967585745 | AD9: 0.9413801686
A10: 3+ AXLE SINGLE UNIT | C10: =VLOOKUP(B2&I4,'VC Data'!A:M,8,FALSE) ->  | D10: =IF(K8="RURAL",IF(B6=16,1.07,1)*CHOOSE((C5)+1,1,1.24,1.17,1.12,0.89,0.76,0.71,0.7,0.66,0.65,0.64,0.86,1.09),IF(B6=16,1.07,1)*CHOOSE((C5)+1,1,1.23,1.16,1.21,0.86,0.75,0.67,0.59,0.54,0.64,0.64,0.8,1.09)) ->  | G10: =F10/F16 ->  | R10: TT/BUS | S10: 1.406614623 | T10: 1.328803664 | U10: 1.158738771 | V10: 1.026157718 | W10: 0.9327073295 | X10: 0.8621004092 | Y10: 0.7705178987 | Z10: 0.623245916 | AA10: 0.5899275403 | AB10: 0.7789227543 | AC10: 0.8803850224 | AD10: 1.168382181
A11: 3 AXLE SEMI (TST) | C11: =VLOOKUP(B2&I4,'VC Data'!A:M,9,FALSE) ->  | D11: =IF(K8="RURAL",IF(B6=16,1.1,1)*CHOOSE((C5)+1,1,1.25,1.15,1.11,0.97,0.84,0.77,0.72,0.72,0.72,0.83,1.07,1.25),IF(B6=16,1.1,1)*CHOOSE((C5)+1,1,1.24,1.18,1.02,0.88,0.86,0.8,0.74,0.7,0.72,0.71,0.87,1.17)) ->  | G11: =F11/F16 ->  | K11: The table below will display available counts for VC site by year and type | N11: 2 | O11: 1 | R11: TWINS | S11: 0.890183558 | T11: 0.8452826494 | U11: 0.8246298829 | V11: 0.7536070918 | W11: 0.7787765432 | X11: 0.914883437 | Y11: 0.8313230333 | Z11: 0.7228027477 | AA11: 0.6972492539 | AB11: 0.7525653487 | AC11: 0.8886754755 | AD11: 0.8821039871
A12: 4 AXLE SEMI (TST) | C12: =VLOOKUP(B2&I4,'VC Data'!A:M,10,FALSE) ->  | D12: =IF(K8="RURAL",IF(B6=16,1.1,1)*CHOOSE((C5)+1,1,1.25,1.15,1.11,0.97,0.84,0.77,0.72,0.72,0.72,0.83,1.07,1.25),IF(B6=16,1.1,1)*CHOOSE((C5)+1,1,1.24,1.18,1.02,0.88,0.86,0.8,0.74,0.7,0.72,0.71,0.87,1.17)) ->  | G12: =F12/F16 ->  | O12: 2 | P12: 16
A13: 5+ AXLE SEMI (TST) | C13: =VLOOKUP(B2&I4,'VC Data'!A:M,11,FALSE) ->  | D13: =IF(K8="RURAL", IF(B6=16,1.17,1)*CHOOSE((C5)+1,1,0.93,0.86,0.87,0.82,0.79,0.79,0.82,0.78,0.8,0.73,0.87,0.9),IF(B6=16,1.17,1)*CHOOSE((C5)+1,1,1.02,0.99,1,0.79,0.75,0.71,0.69,0.65,0.7,0.76,0.76,0.99)) ->  | G13: =F13/F16 ->  | K13: ="VC history for site: "&B2 -> VC history for site: | P13: 24 | R13: New Seasonal Adjustment Factors For Rural Area
A14: TR TR, BUSES | C14: =VLOOKUP(B2&I4,'VC Data'!A:M,12,FALSE) ->  | D14: =IF(K8="RURAL",IF(B6=16,1.09,1)*CHOOSE((C5)+1,1,1.6,1.44,1.31,0.99,0.81,0.75,0.67,0.68,0.7,0.68,0.96,1.4),IF(B6=16,1.09,1)*CHOOSE((C5)+1,1,1.51,1.31,1.19,1.03,0.92,0.82,0.76,0.71,0.74,0.77,0.94,1.07)) ->  | G14: =F14/F16 ->  | K14: Year | L14: Count Type
A15: TWIN TRAILERS | C15: =VLOOKUP(B2&I4,'VC Data'!A:M,13,FALSE) ->  | D15: =IF(K8="RURAL",IF(B6=16,1.3,1)*CHOOSE((C5)+1,1,0.95,0.86,0.92,0.86,0.86,0.75,0.8,0.76,0.75,0.7,0.82,0.76),IF(B6=16,1.3,1)*CHOOSE((C5)+1,1,1.07,1.02,1.02,0.84,0.78,0.74,0.69,0.65,0.67,0.77,0.93,1.09)) ->  | G15: =F15/F16 ->  | K15: =IF(INDEX('VC History'!A:A,M15)=$B$2,INDEX('VC History'!B:B,M15),"") ->  | L15: =IF(INDEX('VC History'!A:A,M15)=$B$2,INDEX('VC History'!D:D,M15),"") ->  | M15: =MATCH(B2,'VC History'!A:A,0) ->  | R15: Body Type | S15: Jan | T15: Feb | U15: Mar | V15: Apr | W15: May | X15: Jun | Y15: Jul | Z15: Aug | AA15: Sep | AB15: Oct | AC15: Nov | AD15: Dec
A16: TOTALS -----------> | C16: =SUM(C8:C15) ->  | D16: --------> | E16: =F16/C16 ->  | F16: =SUM(F8:F15) ->  | G16: =SUM(F9:F15)/F16 ->  | H16: (%HC) | K16: =IF(INDEX('VC History'!A:A,M16)=$B$2,INDEX('VC History'!B:B,M16),"") ->  | L16: =IF(INDEX('VC History'!A:A,M16)=$B$2,INDEX('VC History'!D:D,M16),"") ->  | M16: =M15+1 ->  | R16: CARS+PICKUP | S16: 1.31474341 | T16: 1.260555416 | U16: 1.21910632 | V16: 1.133579236 | W16: 0.9674365183 | X16: 0.8811334106 | Y16: 0.8068667431 | Z16: 0.8357105532 | AA16: 0.9492525986 | AB16: 1.029751516 | AC16: 1.125437083 | AD16: 1.198499723
K17: =IF(INDEX('VC History'!A:A,M17)=$B$2,INDEX('VC History'!B:B,M17),"") ->  | L17: =IF(INDEX('VC History'!A:A,M17)=$B$2,INDEX('VC History'!D:D,M17),"") ->  | R17: 2ASU | S17: 1.042113668 | T17: 1.079615196 | U17: 1.073531771 | V17: 0.9700373761 | W17: 0.8766061595 | X17: 0.8518294275 | Y17: 0.8505186426 | Z17: 0.8291160376 | AA17: 0.8099880704 | AB17: 0.8257555049 | AC17: 0.9336566414 | AD17: 0.9644660003
K18: =IF(INDEX('VC History'!A:A,M18)=$B$2,INDEX('VC History'!B:B,M18),"") ->  | L18: =IF(INDEX('VC History'!A:A,M18)=$B$2,INDEX('VC History'!D:D,M18),"") ->  | R18: 3+ASU | S18: 1.339197634 | T18: 1.439771113 | U18: 1.2792395 | V18: 0.9324515918 | W18: 0.8121908563 | X18: 0.6072317642 | Y18: 0.7099775765 | Z18: 0.6874079787 | AA18: 0.7041889955 | AB18: 0.6966682438 | AC18: 0.8492378659 | AD18: 1.245576541
A19: =+B2 -> 0 | K19: =IF(INDEX('VC History'!A:A,M19)=$B$2,INDEX('VC History'!B:B,M19),"") ->  | L19: =IF(INDEX('VC History'!A:A,M19)=$B$2,INDEX('VC History'!D:D,M19),"") ->  | Q19: 1 - January | R19: 3A Semi | S19: 1.574028515 | T19: 1.540791338 | U19: 1.492648881 | V19: 1.223354753 | W19: 0.8992402512 | X19: 0.8188352771 | Y19: 0.7347486488 | Z19: 0.6803021132 | AA19: 0.744357258 | AB19: 0.8756086261 | AC19: 1.096356596 | AD19: 1.273657955
A20: =+B3 ->  | K20: =IF(INDEX('VC History'!A:A,M20)=$B$2,INDEX('VC History'!B:B,M20),"") ->  | L20: =IF(INDEX('VC History'!A:A,M20)=$B$2,INDEX('VC History'!D:D,M20),"") ->  | Q20: 2 - February | R20: 4A Semi | S20: 1.574028515 | T20: 1.540791338 | U20: 1.492648881 | V20: 1.223354753 | W20: 0.8992402512 | X20: 0.8188352771 | Y20: 0.7347486488 | Z20: 0.6803021132 | AA20: 0.744357258 | AB20: 0.8756086261 | AC20: 1.096356596 | AD20: 1.273657955
K21: =IF(INDEX('VC History'!A:A,M21)=$B$2,INDEX('VC History'!B:B,M21),"") ->  | L21: =IF(INDEX('VC History'!A:A,M21)=$B$2,INDEX('VC History'!D:D,M21),"") ->  | Q21: 3 - March | R21: 5+A SEMI | S21: 0.9774273605 | T21: 0.9048104915 | U21: 0.8599070523 | V21: 0.8206315401 | W21: 0.7778721302 | X21: 0.7171337842 | Y21: 0.7732008439 | Z21: 0.7471229023 | AA21: 0.7637578228 | AB21: 0.7392151467 | AC21: 0.877552007 | AD21: 0.9310532595
K22: =IF(INDEX('VC History'!A:A,M22)=$B$2,INDEX('VC History'!B:B,M22),"") ->  | L22: =IF(INDEX('VC History'!A:A,M22)=$B$2,INDEX('VC History'!D:D,M22),"") ->  | Q22: 4 - April | R22: TT/BUS | S22: 2.053065092 | T22: 2.059457219 | U22: 1.54934048 | V22: 1.1114678 | W22: 0.8736816042 | X22: 0.7417814046 | Y22: 0.705897493 | Z22: 0.6679690633 | AA22: 0.7016210228 | AB22: 0.7888943814 | AC22: 1.01168125 | AD22: 1.575509804
K23: =IF(INDEX('VC History'!A:A,M23)=$B$2,INDEX('VC History'!B:B,M23),"") ->  | L23: =IF(INDEX('VC History'!A:A,M23)=$B$2,INDEX('VC History'!D:D,M23),"") ->  | Q23: 5 - May | R23: TWINS | S23: 1.420065205 | T23: 0.9516135039 | U23: 0.9414734563 | V23: 0.9360222446 | W23: 0.8601389411 | X23: 0.8665974564 | Y23: 0.8294879216 | Z23: 0.6612789319 | AA23: 0.6935770556 | AB23: 0.6096555077 | AC23: 0.7557197928 | AD23: 0.8949536413
K24: =IF(INDEX('VC History'!A:A,M24)=$B$2,INDEX('VC History'!B:B,M24),"") ->  | L24: =IF(INDEX('VC History'!A:A,M24)=$B$2,INDEX('VC History'!D:D,M24),"") ->  | Q24: 6 - June
K25: =IF(INDEX('VC History'!A:A,M25)=$B$2,INDEX('VC History'!B:B,M25),"") ->  | L25: =IF(INDEX('VC History'!A:A,M25)=$B$2,INDEX('VC History'!D:D,M25),"") ->  | Q25: 7 - July
Q26: 8 - August
Q27: 9 - September
K28: 1 | L28: 16 | Q28: 10 - October
K29: 2 | L29: 24 | Q29: 11 - November
K30: 3 | L30: RURAL | Q30: 12 - December
K31: 4 | L31: URBAN
K32: 5
K33: 6
K34: 7
K35: 8
K36: 9
K37: 10
K38: 11
K39: 12
A52: =IF(K8="RURAL","Rural Factor is Selected", "Urban Factor is selected") -> Urban Factor is selected

Sheet VC 2
A1: VEHICLE CLASS COUNT EXPANSION WORKSHEET 2 | J1: Non-print area | R1: New Seasonal Adjustment Factors For Urban Area
A2: SITE NUMBER: | G2: COUNTY: | H2: =IF(+Cover!$E$22=0," ",+Cover!$E$22) -> 
A3: SITE DESCRIPTION: | B3: =VLOOKUP(B2,'VC History'!A:F,6,FALSE) ->  | R3: Body Type | S3: Jan | T3: Feb | U3: Mar | V3: Apr | W3: May | X3: Jun | Y3: Jul | Z3: Aug | AA3: Sep | AB3: Oct | AC3: Nov | AD3: Dec
A4: PROJECT SP#: | B4: =IF(+Cover!$E$19=0," ",+Cover!$E$19) ->  | H4: YEAR OF COUNT: | R4: CARS+PICKUP | S4: 1.101818568 | T4: 1.042399606 | U4: 1.020715235 | V4: 0.9825595111 | W4: 0.9804214303 | X4: 0.9524454101 | Y4: 0.9021672653 | Z4: 0.8851863969 | AA4: 0.8463204291 | AB4: 0.9766528447 | AC4: 1.054754554 | AD4: 1.129700419
A5: MONTH NUMBER OF COUNT: | C5: =VLOOKUP(B2&I4,'VC Data'!A:M,4,FALSE) ->  | H5: CONSTRAIN AADT: | I5: =IF('Forecast A'!H4="","",VLOOKUP(I4,'Forecast A'!A7:B22,2)) ->  | K5: Constrain AADT is automated from the sequence number of the A segment | R5: 2ASU | S5: 0.9026364913 | T5: 0.9152095345 | U5: 0.8809693435 | V5: 0.8433149801 | W5: 0.8049514058 | X5: 0.9077923889 | Y5: 0.79842163 | Z5: 0.7463956493 | AA5: 0.6742423882 | AB5: 0.8110823695 | AC5: 0.878061286 | AD5: 0.9497618566
A6: 16 or 24 HR | B6: =IF(VLOOKUP(I4,K$15:L$25,2)="Manual",16,24) ->  | R6: 3+ASU | S6: 1.192485605 | T6: 1.196781163 | U6: 1.149691715 | V6: 0.8838166574 | W6: 0.7900560436 | X6: 0.8404904399 | Y6: 0.6830196815 | Z6: 0.6685616697 | AA6: 0.5786451918 | AB6: 0.6134526971 | AC6: 0.7366804617 | AD6: 1.001165084
A7: VEHICLE TYPE | C7: RAW COUNT | D7: AADT ADJ FACTOR | F7: ADJUSTED RAW | G7: VEH. TYPE PERCENTS | H7: A.C.F. | K7: URBAN / RURAL CLASSIFICATION | R7: 3A Semi | S7: 1.119647785 | T7: 1.098865688 | U7: 1.032355984 | V7: 0.9031212033 | W7: 0.8352405532 | X7: 0.8564495131 | Y7: 0.7867958545 | Z7: 0.6742755593 | AA7: 0.6669477105 | AB7: 0.8886683685 | AC7: 0.827933027 | AD7: 1.080772858
A8: CARS AND PICKUPS | C8: =VLOOKUP(B2&I4,'VC Data'!A:M,6,FALSE) ->  | D8: =IF(K8="RURAL",IF(+I5=0,(IF(B6=16,1.09,1)*CHOOSE((C5)+1,1,1.31,1.23,1.19,1.06,0.98,0.92,0.84,0.88,0.91,0.95,1.08,1.12)),NA()),IF(+I5=0,(IF(B6=16,1.09,1)*CHOOSE((C5)+1,1,1.08,1.04,1.04,0.97,0.97,0.96,0.91,0.9,0.93,0.88,0.97,1)),NA())) ->  | F8: =IF(+I5=0,ROUND(+D8*C8,0),+I5-SUM(F9:F15)) ->  | H8: =IF(C16=0,"",C16/(((C8+C9)*2+(C10+C11)*3+(C12+C14)*4+(C13+C15)*5)/2)) ->  | K8: =VLOOKUP('Forecast A'!H4,'Urban&Rural'!A4:B19003,2,FALSE) ->  | M8: <- Derived from the sequence number of the A segment | R8: 4A Semi | S8: 1.119647785 | T8: 1.098865688 | U8: 1.032355984 | V8: 0.9031212033 | W8: 0.8352405532 | X8: 0.8564495131 | Y8: 0.7867958545 | Z8: 0.6742755593 | AA8: 0.6669477105 | AB8: 0.8886683685 | AC8: 0.827933027 | AD8: 1.080772858
A9: 2 AXLE 6 TIRE | C9: =VLOOKUP(B2&I4,'VC Data'!A:M,7,FALSE) ->  | D9: =IF(K8="RURAL",IF(B6=16,1.08,1)*CHOOSE((C5)+1,1,1.02,0.93,0.96,0.89,0.85,0.87,0.83,0.83,0.76,0.77,0.88,1),IF(B6=16,1.08,1)*CHOOSE((C5)+1,1,0.96,0.88,0.92,0.9,0.89,0.86,0.8,0.76,0.83,0.76,0.79,0.84)) ->  | F9: =IF(B6=16,ROUND(+D9*C9,0),(IF(B6=24,ROUND(D9*C9,0),#VALUE!))) ->  | G9: =IF(F9=0,0,+F9/F16) ->  | R9: 5+A SEMI | S9: 0.8694207179 | T9: 0.8776904625 | U9: 0.8647540382 | V9: 0.8094064142 | W9: 0.792292913 | X9: 0.8333092409 | Y9: 0.7149806283 | Z9: 0.7108350254 | AA9: 0.6598929083 | AB9: 0.7505864443 | AC9: 0.8967585745 | AD9: 0.9413801686
A10: 3+ AXLE SINGLE UNIT | C10: =VLOOKUP(B2&I4,'VC Data'!A:M,8,FALSE) ->  | D10: =IF(K8="RURAL",IF(B6=16,1.07,1)*CHOOSE((C5)+1,1,1.24,1.17,1.12,0.89,0.76,0.71,0.7,0.66,0.65,0.64,0.86,1.09),IF(B6=16,1.07,1)*CHOOSE((C5)+1,1,1.23,1.16,1.21,0.86,0.75,0.67,0.59,0.54,0.64,0.64,0.8,1.09)) ->  | F10: =IF(B6=16,ROUND(+D10*C10,0),(IF(B6=24,ROUND(D10*C10,0),#VALUE!))) ->  | G10: =IF(F10=0,0,+F10/F16) ->  | R10: TT/BUS | S10: 1.406614623 | T10: 1.328803664 | U10: 1.158738771 | V10: 1.026157718 | W10: 0.9327073295 | X10: 0.8621004092 | Y10: 0.7705178987 | Z10: 0.623245916 | AA10: 0.5899275403 | AB10: 0.7789227543 | AC10: 0.8803850224 | AD10: 1.168382181
A11: 3 AXLE SEMI (TST) | C11: =VLOOKUP(B2&I4,'VC Data'!A:M,9,FALSE) ->  | D11: =IF(K8="RURAL",IF(B6=16,1.1,1)*CHOOSE((C5)+1,1,1.25,1.15,1.11,0.97,0.84,0.77,0.72,0.72,0.72,0.83,1.07,1.25),IF(B6=16,1.1,1)*CHOOSE((C5)+1,1,1.24,1.18,1.02,0.88,0.86,0.8,0.74,0.7,0.72,0.71,0.87,1.17)) ->  | F11: =IF(B6=16,ROUND(+D11*C11,0),(IF(B6=24,ROUND(D11*C11,0),#VALUE!))) ->  | G11: =IF(F11=0,0,+F11/F16) ->  | K11: The table below will display available counts for VC site by year and type | N11: 2 | O11: 1 | R11: TWINS | S11: 0.890183558 | T11: 0.8452826494 | U11: 0.8246298829 | V11: 0.7536070918 | W11: 0.7787765432 | X11: 0.914883437 | Y11: 0.8313230333 | Z11: 0.7228027477 | AA11: 0.6972492539 | AB11: 0.7525653487 | AC11: 0.8886754755 | AD11: 0.8821039871
A12: 4 AXLE SEMI (TST) | C12: =VLOOKUP(B2&I4,'VC Data'!A:M,10,FALSE) ->  | D12: =IF(K8="RURAL",IF(B6=16,1.1,1)*CHOOSE((C5)+1,1,1.25,1.15,1.11,0.97,0.84,0.77,0.72,0.72,0.72,0.83,1.07,1.25),IF(B6=16,1.1,1)*CHOOSE((C5)+1,1,1.24,1.18,1.02,0.88,0.86,0.8,0.74,0.7,0.72,0.71,0.87,1.17)) ->  | F12: =IF(B6=16,ROUND(+D12*C12,0),(IF(B6=24,ROUND(D12*C12,0),#VALUE!))) ->  | G12: =IF(F12=0,0,+F12/F16) ->  | O12: 2 | P12: 16
A13: 5+ AXLE SEMI (TST) | C13: =VLOOKUP(B2&I4,'VC Data'!A:M,11,FALSE) ->  | D13: =IF(K8="RURAL", IF(B6=16,1.17,1)*CHOOSE((C5)+1,1,0.93,0.86,0.87,0.82,0.79,0.79,0.82,0.78,0.8,0.73,0.87,0.9),IF(B6=16,1.17,1)*CHOOSE((C5)+1,1,1.02,0.99,1,0.79,0.75,0.71,0.69,0.65,0.7,0.76,0.76,0.99)) ->  | F13: =IF(B6=16,ROUND(+D13*C13,0),(IF(B6=24,ROUND(D13*C13,0),#VALUE!))) ->  | G13: =IF(F13=0,0,+F13/F16) ->  | K13: ="VC history for site: "&B2 -> VC history for site: | P13: 24 | R13: New Seasonal Adjustment Factors For Rural Area
A14: TR TR, BUSES | C14: =VLOOKUP(B2&I4,'VC Data'!A:M,12,FALSE) ->  | D14: =IF(K8="RURAL",IF(B6=16,1.09,1)*CHOOSE((C5)+1,1,1.6,1.44,1.31,0.99,0.81,0.75,0.67,0.68,0.7,0.68,0.96,1.4),IF(B6=16,1.09,1)*CHOOSE((C5)+1,1,1.51,1.31,1.19,1.03,0.92,0.82,0.76,0.71,0.74,0.77,0.94,1.07)) ->  | F14: =IF(B6=16,ROUND(+D14*C14,0),(IF(B6=24,ROUND(D14*C14,0),#VALUE!))) ->  | G14: =IF(F14=0,0,+F14/F16) ->  | K14: Year | L14: Count Type
A15: TWIN TRAILERS | C15: =VLOOKUP(B2&I4,'VC Data'!A:M,13,FALSE) ->  | D15: =IF(K8="RURAL",IF(B6=16,1.3,1)*CHOOSE((C5)+1,1,0.95,0.86,0.92,0.86,0.86,0.75,0.8,0.76,0.75,0.7,0.82,0.76),IF(B6=16,1.3,1)*CHOOSE((C5)+1,1,1.07,1.02,1.02,0.84,0.78,0.74,0.69,0.65,0.67,0.77,0.93,1.09)) ->  | F15: =IF(B6=16,ROUND(+D15*C15,0),(IF(B6=24,ROUND(D15*C15,0),#VALUE!))) ->  | G15: =IF(F15=0,0,+F15/F16) ->  | K15: =IF(INDEX('VC History'!A:A,M15)=$B$2,INDEX('VC History'!B:B,M15),"") ->  | L15: =IF(INDEX('VC History'!A:A,M15)=$B$2,INDEX('VC History'!D:D,M15),"") ->  | M15: =MATCH(B2,'VC History'!A:A,0) ->  | R15: Body Type | S15: Jan | T15: Feb | U15: Mar | V15: Apr | W15: May | X15: Jun | Y15: Jul | Z15: Aug | AA15: Sep | AB15: Oct | AC15: Nov | AD15: Dec
A16: TOTALS -----------> | C16: =SUM(C8:C15) ->  | D16: --------> | E16: =+F16/C16 ->  | F16: =SUM(F8:F15) ->  | G16: =SUM(F9:F15)/F16 ->  | H16: (%HC) | K16: =IF(INDEX('VC History'!A:A,M16)=$B$2,INDEX('VC History'!B:B,M16),"") ->  | L16: =IF(INDEX('VC History'!A:A,M16)=$B$2,INDEX('VC History'!D:D,M16),"") ->  | M16: =M15+1 ->  | R16: CARS+PICKUP | S16: 1.31474341 | T16: 1.260555416 | U16: 1.21910632 | V16: 1.133579236 | W16: 0.9674365183 | X16: 0.8811334106 | Y16: 0.8068667431 | Z16: 0.8357105532 | AA16: 0.9492525986 | AB16: 1.029751516 | AC16: 1.125437083 | AD16: 1.198499723
K17: =IF(INDEX('VC History'!A:A,M17)=$B$2,INDEX('VC History'!B:B,M17),"") ->  | L17: =IF(INDEX('VC History'!A:A,M17)=$B$2,INDEX('VC History'!D:D,M17),"") ->  | R17: 2ASU | S17: 1.042113668 | T17: 1.079615196 | U17: 1.073531771 | V17: 0.9700373761 | W17: 0.8766061595 | X17: 0.8518294275 | Y17: 0.8505186426 | Z17: 0.8291160376 | AA17: 0.8099880704 | AB17: 0.8257555049 | AC17: 0.9336566414 | AD17: 0.9644660003
K18: =IF(INDEX('VC History'!A:A,M18)=$B$2,INDEX('VC History'!B:B,M18),"") ->  | L18: =IF(INDEX('VC History'!A:A,M18)=$B$2,INDEX('VC History'!D:D,M18),"") ->  | R18: 3+ASU | S18: 1.339197634 | T18: 1.439771113 | U18: 1.2792395 | V18: 0.9324515918 | W18: 0.8121908563 | X18: 0.6072317642 | Y18: 0.7099775765 | Z18: 0.6874079787 | AA18: 0.7041889955 | AB18: 0.6966682438 | AC18: 0.8492378659 | AD18: 1.245576541
A19: =+B2 -> 0 | K19: =IF(INDEX('VC History'!A:A,M19)=$B$2,INDEX('VC History'!B:B,M19),"") ->  | L19: =IF(INDEX('VC History'!A:A,M19)=$B$2,INDEX('VC History'!D:D,M19),"") ->  | Q19: 1 - January | R19: 3A Semi | S19: 1.574028515 | T19: 1.540791338 | U19: 1.492648881 | V19: 1.223354753 | W19: 0.8992402512 | X19: 0.8188352771 | Y19: 0.7347486488 | Z19: 0.6803021132 | AA19: 0.744357258 | AB19: 0.8756086261 | AC19: 1.096356596 | AD19: 1.273657955
A20: =+B3 ->  | K20: =IF(INDEX('VC History'!A:A,M20)=$B$2,INDEX('VC History'!B:B,M20),"") ->  | L20: =IF(INDEX('VC History'!A:A,M20)=$B$2,INDEX('VC History'!D:D,M20),"") ->  | Q20: 2 - February | R20: 4A Semi | S20: 1.574028515 | T20: 1.540791338 | U20: 1.492648881 | V20: 1.223354753 | W20: 0.8992402512 | X20: 0.8188352771 | Y20: 0.7347486488 | Z20: 0.6803021132 | AA20: 0.744357258 | AB20: 0.8756086261 | AC20: 1.096356596 | AD20: 1.273657955
K21: =IF(INDEX('VC History'!A:A,M21)=$B$2,INDEX('VC History'!B:B,M21),"") ->  | L21: =IF(INDEX('VC History'!A:A,M21)=$B$2,INDEX('VC History'!D:D,M21),"") ->  | Q21: 3 - March | R21: 5+A SEMI | S21: 0.9774273605 | T21: 0.9048104915 | U21: 0.8599070523 | V21: 0.8206315401 | W21: 0.7778721302 | X21: 0.7171337842 | Y21: 0.7732008439 | Z21: 0.7471229023 | AA21: 0.7637578228 | AB21: 0.7392151467 | AC21: 0.877552007 | AD21: 0.9310532595
K22: =IF(INDEX('VC History'!A:A,M22)=$B$2,INDEX('VC History'!B:B,M22),"") ->  | L22: =IF(INDEX('VC History'!A:A,M22)=$B$2,INDEX('VC History'!D:D,M22),"") ->  | Q22: 4 - April | R22: TT/BUS | S22: 2.053065092 | T22: 2.059457219 | U22: 1.54934048 | V22: 1.1114678 | W22: 0.8736816042 | X22: 0.7417814046 | Y22: 0.705897493 | Z22: 0.6679690633 | AA22: 0.7016210228 | AB22: 0.7888943814 | AC22: 1.01168125 | AD22: 1.575509804
K23: =IF(INDEX('VC History'!A:A,M23)=$B$2,INDEX('VC History'!B:B,M23),"") ->  | L23: =IF(INDEX('VC History'!A:A,M23)=$B$2,INDEX('VC History'!D:D,M23),"") ->  | Q23: 5 - May | R23: TWINS | S23: 1.420065205 | T23: 0.9516135039 | U23: 0.9414734563 | V23: 0.9360222446 | W23: 0.8601389411 | X23: 0.8665974564 | Y23: 0.8294879216 | Z23: 0.6612789319 | AA23: 0.6935770556 | AB23: 0.6096555077 | AC23: 0.7557197928 | AD23: 0.8949536413
K24: =IF(INDEX('VC History'!A:A,M24)=$B$2,INDEX('VC History'!B:B,M24),"") ->  | L24: =IF(INDEX('VC History'!A:A,M24)=$B$2,INDEX('VC History'!D:D,M24),"") ->  | Q24: 6 - June
K25: =IF(INDEX('VC History'!A:A,M25)=$B$2,INDEX('VC History'!B:B,M25),"") ->  | L25: =IF(INDEX('VC History'!A:A,M25)=$B$2,INDEX('VC History'!D:D,M25),"") ->  | Q25: 7 - July
Q26: 8 - August
Q27: 9 - September
K28: 1 | L28: 16 | Q28: 10 - October
K29: 2 | L29: 24 | Q29: 11 - November
K30: 3 | L30: RURAL | Q30: 12 - December
K31: 4 | L31: URBAN
K32: 5
K33: 6
K34: 7
K35: 8
K36: 9
K37: 10
K38: 11
K39: 12
A52: =IF(K8="RURAL","Rural Factor is Selected", "Urban Factor is selected") -> 

Sheet VC 3
A1: VEHICLE CLASS COUNT EXPANSION WORKSHEET 3 | J1: Non-print area | R1: New Seasonal Adjustment Factors For Urban Area
A2: SITE NUMBER: | G2: COUNTY: | H2: =IF(+Cover!$E$22=0," ",+Cover!$E$22) -> 
A3: SITE DESCRIPTION: | B3: =VLOOKUP(B2,'VC History'!A:F,6,FALSE) ->  | R3: Body Type | S3: Jan | T3: Feb | U3: Mar | V3: Apr | W3: May | X3: Jun | Y3: Jul | Z3: Aug | AA3: Sep | AB3: Oct | AC3: Nov | AD3: Dec
A4: PROJECT SP#: | B4: =IF(+Cover!$E$19=0," ",+Cover!$E$19) ->  | H4: YEAR OF COUNT: | R4: CARS+PICKUP | S4: 1.101818568 | T4: 1.042399606 | U4: 1.020715235 | V4: 0.9825595111 | W4: 0.9804214303 | X4: 0.9524454101 | Y4: 0.9021672653 | Z4: 0.8851863969 | AA4: 0.8463204291 | AB4: 0.9766528447 | AC4: 1.054754554 | AD4: 1.129700419
A5: MONTH NUMBER OF COUNT: | C5: =VLOOKUP(B2&I4,'VC Data'!A:M,4,FALSE) ->  | H5: CONSTRAIN AADT: | I5: =IF('Forecast A'!H4="","",VLOOKUP(I4,'Forecast A'!A7:B22,2)) ->  | K5: Constrain AADT is automated from the sequence number of the A segment | R5: 2ASU | S5: 0.9026364913 | T5: 0.9152095345 | U5: 0.8809693435 | V5: 0.8433149801 | W5: 0.8049514058 | X5: 0.9077923889 | Y5: 0.79842163 | Z5: 0.7463956493 | AA5: 0.6742423882 | AB5: 0.8110823695 | AC5: 0.878061286 | AD5: 0.9497618566
A6: 16 or 24 HR | B6: =IF(VLOOKUP(I4,K$15:L$25,2)="Manual",16,24) ->  | R6: 3+ASU | S6: 1.192485605 | T6: 1.196781163 | U6: 1.149691715 | V6: 0.8838166574 | W6: 0.7900560436 | X6: 0.8404904399 | Y6: 0.6830196815 | Z6: 0.6685616697 | AA6: 0.5786451918 | AB6: 0.6134526971 | AC6: 0.7366804617 | AD6: 1.001165084
A7: VEHICLE TYPE | C7: RAW COUNT | D7: AADT ADJ FACTOR | F7: ADJUSTED RAW | G7: VEH. TYPE PERCENTS | H7: A.C.F. | K7: URBAN / RURAL CLASSIFICATION | R7: 3A Semi | S7: 1.119647785 | T7: 1.098865688 | U7: 1.032355984 | V7: 0.9031212033 | W7: 0.8352405532 | X7: 0.8564495131 | Y7: 0.7867958545 | Z7: 0.6742755593 | AA7: 0.6669477105 | AB7: 0.8886683685 | AC7: 0.827933027 | AD7: 1.080772858
A8: CARS AND PICKUPS | C8: =VLOOKUP(B2&I4,'VC Data'!A:M,6,FALSE) ->  | D8: =IF(K8="RURAL",IF(+I5=0,(IF(B6=16,1.09,1)*CHOOSE((C5)+1,1,1.31,1.23,1.19,1.06,0.98,0.92,0.84,0.88,0.91,0.95,1.08,1.12)),NA()),IF(+I5=0,(IF(B6=16,1.09,1)*CHOOSE((C5)+1,1,1.08,1.04,1.04,0.97,0.97,0.96,0.91,0.9,0.93,0.88,0.97,1)),NA())) ->  | F8: =IF(+I5=0,ROUND(+D8*C8,0),+I5-SUM(F9:F15)) ->  | H8: =IF(C16=0,"",C16/(((C8+C9)*2+(C10+C11)*3+(C12+C14)*4+(C13+C15)*5)/2)) ->  | K8: =VLOOKUP('Forecast A'!H4,'Urban&Rural'!A4:B19003,2,FALSE) ->  | M8: <- Derived from the sequence number of the A segment | R8: 4A Semi | S8: 1.119647785 | T8: 1.098865688 | U8: 1.032355984 | V8: 0.9031212033 | W8: 0.8352405532 | X8: 0.8564495131 | Y8: 0.7867958545 | Z8: 0.6742755593 | AA8: 0.6669477105 | AB8: 0.8886683685 | AC8: 0.827933027 | AD8: 1.080772858
A9: 2 AXLE 6 TIRE | C9: =VLOOKUP(B2&I4,'VC Data'!A:M,7,FALSE) ->  | D9: =IF(K8="RURAL",IF(B6=16,1.08,1)*CHOOSE((C5)+1,1,1.02,0.93,0.96,0.89,0.85,0.87,0.83,0.83,0.76,0.77,0.88,1),IF(B6=16,1.08,1)*CHOOSE((C5)+1,1,0.96,0.88,0.92,0.9,0.89,0.86,0.8,0.76,0.83,0.76,0.79,0.84)) ->  | F9: =IF(B6=16,ROUND(+D9*C9,0),(IF(B6=24,ROUND(D9*C9,0),#VALUE!))) ->  | G9: =IF(F9=0,0,+F9/F16) ->  | R9: 5+A SEMI | S9: 0.8694207179 | T9: 0.8776904625 | U9: 0.8647540382 | V9: 0.8094064142 | W9: 0.792292913 | X9: 0.8333092409 | Y9: 0.7149806283 | Z9: 0.7108350254 | AA9: 0.6598929083 | AB9: 0.7505864443 | AC9: 0.8967585745 | AD9: 0.9413801686
A10: 3+ AXLE SINGLE UNIT | C10: =VLOOKUP(B2&I4,'VC Data'!A:M,8,FALSE) ->  | D10: =IF(K8="RURAL",IF(B6=16,1.07,1)*CHOOSE((C5)+1,1,1.24,1.17,1.12,0.89,0.76,0.71,0.7,0.66,0.65,0.64,0.86,1.09),IF(B6=16,1.07,1)*CHOOSE((C5)+1,1,1.23,1.16,1.21,0.86,0.75,0.67,0.59,0.54,0.64,0.64,0.8,1.09)) ->  | F10: =IF(B6=16,ROUND(+D10*C10,0),(IF(B6=24,ROUND(D10*C10,0),#VALUE!))) ->  | G10: =IF(F10=0,0,+F10/F16) ->  | R10: TT/BUS | S10: 1.406614623 | T10: 1.328803664 | U10: 1.158738771 | V10: 1.026157718 | W10: 0.9327073295 | X10: 0.8621004092 | Y10: 0.7705178987 | Z10: 0.623245916 | AA10: 0.5899275403 | AB10: 0.7789227543 | AC10: 0.8803850224 | AD10: 1.168382181
A11: 3 AXLE SEMI (TST) | C11: =VLOOKUP(B2&I4,'VC Data'!A:M,9,FALSE) ->  | D11: =IF(K8="RURAL",IF(B6=16,1.1,1)*CHOOSE((C5)+1,1,1.25,1.15,1.11,0.97,0.84,0.77,0.72,0.72,0.72,0.83,1.07,1.25),IF(B6=16,1.1,1)*CHOOSE((C5)+1,1,1.24,1.18,1.02,0.88,0.86,0.8,0.74,0.7,0.72,0.71,0.87,1.17)) ->  | F11: =IF(B6=16,ROUND(+D11*C11,0),(IF(B6=24,ROUND(D11*C11,0),#VALUE!))) ->  | G11: =IF(F11=0,0,+F11/F16) ->  | K11: The table below will display available counts for VC site by year and type | N11: 2 | O11: 1 | R11: TWINS | S11: 0.890183558 | T11: 0.8452826494 | U11: 0.8246298829 | V11: 0.7536070918 | W11: 0.7787765432 | X11: 0.914883437 | Y11: 0.8313230333 | Z11: 0.7228027477 | AA11: 0.6972492539 | AB11: 0.7525653487 | AC11: 0.8886754755 | AD11: 0.8821039871
A12: 4 AXLE SEMI (TST) | C12: =VLOOKUP(B2&I4,'VC Data'!A:M,10,FALSE) ->  | D12: =IF(K8="RURAL",IF(B6=16,1.1,1)*CHOOSE((C5)+1,1,1.25,1.15,1.11,0.97,0.84,0.77,0.72,0.72,0.72,0.83,1.07,1.25),IF(B6=16,1.1,1)*CHOOSE((C5)+1,1,1.24,1.18,1.02,0.88,0.86,0.8,0.74,0.7,0.72,0.71,0.87,1.17)) ->  | F12: =IF(B6=16,ROUND(+D12*C12,0),(IF(B6=24,ROUND(D12*C12,0),#VALUE!))) ->  | G12: =IF(F12=0,0,+F12/F16) ->  | O12: 2 | P12: 16
A13: 5+ AXLE SEMI (TST) | C13: =VLOOKUP(B2&I4,'VC Data'!A:M,11,FALSE) ->  | D13: =IF(K8="RURAL", IF(B6=16,1.17,1)*CHOOSE((C5)+1,1,0.93,0.86,0.87,0.82,0.79,0.79,0.82,0.78,0.8,0.73,0.87,0.9),IF(B6=16,1.17,1)*CHOOSE((C5)+1,1,1.02,0.99,1,0.79,0.75,0.71,0.69,0.65,0.7,0.76,0.76,0.99)) ->  | F13: =IF(B6=16,ROUND(+D13*C13,0),(IF(B6=24,ROUND(D13*C13,0),#VALUE!))) ->  | G13: =IF(F13=0,0,+F13/F16) ->  | K13: ="VC history for site: "&B2 -> VC history for site: | P13: 24 | R13: New Seasonal Adjustment Factors For Rural Area
A14: TR TR, BUSES | C14: =VLOOKUP(B2&I4,'VC Data'!A:M,12,FALSE) ->  | D14: =IF(K8="RURAL",IF(B6=16,1.09,1)*CHOOSE((C5)+1,1,1.6,1.44,1.31,0.99,0.81,0.75,0.67,0.68,0.7,0.68,0.96,1.4),IF(B6=16,1.09,1)*CHOOSE((C5)+1,1,1.51,1.31,1.19,1.03,0.92,0.82,0.76,0.71,0.74,0.77,0.94,1.07)) ->  | F14: =IF(B6=16,ROUND(+D14*C14,0),(IF(B6=24,ROUND(D14*C14,0),#VALUE!))) ->  | G14: =IF(F14=0,0,+F14/F16) ->  | K14: Year | L14: Count Type
A15: TWIN TRAILERS | C15: =VLOOKUP(B2&I4,'VC Data'!A:M,13,FALSE) ->  | D15: =IF(K8="RURAL",IF(B6=16,1.3,1)*CHOOSE((C5)+1,1,0.95,0.86,0.92,0.86,0.86,0.75,0.8,0.76,0.75,0.7,0.82,0.76),IF(B6=16,1.3,1)*CHOOSE((C5)+1,1,1.07,1.02,1.02,0.84,0.78,0.74,0.69,0.65,0.67,0.77,0.93,1.09)) ->  | F15: =IF(B6=16,ROUND(+D15*C15,0),(IF(B6=24,ROUND(D15*C15,0),#VALUE!))) ->  | G15: =IF(F15=0,0,+F15/F16) ->  | K15: =IF(INDEX('VC History'!A:A,M15)=$B$2,INDEX('VC History'!B:B,M15),"") ->  | L15: =IF(INDEX('VC History'!A:A,M15)=$B$2,INDEX('VC History'!D:D,M15),"") ->  | M15: =MATCH(B2,'VC History'!A:A,0) ->  | R15: Body Type | S15: Jan | T15: Feb | U15: Mar | V15: Apr | W15: May | X15: Jun | Y15: Jul | Z15: Aug | AA15: Sep | AB15: Oct | AC15: Nov | AD15: Dec
A16: TOTALS -----------> | C16: =SUM(C8:C15) ->  | D16: --------> | E16: =+F16/C16 ->  | F16: =SUM(F8:F15) ->  | G16: =SUM(F9:F15)/F16 ->  | H16: (%HC) | K16: =IF(INDEX('VC History'!A:A,M16)=$B$2,INDEX('VC History'!B:B,M16),"") ->  | L16: =IF(INDEX('VC History'!A:A,M16)=$B$2,INDEX('VC History'!D:D,M16),"") ->  | M16: =M15+1 ->  | R16: CARS+PICKUP | S16: 1.31474341 | T16: 1.260555416 | U16: 1.21910632 | V16: 1.133579236 | W16: 0.9674365183 | X16: 0.8811334106 | Y16: 0.8068667431 | Z16: 0.8357105532 | AA16: 0.9492525986 | AB16: 1.029751516 | AC16: 1.125437083 | AD16: 1.198499723
K17: =IF(INDEX('VC History'!A:A,M17)=$B$2,INDEX('VC History'!B:B,M17),"") ->  | L17: =IF(INDEX('VC History'!A:A,M17)=$B$2,INDEX('VC History'!D:D,M17),"") ->  | R17: 2ASU | S17: 1.042113668 | T17: 1.079615196 | U17: 1.073531771 | V17: 0.9700373761 | W17: 0.8766061595 | X17: 0.8518294275 | Y17: 0.8505186426 | Z17: 0.8291160376 | AA17: 0.8099880704 | AB17: 0.8257555049 | AC17: 0.9336566414 | AD17: 0.9644660003
K18: =IF(INDEX('VC History'!A:A,M18)=$B$2,INDEX('VC History'!B:B,M18),"") ->  | L18: =IF(INDEX('VC History'!A:A,M18)=$B$2,INDEX('VC History'!D:D,M18),"") ->  | R18: 3+ASU | S18: 1.339197634 | T18: 1.439771113 | U18: 1.2792395 | V18: 0.9324515918 | W18: 0.8121908563 | X18: 0.6072317642 | Y18: 0.7099775765 | Z18: 0.6874079787 | AA18: 0.7041889955 | AB18: 0.6966682438 | AC18: 0.8492378659 | AD18: 1.245576541
A19: =+B2 -> 0 | K19: =IF(INDEX('VC History'!A:A,M19)=$B$2,INDEX('VC History'!B:B,M19),"") ->  | L19: =IF(INDEX('VC History'!A:A,M19)=$B$2,INDEX('VC History'!D:D,M19),"") ->  | Q19: 1 - January | R19: 3A Semi | S19: 1.574028515 | T19: 1.540791338 | U19: 1.492648881 | V19: 1.223354753 | W19: 0.8992402512 | X19: 0.8188352771 | Y19: 0.7347486488 | Z19: 0.6803021132 | AA19: 0.744357258 | AB19: 0.8756086261 | AC19: 1.096356596 | AD19: 1.273657955
A20: =+B3 ->  | K20: =IF(INDEX('VC History'!A:A,M20)=$B$2,INDEX('VC History'!B:B,M20),"") ->  | L20: =IF(INDEX('VC History'!A:A,M20)=$B$2,INDEX('VC History'!D:D,M20),"") ->  | Q20: 2 - February | R20: 4A Semi | S20: 1.574028515 | T20: 1.540791338 | U20: 1.492648881 | V20: 1.223354753 | W20: 0.8992402512 | X20: 0.8188352771 | Y20: 0.7347486488 | Z20: 0.6803021132 | AA20: 0.744357258 | AB20: 0.8756086261 | AC20: 1.096356596 | AD20: 1.273657955
K21: =IF(INDEX('VC History'!A:A,M21)=$B$2,INDEX('VC History'!B:B,M21),"") ->  | L21: =IF(INDEX('VC History'!A:A,M21)=$B$2,INDEX('VC History'!D:D,M21),"") ->  | Q21: 3 - March | R21: 5+A SEMI | S21: 0.9774273605 | T21: 0.9048104915 | U21: 0.8599070523 | V21: 0.8206315401 | W21: 0.7778721302 | X21: 0.7171337842 | Y21: 0.7732008439 | Z21: 0.7471229023 | AA21: 0.7637578228 | AB21: 0.7392151467 | AC21: 0.877552007 | AD21: 0.9310532595
K22: =IF(INDEX('VC History'!A:A,M22)=$B$2,INDEX('VC History'!B:B,M22),"") ->  | L22: =IF(INDEX('VC History'!A:A,M22)=$B$2,INDEX('VC History'!D:D,M22),"") ->  | Q22: 4 - April | R22: TT/BUS | S22: 2.053065092 | T22: 2.059457219 | U22: 1.54934048 | V22: 1.1114678 | W22: 0.8736816042 | X22: 0.7417814046 | Y22: 0.705897493 | Z22: 0.6679690633 | AA22: 0.7016210228 | AB22: 0.7888943814 | AC22: 1.01168125 | AD22: 1.575509804
K23: =IF(INDEX('VC History'!A:A,M23)=$B$2,INDEX('VC History'!B:B,M23),"") ->  | L23: =IF(INDEX('VC History'!A:A,M23)=$B$2,INDEX('VC History'!D:D,M23),"") ->  | Q23: 5 - May | R23: TWINS | S23: 1.420065205 | T23: 0.9516135039 | U23: 0.9414734563 | V23: 0.9360222446 | W23: 0.8601389411 | X23: 0.8665974564 | Y23: 0.8294879216 | Z23: 0.6612789319 | AA23: 0.6935770556 | AB23: 0.6096555077 | AC23: 0.7557197928 | AD23: 0.8949536413
K24: =IF(INDEX('VC History'!A:A,M24)=$B$2,INDEX('VC History'!B:B,M24),"") ->  | L24: =IF(INDEX('VC History'!A:A,M24)=$B$2,INDEX('VC History'!D:D,M24),"") ->  | Q24: 6 - June
K25: =IF(INDEX('VC History'!A:A,M25)=$B$2,INDEX('VC History'!B:B,M25),"") ->  | L25: =IF(INDEX('VC History'!A:A,M25)=$B$2,INDEX('VC History'!D:D,M25),"") ->  | Q25: 7 - July
Q26: 8 - August
Q27: 9 - September
K28: 1 | L28: 16 | Q28: 10 - October
K29: 2 | L29: 24 | Q29: 11 - November
K30: 3 | L30: RURAL | Q30: 12 - December
K31: 4 | L31: URBAN
K32: 5
K33: 6
K34: 7
K35: 8
K36: 9
K37: 10
K38: 11
K39: 12
A52: =IF(K8="RURAL","Rural Factor is Selected", "Urban Factor is selected") -> 

Sheet VC 4
A1: VEHICLE CLASS COUNT EXPANSION WORKSHEET 4 | J1: Non-print area | R1: New Seasonal Adjustment Factors For Urban Area
A2: SITE NUMBER: | G2: COUNTY: | H2: =IF(+Cover!$E$22=0," ",+Cover!$E$22) -> 
A3: SITE DESCRIPTION: | B3: =VLOOKUP(B2,'VC History'!A:F,6,FALSE) ->  | R3: Body Type | S3: Jan | T3: Feb | U3: Mar | V3: Apr | W3: May | X3: Jun | Y3: Jul | Z3: Aug | AA3: Sep | AB3: Oct | AC3: Nov | AD3: Dec
A4: PROJECT SP#: | B4: =IF(+Cover!$E$19=0," ",+Cover!$E$19) ->  | H4: YEAR OF COUNT: | R4: CARS+PICKUP | S4: 1.101818568 | T4: 1.042399606 | U4: 1.020715235 | V4: 0.9825595111 | W4: 0.9804214303 | X4: 0.9524454101 | Y4: 0.9021672653 | Z4: 0.8851863969 | AA4: 0.8463204291 | AB4: 0.9766528447 | AC4: 1.054754554 | AD4: 1.129700419
A5: MONTH NUMBER OF COUNT: | C5: =VLOOKUP(B2&I4,'VC Data'!A:M,4,FALSE) ->  | H5: CONSTRAIN AADT: | I5: =IF('Forecast A'!H4="","",VLOOKUP(I4,'Forecast A'!A7:B22,2)) ->  | K5: Constrain AADT is automated from the sequence number of the A segment | R5: 2ASU | S5: 0.9026364913 | T5: 0.9152095345 | U5: 0.8809693435 | V5: 0.8433149801 | W5: 0.8049514058 | X5: 0.9077923889 | Y5: 0.79842163 | Z5: 0.7463956493 | AA5: 0.6742423882 | AB5: 0.8110823695 | AC5: 0.878061286 | AD5: 0.9497618566
A6: 16 or 24 HR | B6: =IF(VLOOKUP(I4,K$15:L$25,2)="Manual",16,24) ->  | R6: 3+ASU | S6: 1.192485605 | T6: 1.196781163 | U6: 1.149691715 | V6: 0.8838166574 | W6: 0.7900560436 | X6: 0.8404904399 | Y6: 0.6830196815 | Z6: 0.6685616697 | AA6: 0.5786451918 | AB6: 0.6134526971 | AC6: 0.7366804617 | AD6: 1.001165084
A7: VEHICLE TYPE | C7: RAW COUNT | D7: AADT ADJ FACTOR | F7: ADJUSTED RAW | G7: VEH. TYPE PERCENTS | H7: A.C.F. | K7: URBAN / RURAL CLASSIFICATION | R7: 3A Semi | S7: 1.119647785 | T7: 1.098865688 | U7: 1.032355984 | V7: 0.9031212033 | W7: 0.8352405532 | X7: 0.8564495131 | Y7: 0.7867958545 | Z7: 0.6742755593 | AA7: 0.6669477105 | AB7: 0.8886683685 | AC7: 0.827933027 | AD7: 1.080772858
A8: CARS AND PICKUPS | C8: =VLOOKUP(B2&I4,'VC Data'!A:M,6,FALSE) ->  | D8: =IF(K8="RURAL",IF(+I5=0,(IF(B6=16,1.09,1)*CHOOSE((C5)+1,1,1.31,1.23,1.19,1.06,0.98,0.92,0.84,0.88,0.91,0.95,1.08,1.12)),NA()),IF(+I5=0,(IF(B6=16,1.09,1)*CHOOSE((C5)+1,1,1.08,1.04,1.04,0.97,0.97,0.96,0.91,0.9,0.93,0.88,0.97,1)),NA())) ->  | F8: =IF(+I5=0,ROUND(+D8*C8,0),+I5-SUM(F9:F15)) ->  | H8: =IF(C16=0,"",C16/(((C8+C9)*2+(C10+C11)*3+(C12+C14)*4+(C13+C15)*5)/2)) ->  | K8: =VLOOKUP('Forecast A'!H4,'Urban&Rural'!A4:B19003,2,FALSE) ->  | M8: <- Derived from the sequence number of the A segment | R8: 4A Semi | S8: 1.119647785 | T8: 1.098865688 | U8: 1.032355984 | V8: 0.9031212033 | W8: 0.8352405532 | X8: 0.8564495131 | Y8: 0.7867958545 | Z8: 0.6742755593 | AA8: 0.6669477105 | AB8: 0.8886683685 | AC8: 0.827933027 | AD8: 1.080772858
A9: 2 AXLE 6 TIRE | C9: =VLOOKUP(B2&I4,'VC Data'!A:M,7,FALSE) ->  | D9: =IF(K8="RURAL",IF(B6=16,1.08,1)*CHOOSE((C5)+1,1,1.02,0.93,0.96,0.89,0.85,0.87,0.83,0.83,0.76,0.77,0.88,1),IF(B6=16,1.08,1)*CHOOSE((C5)+1,1,0.96,0.88,0.92,0.9,0.89,0.86,0.8,0.76,0.83,0.76,0.79,0.84)) ->  | F9: =IF(B6=16,ROUND(+D9*C9,0),(IF(B6=24,ROUND(D9*C9,0),#VALUE!))) ->  | G9: =IF(F9=0,0,+F9/F16) ->  | R9: 5+A SEMI | S9: 0.8694207179 | T9: 0.8776904625 | U9: 0.8647540382 | V9: 0.8094064142 | W9: 0.792292913 | X9: 0.8333092409 | Y9: 0.7149806283 | Z9: 0.7108350254 | AA9: 0.6598929083 | AB9: 0.7505864443 | AC9: 0.8967585745 | AD9: 0.9413801686
A10: 3+ AXLE SINGLE UNIT | C10: =VLOOKUP(B2&I4,'VC Data'!A:M,8,FALSE) ->  | D10: =IF(K8="RURAL",IF(B6=16,1.07,1)*CHOOSE((C5)+1,1,1.24,1.17,1.12,0.89,0.76,0.71,0.7,0.66,0.65,0.64,0.86,1.09),IF(B6=16,1.07,1)*CHOOSE((C5)+1,1,1.23,1.16,1.21,0.86,0.75,0.67,0.59,0.54,0.64,0.64,0.8,1.09)) ->  | F10: =IF(B6=16,ROUND(+D10*C10,0),(IF(B6=24,ROUND(D10*C10,0),#VALUE!))) ->  | G10: =IF(F10=0,0,+F10/F16) ->  | R10: TT/BUS | S10: 1.406614623 | T10: 1.328803664 | U10: 1.158738771 | V10: 1.026157718 | W10: 0.9327073295 | X10: 0.8621004092 | Y10: 0.7705178987 | Z10: 0.623245916 | AA10: 0.5899275403 | AB10: 0.7789227543 | AC10: 0.8803850224 | AD10: 1.168382181
A11: 3 AXLE SEMI (TST) | C11: =VLOOKUP(B2&I4,'VC Data'!A:M,9,FALSE) ->  | D11: =IF(K8="RURAL",IF(B6=16,1.1,1)*CHOOSE((C5)+1,1,1.25,1.15,1.11,0.97,0.84,0.77,0.72,0.72,0.72,0.83,1.07,1.25),IF(B6=16,1.1,1)*CHOOSE((C5)+1,1,1.24,1.18,1.02,0.88,0.86,0.8,0.74,0.7,0.72,0.71,0.87,1.17)) ->  | F11: =IF(B6=16,ROUND(+D11*C11,0),(IF(B6=24,ROUND(D11*C11,0),#VALUE!))) ->  | G11: =IF(F11=0,0,+F11/F16) ->  | K11: The table below will display available counts for VC site by year and type | N11: 2 | O11: 1 | R11: TWINS | S11: 0.890183558 | T11: 0.8452826494 | U11: 0.8246298829 | V11: 0.7536070918 | W11: 0.7787765432 | X11: 0.914883437 | Y11: 0.8313230333 | Z11: 0.7228027477 | AA11: 0.6972492539 | AB11: 0.7525653487 | AC11: 0.8886754755 | AD11: 0.8821039871
A12: 4 AXLE SEMI (TST) | C12: =VLOOKUP(B2&I4,'VC Data'!A:M,10,FALSE) ->  | D12: =IF(K8="RURAL",IF(B6=16,1.1,1)*CHOOSE((C5)+1,1,1.25,1.15,1.11,0.97,0.84,0.77,0.72,0.72,0.72,0.83,1.07,1.25),IF(B6=16,1.1,1)*CHOOSE((C5)+1,1,1.24,1.18,1.02,0.88,0.86,0.8,0.74,0.7,0.72,0.71,0.87,1.17)) ->  | F12: =IF(B6=16,ROUND(+D12*C12,0),(IF(B6=24,ROUND(D12*C12,0),#VALUE!))) ->  | G12: =IF(F12=0,0,+F12/F16) ->  | O12: 2 | P12: 16
A13: 5+ AXLE SEMI (TST) | C13: =VLOOKUP(B2&I4,'VC Data'!A:M,11,FALSE) ->  | D13: =IF(K8="RURAL", IF(B6=16,1.17,1)*CHOOSE((C5)+1,1,0.93,0.86,0.87,0.82,0.79,0.79,0.82,0.78,0.8,0.73,0.87,0.9),IF(B6=16,1.17,1)*CHOOSE((C5)+1,1,1.02,0.99,1,0.79,0.75,0.71,0.69,0.65,0.7,0.76,0.76,0.99)) ->  | F13: =IF(B6=16,ROUND(+D13*C13,0),(IF(B6=24,ROUND(D13*C13,0),#VALUE!))) ->  | G13: =IF(F13=0,0,+F13/F16) ->  | K13: ="VC history for site: "&B2 -> VC history for site: | P13: 24 | R13: New Seasonal Adjustment Factors For Rural Area
A14: TR TR, BUSES | C14: =VLOOKUP(B2&I4,'VC Data'!A:M,12,FALSE) ->  | D14: =IF(K8="RURAL",IF(B6=16,1.09,1)*CHOOSE((C5)+1,1,1.6,1.44,1.31,0.99,0.81,0.75,0.67,0.68,0.7,0.68,0.96,1.4),IF(B6=16,1.09,1)*CHOOSE((C5)+1,1,1.51,1.31,1.19,1.03,0.92,0.82,0.76,0.71,0.74,0.77,0.94,1.07)) ->  | F14: =IF(B6=16,ROUND(+D14*C14,0),(IF(B6=24,ROUND(D14*C14,0),#VALUE!))) ->  | G14: =IF(F14=0,0,+F14/F16) ->  | K14: Year | L14: Count Type
A15: TWIN TRAILERS | C15: =VLOOKUP(B2&I4,'VC Data'!A:M,13,FALSE) ->  | D15: =IF(K8="RURAL",IF(B6=16,1.3,1)*CHOOSE((C5)+1,1,0.95,0.86,0.92,0.86,0.86,0.75,0.8,0.76,0.75,0.7,0.82,0.76),IF(B6=16,1.3,1)*CHOOSE((C5)+1,1,1.07,1.02,1.02,0.84,0.78,0.74,0.69,0.65,0.67,0.77,0.93,1.09)) ->  | F15: =IF(B6=16,ROUND(+D15*C15,0),(IF(B6=24,ROUND(D15*C15,0),#VALUE!))) ->  | G15: =IF(F15=0,0,+F15/F16) ->  | K15: =IF(INDEX('VC History'!A:A,M15)=$B$2,INDEX('VC History'!B:B,M15),"") ->  | L15: =IF(INDEX('VC History'!A:A,M15)=$B$2,INDEX('VC History'!D:D,M15),"") ->  | M15: =MATCH(B2,'VC History'!A:A,0) ->  | R15: Body Type | S15: Jan | T15: Feb | U15: Mar | V15: Apr | W15: May | X15: Jun | Y15: Jul | Z15: Aug | AA15: Sep | AB15: Oct | AC15: Nov | AD15: Dec
A16: TOTALS -----------> | C16: =SUM(C8:C15) ->  | D16: --------> | E16: =+F16/C16 ->  | F16: =SUM(F8:F15) ->  | G16: =SUM(F9:F15)/F16 ->  | H16: (%HC) | K16: =IF(INDEX('VC History'!A:A,M16)=$B$2,INDEX('VC History'!B:B,M16),"") ->  | L16: =IF(INDEX('VC History'!A:A,M16)=$B$2,INDEX('VC History'!D:D,M16),"") ->  | M16: =M15+1 ->  | R16: CARS+PICKUP | S16: 1.31474341 | T16: 1.260555416 | U16: 1.21910632 | V16: 1.133579236 | W16: 0.9674365183 | X16: 0.8811334106 | Y16: 0.8068667431 | Z16: 0.8357105532 | AA16: 0.9492525986 | AB16: 1.029751516 | AC16: 1.125437083 | AD16: 1.198499723
K17: =IF(INDEX('VC History'!A:A,M17)=$B$2,INDEX('VC History'!B:B,M17),"") ->  | L17: =IF(INDEX('VC History'!A:A,M17)=$B$2,INDEX('VC History'!D:D,M17),"") ->  | R17: 2ASU | S17: 1.042113668 | T17: 1.079615196 | U17: 1.073531771 | V17: 0.9700373761 | W17: 0.8766061595 | X17: 0.8518294275 | Y17: 0.8505186426 | Z17: 0.8291160376 | AA17: 0.8099880704 | AB17: 0.8257555049 | AC17: 0.9336566414 | AD17: 0.9644660003
K18: =IF(INDEX('VC History'!A:A,M18)=$B$2,INDEX('VC History'!B:B,M18),"") ->  | L18: =IF(INDEX('VC History'!A:A,M18)=$B$2,INDEX('VC History'!D:D,M18),"") ->  | R18: 3+ASU | S18: 1.339197634 | T18: 1.439771113 | U18: 1.2792395 | V18: 0.9324515918 | W18: 0.8121908563 | X18: 0.6072317642 | Y18: 0.7099775765 | Z18: 0.6874079787 | AA18: 0.7041889955 | AB18: 0.6966682438 | AC18: 0.8492378659 | AD18: 1.245576541
A19: =+B2 -> 0 | K19: =IF(INDEX('VC History'!A:A,M19)=$B$2,INDEX('VC History'!B:B,M19),"") ->  | L19: =IF(INDEX('VC History'!A:A,M19)=$B$2,INDEX('VC History'!D:D,M19),"") ->  | Q19: 1 - January | R19: 3A Semi | S19: 1.574028515 | T19: 1.540791338 | U19: 1.492648881 | V19: 1.223354753 | W19: 0.8992402512 | X19: 0.8188352771 | Y19: 0.7347486488 | Z19: 0.6803021132 | AA19: 0.744357258 | AB19: 0.8756086261 | AC19: 1.096356596 | AD19: 1.273657955
A20: =+B3 ->  | K20: =IF(INDEX('VC History'!A:A,M20)=$B$2,INDEX('VC History'!B:B,M20),"") ->  | L20: =IF(INDEX('VC History'!A:A,M20)=$B$2,INDEX('VC History'!D:D,M20),"") ->  | Q20: 2 - February | R20: 4A Semi | S20: 1.574028515 | T20: 1.540791338 | U20: 1.492648881 | V20: 1.223354753 | W20: 0.8992402512 | X20: 0.8188352771 | Y20: 0.7347486488 | Z20: 0.6803021132 | AA20: 0.744357258 | AB20: 0.8756086261 | AC20: 1.096356596 | AD20: 1.273657955
K21: =IF(INDEX('VC History'!A:A,M21)=$B$2,INDEX('VC History'!B:B,M21),"") ->  | L21: =IF(INDEX('VC History'!A:A,M21)=$B$2,INDEX('VC History'!D:D,M21),"") ->  | Q21: 3 - March | R21: 5+A SEMI | S21: 0.9774273605 | T21: 0.9048104915 | U21: 0.8599070523 | V21: 0.8206315401 | W21: 0.7778721302 | X21: 0.7171337842 | Y21: 0.7732008439 | Z21: 0.7471229023 | AA21: 0.7637578228 | AB21: 0.7392151467 | AC21: 0.877552007 | AD21: 0.9310532595
K22: =IF(INDEX('VC History'!A:A,M22)=$B$2,INDEX('VC History'!B:B,M22),"") ->  | L22: =IF(INDEX('VC History'!A:A,M22)=$B$2,INDEX('VC History'!D:D,M22),"") ->  | Q22: 4 - April | R22: TT/BUS | S22: 2.053065092 | T22: 2.059457219 | U22: 1.54934048 | V22: 1.1114678 | W22: 0.8736816042 | X22: 0.7417814046 | Y22: 0.705897493 | Z22: 0.6679690633 | AA22: 0.7016210228 | AB22: 0.7888943814 | AC22: 1.01168125 | AD22: 1.575509804
K23: =IF(INDEX('VC History'!A:A,M23)=$B$2,INDEX('VC History'!B:B,M23),"") ->  | L23: =IF(INDEX('VC History'!A:A,M23)=$B$2,INDEX('VC History'!D:D,M23),"") ->  | Q23: 5 - May | R23: TWINS | S23: 1.420065205 | T23: 0.9516135039 | U23: 0.9414734563 | V23: 0.9360222446 | W23: 0.8601389411 | X23: 0.8665974564 | Y23: 0.8294879216 | Z23: 0.6612789319 | AA23: 0.6935770556 | AB23: 0.6096555077 | AC23: 0.7557197928 | AD23: 0.8949536413
K24: =IF(INDEX('VC History'!A:A,M24)=$B$2,INDEX('VC History'!B:B,M24),"") ->  | L24: =IF(INDEX('VC History'!A:A,M24)=$B$2,INDEX('VC History'!D:D,M24),"") ->  | Q24: 6 - June
K25: =IF(INDEX('VC History'!A:A,M25)=$B$2,INDEX('VC History'!B:B,M25),"") ->  | L25: =IF(INDEX('VC History'!A:A,M25)=$B$2,INDEX('VC History'!D:D,M25),"") ->  | Q25: 7 - July
Q26: 8 - August
Q27: 9 - September
K28: 1 | L28: 16 | Q28: 10 - October
K29: 2 | L29: 24 | Q29: 11 - November
K30: 3 | L30: RURAL | Q30: 12 - December
K31: 4 | L31: URBAN
K32: 5
K33: 6
K34: 7
K35: 8
K36: 9
K37: 10
K38: 11
K39: 12
A52: =IF(K8="RURAL","Rural Factor is Selected", "Urban Factor is selected") -> 

Sheet VC Avg
A1: Vehicle Class Count Averages Worksheet
A2: VCC Site Num: | B2: =IF('VC 1'!B2=0," ",'VC 1'!B2) -> 
A3: Route: | B3: =IF(Cover!E21="Interstate",Cover!G43&Cover!E20,IF(Cover!E21="US Trunk",Cover!#REF!&Cover!E20,IF(Cover!E21="MN Trunk",Cover!G44&Cover!E20,IF(Cover!E21="CSAH",Cover!G45&Cover!E20,IF(Cover!E21="CR",Cover!G46&Cover!E20," "))))) -> 
A4: Descripton: | B4: =IF('VC 1'!B3=0," ",'VC 1'!B3) -> 
C6: VC Count 1 | E6: VC Count 2 | G6: VC Count 3 | I6: VC Count 4
B7: Type | C7: Year | D7: Pct | E7: Year | F7: Pct | G7: Year | H7: Pct | I7: Year | J7: Pct | K7: Avg | L7: Avg
C8: =+'VC 1'!$I$4 -> 0 | E8: =+'VC 2'!$I$4 -> 0 | G8: =+'VC 3'!$I$4 -> 0 | I8: =+'VC 4'!$I$4 -> 0 | K8: Truck | L8: Vehicle
B9: Man/Tube | C9: =IF('VC 1'!$B$6=16,"Manual",IF('VC 1'!$B$6=24,"Tube",0)) ->  | E9: =IF('VC 2'!$B$6=16,"Manual",IF('VC 2'!$B$6=24,"Tube",0)) ->  | G9: =IF('VC 3'!$B$6=16,"Manual",IF('VC 3'!$B$6=24,"Tube",0)) ->  | I9: =IF('VC 4'!$B$6=16,"Manual",IF('VC 4'!$B$6=24,"Tube",0)) ->  | K9: Volumes | L9: Pctages
A10: 1 | B10: Cars | C10: ='VC 1'!F8 ->  | D10: =C10/C$18 ->  | E10: ='VC 2'!F8 ->  | F10: =E10/E$18 ->  | G10: ='VC 3'!F8 ->  | H10: =G10/G$18 ->  | I10: ='VC 4'!F8 ->  | J10: =I10/I$18 ->  | K10: =AVERAGEIF(C63:F63,">-1") ->  | L10: =AVERAGEIF(H63:K63,">-1") -> 
A11: 2 | B11: 2 ASU | C11: ='VC 1'!F9 ->  | E11: ='VC 2'!F9 ->  | G11: ='VC 3'!F9 ->  | I11: ='VC 4'!F9 -> 
A12: 3 | B12: 3+ASU | C12: ='VC 1'!F10 ->  | E12: ='VC 2'!F10 ->  | G12: ='VC 3'!F10 ->  | I12: ='VC 4'!F10 -> 
A13: 4 | B13: 3ASemi | C13: ='VC 1'!F11 ->  | E13: ='VC 2'!F11 ->  | G13: ='VC 3'!F11 ->  | I13: ='VC 4'!F11 -> 
A14: 5 | B14: 4ASemi | C14: ='VC 1'!F12 ->  | E14: ='VC 2'!F12 ->  | G14: ='VC 3'!F12 ->  | I14: ='VC 4'!F12 -> 
A15: 6 | B15: 5+Asemi | C15: ='VC 1'!F13 ->  | E15: ='VC 2'!F13 ->  | G15: ='VC 3'!F13 ->  | I15: ='VC 4'!F13 -> 
A16: 7 | B16: TT/BUS | C16: ='VC 1'!F14 ->  | E16: ='VC 2'!F14 ->  | G16: ='VC 3'!F14 ->  | I16: ='VC 4'!F14 -> 
A17: 8 | B17: Twins | C17: ='VC 1'!F15 ->  | E17: ='VC 2'!F15 ->  | G17: ='VC 3'!F15 ->  | I17: ='VC 4'!F15 -> 
A18: Total | C18: =SUM(C10:C17) ->  | D18: =SUM(D11:D17) ->  | E18: =SUM(E10:E17) ->  | F18: =SUM(F11:F17) ->  | G18: =SUM(G10:G17) ->  | H18: =SUM(H11:H17) ->  | I18: =SUM(I10:I17) ->  | J18: =SUM(J11:J17) -> 
A19: Total Heavy Comm | C19: =SUM(C11:C17) ->  | E19: =SUM(E11:E17) ->  | G19: =SUM(G11:G17) ->  | I19: =SUM(I11:I17) ->  | K19: =AVERAGEIF(C19:J19,">-1") ->  | L19: =SUM(L10:L17) -> 
A20: Heavy 5+ Ax Semi* | D20: =IF(C9="Manual",VLOOKUP(B2&C8,'% Heavies'!D2:L1994,9,FALSE)," ") ->  | F20: =IF(E9="Manual",VLOOKUP(B2&E8,'% Heavies'!D2:L1994,9,FALSE)," ") ->  | H20: =IF(G9="Manual",VLOOKUP(B2&G8,'% Heavies'!D2:L1994,9,FALSE)," ") ->  | J20: =IF(I9="Manual",VLOOKUP(B2&I8,'% Heavies'!D2:L1994,9,FALSE)," ") ->  | L20: =AVERAGEIF(C20:J20,">-1") -> 
A21: Axle Corr Factor | D21: ='VC 1'!H8 ->  | F21: ='VC 2'!H8 ->  | H21: ='VC 3'!H8 ->  | J21: ='VC 4'!H8 ->  | L21: =AVERAGEIF(D21:J21,">-1") -> 
A23: * Heavy 5+ Ax Semi = Tank, Dump, Grain, and Stake Loaded | K23: Heavy 5 Axle Semi Split
A24: When the Tank, Dumps, Grains and Loaded Stakes are 30% or more of the | K24: =$L$15*$L$20 ->  | L24: Max
A25: 5 axle semis, then split into max and other categories (AUTOMATICALLY DONE) -----------> | K25: =$L$15-$K$24 ->  | L25: Others
A26: Check out tube counts prior to 1996 carefully, body types are N/A prior to 1982, don't use tube | K26: =IF(L20<=30%,"DON'T SPLIT","SPLIT") -> 
A27: collected previous to 1990.
C63: =IF(C10="","",C10) ->  | D63: =IF(E10="","",E10) ->  | E63: =IF(G10="","",G10) ->  | F63: =IF(I10="","",I10) ->  | H63: =IF(D10="","",D10) ->  | I63: =IF(F10="","",F10) ->  | J63: =IF(H10="","",H10) ->  | K63: =IF(J10="","",J10) -> 
C64: =IF(C11="","",C11) ->  | D64: =IF(E11="","",E11) ->  | E64: =IF(G11="","",G11) ->  | F64: =IF(I11="","",I11) ->  | H64: =IF(D11="","",D11) ->  | I64: =IF(F11="","",F11) ->  | J64: =IF(H11="","",H11) ->  | K64: =IF(J11="","",J11) -> 

Sheet AADT_Data (hidden)
A1: SEQNUM | B1: AADT_2017 | C1: AADT_2016 | D1: AADT_2015 | E1: AADT_2014 | F1: AADT_2013 | G1: AADT_2012 | H1: AADT_2011 | I1: AADT_2010 | J1: AADT_2009 | K1: AADT_2008 | L1: AADT_2007 | M1: AADT_2006 | N1: AADT_2005 | O1: AADT_2004 | P1: AADT_2003 | Q1: AADT_2002 | R1: AADT_2001 | S1: AADT_2000 | T1: AADT_1999 | U1: AADT_1998 | V1: AADT_1997 | W1: AADT_1996 | X1: AADT_1995 | Y1: AADT_1994 | Z1: AADT_1992 | AA1: Length in Miles
A2: 1 | C2: 630 | E2: 620 | G2: 640 | I2: 620 | K2: 660 | M2: 690 | O2: 760 | Q2: 860 | S2: 890 | U2: 700 | W2: 700 | Y2: 650 | Z2: 650 | AA2: 13.38709981
A3: 4 | C3: 2050 | E3: 2100 | G3: 2100 | I3: 2050 | K3: 1950 | M3: 2100 | O3: 2300 | Q3: 2350 | S3: 2100 | U3: 2100 | W3: 2300 | Y3: 1850 | Z3: 1850 | AA3: 1.643368202
A4: 9 | C4: 1400 | E4: 1500 | G4: 1600 | I4: 1700 | K4: 1550 | M4: 1650 | O4: 1600 | Q4: 1400 | S4: 1200 | U4: 1400 | W4: 1250 | Y4: 1350 | Z4: 1000 | AA4: 5.111867982
A5: 13 | C5: 2500 | E5: 2400 | G5: 2400 | I5: 2550 | K5: 2350 | M5: 2450 | O5: 2700 | Q5: 2250 | S5: 2150 | U5: 2350 | W5: 1750 | Y5: 2300 | Z5: 2000 | AA5: 4.093222231
A6: 14 | C6: 920 | E6: 930 | G6: 1050 | I6: 1050 | K6: 950 | M6: 1000 | O6: 1250 | Q6: 1350 | S6: 1500 | U6: 920 | W6: 780 | Y6: 750 | Z6: 650 | AA6: 12.62164426
A7: 16 | C7: 3100 | E7: 3050 | G7: 3150 | I7: 3250 | K7: 3000 | M7: 3300 | O7: 3850 | Q7: 3300 | S7: 3600 | U7: 3500 | W7: 2850 | Y7: 2550 | Z7: 2350 | AA7: 1.795439329
A8: 17 | C8: 320 | E8: 330 | G8: 345 | I8: 370 | K8: 370 | M8: 400 | O8: 400 | Q8: 475 | S8: 350 | U8: 350 | W8: 370 | Y8: 325 | Z8: 350 | AA8: 13.12687343
A9: 20 | C9: 2200 | E9: 2200 | G9: 2250 | I9: 2150 | K9: 2000 | M9: 2100 | O9: 2400 | Q9: 2150 | S9: 2150 | U9: 2100 | W9: 2350 | Y9: 1900 | Z9: 1900 | AA9: 6.28246721
A10: 21 | C10: 3050 | E10: 2800 | G10: 2900 | I10: 3000 | K10: 2800 | M10: 3050 | O10: 3100 | Q10: 2400 | S10: 2400 | U10: 2050 | W10: 1950 | Y10: 2200 | AA10: 3.223392723
A11: 22 | C11: 1400 | E11: 1350 | G11: 1250 | I11: 1150 | K11: 1100 | M11: 1200 | O11: 1250 | Q11: 1000 | S11: 1000 | U11: 1150 | W11: 1250 | Y11: 890 | Z11: 900 | AA11: 18.28415193
A12: 23 | C12: 3650 | E12: 3500 | G12: 3750 | I12: 4050 | K12: 4050 | M12: 4350 | O12: 3950 | Q12: 3300 | S12: 3100 | U12: 3000 | W12: 3050 | Y12: 2800 | AA12: 7.723850336
A13: 24 | C13: 2500 | E13: 2450 | G13: 2200 | I13: 2050 | K13: 2150 | M13: 2150 | O13: 2150 | Q13: 1850 | S13: 1850 | U13: 1800 | W13: 1750 | Y13: 1600 | AA13: 1.601194199
A14: 25 | C14: 3000 | E14: 3050 | G14: 2700 | I14: 3100 | K14: 2850 | M14: 3050 | O14: 2800 | Q14: 2450 | S14: 2100 | U14: 2550 | W14: 2450 | Y14: 2100 | Z14: 1900 | AA14: 0.6370741172
A15: 28 | C15: 6300 | E15: 6300 | G15: 5500 | I15: 6200 | K15: 5900 | M15: 6100 | O15: 5800 | Q15: 4900 | S15: 4400 | U15: 4500 | W15: 3900 | Y15: 3600 | Z15: 3300 | AA15: 1.753691592
A16: 30 | C16: 2500 | E16: 2300 | G16: 2250 | I16: 2050 | K16: 2050 | M16: 2250 | O16: 2500 | Q16: 2100 | S16: 2100 | U16: 2500 | W16: 2100 | Y16: 1950 | Z16: 1750 | AA16: 1.978837453
A17: 31 | C17: 4700 | E17: 4400 | G17: 4300 | I17: 4800 | K17: 4600 | M17: 5200 | O17: 5000 | Q17: 3750 | S17: 3750 | U17: 2500 | W17: 4100 | Y17: 2350 | Z17: 3250 | AA17: 6.939225348
A18: 32 | C18: 2700 | E18: 2750 | G18: 2500 | I18: 2650 | K18: 2450 | M18: 2750 | O18: 2650 | Q18: 2400 | S18: 2400 | U18: 2000 | W18: 3200 | Y18: 2500 | Z18: 2850 | AA18: 6.569565882
A19: 33 | C19: 2350 | E19: 2350 | G19: 2300 | I19: 2450 | K19: 2300 | M19: 2500 | O19: 2450 | Q19: 1750 | S19: 1750 | U19: 2450 | W19: 2150 | Y19: 2000 | Z19: 2000 | AA19: 7.182246055
A20: 34 | C20: 2400 | E20: 2600 | G20: 2800 | I20: 2500 | K20: 2300 | M20: 2400 | O20: 2900 | Q20: 2900 | S20: 2200 | U20: 2800 | W20: 2250 | Y20: 2150 | Z20: 1650 | AA20: 3.255314596
A21: 35 | C21: 4100 | E21: 3950 | G21: 3450 | I21: 3900 | K21: 3600 | M21: 3800 | O21: 3900 | Q21: 4250 | S21: 3350 | U21: 3700 | W21: 3300 | Y21: 3100 | Z21: 2550 | AA21: 2.167998467
A22: 36 | C22: 510 | F22: 455 | G22: 510 | I22: 590 | K22: 600 | M22: 680 | O22: 790 | Q22: 850 | S22: 470 | U22: 700 | W22: 510 | Y22: 430 | AA22: 8.953785592
A23: 39 | C23: 780 | F23: 710 | G23: 730 | I23: 720 | K23: 750 | M23: 820 | O23: 840 | Q23: 1150 | S23: 495 | U23: 700 | W23: 660 | Y23: 640 | AA23: 0.554251665
A24: 42 | C24: 2100 | E24: 2050 | G24: 1900 | I24: 2050 | K24: 2100 | M24: 2250 | O24: 2000 | Q24: 2250 | S24: 1400 | U24: 2100 | W24: 1850 | Y24: 1700 | AA24: 13.19773667
A25: 43 | C25: 2000 | E25: 1850 | G25: 1750 | I25: 1650 | K25: 1600 | M25: 1800 | O25: 1700 | Q25: 1650 | S25: 1650 | U25: 1550 | W25: 1550 | Y25: 1400 | AA25: 2.290046096
A26: 44 | C26: 1400 | E26: 1400 | G26: 1300 | I26: 1250 | K26: 1100 | M26: 1200 | O26: 1400 | Q26: 1350 | S26: 1250 | U26: 1150 | W26: 1150 | Y26: 960 | Z26: 800 | AA26: 15.69006262
A27: 46 | C27: 2000 | E27: 1950 | G27: 1950 | I27: 2100 | K27: 2000 | M27: 2150 | O27: 1950 | Q27: 1850 | S27: 1450 | U27: 2600 | W27: 2250 | Y27: 1650 | AA27: 4.383350457
A28: 47 | C28: 3850 | E28: 3800 | G28: 3600 | I28: 3450 | K28: 3700 | M28: 4000 | O28: 3700 | Q28: 3950 | S28: 3650 | U28: 3450 | W28: 3500 | Y28: 2750 | AA28: 8.450985653
A29: 50 | C29: 710 | E29: 640 | G29: 640 | I29: 710 | K29: 600 | M29: 690 | O29: 780 | Q29: 670 | S29: 620 | U29: 690 | W29: 590 | Y29: 550 | Z29: 560 | AA29: 9.386308596
A30: 51 | C30: 1250 | E30: 1250 | G30: 1200 | I30: 1100 | K30: 1100 | M30: 1200 | O30: 1250 | Q30: 1400 | S30: 1250 | U30: 1150 | W30: 810 | Y30: 950 | AA30: 1.184391834
A31: 52 | C31: 2200 | E31: 2300 | G31: 2400 | I31: 2200 | K31: 2050 | M31: 2200 | O31: 2100 | Q31: 2150 | S31: 2100 | U31: 1850 | W31: 1600 | Y31: 1600 | AA31: 0.377642439
A32: 53 | C32: 1350 | E32: 1150 | G32: 1250 | I32: 1200 | K32: 1100 | M32: 1100 | O32: 1200 | Q32: 1200 | S32: 1250 | U32: 1000 | W32: 930 | Y32: 1100 | Z32: 950 | AA32: 1.441231862
A33: 55 | C33: 1450 | E33: 1500 | G33: 1350 | I33: 1250 | K33: 1200 | M33: 1300 | O33: 1400 | Q33: 1600 | S33: 1300 | U33: 1250 | W33: 1800 | Y33: 1200 | Z33: 1300 | AA33: 0.6083760522
A34: 57 | C34: 2300 | E34: 2400 | G34: 2650 | I34: 2750 | K34: 2550 | M34: 2850 | O34: 2550 | Q34: 2250 | S34: 2350 | U34: 2350 | W34: 2300 | Y34: 2250 | Z34: 1450 | AA34: 1.734344148
A35: 58 | C35: 1200 | E35: 1100 | G35: 1050 | I35: 1150 | K35: 1200 | M35: 1300 | O35: 1200 | Q35: 1150 | S35: 890 | U35: 890 | W35: 1000 | Y35: 910 | Z35: 795 | AA35: 2.886227695
A36: 59 | C36: 940 | E36: 930 | G36: 910 | I36: 980 | K36: 890 | M36: 1000 | O36: 1050 | Q36: 970 | S36: 850 | U36: 950 | W36: 880 | Y36: 770 | Z36: 795 | AA36: 13.51886567
A37: 60 | C37: 3050 | E37: 3000 | G37: 2900 | I37: 2750 | K37: 2800 | M37: 2900 | O37: 2900 | Q37: 2600 | S37: 2500 | U37: 2500 | W37: 2350 | Y37: 2350 | Z37: 1950 | AA37: 8.1064704
A38: 61 | C38: 1250 | E38: 1200 | G38: 1250 | I38: 1300 | K38: 1250 | M38: 1400 | O38: 1350 | Q38: 1300 | S38: 1000 | U38: 1000 | W38: 920 | Y38: 860 | Z38: 790 | AA38: 14.94398625
A39: 65 | C39: 3350 | E39: 3200 | G39: 3100 | I39: 3500 | K39: 3250 | M39: 3400 | O39: 3300 | Q39: 2950 | S39: 2450 | U39: 2450 | W39: 2850 | Y39: 2650 | AA39: 0.7633881782
A40: 67 | C40: 8900 | E40: 8800 | G40: 8900 | I40: 9800 | K40: 9800 | M40: 11000 | O40: 10000 | Q40: 8600 | S40: 9000 | U40: 7000 | W40: 7300 | Y40: 7400 | AA40: 0.2125179242
A41: 68 | C41: 7800 | E41: 7500 | G41: 7400 | I41: 7700 | K41: 7300 | M41: 7600 | O41: 7500 | Q41: 6400 | S41: 5400 | U41: 5700 | W41: 6100 | Y41: 5500 | Z41: 4400 | AA41: 1.286339984
A42: 69 | C42: 4150 | E42: 4100 | G42: 3900 | I42: 4600 | K42: 4450 | M42: 4800 | O42: 4700 | Q42: 4050 | S42: 3200 | U42: 3250 | W42: 2750 | Y42: 3000 | AA42: 0.5118095739
A43: 72 | C43: 8300 | E43: 8500 | G43: 8400 | I43: 9000 | K43: 9400 | M43: 9700 | O43: 9000 | Q43: 7900 | S43: 7100 | U43: 7600 | W43: 8100 | Y43: 7900 | AA43: 0.06587483739
A44: 73 | C44: 9000 | E44: 8600 | G44: 8800 | I44: 9400 | K44: 9100 | M44: 9500 | O44: 9400 | Q44: 8300 | S44: 8200 | U44: 6600 | W44: 6100 | Y44: 7800 | AA44: 0.5005161287
A45: 74 | C45: 8900 | E45: 8400 | G45: 7600 | I45: 9100 | K45: 8600 | M45: 9000 | O45: 8400 | Q45: 7800 | S45: 8300 | U45: 7700 | W45: 6300 | Y45: 7800 | Z45: 5900 | AA45: 0.9863279527
A46: 76 | C46: 8000 | E46: 8100 | G46: 7200 | I46: 8000 | K46: 7400 | M46: 8400 | O46: 7800 | Q46: 6800 | S46: 7100 | U46: 6200 | W46: 5400 | Y46: 5600 | AA46: 0.9404229221
A47: 80 | C47: 3050 | E47: 3050 | G47: 3250 | I47: 3350 | K47: 3200 | M47: 3500 | O47: 3900 | Q47: 3550 | S47: 3550 | U47: 2900 | W47: 2700 | Y47: 2500 | Z47: 2700 | AA47: 7.589520712
A48: 81 | C48: 5100 | E48: 5200 | G48: 5000 | I48: 5300 | K48: 5200 | M48: 5400 | O48: 4950 | Q48: 4350 | S48: 4350 | U48: 4600 | W48: 4350 | Y48: 4300 | Z48: 3700 | AA48: 4.88377122
A49: 82 | C49: 4000 | E49: 4050 | G49: 4550 | I49: 5400 | K49: 6400 | M49: 6700 | O49: 6300 | Q49: 6200 | S49: 6200 | U49: 6200 | W49: 5700 | Y49: 3700 | AA49: 0.6054756741
A50: 84 | C50: 12000 | E50: 11500 | G50: 10700 | I50: 11300 | K50: 10600 | M50: 10900 | O50: 10800 | Q50: 9400 | S50: 8700 | U50: 6900 | W50: 8800 | Y50: 7800 | Z50: 6500 | AA50: 3.84500491
A51: 87 | C51: 9100 | E51: 8500 | G51: 8000 | I51: 7600 | K51: 7200 | M51: 7400 | O51: 7900 | Q51: 6900 | S51: 7000 | U51: 6000 | W51: 6400 | Y51: 4400 | Z51: 5000 | AA51: 1.650777199
A52: 89 | C52: 3350 | E52: 3550 | G52: 3450 | I52: 3650 | K52: 3550 | M52: 3650 | O52: 3950 | Q52: 3300 | S52: 3550 | U52: 3450 | W52: 2800 | Y52: 2600 | AA52: 2.548676923
A53: 90 | C53: 5000 | E53: 4750 | G53: 4650 | I53: 4950 | K53: 4900 | M53: 5500 | O53: 5300 | Q53: 4950 | S53: 4500 | U53: 4550 | W53: 3600 | Y53: 4150 | Z53: 3200 | AA53: 2.360117317
A54: 91 | C54: 5500 | E54: 5400 | G54: 6100 | I54: 5800 | K54: 5800 | M54: 6400 | O54: 6100 | Q54: 5900 | S54: 4500 | U54: 3900 | W54: 4400 | Y54: 4200 | AA54: 2.598473332
A55: 94 | C55: 5100 | E55: 4750 | G55: 4950 | I55: 5300 | K55: 4950 | M55: 5500 | O55: 5500 | Q55: 5200 | S55: 4450 | U55: 4450 | W55: 4050 | Y55: 3200 | AA55: 3.537126772
A56: 95 | E56: 5900 | G56: 5900 | I56: 6200 | K56: 5800 | M56: 5500 | O56: 6100 | Q56: 5500 | S56: 6000 | U56: 6000 | W56: 5500 | Y56: 4750 | AA56: 1.386214785
A57: 98 | C57: 6600 | E57: 6200 | G57: 6400 | I57: 6200 | K57: 6400 | M57: 6300 | O57: 6500 | Q57: 5500 | S57: 4450 | U57: 4450 | W57: 4050 | Y57: 5100 | Z57: 5500 | AA57: 0.9201614935
A58: 99 | C58: 5200 | E58: 4800 | G58: 4950 | I58: 4900 | K58: 4900 | M58: 4900 | O58: 5500 | Q58: 4700 | S58: 4800 | U58: 4450 | W58: 4050 | Y58: 5100 | Z58: 5500 | AA58: 1.075344798
A59: 106 | C59: 3900 | E59: 3650 | G59: 3850 | I59: 3950 | K59: 3750 | M59: 3550 | O59: 3750 | Q59: 3800 | S59: 3250 | U59: 3550 | W59: 2950 | Y59: 2450 | Z59: 3050 | AA59: 17.39175409
A60: 108 | C60: 1500 | G60: 1450 | K60: 1550 | O60: 1550 | Q60: 1650 | S60: 1200 | U60: 910 | W60: 900 | Y60: 910 | Z60: 830 | AA60: 3.824221418
A61: 109 | C61: 2650 | G61: 2500 | K61: 2250 | O61: 2250 | Q61: 2600 | S61: 1500 | U61: 2250 | W61: 2250 | Y61: 2100 | AA61: 0.4132319846
A62: 110 | C62: 810 | E62: 700 | G62: 620 | I62: 670 | K62: 700 | M62: 650 | O62: 680 | Q62: 770 | S62: 620 | U62: 650 | W62: 560 | Y62: 475 | AA62: 4.177631015
A63: 111 | C63: 1050 | E63: 1000 | G63: 900 | I63: 910 | K63: 930 | M63: 880 | O63: 940 | Q63: 970 | S63: 870 | U63: 800 | W63: 690 | Y63: 700 | Z63: 600 | AA63: 7.356993554
A64: 112 | C64: 890 | E64: 800 | G64: 730 | I64: 710 | K64: 740 | M64: 770 | O64: 770 | Q64: 940 | S64: 620 | U64: 560 | W64: 550 | Y64: 490 | Z64: 430 | AA64: 2.803423489
A65: 113 | C65: 1150 | E65: 1000 | G65: 870 | I65: 900 | K65: 960 | M65: 950 | O65: 970 | Q65: 1100 | S65: 700 | U65: 720 | W65: 690 | Y65: 620 | AA65: 2.713039894
A66: 114 | C66: 920 | E66: 730 | G66: 660 | I66: 710 | K66: 770 | M66: 760 | O66: 730 | Q66: 830 | S66: 630 | U66: 710 | W66: 570 | Y66: 520 | Z66: 380 | AA66: 2.184882288
A67: 115 | C67: 1450 | E67: 1450 | G67: 1450 | I67: 1400 | K67: 1400 | M67: 1500 | O67: 1700 | Q67: 1950 | S67: 1350 | U67: 1350 | W67: 1250 | Y67: 1600 | Z67: 1600 | AA67: 2.209129897
A68: 116 | C68: 1150 | E68: 1200 | G68: 990 | I68: 1000 | K68: 1050 | M68: 1050 | O68: 1250 | Q68: 1400 | S68: 930 | U68: 1100 | W68: 950 | Y68: 680 | Z68: 770 | AA68: 6.812005203
A69: 117 | C69: 4050 | E69: 3750 | G69: 3800 | I69: 4050 | K69: 3950 | M69: 4150 | O69: 4250 | Q69: 3950 | S69: 3300 | U69: 3300 | W69: 2950 | Y69: 2950 | Z69: 2550 | AA69: 0.1744689996
A70: 118 | C70: 3350 | E70: 3100 | G70: 3250 | I70: 3350 | K70: 3350 | M70: 3550 | O70: 3600 | Q70: 3500 | S70: 2950 | U70: 2950 | W70: 2650 | Y70: 2550 | AA70: 4.760082963
A71: 119 | C71: 2600 | E71: 2650 | G71: 2400 | I71: 2500 | K71: 2350 | M71: 2500 | O71: 2500 | Q71: 2150 | S71: 1950 | U71: 1550 | W71: 1950 | Y71: 1850 | Z71: 1650 | AA71: 13.31933642
A72: 121 | C72: 3650 | E72: 3400 | G72: 3500 | I72: 3650 | K72: 3650 | M72: 3800 | O72: 3950 | Q72: 3750 | S72: 3550 | U72: 3550 | W72: 2800 | Y72: 1800 | Z72: 2500 | AA72: 7.440909308
A73: 122 | C73: 620 | E73: 660 | G73: 560 | I73: 570 | K73: 620 | M73: 650 | O73: 710 | Q73: 750 | S73: 540 | U73: 660 | W73: 510 | Y73: 495 | Z73: 445 | AA73: 5.896802681
A74: 124 | C74: 3100 | E74: 2950 | G74: 3050 | I74: 3150 | K74: 3000 | M74: 3150 | O74: 3400 | Q74: 3200 | S74: 2950 | U74: 2950 | W74: 2650 | Y74: 2650 | AA74: 0.5049083509
A75: 125 | C75: 180 | E75: 195 | G75: 205 | I75: 210 | K75: 215 | M75: 225 | O75: 225 | Q75: 265 | S75: 175 | U75: 220 | W75: 185 | Y75: 195 | Z75: 170 | AA75: 1.935656713
A76: 126 | C76: 325 | E76: 345 | G76: 350 | I76: 355 | K76: 390 | M76: 355 | O76: 415 | Q76: 480 | S76: 435 | U76: 510 | W76: 470 | Y76: 445 | Z76: 305 | AA76: 0.9990622293
A77: 128 | C77: 265 | E77: 255 | G77: 285 | I77: 270 | K77: 300 | M77: 325 | O77: 355 | Q77: 410 | S77: 385 | U77: 445 | W77: 405 | Y77: 275 | Z77: 315 | AA77: 7.204093112
A78: 129 | C78: 180 | E78: 170 | G78: 200 | I78: 200 | K78: 230 | M78: 245 | O78: 245 | Q78: 260 | S78: 230 | U78: 275 | W78: 255 | Y78: 240 | AA78: 8.084688458
A79: 130 | C79: 2000 | E79: 1900 | G79: 1700 | I79: 1750 | K79: 1850 | M79: 2000 | O79: 1950 | Q79: 2000 | S79: 1700 | U79: 1650 | W79: 1450 | Y79: 1150 | AA79: 0.1142090874
A80: 131 | C80: 2000 | E80: 2100 | G80: 1750 | I80: 1850 | K80: 1900 | M80: 2050 | O80: 2000 | Q80: 2000 | S80: 1750 | U80: 1550 | W80: 1350 | Y80: 1400 | AA80: 0.4777060422
A81: 134 | C81: 2400 | E81: 2300 | G81: 2300 | I81: 2100 | K81: 2050 | M81: 2200 | O81: 2400 | Q81: 2100 | S81: 2400 | U81: 2450 | W81: 2450 | Y81: 2000 | AA81: 0.3482918195
A82: 135 | C82: 4150 | E82: 4000 | G82: 4050 | I82: 3700 | K82: 3850 | M82: 4600 | O82: 4200 | Q82: 4100 | S82: 4100 | U82: 5100 | W82: 3900 | Y82: 3300 | AA82: 0.06744061362
A83: 136 | C83: 2750 | E83: 2600 | G83: 2350 | I83: 2350 | K83: 2350 | M83: 2550 | O83: 2450 | Q83: 2750 | S83: 2200 | U83: 2500 | W83: 2550 | Y83: 2250 | AA83: 0.1095737367
A84: 137 | C84: 2350 | E84: 2450 | G84: 2050 | I84: 2050 | K84: 2250 | M84: 2450 | O84: 2850 | Q84: 3350 | S84: 1050 | U84: 1050 | W84: 1000 | Y84: 1400 | AA84: 0.5790446741
A85: 142 | C85: 1600 | G85: 1300 | K85: 1450 | O85: 1700 | Q85: 1950 | S85: 1300 | U85: 1250 | W85: 1200 | Y85: 1300 | AA85: 0.161574946
A86: 144 | C86: 4600 | E86: 4900 | G86: 4650 | I86: 4400 | K86: 4050 | M86: 3750 | O86: 4000 | Q86: 4200 | S86: 3950 | U86: 3900 | W86: 3200 | Y86: 3150 | Z86: 3150 | AA86: 5.455188701
A87: 149 | C87: 12700 | E87: 12000 | G87: 11600 | I87: 11800 | K87: 11000 | M87: 10600 | O87: 11900 | Q87: 10400 | S87: 9200 | U87: 10000 | W87: 8900 | Y87: 8500 | Z87: 8100 | AA87: 18.74842124
A88: 159 | C88: 12800 | E88: 12200 | G88: 11700 | I88: 11400 | K88: 11800 | M88: 12400 | O88: 11600 | Q88: 10700 | S88: 9400 | U88: 8500 | W88: 8500 | Y88: 8700 | AA88: 1.496387454
A89: 161 | C89: 12600 | E89: 12300 | G89: 11800 | I89: 11700 | K89: 12200 | M89: 13300 | O89: 12500 | Q89: 10900 | S89: 10300 | U89: 9800 | W89: 8200 | Y89: 9650 | Z89: 8700 | AA89: 1.279327086
A90: 163 | C90: 13900 | E90: 14000 | G90: 13300 | I90: 12600 | K90: 13000 | M90: 14100 | O90: 13500 | Q90: 12200 | S90: 13600 | U90: 13500 | W90: 13200 | Y90: 13100 | AA90: 0.9844094381
A91: 167 | C91: 16400 | E91: 16200 | G91: 16100 | I91: 15900 | K91: 16400 | M91: 18000 | O91: 18100 | Q91: 15000 | S91: 13900 | U91: 13500 | W91: 14400 | Y91: 12750 | AA91: 0.6202533446
A92: 171 | C92: 13400 | E92: 13300 | G92: 14000 | I92: 13400 | K92: 12600 | M92: 12400 | O92: 11600 | Q92: 10100 | S92: 9200 | U92: 9400 | W92: 9500 | Y92: 8300 | AA92: 0.3268495932
A93: 172 | C93: 7600 | E93: 8000 | G93: 8100 | I93: 7700 | K93: 8000 | M93: 8300 | O93: 8300 | Q93: 5800 | S93: 6200 | U93: 6300 | W93: 6800 | Y93: 6100 | Z93: 5200 | AA93: 2.134448261
A94: 173 | E94: 20100 | G94: 20300 | I94: 19500 | K94: 18500 | M94: 19400 | O94: 18900 | Q94: 13900 | S94: 13100 | U94: 13600 | W94: 13400 | Y94: 12650 | Z94: 12200 | AA94: 1.153505839
A95: 176 | C95: 8800 | E95: 8400 | G95: 8900 | I95: 8900 | K95: 8100 | M95: 9100 | O95: 8300 | Q95: 7300 | S95: 6700 | U95: 6700 | W95: 5600 | Y95: 5500 | Z95: 5400 | AA95: 1.864134422
A96: 177 | C96: 8000 | E96: 8100 | G96: 8100 | I96: 8000 | K96: 7700 | M96: 7400 | O96: 6600 | Q96: 5800 | S96: 5800 | U96: 5800 | W96: 6300 | Y96: 5700 | AA96: 0.4403460764
A97: 178 | C97: 10400 | E97: 9800 | G97: 10000 | I97: 10000 | K97: 10200 | M97: 10500 | O97: 9500 | Q97: 8300 | S97: 8000 | U97: 8000 | W97: 9800 | Y97: 7600 | AA97: 0.7271239295
A98: 179 | C98: 7800 | E98: 7600 | G98: 8000 | I98: 8000 | K98: 8300 | M98: 8600 | O98: 8700 | Q98: 7600 | S98: 6800 | U98: 6300 | W98: 7000 | Y98: 6200 | AA98: 0.1277101305
A99: 182 | C99: 9500 | E99: 9500 | G99: 9100 | I99: 9600 | K99: 9000 | M99: 9550 | O99: 9900 | Q99: 10300 | S99: 8400 | U99: 7500 | W99: 6800 | Y99: 7200 | Z99: 8300 | AA99: 3.608988675
A100: 183 | C100: 5700 | E100: 5500 | G100: 5300 | I100: 5600 | K100: 5200 | M100: 5200 | O100: 5500 | Q100: 5600 | S100: 4450 | U100: 4300 | W100: 3550 | Y100: 4050 | Z100: 7000 | AA100: 3.878401312
A101: 185 | C101: 8200 | E101: 8600 | G101: 7500 | I101: 8000 | K101: 7500 | M101: 8600 | O101: 9200 | Q101: 9200 | S101: 6900 | U101: 5000 | W101: 6500 | Y101: 7600 | Z101: 5200 | AA101: 1.451277255
A102: 187 | C102: 6000 | E102: 5700 | G102: 6100 | I102: 7200 | K102: 7200 | M102: 7700 | O102: 8400 | Q102: 8500 | S102: 5500 | U102: 5800 | W102: 6000 | Y102: 6900 | AA102: 1.870567934
A103: 188 | C103: 6600 | E103: 6200 | G103: 5600 | I103: 5800 | K103: 6000 | M103: 6300 | O103: 6100 | Q103: 5900 | S103: 5200 | U103: 5200 | W103: 5400 | Y103: 4950 | AA103: 1.596891927
A104: 191 | C104: 7600 | E104: 7100 | G104: 6800 | I104: 7000 | K104: 6700 | M104: 6500 | O104: 6800 | Q104: 6500 | S104: 5200 | U104: 5100 | W104: 5900 | Y104: 4000 | Z104: 3600 | AA104: 2.708964015
A105: 193 | C105: 3200 | E105: 3550 | I105: 3550 | K105: 3300 | M105: 3450 | O105: 3450 | Q105: 3550 | S105: 3450 | U105: 3550 | W105: 2900 | Y105: 2650 | AA105: 1.192746278
A106: 196 | C106: 1950 | E106: 2050 | G106: 2000 | I106: 2050 | K106: 1950 | M106: 2200 | O106: 1850 | Q106: 2100 | S106: 1750 | U106: 1150 | W106: 1450 | Y106: 1500 | Z106: 1300 | AA106: 9.154701098
A107: 200 | C107: 1550 | E107: 1650 | G107: 1650 | I107: 1500 | K107: 1250 | M107: 1300 | O107: 1350 | Q107: 1550 | S107: 1150 | U107: 830 | W107: 1100 | Y107: 1100 | Z107: 900 | AA107: 13.81286465
A108: 201 | C108: 235 | E108: 265 | G108: 250 | I108: 235 | K108: 205 | M108: 225 | O108: 250 | Q108: 295 | S108: 315 | U108: 255 | W108: 290 | Y108: 260 | Z108: 350 | AA108: 6.037616788
A109: 202 | E109: 45 | G109: 55 | I109: 55 | K109: 45 | M109: 50 | O109: 55 | Q109: 65 | S109: 80 | U109: 85 | W109: 90 | Y109: 90 | Z109: 145 | AA109: 16.97738883
A110: 203 | C110: 215 | E110: 230 | G110: 210 | I110: 230 | K110: 235 | M110: 200 | O110: 210 | Q110: 275 | S110: 240 | U110: 220 | W110: 220 | Y110: 200 | Z110: 215 | AA110: 12.98542494
A111: 206 | C111: 570 | E111: 610 | G111: 530 | I111: 540 | K111: 500 | M111: 540 | O111: 530 | Q111: 730 | S111: 680 | U111: 590 | W111: 570 | Y111: 530 | Z111: 440 | AA111: 1.065607956
A112: 207 | C112: 1250 | E112: 1400 | G112: 1200 | I112: 1150 | K112: 1200 | M112: 1400 | O112: 1100 | Q112: 1400 | S112: 1250 | U112: 960 | W112: 810 | Y112: 860 | AA112: 4.597128191
A113: 208 | C113: 1100 | E113: 1100 | G113: 1000 | I113: 1050 | K113: 950 | M113: 1100 | O113: 780 | Q113: 1150 | S113: 900 | U113: 770 | W113: 820 | Y113: 570 | Z113: 770 | AA113: 5.067072614
A114: 209 | C114: 1400 | E114: 1350 | G114: 1350 | I114: 1300 | K114: 1200 | M114: 1250 | O114: 1050 | Q114: 1350 | S114: 1050 | U114: 1250 | W114: 1050 | Y114: 840 | Z114: 1100 | AA114: 8.057420998
A115: 210 | C115: 305 | E115: 320 | G115: 335 | I115: 375 | K115: 395 | M115: 465 | O115: 410 | Q115: 520 | S115: 440 | U115: 350 | W115: 400 | Y115: 290 | Z115: 295 | AA115: 16.49331443
A116: 212 | C116: 2950 | E116: 3100 | G116: 3100 | I116: 2900 | K116: 2700 | M116: 2650 | O116: 2350 | Q116: 1900 | S116: 1700 | U116: 1600 | W116: 1600 | Y116: 1600 | AA116: 2.552406175
A117: 215 | C117: 3800 | E117: 4050 | G117: 4450 | I117: 4650 | K117: 4450 | M117: 4700 | O117: 4750 | Q117: 4250 | S117: 3400 | U117: 2900 | W117: 3250 | Y117: 2500 | Z117: 2750 | AA117: 2.885786463
A118: 216 | E118: 6100 | G118: 5600 | I118: 5300 | K118: 5000 | M118: 5000 | O118: 5500 | Q118: 5400 | S118: 3900 | U118: 3450 | W118: 2700 | Y118: 3150 | Z118: 3800 | AA118: 1.146303395
A119: 217 | C119: 3700 | E119: 4000 | G119: 4050 | I119: 3500 | K119: 3100 | M119: 3250 | O119: 3350 | Q119: 3400 | S119: 2600 | U119: 2150 | W119: 1750 | Y119: 2100 | Z119: 2350 | AA119: 1.072064377
A120: 218 | C120: 3150 | E120: 3850 | G120: 3300 | I120: 3050 | K120: 2900 | M120: 2950 | O120: 3000 | Q120: 3000 | S120: 2300 | U120: 1950 | W120: 2050 | Y120: 1850 | Z120: 2200 | AA120: 9.29058208
A121: 219 | C121: 4700 | E121: 5600 | G121: 5200 | I121: 5000 | K121: 4800 | M121: 5200 | O121: 5400 | Q121: 4850 | S121: 3500 | U121: 3050 | W121: 2800 | Y121: 2600 | Z121: 3150 | AA121: 1.274751458
A122: 220 | C122: 980 | E122: 1050 | G122: 1050 | I122: 1250 | K122: 1150 | M122: 1300 | O122: 1200 | Q122: 1300 | S122: 1200 | U122: 940 | W122: 1000 | Y122: 840 | AA122: 0.3157504979
A123: 223 | C123: 830 | E123: 900 | G123: 860 | I123: 1000 | K123: 900 | M123: 960 | O123: 910 | Q123: 1050 | S123: 950 | U123: 730 | W123: 730 | Y123: 680 | Z123: 880 | AA123: 15.86105904
A124: 225 | C124: 2400 | E124: 2550 | G124: 2700 | I124: 2600 | K124: 2650 | M124: 2750 | O124: 2850 | Q124: 2850 | S124: 2900 | U124: 2650 | W124: 2100 | Y124: 2200 | AA124: 1.994940861
A125: 226 | C125: 9100 | E125: 8900 | G125: 8500 | I125: 9000 | K125: 8700 | M125: 9300 | O125: 8200 | Q125: 7900 | S125: 7400 | U125: 7900 | W125: 5200 | Y125: 7800 | AA125: 1.352581593
A126: 232 | C126: 1500 | E126: 1500 | G126: 1350 | I126: 1500 | K126: 1650 | M126: 1850 | O126: 1550 | Q126: 1650 | S126: 1600 | U126: 1050 | W126: 1500 | Y126: 1300 | AA126: 0.114963879
A127: 233 | C127: 1150 | E127: 1200 | G127: 1400 | I127: 1500 | K127: 1400 | M127: 1700 | O127: 1350 | Q127: 1850 | S127: 1850 | U127: 1500 | W127: 1450 | Y127: 1200 | AA127: 0.1457334499
A128: 234 | C128: 1050 | E128: 1050 | G128: 1100 | I128: 1150 | K128: 1200 | M128: 1450 | O128: 1250 | Q128: 1400 | S128: 1150 | U128: 970 | W128: 1050 | Y128: 1000 | AA128: 0.5008047813
A129: 235 | C129: 2700 | E129: 3150 | G129: 3250 | I129: 3450 | K129: 3400 | M129: 3400 | O129: 3300 | Q129: 3350 | S129: 3150 | U129: 3150 | W129: 2850 | Y129: 2800 | Z129: 2500 | AA129: 13.71351291
A130: 236 | C130: 1600 | E130: 1500 | G130: 1600 | I130: 1700 | K130: 1700 | M130: 1600 | O130: 1700 | Q130: 1600 | S130: 1700 | U130: 1550 | W130: 1300 | Y130: 1300 | AA130: 0.3586438386
A131: 237 | C131: 1500 | E131: 1400 | G131: 1300 | I131: 1350 | K131: 1450 | M131: 1400 | O131: 1450 | Q131: 1200 | S131: 1450 | U131: 1350 | W131: 1200 | Y131: 1400 | Z131: 1250 | AA131: 0.2377056088
A132: 238 | C132: 1600 | E132: 1650 | G132: 1700 | I132: 1850 | K132: 2150 | M132: 2400 | O132: 1950 | Q132: 2050 | S132: 2150 | U132: 1750 | W132: 1500 | Y132: 1300 | Z132: 1550 | AA132: 1.783419932
A133: 239 | C133: 3050 | E133: 2900 | G133: 2900 | I133: 2900 | K133: 2950 | M133: 2900 | O133: 2950 | Q133: 3050 | S133: 3150 | U133: 2850 | W133: 2450 | Y133: 2700 | AA133: 0.5938601963
A134: 240 | C134: 7800 | E134: 7300 | G134: 6700 | I134: 6900 | K134: 6900 | M134: 7400 | O134: 7500 | Q134: 7500 | S134: 6700 | U134: 6700 | W134: 5600 | Y134: 6200 | Z134: 4150 | AA134: 5.519105105
A135: 244 | C135: 9300 | E135: 8800 | G135: 8600 | I135: 8700 | K135: 9200 | M135: 9500 | O135: 9100 | Q135: 10000 | S135: 10000 | U135: 7800 | W135: 9500 | Y135: 7100 | AA135: 0.2169356758
A136: 245 | C136: 13700 | E136: 13400 | G136: 15400 | I136: 14700 | K136: 15300 | M136: 15400 | O136: 15400 | Q136: 15400 | S136: 15400 | U136: 15400 | W136: 17600 | Y136: 15600 | AA136: 0.148719858
A137: 246 | C137: 22400 | E137: 22900 | G137: 22500 | I137: 23000 | K137: 23900 | M137: 26000 | O137: 24600 | Q137: 24100 | S137: 24100 | U137: 21200 | W137: 26000 | Y137: 21500 | AA137: 0.08585062477
A138: 248 | C138: 10400 | E138: 9800 | G138: 9300 | I138: 9800 | K138: 9300 | M138: 9800 | O138: 9700 | Q138: 12100 | S138: 7200 | U138: 6500 | W138: 6400 | Y138: 4900 | Z138: 5100 | AA138: 3.506958141
A139: 250 | C139: 22900 | E139: 23300 | G139: 22200 | I139: 22500 | K139: 22900 | M139: 24000 | O139: 22400 | Q139: 19800 | S139: 19800 | U139: 19800 | W139: 20800 | Y139: 21500 | AA139: 0.7963903012
A140: 251 | C140: 18600 | E140: 17800 | G140: 19100 | I140: 20100 | K140: 19800 | M140: 21500 | O140: 22400 | Q140: 22400 | S140: 22400 | U140: 19100 | W140: 19700 | Y140: 14000 | AA140: 0.219471101
A141: 252 | C141: 16000 | E141: 16100 | G141: 15800 | I141: 15800 | K141: 15900 | M141: 17100 | O141: 16300 | Q141: 16300 | S141: 16300 | U141: 16300 | W141: 17100 | Y141: 14000 | AA141: 0.2761890707
A142: 253 | C142: 12800 | E142: 15100 | G142: 14400 | I142: 14500 | K142: 15100 | M142: 16500 | O142: 16700 | Q142: 17300 | S142: 17300 | U142: 16100 | W142: 17200 | Y142: 17500 | AA142: 0.5414087373
A143: 254 | C143: 10200 | E143: 11000 | G143: 12400 | I143: 13100 | K143: 12900 | M143: 13100 | O143: 12100 | Q143: 13100 | S143: 12300 | U143: 13900 | W143: 20500 | Y143: 14200 | AA143: 0.04168744307
A144: 255 | C144: 11500 | E144: 11900 | G144: 15300 | I144: 15600 | K144: 16500 | M144: 17700 | O144: 17100 | Q144: 17100 | S144: 17100 | U144: 17100 | W144: 17300 | Y144: 18400 | AA144: 0.04760008765
A145: 256 | C145: 16500 | E145: 15800 | G145: 16300 | I145: 17000 | K145: 19000 | M145: 21000 | O145: 19200 | Q145: 16900 | S145: 16900 | U145: 18000 | W145: 17100 | Y145: 16400 | AA145: 0.4431366498
A146: 257 | C146: 12200 | E146: 13700 | G146: 15100 | I146: 15600 | K146: 14900 | M146: 15000 | O146: 16000 | Q146: 13100 | S146: 13000 | U146: 15200 | W146: 11700 | Y146: 11000 | AA146: 0.3411852546
A147: 259 | C147: 10200 | E147: 9600 | G147: 9900 | I147: 10100 | K147: 9700 | M147: 9100 | O147: 9800 | Q147: 9300 | S147: 8100 | U147: 7100 | W147: 6600 | Y147: 6000 | AA147: 0.7178395645
A148: 261 | C148: 9700 | E148: 9100 | G148: 8800 | I148: 9100 | K148: 8600 | M148: 8300 | O148: 9600 | Q148: 7100 | S148: 5900 | U148: 5300 | W148: 4700 | Y148: 4750 | AA148: 0.6323249958
A149: 263 | C149: 5000 | E149: 4600 | G149: 3700 | I149: 4050 | K149: 4100 | M149: 4450 | O149: 4400 | Q149: 5300 | S149: 4150 | U149: 4600 | W149: 3600 | Y149: 3500 | AA149: 1.174698795
A150: 265 | C150: 17100 | E150: 17600 | G150: 15900 | I150: 16400 | K150: 15400 | M150: 16300 | O150: 15800 | Q150: 15700 | S150: 14500 | U150: 14000 | W150: 10900 | Y150: 12000 | Z150: 10500 | AA150: 1.040198277
A151: 267 | C151: 12800 | E151: 12600 | G151: 12000 | I151: 13000 | K151: 12400 | M151: 12800 | O151: 11300 | Q151: 12600 | S151: 11400 | U151: 11100 | W151: 10000 | Y151: 9600 | AA151: 3.547459462
A152: 269 | D152: 2450 | F152: 2350 | H152: 2400 | J152: 2250 | M152: 2500 | O152: 2700 | Q152: 2750 | S152: 2100 | U152: 2400 | W152: 2050 | Y152: 1900 | Z152: 1700 | AA152: 10.11207754
A153: 271 | D153: 4350 | F153: 4500 | H153: 4100 | J153: 3750 | M153: 4250 | O153: 3800 | Q153: 4200 | S153: 3450 | U153: 3700 | W153: 3450 | Y153: 2850 | Z153: 2800 | AA153: 5.057203317
A154: 272 | C154: 2800 | D154: 2600 | F154: 2600 | H154: 2750 | J154: 2750 | M154: 2800 | O154: 3000 | Q154: 2950 | S154: 2000 | U154: 2550 | W154: 2050 | Y154: 1900 | Z154: 1800 | AA154: 4.026143118
A155: 275 | D155: 8400 | F155: 7700 | H155: 7100 | J155: 7000 | M155: 7300 | O155: 8000 | Q155: 7100 | S155: 7100 | U155: 7200 | W155: 7500 | Y155: 6100 | Z155: 5800 | AA155: 7.153185185
A156: 276 | D156: 5300 | F156: 5100 | H156: 4800 | J156: 4550 | M156: 5000 | O156: 4750 | Q156: 4650 | S156: 3700 | U156: 3650 | W156: 4200 | Y156: 3800 | Z156: 3350 | AA156: 1.635636769
A157: 277 | D157: 13000 | F157: 12100 | H157: 12000 | J157: 11800 | M157: 13200 | O157: 11800 | Q157: 12500 | S157: 12600 | U157: 11000 | W157: 10000 | Y157: 10800 | AA157: 2.011786175
A158: 278 | D158: 15100 | F158: 14500 | H158: 15100 | J158: 14300 | M158: 16000 | O158: 14900 | Q158: 15000 | S158: 14500 | U158: 12900 | W158: 9500 | Y158: 12000 | Z158: 11400 | AA158: 1.692851774
A159: 279 | D159: 29000 | F159: 28500 | H159: 30000 | J159: 31000 | M159: 31000 | O159: 28000 | Q159: 28400 | S159: 26300 | U159: 25300 | W159: 24500 | Y159: 15300 | Z159: 16100 | AA159: 3.681671548
A160: 281 | D160: 5500 | F160: 5300 | H160: 5600 | J160: 5400 | M160: 5500 | O160: 5600 | Q160: 5100 | S160: 4950 | U160: 4900 | W160: 4600 | Y160: 4100 | AA160: 8.22567981
A161: 287 | D161: 1350 | F161: 1250 | H161: 1300 | J161: 1400 | M161: 1550 | O161: 1850 | Q161: 1550 | S161: 1550 | U161: 1400 | W161: 1300 | Y161: 1250 | AA161: 7.145874808
A162: 290 | D162: 3750 | F162: 3750 | H162: 3950 | J162: 4150 | M162: 4250 | O162: 4450 | Q162: 4100 | S162: 3400 | U162: 3750 | W162: 3000 | Y162: 2750 | Z162: 2400 | AA162: 0.5181283845
A163: 291 | D163: 7100 | F163: 7100 | H163: 7000 | J163: 7300 | M163: 7600 | O163: 7300 | Q163: 6500 | S163: 6500 | U163: 6700 | W163: 5800 | Y163: 5600 | Z163: 5300 | AA163: 1.148446542
A164: 294 | D164: 9700 | F164: 9300 | H164: 9700 | J164: 10000 | M164: 10400 | O164: 10300 | Q164: 9200 | S164: 9000 | U164: 8400 | W164: 8400 | Y164: 7400 | AA164: 0.814596133
A165: 297 | D165: 4900 | F165: 4000 | H165: 4750 | J165: 5100 | M165: 4650 | O165: 5200 | Q165: 4550 | S165: 2850 | U165: 2450 | W165: 2400 | Y165: 1950 | AA165: 0.6230612313
A166: 298 | D166: 2600 | F166: 2550 | H166: 2750 | J166: 2650 | M166: 2750 | O166: 3100 | Q166: 2850 | S166: 2350 | U166: 2150 | W166: 2650 | Y166: 2300 | Z166: 2350 | AA166: 3.505616272
A167: 300 | D167: 2000 | F167: 1850 | H167: 1950 | J167: 2100 | M167: 2150 | O167: 2600 | Q167: 2100 | S167: 1950 | U167: 1700 | W167: 1850 | Y167: 1750 | AA167: 2.021962481
A168: 302 | D168: 6600 | F168: 6300 | H168: 6500 | J168: 6500 | M168: 6300 | O168: 6600 | Q168: 6200 | S168: 5900 | U168: 5700 | W168: 4100 | Y168: 4500 | AA168: 0.9484391492
A169: 303 | D169: 6000 | F169: 6000 | H169: 6300 | J169: 5900 | M169: 6500 | O169: 6300 | Q169: 6300 | S169: 6200 | U169: 5900 | W169: 5600 | Y169: 4250 | AA169: 0.1359769922
A170: 304 | D170: 23900 | F170: 20500 | H170: 24000 | J170: 24500 | M170: 25200 | O170: 25000 | Q170: 22800 | S170: 21800 | U170: 19300 | W170: 18300 | Y170: 15200 | Z170: 14900 | AA170: 6.009458756
A171: 309 | D171: 25600 | F171: 23600 | H171: 21900 | J171: 24300 | M171: 24300 | O171: 22400 | Q171: 22700 | S171: 20600 | U171: 18600 | W171: 19700 | Y171: 17500 | AA171: 0.5599242696
A172: 311 | D172: 22200 | F172: 21300 | H172: 22300 | J172: 24500 | M172: 26300 | O172: 22700 | Q172: 23900 | S172: 19700 | U172: 16900 | W172: 18100 | Y172: 18400 | AA172: 0.9740746464
A173: 313 | D173: 25000 | F173: 26000 | H173: 25000 | J173: 24300 | M173: 24300 | O173: 24400 | Q173: 22600 | S173: 21100 | U173: 20100 | W173: 21100 | Y173: 19600 | Z173: 16200 | AA173: 2.319314061
A174: 315 | D174: 25500 | F174: 24500 | H174: 25500 | J174: 25500 | M174: 25500 | O174: 26000 | Q174: 26200 | S174: 26400 | U174: 22000 | W174: 20600 | Y174: 21300 | AA174: 0.2511100678
A175: 319 | D175: 20300 | F175: 21200 | H175: 21000 | J175: 25000 | M175: 25000 | O175: 19800 | Q175: 22600 | S175: 18700 | U175: 17600 | W175: 14600 | Y175: 13800 | Z175: 12500 | AA175: 3.375916176
A176: 327 | C176: 890 | E176: 950 | G176: 930 | I176: 940 | K176: 840 | M176: 900 | O176: 940 | Q176: 1000 | S176: 1000 | U176: 940 | W176: 1050 | Y176: 790 | Z176: 700 | AA176: 7.142229325
A177: 335 | C177: 1050 | E177: 1100 | G177: 930 | I177: 880 | K177: 950 | M177: 850 | O177: 930 | Q177: 780 | S177: 690 | U177: 620 | W177: 700 | Y177: 650 | AA177: 8.76987004
A178: 337 | C178: 1650 | E178: 1650 | G178: 1450 | I178: 1550 | K178: 1450 | M178: 1350 | O178: 1350 | Q178: 1250 | S178: 1550 | U178: 1400 | W178: 1450 | Y178: 1300 | AA178: 10.20299826
A179: 338 | C179: 365 | E179: 385 | G179: 355 | I179: 395 | K179: 370 | M179: 410 | O179: 350 | Q179: 420 | S179: 305 | U179: 340 | W179: 305 | Y179: 380 | Z179: 325 | AA179: 6.566243447
A180: 342 | C180: 170 | E180: 170 | G180: 180 | I180: 200 | K180: 165 | M180: 165 | O180: 165 | Q180: 205 | S180: 170 | U180: 160 | W180: 190 | Y180: 175 | Z180: 150 | AA180: 5.162219641
A181: 343 | C181: 220 | E181: 195 | G181: 205 | I181: 190 | K181: 240 | M181: 300 | O181: 230 | Q181: 265 | S181: 210 | U181: 205 | W181: 290 | Y181: 325 | Z181: 275 | AA181: 6.961476441
A182: 346 | C182: 950 | E182: 1000 | G182: 1000 | I182: 1150 | K182: 1100 | M182: 1100 | O182: 1200 | Q182: 1100 | S182: 1250 | U182: 1100 | W182: 1050 | Y182: 1150 | Z182: 900 | AA182: 0.3332349178
A183: 349 | C183: 700 | E183: 680 | G183: 620 | I183: 690 | K183: 750 | M183: 820 | O183: 820 | Q183: 670 | S183: 760 | U183: 690 | W183: 790 | Y183: 740 | Z183: 580 | AA183: 6.833975102
A184: 353 | C184: 1200 | E184: 1150 | G184: 1135 | I184: 1150 | K184: 1050 | M184: 1150 | O184: 1200 | Q184: 1400 | S184: 1400 | U184: 1200 | W184: 1250 | Y184: 1150 | AA184: 0.5013872919
A185: 355 | C185: 1700 | E185: 1700 | G185: 1600 | I185: 1450 | K185: 1500 | M185: 1600 | O185: 1600 | Q185: 1800 | S185: 1900 | U185: 1900 | W185: 1900 | Y185: 1650 | AA185: 0.2028491009
A186: 356 | C186: 1400 | E186: 1300 | G186: 1250 | I186: 1150 | K186: 1200 | M186: 1300 | O186: 1500 | Q186: 1400 | S186: 1550 | U186: 1400 | W186: 1550 | Y186: 1250 | AA186: 0.07000025024
A187: 362 | C187: 1000 | E187: 1050 | G187: 970 | I187: 1150 | K187: 1000 | M187: 1100 | O187: 1150 | Q187: 1150 | S187: 1300 | U187: 1200 | W187: 1300 | Y187: 1250 | AA187: 0.3321619256
A188: 363 | C188: 1750 | E188: 1600 | G188: 1450 | I188: 1500 | K188: 1350 | M188: 1400 | O188: 1600 | Q188: 1350 | S188: 1250 | U188: 1100 | W188: 1350 | Y188: 1300 | Z188: 1100 | AA188: 2.111286864
A189: 365 | C189: 1050 | E189: 1100 | G189: 1100 | I189: 1150 | K189: 940 | M189: 1000 | O189: 1150 | Q189: 1150 | S189: 1050 | U189: 1200 | W189: 1150 | Y189: 990 | Z189: 1000 | AA189: 6.110224279
A190: 369 | C190: 1200 | E190: 1150 | G190: 1200 | I190: 1300 | K190: 1200 | M190: 1250 | O190: 1150 | Q190: 1300 | S190: 1000 | U190: 1100 | W190: 1100 | Y190: 1150 | Z190: 950 | AA190: 12.50371888
A191: 376 | C191: 2100 | E191: 1900 | G191: 1950 | I191: 1850 | K191: 1800 | M191: 1850 | O191: 2000 | Q191: 1750 | S191: 2200 | U191: 1850 | W191: 2000 | Y191: 1400 | Z191: 1450 | AA191: 5.099956318
A192: 377 | C192: 700 | E192: 650 | G192: 680 | I192: 740 | K192: 690 | M192: 700 | O192: 690 | Q192: 660 | S192: 570 | U192: 680 | W192: 720 | Y192: 810 | AA192: 0.7263904655
A193: 378 | C193: 1250 | E193: 1300 | G193: 1100 | I193: 1200 | K193: 1250 | M193: 1150 | O193: 1200 | Q193: 990 | S193: 1150 | U193: 1050 | W193: 1100 | Y193: 810 | Z193: 900 | AA193: 1.242413168
A194: 379 | C194: 2850 | E194: 2850 | G194: 2600 | I194: 2600 | K194: 2500 | M194: 2500 | O194: 2450 | Q194: 2500 | S194: 2800 | U194: 2500 | W194: 3050 | Y194: 2500 | Z194: 2550 | AA194: 1.018169219
A195: 380 | C195: 4150 | E195: 4400 | G195: 4050 | I195: 4050 | K195: 4100 | M195: 4200 | O195: 4350 | Q195: 3650 | S195: 3900 | U195: 3950 | W195: 3950 | Y195: 3350 | AA195: 0.4062971354
A196: 381 | C196: 1550 | E196: 1450 | G196: 1350 | I196: 1250 | K196: 1350 | M196: 1450 | O196: 1550 | Q196: 1600 | S196: 1600 | U196: 1500 | W196: 1650 | Y196: 1200 | AA196: 0.5008479889
A197: 382 | C197: 5200 | E197: 5500 | G197: 4950 | I197: 4950 | K197: 4800 | M197: 4600 | O197: 4300 | Q197: 4500 | S197: 4250 | U197: 4700 | W197: 4650 | Y197: 4300 | AA197: 0.3782326405
A198: 383 | C198: 3450 | E198: 3450 | G198: 3500 | I198: 3700 | K198: 4050 | M198: 4300 | O198: 4600 | Q198: 5100 | S198: 4700 | U198: 4700 | W198: 4350 | Y198: 3600 | AA198: 0.5643097481
A199: 384 | C199: 4900 | E199: 5200 | G199: 5200 | I199: 5300 | K199: 4900 | M199: 5100 | O199: 5200 | Q199: 4750 | S199: 4700 | U199: 5200 | W199: 5100 | Y199: 5600 | AA199: 0.1267098993
A200: 385 | C200: 4450 | E200: 4650 | G200: 4350 | I200: 4200 | K200: 4200 | M200: 4100 | O200: 3600 | Q200: 4050 | S200: 4450 | U200: 4000 | W200: 4050 | Y200: 3650 | Z200: 3800 | AA200: 0.4375806908
... 2050 more rows

Sheet VC Data (hidden)
A1: VC Site and Year | B1: VC site | C1: Count Hours | D1: Month | E1: Year | F1: Passenger | G1: 2 AX SU | H1: 3+ AX SU | I1: 3 AX SEMI | J1: 4 AX SEMI | K1: 5+ AX SEMI | L1: BUS/TRTR | M1: TWINS
A2: =B2&E2 -> 10501993 | B2: 1050 | C2: 16 | D2: 6 | E2: 1993 | F2: 3939 | G2: 94 | H2: 62 | I2: 0 | J2: 5 | K2: 40 | L2: 14 | M2: 0
A3: 10501995 | B3: 1050 | C3: 24 | D3: 10 | E3: 1995 | F3: 4444 | G3: 55 | H3: 18 | I3: 7 | J3: 12 | K3: 46 | L3: 31 | M3: 1
A4: 10501999 | B4: 1050 | C4: 24 | D4: 5 | E4: 1999 | F4: 3734 | G4: 78 | H4: 22 | I4: 8 | J4: 15 | K4: 46 | L4: 27 | M4: 0
A5: 10502001 | B5: 1050 | C5: 24 | D5: 6 | E5: 2001 | F5: 4089 | G5: 218 | H5: 33 | I5: 5 | J5: 8 | K5: 46 | L5: 23 | M5: 2
A6: 10521993 | B6: 1052 | C6: 16 | D6: 6 | E6: 1993 | F6: 488 | G6: 11 | H6: 4 | I6: 0 | J6: 0 | K6: 8 | L6: 4 | M6: 0
A7: 10521995 | B7: 1052 | C7: 24 | D7: 10 | E7: 1995 | F7: 609 | G7: 31 | H7: 7 | I7: 2 | J7: 4 | K7: 8 | L7: 8 | M7: 0
A8: 10521999 | B8: 1052 | C8: 24 | D8: 9 | E8: 1999 | F8: 490 | G8: 23 | H8: 5 | I8: 3 | J8: 6 | K8: 4 | L8: 4 | M8: 0
A9: 10522001 | B9: 1052 | C9: 24 | D9: 6 | E9: 2001 | F9: 444 | G9: 21 | H9: 12 | I9: 3 | J9: 5 | K9: 5 | L9: 1 | M9: 0
A10: 10531994 | B10: 1053 | C10: 16 | D10: 9 | E10: 1994 | F10: 346 | G10: 15 | H10: 313 | I10: 0 | J10: 0 | K10: 33 | L10: 1 | M10: 0
A11: 10531998 | B11: 1053 | C11: 24 | D11: 10 | E11: 1998 | F11: 446 | G11: 21 | H11: 26 | I11: 3 | J11: 6 | K11: 212 | L11: 52 | M11: 0
A12: 10532000 | B12: 1053 | C12: 24 | D12: 10 | E12: 2000 | F12: 469 | G12: 84 | H12: 417 | I12: 6 | J12: 10 | K12: 102 | L12: 10 | M12: 0
A13: 10551993 | B13: 1055 | C13: 16 | D13: 9 | E13: 1993 | F13: 602 | G13: 21 | H13: 10 | I13: 3 | J13: 2 | K13: 24 | L13: 8 | M13: 0
A14: 10551995 | B14: 1055 | C14: 16 | D14: 10 | E14: 1995 | F14: 757 | G14: 33 | H14: 3 | I14: 1 | J14: 2 | K14: 119 | L14: 12 | M14: 0
A15: 10551997 | B15: 1055 | C15: 24 | D15: 10 | E15: 1997 | F15: 760 | G15: 21 | H15: 9 | I15: 4 | J15: 7 | K15: 13 | L15: 6 | M15: 0
A16: 10551999 | B16: 1055 | C16: 24 | D16: 10 | E16: 1999 | F16: 938 | G16: 44 | H16: 64 | I16: 9 | J16: 16 | K16: 32 | L16: 10 | M16: 1
A17: 10552001 | B17: 1055 | C17: 24 | D17: 9 | E17: 2001 | F17: 812 | G17: 54 | H17: 24 | I17: 3 | J17: 6 | K17: 20 | L17: 7 | M17: 0
A18: 11641994 | B18: 1164 | C18: 16 | D18: 10 | E18: 1994 | F18: 5549 | G18: 183 | H18: 57 | I18: 20 | J18: 14 | K18: 481 | L18: 30 | M18: 6
A19: 11642000 | B19: 1164 | C19: 16 | D19: 6 | E19: 2000 | F19: 9808 | G19: 192 | H19: 74 | I19: 12 | J19: 17 | K19: 602 | L19: 25 | M19: 7
A20: 11642005 | B20: 1164 | C20: 24 | D20: 7 | E20: 2005 | F20: 7388 | G20: 396 | H20: 48 | I20: 100 | J20: 186 | K20: 942 | L20: 121 | M20: 20
A21: 11661994 | B21: 1166 | C21: 16 | D21: 10 | E21: 1994 | F21: 3770 | G21: 121 | H21: 37 | I21: 23 | J21: 7 | K21: 93 | L21: 33 | M21: 0
A22: 11661996 | B22: 1166 | C22: 24 | D22: 6 | E22: 1996 | F22: 4391 | G22: 107 | H22: 26 | I22: 21 | J22: 39 | K22: 134 | L22: 36 | M22: 2
A23: 11661998 | B23: 1166 | C23: 24 | D23: 10 | E23: 1998 | F23: 4375 | G23: 108 | H23: 39 | I23: 29 | J23: 54 | K23: 129 | L23: 60 | M23: 0
A24: 11662000 | B24: 1166 | C24: 16 | D24: 6 | E24: 2000 | F24: 4491 | G24: 104 | H24: 38 | I24: 15 | J24: 10 | K24: 134 | L24: 27 | M24: 0
A25: 11662002 | B25: 1166 | C25: 24 | D25: 8 | E25: 2002 | F25: 4670 | G25: 237 | H25: 79 | I25: 9 | J25: 16 | K25: 117 | L25: 33 | M25: 3
A26: 11662005 | B26: 1166 | C26: 24 | D26: 6 | E26: 2005 | F26: 5182 | G26: 296 | H26: 124 | I26: 33 | J26: 61 | K26: 248 | L26: 44 | M26: 5
A27: 11662011 | B27: 1166 | C27: 24 | D27: 5 | E27: 2011 | F27: 5181 | G27: 134 | H27: 41 | I27: 9 | J27: 17 | K27: 194 | L27: 16 | M27: 0
A28: 11662017 | B28: 1166 | C28: 24 | D28: 6 | E28: 2017 | F28: 5727 | G28: 118 | H28: 59 | I28: 12 | J28: 22 | K28: 131 | L28: 24 | M28: 0
A29: 11701993 | B29: 1170 | C29: 16 | D29: 6 | E29: 1993 | F29: 2715 | G29: 87 | H29: 39 | I29: 3 | J29: 6 | K29: 412 | L29: 33 | M29: 3
A30: 11701996 | B30: 1170 | C30: 24 | D30: 10 | E30: 1996 | F30: 2256 | G30: 34 | H30: 22 | I30: 14 | J30: 27 | K30: 324 | L30: 14 | M30: 6
A31: 11701998 | B31: 1170 | C31: 24 | D31: 10 | E31: 1998 | F31: 3074 | G31: 158 | H31: 33 | I31: 41 | J31: 77 | K31: 379 | L31: 43 | M31: 3
A32: 11702000 | B32: 1170 | C32: 16 | D32: 10 | E32: 2000 | F32: 3261 | G32: 59 | H32: 18 | I32: 4 | J32: 4 | K32: 320 | L32: 34 | M32: 3
A33: 11702009 | B33: 1170 | C33: 24 | D33: 7 | E33: 2009 | F33: 2982 | G33: 81 | H33: 20 | I33: 12 | J33: 21 | K33: 106 | L33: 16 | M33: 1
A34: 11702015 | B34: 1170 | C34: 24 | D34: 10 | E34: 2015 | F34: 3416 | G34: 72 | H34: 83 | I34: 47 | J34: 87 | K34: 46 | L34: 58 | M34: 4
A35: 11702017 | B35: 1170 | C35: 24 | D35: 6 | E35: 2017 | F35: 3706 | G35: 88 | H35: 49 | I35: 31 | J35: 58 | K35: 154 | L35: 36 | M35: 7
A36: 11721993 | B36: 1172 | C36: 16 | D36: 9 | E36: 1993 | F36: 11094 | G36: 148 | H36: 173 | I36: 9 | J36: 10 | K36: 972 | L36: 179 | M36: 1
A37: 11721995 | B37: 1172 | C37: 24 | D37: 10 | E37: 1995 | F37: 11374 | G37: 210 | H37: 658 | I37: 55 | J37: 102 | K37: 1075 | L37: 162 | M37: 6
A38: 11721999 | B38: 1172 | C38: 16 | D38: 6 | E38: 1999 | F38: 13156 | G38: 192 | H38: 222 | I38: 17 | J38: 23 | K38: 1028 | L38: 121 | M38: 7
A39: 11751994 | B39: 1175 | C39: 16 | D39: 10 | E39: 1994 | F39: 13226 | G39: 297 | H39: 97 | I39: 18 | J39: 37 | K39: 2118 | L39: 59 | M39: 51
A40: 11751996 | B40: 1175 | C40: 16 | D40: 7 | E40: 1996 | F40: 13085 | G40: 473 | H40: 108 | I40: 30 | J40: 41 | K40: 2552 | L40: 84 | M40: 55
A41: 11752001 | B41: 1175 | C41: 16 | D41: 6 | E41: 2001 | F41: 12585 | G41: 263 | H41: 109 | I41: 23 | J41: 52 | K41: 2981 | L41: 137 | M41: 85
A42: 11791995 | B42: 1179 | C42: 24 | D42: 10 | E42: 1995 | F42: 1627 | G42: 79 | H42: 57 | I42: 8 | J42: 14 | K42: 171 | L42: 20 | M42: 13
A43: 11791997 | B43: 1179 | C43: 24 | D43: 10 | E43: 1997 | F43: 1456 | G43: 53 | H43: 14 | I43: 9 | J43: 17 | K43: 201 | L43: 15 | M43: 2
A44: 11791999 | B44: 1179 | C44: 24 | D44: 10 | E44: 1999 | F44: 1526 | G44: 44 | H44: 14 | I44: 10 | J44: 18 | K44: 286 | L44: 20 | M44: 2
A45: 11792001 | B45: 1179 | C45: 24 | D45: 10 | E45: 2001 | F45: 1458 | G45: 78 | H45: 24 | I45: 7 | J45: 12 | K45: 225 | L45: 30 | M45: 4
A46: 11792003 | B46: 1179 | C46: 24 | D46: 7 | E46: 2003 | F46: 1833 | G46: 69 | H46: 13 | I46: 4 | J46: 8 | K46: 335 | L46: 3 | M46: 1
A47: 11792005 | B47: 1179 | C47: 24 | D47: 7 | E47: 2005 | F47: 2017 | G47: 57 | H47: 16 | I47: 6 | J47: 11 | K47: 409 | L47: 6 | M47: 1
A48: 11871993 | B48: 1187 | C48: 16 | D48: 9 | E48: 1993 | F48: 9270 | G48: 229 | H48: 70 | I48: 24 | J48: 35 | K48: 761 | L48: 21 | M48: 15
A49: 11871995 | B49: 1187 | C49: 24 | D49: 8 | E49: 1995 | F49: 12588 | G49: 250 | H49: 86 | I49: 90 | J49: 166 | K49: 815 | L49: 94 | M49: 38
A50: 11872000 | B50: 1187 | C50: 16 | D50: 7 | E50: 2000 | F50: 17144 | G50: 275 | H50: 110 | I50: 25 | J50: 25 | K50: 946 | L50: 91 | M50: 16
A51: 11881993 | B51: 1188 | C51: 16 | D51: 10 | E51: 1993 | F51: 16650 | G51: 452 | H51: 342 | I51: 28 | J51: 51 | K51: 1249 | L51: 87 | M51: 42
A52: 11881995 | B52: 1188 | C52: 16 | D52: 10 | E52: 1995 | F52: 15990 | G52: 403 | H52: 259 | I52: 23 | J52: 51 | K52: 1380 | L52: 138 | M52: 21
A53: 11881997 | B53: 1188 | C53: 16 | D53: 10 | E53: 1997 | F53: 16041 | G53: 487 | H53: 307 | I53: 78 | J53: 65 | K53: 1723 | L53: 68 | M53: 30
A54: 11881999 | B54: 1188 | C54: 16 | D54: 10 | E54: 1999 | F54: 21037 | G54: 499 | H54: 448 | I54: 10 | J54: 64 | K54: 2121 | L54: 127 | M54: 24
A55: 11882008 | B55: 1188 | C55: 16 | D55: 10 | E55: 2008 | F55: 22337 | G55: 532 | H55: 316 | I55: 3 | J55: 37 | K55: 1991 | L55: 76 | M55: 17
A56: 11911993 | B56: 1191 | C56: 16 | D56: 7 | E56: 1993 | F56: 23988 | G56: 392 | H56: 99 | I56: 18 | J56: 74 | K56: 856 | L56: 156 | M56: 21
A57: 11911995 | B57: 1191 | C57: 24 | D57: 11 | E57: 1995 | F57: 25365 | G57: 300 | H57: 194 | I57: 146 | J57: 271 | K57: 1016 | L57: 125 | M57: 62
A58: 11912003 | B58: 1191 | C58: 24 | D58: 7 | E58: 2003 | F58: 41319 | G58: 1037 | H58: 159 | I58: 94 | J58: 175 | K58: 453 | L58: 113 | M58: 44
A59: 11961994 | B59: 1196 | C59: 16 | D59: 8 | E59: 1994 | F59: 9759 | G59: 235 | H59: 60 | I59: 9 | J59: 32 | K59: 2044 | L59: 32 | M59: 35
A60: 11961996 | B60: 1196 | C60: 16 | D60: 6 | E60: 1996 | F60: 14253 | G60: 527 | H60: 86 | I60: 31 | J60: 46 | K60: 2488 | L60: 43 | M60: 54
A61: 11961998 | B61: 1196 | C61: 24 | D61: 8 | E61: 1998 | F61: 13394 | G61: 443 | H61: 96 | I61: 210 | J61: 390 | K61: 2465 | L61: 249 | M61: 84
A62: 11962001 | B62: 1196 | C62: 24 | D62: 10 | E62: 2001 | F62: 13889 | G62: 554 | H62: 161 | I62: 67 | J62: 125 | K62: 3071 | L62: 399 | M62: 135
A63: 11962003 | B63: 1196 | C63: 24 | D63: 8 | E63: 2003 | F63: 17835 | G63: 545 | H63: 106 | I63: 58 | J63: 107 | K63: 2758 | L63: 64 | M63: 73
A64: 11962009 | B64: 1196 | C64: 24 | D64: 10 | E64: 2009 | F64: 14105 | G64: 382 | H64: 117 | I64: 26 | J64: 49 | K64: 2965 | L64: 53 | M64: 60
A65: 11962015 | B65: 1196 | C65: 24 | D65: 10 | E65: 2015 | F65: 13948 | G65: 455 | H65: 834 | I65: 287 | J65: 533 | K65: 1481 | L65: 428 | M65: 77
A66: =B66&E66 -> 11971993 | B66: 1197 | C66: 16 | D66: 9 | E66: 1993 | F66: 2236 | G66: 60 | H66: 29 | I66: 10 | J66: 16 | K66: 541 | L66: 30 | M66: 3
A67: 11971995 | B67: 1197 | C67: 24 | D67: 10 | E67: 1995 | F67: 2693 | G67: 72 | H67: 44 | I67: 23 | J67: 42 | K67: 755 | L67: 27 | M67: 35
A68: 11972001 | B68: 1197 | C68: 24 | D68: 10 | E68: 2001 | F68: 2757 | G68: 193 | H68: 39 | I68: 22 | J68: 41 | K68: 708 | L68: 177 | M68: 30
A69: 11991993 | B69: 1199 | C69: 16 | D69: 9 | E69: 1993 | F69: 1198 | G69: 27 | H69: 18 | I69: 0 | J69: 1 | K69: 67 | L69: 28 | M69: 0
A70: 11991995 | B70: 1199 | C70: 24 | D70: 10 | E70: 1995 | F70: 1356 | G70: 36 | H70: 53 | I70: 4 | J70: 6 | K70: 172 | L70: 17 | M70: 8
A71: 11991997 | B71: 1199 | C71: 16 | D71: 10 | E71: 1997 | F71: 1326 | G71: 72 | H71: 218 | I71: 1 | J71: 3 | K71: 148 | L71: 36 | M71: 0
A72: 12041994 | B72: 1204 | C72: 16 | D72: 7 | E72: 1994 | F72: 6106 | G72: 83 | H72: 7 | I72: 1 | J72: 8 | K72: 191 | L72: 19 | M72: 0
A73: 12041996 | B73: 1204 | C73: 16 | D73: 8 | E73: 1996 | F73: 8884 | G73: 123 | H73: 21 | I73: 4 | J73: 6 | K73: 206 | L73: 53 | M73: 3
A74: 12042000 | B74: 1204 | C74: 16 | D74: 7 | E74: 2000 | F74: 10537 | G74: 104 | H74: 53 | I74: 3 | J74: 6 | K74: 264 | L74: 27 | M74: 1
A75: 12071993 | B75: 1207 | C75: 16 | D75: 9 | E75: 1993 | F75: 1276 | G75: 71 | H75: 12 | I75: 2 | J75: 3 | K75: 160 | L75: 17 | M75: 0
A76: 12071995 | B76: 1207 | C76: 24 | D76: 8 | E76: 1995 | F76: 1578 | G76: 42 | H76: 22 | I76: 12 | J76: 23 | K76: 130 | L76: 10 | M76: 2
A77: 12071997 | B77: 1207 | C77: 24 | D77: 7 | E77: 1997 | F77: 1448 | G77: 51 | H77: 22 | I77: 11 | J77: 20 | K77: 176 | L77: 20 | M77: 4
A78: 12071998 | B78: 1207 | C78: 24 | D78: 10 | E78: 1998 | F78: 563 | G78: 29 | H78: 49 | I78: 5 | J78: 10 | K78: 65 | L78: 9 | M78: 1
A79: 12072000 | B79: 1207 | C79: 24 | D79: 10 | E79: 2000 | F79: 1356 | G79: 112 | H79: 18 | I79: 21 | J79: 40 | K79: 220 | L79: 43 | M79: 4
A80: 12072002 | B80: 1207 | C80: 24 | D80: 9 | E80: 2002 | F80: 1382 | G80: 134 | H80: 17 | I80: 24 | J80: 44 | K80: 142 | L80: 52 | M80: 6
A81: 12072009 | B81: 1207 | C81: 24 | D81: 6 | E81: 2009 | F81: 1648 | G81: 52 | H81: 25 | I81: 5 | J81: 10 | K81: 132 | L81: 7 | M81: 9
A82: 12072015 | B82: 1207 | C82: 24 | D82: 6 | E82: 2015 | F82: 1755 | G82: 64 | H82: 53 | I82: 8 | J82: 16 | K82: 186 | L82: 23 | M82: 7
A83: 12072017 | B83: 1207 | C83: 24 | D83: 6 | E83: 2017 | F83: 1428 | G83: 44 | H83: 49 | I83: 14 | J83: 27 | K83: 76 | L83: 14 | M83: 5
A84: 12081994 | B84: 1208 | C84: 16 | D84: 6 | E84: 1994 | F84: 13625 | G84: 335 | H84: 147 | I84: 56 | J84: 73 | K84: 2382 | L84: 77 | M84: 107
A85: 12081996 | B85: 1208 | C85: 16 | D85: 6 | E85: 1996 | F85: 14345 | G85: 555 | H85: 157 | I85: 38 | J85: 93 | K85: 3086 | L85: 57 | M85: 130
A86: 12081998 | B86: 1208 | C86: 16 | D86: 9 | E86: 1998 | F86: 17890 | G86: 468 | H86: 385 | I86: 37 | J86: 140 | K86: 3485 | L86: 148 | M86: 148
A87: 12082000 | B87: 1208 | C87: 16 | D87: 8 | E87: 2000 | F87: 19810 | G87: 485 | H87: 314 | I87: 36 | J87: 114 | K87: 3627 | L87: 136 | M87: 152
A88: 12082002 | B88: 1208 | C88: 16 | D88: 11 | E88: 2002 | F88: 21063 | G88: 543 | H88: 242 | I88: 78 | J88: 97 | K88: 4071 | L88: 198 | M88: 148
A89: 12091994 | B89: 1209 | C89: 16 | D89: 8 | E89: 1994 | F89: 581 | G89: 31 | H89: 24 | I89: 3 | J89: 0 | K89: 39 | L89: 6 | M89: 2
A90: 12101994 | B90: 1210 | C90: 16 | D90: 9 | E90: 1994 | F90: 899 | G90: 23 | H90: 6 | I90: 2 | J90: 0 | K90: 76 | L90: 6 | M90: 0
A91: 12101996 | B91: 1210 | C91: 24 | D91: 6 | E91: 1996 | F91: 897 | G91: 10 | H91: 44 | I91: 16 | J91: 31 | K91: 45 | L91: 3 | M91: 36
A92: 12101998 | B92: 1210 | C92: 24 | D92: 10 | E92: 1998 | F92: 918 | G92: 40 | H92: 6 | I92: 8 | J92: 15 | K92: 47 | L92: 10 | M92: 0
A93: 12102000 | B93: 1210 | C93: 24 | D93: 10 | E93: 2000 | F93: 905 | G93: 66 | H93: 10 | I93: 10 | J93: 19 | K93: 81 | L93: 14 | M93: 0
A94: 12102002 | B94: 1210 | C94: 24 | D94: 6 | E94: 2002 | F94: 320 | G94: 54 | H94: 2 | I94: 7 | J94: 13 | K94: 70 | L94: 7 | M94: 2
A95: 12102010 | B95: 1210 | C95: 24 | D95: 8 | E95: 2010 | F95: 847 | G95: 43 | H95: 5 | I95: 3 | J95: 5 | K95: 89 | L95: 12 | M95: 1
A96: 12111993 | B96: 1211 | C96: 16 | D96: 9 | E96: 1993 | F96: 2569 | G96: 73 | H96: 27 | I96: 4 | J96: 2 | K96: 277 | L96: 10 | M96: 1
A97: 12111995 | B97: 1211 | C97: 24 | D97: 10 | E97: 1995 | F97: 2826 | G97: 81 | H97: 30 | I97: 23 | J97: 43 | K97: 263 | L97: 14 | M97: 1
A98: 12121993 | B98: 1212 | C98: 16 | D98: 9 | E98: 1993 | F98: 16313 | G98: 355 | H98: 193 | I98: 32 | J98: 38 | K98: 581 | L98: 76 | M98: 0
A99: 12121995 | B99: 1212 | C99: 16 | D99: 10 | E99: 1995 | F99: 12509 | G99: 281 | H99: 133 | I99: 21 | J99: 24 | K99: 713 | L99: 37 | M99: 21
A100: 12121997 | B100: 1212 | C100: 16 | D100: 10 | E100: 1997 | F100: 12219 | G100: 300 | H100: 358 | I100: 41 | J100: 28 | K100: 818 | L100: 53 | M100: 22
A101: 12131993 | B101: 1213 | C101: 16 | D101: 9 | E101: 1993 | F101: 6781 | G101: 136 | H101: 38 | I101: 14 | J101: 3 | K101: 311 | L101: 59 | M101: 1
A102: 12131995 | B102: 1213 | C102: 24 | D102: 10 | E102: 1995 | F102: 6464 | G102: 100 | H102: 18 | I102: 22 | J102: 41 | K102: 348 | L102: 45 | M102: 3
A103: 12132001 | B103: 1213 | C103: 16 | D103: 9 | E103: 2001 | F103: 6302 | G103: 143 | H103: 41 | I103: 12 | J103: 5 | K103: 351 | L103: 47 | M103: 0
A104: 12161993 | B104: 1216 | C104: 16 | D104: 9 | E104: 1993 | F104: 1103 | G104: 23 | H104: 5 | I104: 1 | J104: 0 | K104: 118 | L104: 8 | M104: 0
A105: 12161995 | B105: 1216 | C105: 16 | D105: 10 | E105: 1995 | F105: 1101 | G105: 28 | H105: 0 | I105: 0 | J105: 0 | K105: 50 | L105: 5 | M105: 0
A106: 12161997 | B106: 1216 | C106: 24 | D106: 7 | E106: 1997 | F106: 1158 | G106: 39 | H106: 22 | I106: 9 | J106: 18 | K106: 76 | L106: 16 | M106: 1
A107: 12161999 | B107: 1216 | C107: 24 | D107: 9 | E107: 1999 | F107: 1132 | G107: 47 | H107: 26 | I107: 16 | J107: 31 | K107: 90 | L107: 12 | M107: 1
A108: 12162001 | B108: 1216 | C108: 24 | D108: 8 | E108: 2001 | F108: 1512 | G108: 103 | H108: 16 | I108: 8 | J108: 14 | K108: 98 | L108: 18 | M108: 0
A109: 12162003 | B109: 1216 | C109: 24 | D109: 6 | E109: 2003 | F109: 1391 | G109: 48 | H109: 9 | I109: 4 | J109: 7 | K109: 64 | L109: 6 | M109: 1
A110: 12162006 | B110: 1216 | C110: 24 | D110: 4 | E110: 2006 | F110: 996 | G110: 33 | H110: 10 | I110: 2 | J110: 4 | K110: 94 | L110: 1 | M110: 1
A111: 12162011 | B111: 1216 | C111: 24 | D111: 8 | E111: 2011 | F111: 1175 | G111: 68 | H111: 19 | I111: 7 | J111: 14 | K111: 64 | L111: 15 | M111: 0
A112: 12162017 | B112: 1216 | C112: 16 | D112: 8 | E112: 2017 | F112: 1308 | G112: 45 | H112: 29 | I112: 0 | J112: 3 | K112: 86 | L112: 33 | M112: 0
A113: 12171993 | B113: 1217 | C113: 16 | D113: 9 | E113: 1993 | F113: 612 | G113: 25 | H113: 8 | I113: 1 | J113: 3 | K113: 75 | L113: 12 | M113: 0
A114: 12171995 | B114: 1217 | C114: 24 | D114: 10 | E114: 1995 | F114: 658 | G114: 51 | H114: 20 | I114: 4 | J114: 7 | K114: 98 | L114: 9 | M114: 0
A115: 12171997 | B115: 1217 | C115: 24 | D115: 10 | E115: 1997 | F115: 655 | G115: 54 | H115: 40 | I115: 6 | J115: 12 | K115: 139 | L115: 13 | M115: 0
A116: 12171999 | B116: 1217 | C116: 24 | D116: 7 | E116: 1999 | F116: 667 | G116: 38 | H116: 6 | I116: 9 | J116: 16 | K116: 41 | L116: 7 | M116: 1
A117: 12172001 | B117: 1217 | C117: 24 | D117: 9 | E117: 2001 | F117: 619 | G117: 59 | H117: 30 | I117: 3 | J117: 6 | K117: 103 | L117: 18 | M117: 1
A118: 12172002 | B118: 1217 | C118: 24 | D118: 10 | E118: 2002 | F118: 599 | G118: 70 | H118: 10 | I118: 3 | J118: 5 | K118: 195 | L118: 35 | M118: 0
A119: 12172008 | B119: 1217 | C119: 24 | D119: 5 | E119: 2008 | F119: 632 | G119: 29 | H119: 12 | I119: 2 | J119: 5 | K119: 75 | L119: 3 | M119: 0
A120: 12172014 | B120: 1217 | C120: 24 | D120: 8 | E120: 2014 | F120: 600 | G120: 19 | H120: 10 | I120: 5 | J120: 9 | K120: 100 | L120: 7 | M120: 0
A121: 12181994 | B121: 1218 | C121: 16 | D121: 9 | E121: 1994 | F121: 496 | G121: 15 | H121: 11 | I121: 2 | J121: 4 | K121: 54 | L121: 17 | M121: 0
A122: 12181996 | B122: 1218 | C122: 16 | D122: 8 | E122: 1996 | F122: 687 | G122: 14 | H122: 26 | I122: 0 | J122: 3 | K122: 51 | L122: 3 | M122: 0
A123: 12182014 | B123: 1218 | C123: 24 | D123: 7 | E123: 2014 | F123: 706 | G123: 21 | H123: 19 | I123: 2 | J123: 5 | K123: 77 | L123: 9 | M123: 0
A124: 12191994 | B124: 1219 | C124: 16 | D124: 8 | E124: 1994 | F124: 2757 | G124: 149 | H124: 19 | I124: 10 | J124: 4 | K124: 529 | L124: 8 | M124: 3
A125: 12191997 | B125: 1219 | C125: 24 | D125: 10 | E125: 1997 | F125: 2965 | G125: 88 | H125: 134 | I125: 35 | J125: 64 | K125: 469 | L125: 29 | M125: 6
A126: 12192001 | B126: 1219 | C126: 16 | D126: 9 | E126: 2001 | F126: 2381 | G126: 88 | H126: 39 | I126: 7 | J126: 8 | K126: 466 | L126: 15 | M126: 7
A127: 12201994 | B127: 1220 | C127: 16 | D127: 10 | E127: 1994 | F127: 1214 | G127: 55 | H127: 23 | I127: 1 | J127: 2 | K127: 187 | L127: 19 | M127: 4
A128: 12202000 | B128: 1220 | C128: 16 | D128: 10 | E128: 2000 | F128: 120 | G128: 1 | H128: 0 | I128: 0 | J128: 0 | K128: 12 | L128: 5 | M128: 0
A129: 12231993 | B129: 1223 | C129: 16 | D129: 9 | E129: 1993 | F129: 3238 | G129: 59 | H129: 106 | I129: 5 | J129: 10 | K129: 112 | L129: 17 | M129: 3
A130: =B130&E130 -> 12231995 | B130: 1223 | C130: 24 | D130: 10 | E130: 1995 | F130: 3094 | G130: 70 | H130: 50 | I130: 23 | J130: 43 | K130: 113 | L130: 22 | M130: 11
A131: 12241994 | B131: 1224 | C131: 16 | D131: 10 | E131: 1994 | F131: 1380 | G131: 47 | H131: 13 | I131: 3 | J131: 1 | K131: 53 | L131: 18 | M131: 1
A132: 12241996 | B132: 1224 | C132: 16 | D132: 8 | E132: 1996 | F132: 2123 | G132: 61 | H132: 49 | I132: 3 | J132: 8 | K132: 102 | L132: 8 | M132: 0
A133: 12241998 | B133: 1224 | C133: 24 | D133: 10 | E133: 1998 | F133: 1880 | G133: 62 | H133: 32 | I133: 12 | J133: 22 | K133: 90 | L133: 26 | M133: 2
A134: 12242000 | B134: 1224 | C134: 24 | D134: 10 | E134: 2000 | F134: 1736 | G134: 88 | H134: 18 | I134: 19 | J134: 34 | K134: 89 | L134: 35 | M134: 3
A135: 12242002 | B135: 1224 | C135: 24 | D135: 11 | E135: 2002 | F135: 1503 | G135: 114 | H135: 23 | I135: 8 | J135: 14 | K135: 119 | L135: 24 | M135: 2
A136: 12242007 | B136: 1224 | C136: 24 | D136: 9 | E136: 2007 | F136: 1698 | G136: 70 | H136: 43 | I136: 5 | J136: 10 | K136: 110 | L136: 7 | M136: 1
A137: 12242013 | B137: 1224 | C137: 24 | D137: 9 | E137: 2013 | F137: 1836 | G137: 239 | H137: 17 | I137: 31 | J137: 58 | K137: 109 | L137: 39 | M137: 1
A138: 12242017 | B138: 1224 | C138: 24 | D138: 6 | E138: 2017 | F138: 2018 | G138: 63 | H138: 31 | I138: 17 | J138: 32 | K138: 35 | L138: 16 | M138: 0
A139: 12251993 | B139: 1225 | C139: 16 | D139: 9 | E139: 1993 | F139: 2132 | G139: 48 | H139: 25 | I139: 2 | J139: 3 | K139: 108 | L139: 15 | M139: 0
A140: 12251995 | B140: 1225 | C140: 24 | D140: 10 | E140: 1995 | F140: 3562 | G140: 68 | H140: 48 | I140: 13 | J140: 24 | K140: 108 | L140: 18 | M140: 0
A141: 12271994 | B141: 1227 | C141: 16 | D141: 6 | E141: 1994 | F141: 5653 | G141: 123 | H141: 37 | I141: 16 | J141: 10 | K141: 1081 | L141: 14 | M141: 11
A142: 12271996 | B142: 1227 | C142: 16 | D142: 10 | E142: 1996 | F142: 5026 | G142: 108 | H142: 37 | I142: 8 | J142: 17 | K142: 1296 | L142: 39 | M142: 17
A143: 12271998 | B143: 1227 | C143: 16 | D143: 9 | E143: 1998 | F143: 6031 | G143: 78 | H143: 136 | I143: 21 | J143: 25 | K143: 1421 | L143: 22 | M143: 10
A144: 12272000 | B144: 1227 | C144: 24 | D144: 9 | E144: 2000 | F144: 6637 | G144: 348 | H144: 48 | I144: 162 | J144: 301 | K144: 1127 | L144: 323 | M144: 40
A145: 12272002 | B145: 1227 | C145: 16 | D145: 11 | E145: 2002 | F145: 7396 | G145: 165 | H145: 86 | I145: 16 | J145: 18 | K145: 1608 | L145: 21 | M145: 15
A146: 12272007 | B146: 1227 | C146: 24 | D146: 10 | E146: 2007 | F146: 3347 | G146: 328 | H146: 52 | I146: 28 | J146: 52 | K146: 691 | L146: 34 | M146: 11
A147: 13011994 | B147: 1301 | C147: 16 | D147: 8 | E147: 1994 | F147: 132327 | G147: 2348 | H147: 1000 | I147: 139 | J147: 256 | K147: 2812 | L147: 810 | M147: 55
A148: 13011997 | B148: 1301 | C148: 16 | D148: 9 | E148: 1997 | F148: 0 | G148: 2127 | H148: 996 | I148: 242 | J148: 236 | K148: 2847 | L148: 888 | M148: 39
A149: 13011998 | B149: 1301 | C149: 16 | D149: 6 | E149: 1998 | F149: 0 | G149: 2907 | H149: 1049 | I149: 135 | J149: 212 | K149: 3311 | L149: 1193 | M149: 46
A150: 13012000 | B150: 1301 | C150: 16 | D150: 6 | E150: 2000 | F150: 0 | G150: 2624 | H150: 1100 | I150: 116 | J150: 219 | K150: 3191 | L150: 1103 | M150: 50
A151: 13012002 | B151: 1301 | C151: 16 | D151: 8 | E151: 2002 | F151: 0 | G151: 2321 | H151: 1011 | I151: 150 | J151: 194 | K151: 3095 | L151: 904 | M151: 44
A152: 13012006 | B152: 1301 | C152: 16 | D152: 5 | E152: 2006 | F152: 0 | G152: 2600 | H152: 938 | I152: 78 | J152: 126 | K152: 2861 | L152: 1041 | M152: 42
A153: 13012012 | B153: 1301 | C153: =IF(F153=0,16,48) -> 16 | D153: 4 | E153: 2012 | F153: 0 | G153: 1922 | H153: 973 | I153: 89 | J153: 153 | K153: 2761 | L153: 1279 | M153: 176
A154: 13021993 | B154: 1302 | C154: 16 | D154: 7 | E154: 1993 | F154: 105808 | G154: 2348 | H154: 640 | I154: 218 | J154: 287 | K154: 3444 | L154: 513 | M154: 68
A155: 13021995 | B155: 1302 | C155: 16 | D155: 7 | E155: 1995 | F155: 119207 | G155: 2463 | H155: 845 | I155: 195 | J155: 340 | K155: 3652 | L155: 661 | M155: 78
A156: 13021997 | B156: 1302 | C156: 16 | D156: 8 | E156: 1997 | F156: 0 | G156: 2351 | H156: 603 | I156: 398 | J156: 323 | K156: 3752 | L156: 531 | M156: 52
A157: 13021999 | B157: 1302 | C157: 16 | D157: 6 | E157: 1999 | F157: 0 | G157: 2556 | H157: 1003 | I157: 156 | J157: 296 | K157: 3894 | L157: 730 | M157: 55
A158: 13022001 | B158: 1302 | C158: 16 | D158: 11 | E158: 2001 | F158: 0 | G158: 2221 | H158: 947 | I158: 146 | J158: 273 | K158: 4182 | L158: 753 | M158: 70
A159: 13022003 | B159: 1302 | C159: 16 | D159: 11 | E159: 2003 | F159: 0 | G159: 2087 | H159: 685 | I159: 103 | J159: 161 | K159: 3565 | L159: 440 | M159: 54
A160: 13022006 | B160: 1302 | C160: 16 | D160: 5 | E160: 2006 | F160: 0 | G160: 1832 | H160: 576 | I160: 88 | J160: 168 | K160: 3413 | L160: 503 | M160: 45
A161: 13022011 | B161: 1302 | C161: =IF(F161=0,16,48) -> 16 | D161: 11 | E161: 2011 | F161: 0 | G161: 1258 | H161: 502 | I161: 55 | J161: 106 | K161: 2607 | L161: 393 | M161: 24
A162: 13022016 | B162: 1302 | C162: =IF(F162=0,16,48) -> 16 | D162: 11 | E162: 2016 | F162: 0 | G162: 1637 | H162: 540 | I162: 51 | J162: 178 | K162: 3033 | L162: 495 | M162: 39
A163: 13031994 | B163: 1303 | C163: 16 | D163: 7 | E163: 1994 | F163: 115680 | G163: 1573 | H163: 816 | I163: 158 | J163: 119 | K163: 1499 | L163: 424 | M163: 54
A164: 13031996 | B164: 1303 | C164: 16 | D164: 7 | E164: 1996 | F164: 112105 | G164: 1952 | H164: 953 | I164: 206 | J164: 204 | K164: 2168 | L164: 548 | M164: 59
A165: 13031998 | B165: 1303 | C165: 16 | D165: 5 | E165: 1998 | F165: 0 | G165: 1638 | H165: 842 | I165: 164 | J165: 214 | K165: 2214 | L165: 879 | M165: 18
A166: 13032000 | B166: 1303 | C166: 16 | D166: 5 | E166: 2000 | F166: 0 | G166: 1741 | H166: 1000 | I166: 124 | J166: 167 | K166: 2016 | L166: 659 | M166: 23
A167: 13032002 | B167: 1303 | C167: 16 | D167: 6 | E167: 2002 | F167: 0 | G167: 1715 | H167: 867 | I167: 214 | J167: 224 | K167: 2460 | L167: 618 | M167: 48
A168: 13032006 | B168: 1303 | C168: 16 | D168: 5 | E168: 2006 | F168: 0 | G168: 1934 | H168: 861 | I168: 70 | J168: 143 | K168: 2689 | L168: 735 | M168: 21
A169: 13032012 | B169: 1303 | C169: =IF(F169=0,16,48) -> 16 | D169: 4 | E169: 2012 | F169: 0 | G169: 1447 | H169: 692 | I169: 70 | J169: 122 | K169: 2586 | L169: 1125 | M169: 16
A170: 13041994 | B170: 1304 | C170: 16 | D170: 8 | E170: 1994 | F170: 73798 | G170: 1710 | H170: 1101 | I170: 191 | J170: 238 | K170: 3171 | L170: 364 | M170: 113
A171: 13041997 | B171: 1304 | C171: 16 | D171: 7 | E171: 1997 | F171: 0 | G171: 1813 | H171: 723 | I171: 1056 | J171: 307 | K171: 3596 | L171: 322 | M171: 126
A172: 13041999 | B172: 1304 | C172: 16 | D172: 7 | E172: 1999 | F172: 0 | G172: 1942 | H172: 1734 | I172: 172 | J172: 290 | K172: 4240 | L172: 619 | M172: 137
A173: 13042001 | B173: 1304 | C173: 16 | D173: 6 | E173: 2001 | F173: 0 | G173: 2121 | H173: 1904 | I173: 134 | J173: 220 | K173: 3808 | L173: 686 | M173: 114
A174: 13042003 | B174: 1304 | C174: 16 | D174: 12 | E174: 2003 | F174: 0 | G174: 2127 | H174: 1247 | I174: 115 | J174: 187 | K174: 3652 | L174: 409 | M174: 87
A175: 13042006 | B175: 1304 | C175: 16 | D175: 6 | E175: 2006 | F175: 0 | G175: 2376 | H175: 1885 | I175: 115 | J175: 237 | K175: 4600 | L175: 402 | M175: 97
A176: 13042011 | B176: 1304 | C176: =IF(F176=0,16,48) -> 16 | D176: 12 | E176: 2011 | F176: 0 | G176: 1403 | H176: 1099 | I176: 40 | J176: 109 | K176: 3148 | L176: 383 | M176: 35
A177: 13042016 | B177: 1304 | C177: 16 | D177: 11 | E177: 2016 | F177: 6 | G177: 1500 | H177: 1135 | I177: 44 | J177: 117 | K177: 3187 | L177: 389 | M177: 16
A178: 13051993 | B178: 1305 | C178: 16 | D178: 8 | E178: 1993 | F178: 43855 | G178: 646 | H178: 271 | I178: 53 | J178: 105 | K178: 2298 | L178: 60 | M178: 119
A179: 13051995 | B179: 1305 | C179: 16 | D179: 8 | E179: 1995 | F179: 55189 | G179: 1038 | H179: 342 | I179: 90 | J179: 124 | K179: 3705 | L179: 169 | M179: 138
A180: 13051997 | B180: 1305 | C180: 16 | D180: 6 | E180: 1997 | F180: 0 | G180: 964 | H180: 362 | I180: 423 | J180: 153 | K180: 4286 | L180: 153 | M180: 160
A181: 13051999 | B181: 1305 | C181: 16 | D181: 6 | E181: 1999 | F181: 0 | G181: 1524 | H181: 979 | I181: 90 | J181: 202 | K181: 5021 | L181: 331 | M181: 167
A182: 13052001 | B182: 1305 | C182: 16 | D182: 5 | E182: 2001 | F182: 0 | G182: 1591 | H182: 968 | I182: 55 | J182: 165 | K182: 4527 | L182: 382 | M182: 157
A183: 13052003 | B183: 1305 | C183: 16 | D183: 12 | E183: 2003 | F183: 0 | G183: 1437 | H183: 690 | I183: 60 | J183: 138 | K183: 4190 | L183: 299 | M183: 189
A184: 13052006 | B184: 1305 | C184: 16 | D184: 6 | E184: 2006 | F184: 0 | G184: 1732 | H184: 1255 | I184: 54 | J184: 120 | K184: 5394 | L184: 277 | M184: 181
A185: 13052011 | B185: 1305 | C185: =IF(F185=0,16,48) -> 16 | D185: 11 | E185: 2011 | F185: 0 | G185: 1102 | H185: 448 | I185: 30 | J185: 76 | K185: 3517 | L185: 227 | M185: 67
A186: 13052016 | B186: 1305 | C186: =IF(F186=0,16,48) -> 16 | D186: 11 | E186: 2016 | F186: 0 | G186: 960 | H186: 474 | I186: 52 | J186: 122 | K186: 2969 | L186: 147 | M186: 25
A187: 13501993 | B187: 1350 | C187: 16 | D187: 6 | E187: 1993 | F187: 5158 | G187: 155 | H187: 73 | I187: 8 | J187: 14 | K187: 108 | L187: 14 | M187: 0
A188: 13501995 | B188: 1350 | C188: 16 | D188: 7 | E188: 1995 | F188: 5846 | G188: 185 | H188: 71 | I188: 11 | J188: 14 | K188: 106 | L188: 18 | M188: 0
A189: 13501997 | B189: 1350 | C189: 24 | D189: 6 | E189: 1997 | F189: 7645 | G189: 146 | H189: 44 | I189: 18 | J189: 33 | K189: 110 | L189: 40 | M189: 3
A190: 13501999 | B190: 1350 | C190: 24 | D190: 5 | E190: 1999 | F190: 7884 | G190: 174 | H190: 73 | I190: 23 | J190: 42 | K190: 134 | L190: 66 | M190: 1
A191: 13502001 | B191: 1350 | C191: 24 | D191: 5 | E191: 2001 | F191: 8944 | G191: 416 | H191: 256 | I191: 19 | J191: 36 | K191: 154 | L191: 76 | M191: 5
A192: 13502003 | B192: 1350 | C192: 24 | D192: 8 | E192: 2003 | F192: 9542 | G192: 235 | H192: 185 | I192: 3 | J192: 5 | K192: 113 | L192: 12 | M192: 0
A193: 13502008 | B193: 1350 | C193: 16 | D193: 5 | E193: 2008 | F193: 9499 | G193: 236 | H193: 94 | I193: 15 | J193: 38 | K193: 145 | L193: 23 | M193: 0
A194: =B194&E194 -> 13502014 | B194: 1350 | C194: 16 | D194: 9 | E194: 2014 | F194: 10591 | G194: 167 | H194: 135 | I194: 23 | J194: 23 | K194: 171 | L194: 54 | M194: 0
A195: 13511994 | B195: 1351 | C195: 16 | D195: 6 | E195: 1994 | F195: 9967 | G195: 255 | H195: 88 | I195: 18 | J195: 57 | K195: 318 | L195: 51 | M195: 5
A196: 13511996 | B196: 1351 | C196: 16 | D196: 6 | E196: 1996 | F196: 11969 | G196: 262 | H196: 165 | I196: 15 | J196: 41 | K196: 366 | L196: 39 | M196: 7
A197: 13512008 | B197: 1351 | C197: 16 | D197: 5 | E197: 2008 | F197: 12848 | G197: 478 | H197: 277 | I197: 20 | J197: 49 | K197: 574 | L197: 46 | M197: 0
A198: 13512014 | B198: 1351 | C198: 24 | D198: 10 | E198: 2014 | F198: 15476 | G198: 468 | H198: 357 | I198: 13 | J198: 23 | K198: 666 | L198: 37 | M198: 0
A199: 13521993 | B199: 1352 | C199: 16 | D199: 8 | E199: 1993 | F199: 23124 | G199: 478 | H199: 264 | I199: 19 | J199: 37 | K199: 522 | L199: 29 | M199: 3
A200: 13521995 | B200: 1352 | C200: 16 | D200: 6 | E200: 1995 | F200: 21612 | G200: 599 | H200: 267 | I200: 16 | J200: 46 | K200: 356 | L200: 122 | M200: 4
... 5680 more rows

Sheet VC History (hidden)
A1: Site | B1: Year | C1: Site&Year | D1: CMethod | E1: Sequence Number | F1: Description
A2: 1050 | B2: 1993 | C2: =A2&B2 -> 10501993 | D2: Manual | E2: 32672 | F2: N. of CSAH 31 Wyoming
A3: 1050 | B3: 1995 | C3: 10501995 | D3: Tube | E3: 32672 | F3: N. of CSAH 31 Wyoming
A4: 1050 | B4: 1997 | C4: 10501997 | D4: Tube | E4: 32672 | F4: N. of CSAH 31 Wyoming
A5: 1050 | B5: 1999 | C5: 10501999 | D5: Tube | E5: 32672 | F5: N. of CSAH 31 Wyoming
A6: 1050 | B6: 2001 | C6: 10502001 | D6: Tube | E6: 32672 | F6: N. of CSAH 31 Wyoming
A7: 1052 | B7: 1993 | C7: 10521993 | D7: Manual | E7: 29504 | F7: W OF CSAH21
A8: 1052 | B8: 1995 | C8: 10521995 | D8: Tube | E8: 29504 | F8: W OF CSAH21
A9: 1052 | B9: 1997 | C9: 10521997 | D9: Tube | E9: 29504 | F9: W OF CSAH21
A10: 1052 | B10: 1999 | C10: 10521999 | D10: Tube | E10: 29504 | F10: W OF CSAH21
A11: 1052 | B11: 2001 | C11: 10522001 | D11: Tube | E11: 29504 | F11: W OF CSAH21
A12: 1053 | B12: 1994 | C12: 10531994 | D12: Manual | E12: 9817 | F12: 1.3 MI N OF CSAH45
A13: 1053 | B13: 1996 | C13: 10531996 | D13: Tube | E13: 9817 | F13: 1.3 MI N OF CSAH45
A14: 1053 | B14: 1998 | C14: 10531998 | D14: Tube | E14: 9817 | F14: 1.3 MI N OF CSAH45
A15: 1053 | B15: 2000 | C15: 10532000 | D15: Tube | E15: 9817 | F15: 1.3 MI N OF CSAH45
A16: 1055 | B16: 1993 | C16: 10551993 | D16: Manual | E16: 9819 | F16: W OF CR134 W OF MANHATTAN BEACH
A17: 1055 | B17: 1995 | C17: 10551995 | D17: Manual | E17: 9819 | F17: W OF CR134 W OF MANHATTAN BEACH
A18: 1055 | B18: 1997 | C18: 10551997 | D18: Tube | E18: 9819 | F18: W OF CR134 W OF MANHATTAN BEACH
A19: 1055 | B19: 1999 | C19: 10551999 | D19: Tube | E19: 9819 | F19: W OF CR134 W OF MANHATTAN BEACH
A20: 1055 | B20: 2001 | C20: 10552001 | D20: Tube | E20: 9819 | F20: W OF CR134 W OF MANHATTAN BEACH
A21: 1164 | B21: 1994 | C21: 11641994 | D21: Manual | E21: 6763 | F21: 1.25 MI S OF TH 37 AND CSAH 132
A22: 1164 | B22: 1996 | C22: 11641996 | D22: Tube | E22: 6763 | F22: 1.25 MI S OF TH 37 AND CSAH 132
A23: 1164 | B23: 1998 | C23: 11641998 | D23: Tube | E23: 6763 | F23: 1.25 MI S OF TH 37 AND CSAH 132
A24: 1164 | B24: 2000 | C24: 11642000 | D24: Manual | E24: 6763 | F24: 1.25 MI S OF TH 37 AND CSAH 132
A25: 1164 | B25: 2002 | C25: 11642002 | D25: Tube | E25: 6763 | F25: 1.25 MI S OF TH 37 AND CSAH 132
A26: 1164 | B26: 2005 | C26: 11642005 | D26: Tube | E26: 6763 | F26: 1.25 MI S OF TH 37 AND CSAH 132
A27: 1166 | B27: 1994 | C27: 11661994 | D27: Manual | E27: 6766 | F27: W OF JCT CSAH83 NEAR CALUMET
A28: 1166 | B28: 1996 | C28: 11661996 | D28: Tube | E28: 6766 | F28: W OF JCT CSAH83 NEAR CALUMET
A29: 1166 | B29: 1998 | C29: 11661998 | D29: Tube | E29: 6766 | F29: W OF JCT CSAH83 NEAR CALUMET
A30: 1166 | B30: 2000 | C30: 11662000 | D30: Manual | E30: 6766 | F30: W OF JCT CSAH83 NEAR CALUMET
A31: 1166 | B31: 2002 | C31: 11662002 | D31: Tube | E31: 6766 | F31: W OF JCT CSAH83 NEAR CALUMET
A32: 1166 | B32: 2005 | C32: 11662005 | D32: Tube | E32: 6766 | F32: W OF JCT CSAH83 NEAR CALUMET
A33: 1166 | B33: 2011 | C33: 11662011 | D33: Tube | E33: 6766 | F33: W OF JCT CSAH83 NEAR CALUMET
A34: 1166 | B34: 2017 | C34: 11662017 | D34: Tube | E34: 6766 | F34: W OF JCT CSAH83 NEAR CALUMET
A35: 1170 | B35: 1993 | C35: 11701993 | D35: Manual | E35: 6725 | F35: W OF JCT CSAH20
A36: 1170 | B36: 1996 | C36: 11701996 | D36: Tube | E36: 6725 | F36: W OF JCT CSAH20
A37: 1170 | B37: 1998 | C37: 11701998 | D37: Tube | E37: 6725 | F37: W OF JCT CSAH20
A38: 1170 | B38: 2000 | C38: 11702000 | D38: Manual | E38: 6725 | F38: W OF JCT CSAH20
A39: 1170 | B39: 2009 | C39: 11702009 | D39: Tube | E39: 6725 | F39: W OF JCT CSAH20
A40: 1170 | B40: 2015 | C40: 11702015 | D40: Tube | E40: 6725 | F40: W OF JCT CSAH20
A41: 1170 | B41: 2017 | C41: 11702017 | D41: Tube | E41: 6725 | F41: W OF JCT CSAH20
A42: 1172 | B42: 1993 | C42: 11721993 | D42: Manual | E42: 6733 | F42: 0.3 MI W OF JCT CR68
A43: 1172 | B43: 1995 | C43: 11721995 | D43: Tube | E43: 6733 | F43: 0.3 MI W OF JCT CR68
A44: 1172 | B44: 1997 | C44: 11721997 | D44: Tube | E44: 6733 | F44: 0.3 MI W OF JCT CR68
A45: 1172 | B45: 1999 | C45: 11721999 | D45: Manual | E45: 6733 | F45: 0.3 MI W OF JCT CR68
A46: 1172 | B46: 2001 | C46: 11722001 | D46: Tube | E46: 6733 | F46: 0.3 MI W OF JCT CR68
A47: 1172 | B47: 2003 | C47: 11722003 | D47: Tube | E47: 6733 | F47: 0.3 MI W OF JCT CR68
A48: 1172 | B48: 2009 | C48: 11722009 | D48: Tube | E48: 6733 | F48: 0.3 MI W OF JCT CR68
A49: 1175 | B49: 1994 | C49: 11751994 | D49: Manual | E49: 6776 | F49: W OF CR 186 NEAR SAUK CENTRE
A50: 1175 | B50: 1996 | C50: 11751996 | D50: Manual | E50: 6776 | F50: W OF CR 186 NEAR SAUK CENTRE
A51: 1175 | B51: 1999 | C51: 11751999 | D51: Tube | E51: 6776 | F51: W OF CR 186 NEAR SAUK CENTRE
A52: 1175 | B52: 2001 | C52: 11752001 | D52: Manual | E52: 6776 | F52: W OF CR 186 NEAR SAUK CENTRE
A53: 1175 | B53: 2003 | C53: 11752003 | D53: Tube | E53: 6776 | F53: W OF CR 186 NEAR SAUK CENTRE
A54: 1179 | B54: 1995 | C54: 11791995 | D54: Tube | E54: 6746 | F54: S OF S JCT CSAH14
A55: 1179 | B55: 1997 | C55: 11791997 | D55: Tube | E55: 6746 | F55: S OF S JCT CSAH14
A56: 1179 | B56: 1999 | C56: 11791999 | D56: Tube | E56: 6746 | F56: S OF S JCT CSAH14
A57: 1179 | B57: 2001 | C57: 11792001 | D57: Tube | E57: 6746 | F57: S OF S JCT CSAH14
A58: 1179 | B58: 2003 | C58: 11792003 | D58: Tube | E58: 6746 | F58: S OF S JCT CSAH14
A59: 1179 | B59: 2005 | C59: 11792005 | D59: Tube | E59: 6746 | F59: S OF S JCT CSAH14
A60: 1187 | B60: 1993 | C60: 11871993 | D60: Manual | E60: 6775 | F60: 2.5 MI N OF JCT CSAH2 NEAR RICE
A61: 1187 | B61: 1995 | C61: 11871995 | D61: Tube | E61: 6775 | F61: 2.5 MI N OF JCT CSAH2 NEAR RICE
A62: 1187 | B62: 1997 | C62: 11871997 | D62: Tube | E62: 6775 | F62: 2.5 MI N OF JCT CSAH2 NEAR RICE
A63: 1187 | B63: 1999 | C63: 11871999 | D63: Tube | E63: 6775 | F63: 2.5 MI N OF JCT CSAH2 NEAR RICE
A64: 1187 | B64: 2000 | C64: 11872000 | D64: Manual | E64: 6775 | F64: 2.5 MI N OF JCT CSAH2 NEAR RICE
A65: 1187 | B65: 2002 | C65: 11872002 | D65: Tube | E65: 6775 | F65: 2.5 MI N OF JCT CSAH2 NEAR RICE
A66: 1188 | B66: 1993 | C66: =A66&B66 -> 11881993 | D66: Manual | E66: 9828 | F66: .2 MI N OF CSAH14 S OF ORONOCO
A67: 1188 | B67: 1995 | C67: 11881995 | D67: Manual | E67: 9828 | F67: .2 MI N OF CSAH14 S OF ORONOCO
A68: 1188 | B68: 1997 | C68: 11881997 | D68: Manual | E68: 9828 | F68: .2 MI N OF CSAH14 S OF ORONOCO
A69: 1188 | B69: 1999 | C69: 11881999 | D69: Tube | E69: 9828 | F69: .2 MI N OF CSAH14 S OF ORONOCO
A70: 1188 | B70: 1999 | C70: 11881999 | D70: Manual | E70: 9828 | F70: .2 MI N OF CSAH14 S OF ORONOCO
A71: 1188 | B71: 2002 | C71: 11882002 | D71: Tube | E71: 9828 | F71: .2 MI N OF CSAH14 S OF ORONOCO
A72: 1188 | B72: 2008 | C72: 11882008 | D72: Manual | E72: 9828 | F72: .2 MI N OF CSAH14 S OF ORONOCO
A73: 1191 | B73: 1993 | C73: 11911993 | D73: Manual | E73: 6784 | F73: 1.5 MI N OF JCT CSAH22
A74: 1191 | B74: 1995 | C74: 11911995 | D74: Tube | E74: 6784 | F74: 1.5 MI N OF JCT CSAH22
A75: 1191 | B75: 1997 | C75: 11911997 | D75: Tube | E75: 6784 | F75: 1.5 MI N OF JCT CSAH22
A76: 1191 | B76: 1999 | C76: 11911999 | D76: Tube | E76: 6784 | F76: 1.5 MI N OF JCT CSAH22
A77: 1191 | B77: 2001 | C77: 11912001 | D77: Tube | E77: 6784 | F77: 1.5 MI N OF JCT CSAH22
A78: 1191 | B78: 2003 | C78: 11912003 | D78: Tube | E78: 6784 | F78: 1.5 MI N OF JCT CSAH22
A79: 1191 | B79: 2006 | C79: 11912006 | D79: Tube | E79: 6784 | F79: 1.5 MI N OF JCT CSAH22
A80: 1196 | B80: 1994 | C80: 11961994 | D80: Manual | E80: 6756 | F80: AT MP 273 S of NB Dakota Exit
A81: 1196 | B81: 1996 | C81: 11961996 | D81: Manual | E81: 6756 | F81: AT MP 273 S of NB Dakota Exit
A82: 1196 | B82: 1998 | C82: 11961998 | D82: Tube | E82: 6756 | F82: AT MP 273 S of NB Dakota Exit
A83: 1196 | B83: 2001 | C83: 11962001 | D83: Tube | E83: 6756 | F83: AT MP 273 S of NB Dakota Exit
A84: 1196 | B84: 2003 | C84: 11962003 | D84: Tube | E84: 6756 | F84: AT MP 273 S of NB Dakota Exit
A85: 1196 | B85: 2009 | C85: 11962009 | D85: Tube | E85: 6756 | F85: AT MP 273 S of NB Dakota Exit
A86: 1196 | B86: 2015 | C86: 11962015 | D86: Tube | E86: 6756 | F86: AT MP 273 S of NB Dakota Exit
A87: 1197 | B87: 1993 | C87: 11971993 | D87: Manual | E87: 9830 | F87: 0.7 MI W OF W JCT TH 4
A88: 1197 | B88: 1995 | C88: 11971995 | D88: Tube | E88: 9830 | F88: 0.7 MI W OF W JCT TH 4
A89: 1197 | B89: 1997 | C89: 11971997 | D89: Tube | E89: 9830 | F89: 0.7 MI W OF W JCT TH 4
A90: 1197 | B90: 1999 | C90: 11971999 | D90: Tube | E90: 9830 | F90: 0.7 MI W OF W JCT TH 4
A91: 1197 | B91: 2001 | C91: 11972001 | D91: Tube | E91: 9830 | F91: 0.7 MI W OF W JCT TH 4
A92: 1197 | B92: 2003 | C92: 11972003 | D92: Tube | E92: 9830 | F92: 0.7 MI W OF W JCT TH 4
A93: 1197 | B93: 2005 | C93: 11972005 | D93: Tube | E93: 9830 | F93: 0.7 MI W OF W JCT TH 4
A94: 1199 | B94: 1993 | C94: 11991993 | D94: Manual | E94: 6745 | F94: S OF JCT CSAH7 N OF PIPESTONE
A95: 1199 | B95: 1995 | C95: 11991995 | D95: Tube | E95: 6745 | F95: S OF JCT CSAH7 N OF PIPESTONE
A96: 1199 | B96: 1997 | C96: 11991997 | D96: Manual | E96: 6745 | F96: S OF JCT CSAH7 N OF PIPESTONE
A97: 1199 | B97: 1997 | C97: 11991997 | D97: Tube | E97: 6745 | F97: S OF JCT CSAH7 N OF PIPESTONE
A98: 1199 | B98: 1999 | C98: 11991999 | D98: Tube | E98: 6745 | F98: S OF JCT CSAH7 N OF PIPESTONE
A99: 1199 | B99: 2001 | C99: 11992001 | D99: Tube | E99: 6745 | F99: S OF JCT CSAH7 N OF PIPESTONE
A100: 1199 | B100: 2003 | C100: 11992003 | D100: Tube | E100: 6745 | F100: S OF JCT CSAH7 N OF PIPESTONE
A101: 1199 | B101: 2005 | C101: 11992005 | D101: Tube | E101: 6745 | F101: S OF JCT CSAH7 N OF PIPESTONE
A102: 1204 | B102: 1994 | C102: 12041994 | D102: Manual | E102: 6780 | F102: .4 MI N OF JCT CSAH 22
A103: 1204 | B103: 1996 | C103: 12041996 | D103: Manual | E103: 6780 | F103: .4 MI N OF JCT CSAH 22
A104: 1204 | B104: 1998 | C104: 12041998 | D104: Tube | E104: 6780 | F104: .4 MI N OF JCT CSAH 22
A105: 1204 | B105: 2000 | C105: 12042000 | D105: Manual | E105: 6780 | F105: .4 MI N OF JCT CSAH 22
A106: 1204 | B106: 2002 | C106: 12042002 | D106: Tube | E106: 6780 | F106: .4 MI N OF JCT CSAH 22
A107: 1207 | B107: 1993 | C107: 12071993 | D107: Manual | E107: 6724 | F107: 0.7 MI S OF S JCT CSAH1
A108: 1207 | B108: 1995 | C108: 12071995 | D108: Tube | E108: 6724 | F108: 0.7 MI S OF S JCT CSAH1
A109: 1207 | B109: 1997 | C109: 12071997 | D109: Tube | E109: 6724 | F109: 0.7 MI S OF S JCT CSAH1
A110: 1207 | B110: 1998 | C110: 12071998 | D110: Tube | E110: 6724 | F110: 0.7 MI S OF S JCT CSAH1
A111: 1207 | B111: 2000 | C111: 12072000 | D111: Tube | E111: 6724 | F111: 0.7 MI S OF S JCT CSAH1
A112: 1207 | B112: 2002 | C112: 12072002 | D112: Tube | E112: 6724 | F112: 0.7 MI S OF S JCT CSAH1
A113: 1207 | B113: 2009 | C113: 12072009 | D113: Tube | E113: 6724 | F113: 0.7 MI S OF S JCT CSAH1
A114: 1207 | B114: 2015 | C114: 12072015 | D114: Tube | E114: 6724 | F114: 0.7 MI S OF S JCT CSAH1
A115: 1207 | B115: 2017 | C115: 12072017 | D115: Tube | E115: 6724 | F115: 0.7 MI S OF S JCT CSAH1
A116: 1208 | B116: 1994 | C116: 12081994 | D116: Manual | E116: 9832 | F116: N OF JCT CSAH9
A117: 1208 | B117: 1996 | C117: 12081996 | D117: Manual | E117: 9832 | F117: N OF JCT CSAH9
A118: 1208 | B118: 1998 | C118: 12081998 | D118: Manual | E118: 9832 | F118: N OF JCT CSAH9
A119: 1208 | B119: 2000 | C119: 12082000 | D119: Manual | E119: 9832 | F119: N OF JCT CSAH9
A120: 1208 | B120: 2002 | C120: 12082002 | D120: Manual | E120: 9832 | F120: N OF JCT CSAH9
A121: 1209 | B121: 1994 | C121: 12091994 | D121: Manual | E121: 6723 | F121: 1.6 MI N OF JCT CSAH23 N OF ANGUS
A122: 1209 | B122: 1996 | C122: 12091996 | D122: Tube | E122: 6723 | F122: 1.6 MI N OF JCT CSAH23 N OF ANGUS
A123: 1209 | B123: 1997 | C123: 12091997 | D123: Tube | E123: 6723 | F123: 1.6 MI N OF JCT CSAH23 N OF ANGUS
A124: 1209 | B124: 1999 | C124: 12091999 | D124: Tube | E124: 6723 | F124: 1.6 MI N OF JCT CSAH23 N OF ANGUS
A125: 1209 | B125: 2001 | C125: 12092001 | D125: Tube | E125: 6723 | F125: 1.6 MI N OF JCT CSAH23 N OF ANGUS
A126: 1209 | B126: 2003 | C126: 12092003 | D126: Tube | E126: 6723 | F126: 1.6 MI N OF JCT CSAH23 N OF ANGUS
A127: 1209 | B127: 2009 | C127: 12092009 | D127: Tube | E127: 6723 | F127: 1.6 MI N OF JCT CSAH23 N OF ANGUS
A128: 1210 | B128: 1994 | C128: 12101994 | D128: Manual | E128: 68250 | F128: N OF CR 302 NEAR BLACKDUCK
A129: 1210 | B129: 1996 | C129: 12101996 | D129: Tube | E129: 68250 | F129: N OF CR 302 NEAR BLACKDUCK
A130: 1210 | B130: 1998 | C130: =A130&B130 -> 12101998 | D130: Tube | E130: 68250 | F130: N OF CR 302 NEAR BLACKDUCK
A131: 1210 | B131: 2000 | C131: 12102000 | D131: Tube | E131: 68250 | F131: N OF CR 302 NEAR BLACKDUCK
A132: 1210 | B132: 2002 | C132: 12102002 | D132: Tube | E132: 68250 | F132: N OF CR 302 NEAR BLACKDUCK
A133: 1210 | B133: 2010 | C133: 12102010 | D133: Tube | E133: 68250 | F133: N OF CR 302 NEAR BLACKDUCK
A134: 1211 | B134: 1993 | C134: 12111993 | D134: Manual | E134: 6760 | F134: 1 MI N JCT CSAH65 N OF CR377
A135: 1211 | B135: 1995 | C135: 12111995 | D135: Tube | E135: 6760 | F135: 1 MI N JCT CSAH65 N OF CR377
A136: 1211 | B136: 1997 | C136: 12111997 | D136: Tube | E136: 6760 | F136: 1 MI N JCT CSAH65 N OF CR377
A137: 1211 | B137: 1999 | C137: 12111999 | D137: Tube | E137: 6760 | F137: 1 MI N JCT CSAH65 N OF CR377
A138: 1211 | B138: 2001 | C138: 12112001 | D138: Tube | E138: 6760 | F138: 1 MI N JCT CSAH65 N OF CR377
A139: 1211 | B139: 2003 | C139: 12112003 | D139: Tube | E139: 6760 | F139: 1 MI N JCT CSAH65 N OF CR377
A140: 1211 | B140: 2004 | C140: 12112004 | D140: Tube | E140: 6760 | F140: 1 MI N JCT CSAH65 N OF CR377
A141: 1211 | B141: 2009 | C141: 12112009 | D141: Tube | E141: 6760 | F141: 1 MI N JCT CSAH65 N OF CR377
A142: 1212 | B142: 1993 | C142: 12121993 | D142: Manual | E142: 6755 | F142: W OF JCT CR104 W OF ROCHESTER
A143: 1212 | B143: 1995 | C143: 12121995 | D143: Manual | E143: 6755 | F143: W OF JCT CR104 W OF ROCHESTER
A144: 1212 | B144: 1997 | C144: 12121997 | D144: Manual | E144: 6755 | F144: W OF JCT CR104 W OF ROCHESTER
A145: 1212 | B145: 1999 | C145: 12121999 | D145: Tube | E145: 6755 | F145: W OF JCT CR104 W OF ROCHESTER
A146: 1212 | B146: 2001 | C146: 12122001 | D146: Tube | E146: 6755 | F146: W OF JCT CR104 W OF ROCHESTER
A147: 1212 | B147: 2003 | C147: 12122003 | D147: Tube | E147: 6755 | F147: W OF JCT CR104 W OF ROCHESTER
A148: 1212 | B148: 2005 | C148: 12122005 | D148: Tube | E148: 6755 | F148: W OF JCT CR104 W OF ROCHESTER
A149: 1213 | B149: 1993 | C149: 12131993 | D149: Manual | E149: 6757 | F149: E OF ST LOUIS-LAKE CO LINE
A150: 1213 | B150: 1995 | C150: 12131995 | D150: Tube | E150: 6757 | F150: E OF ST LOUIS-LAKE CO LINE
A151: 1213 | B151: 1997 | C151: 12131997 | D151: Tube | E151: 6757 | F151: E OF ST LOUIS-LAKE CO LINE
A152: 1213 | B152: 1999 | C152: 12131999 | D152: Tube | E152: 6757 | F152: E OF ST LOUIS-LAKE CO LINE
A153: 1213 | B153: 2001 | C153: 12132001 | D153: Manual | E153: 6757 | F153: E OF ST LOUIS-LAKE CO LINE
A154: 1213 | B154: 2003 | C154: 12132003 | D154: Tube | E154: 6757 | F154: E OF ST LOUIS-LAKE CO LINE
A155: 1213 | B155: 2005 | C155: 12132005 | D155: Tube | E155: 6757 | F155: E OF ST LOUIS-LAKE CO LINE
A156: 1216 | B156: 1993 | C156: 12161993 | D156: Manual | E156: 6771 | F156: S OF JCT CR452
A157: 1216 | B157: 1995 | C157: 12161995 | D157: Manual | E157: 6771 | F157: S OF JCT CR452
A158: 1216 | B158: 1997 | C158: 12161997 | D158: Tube | E158: 6771 | F158: S OF JCT CR452
A159: 1216 | B159: 1999 | C159: 12161999 | D159: Tube | E159: 6771 | F159: S OF JCT CR452
A160: 1216 | B160: 2001 | C160: 12162001 | D160: Tube | E160: 6771 | F160: S OF JCT CR452
A161: 1216 | B161: 2003 | C161: 12162003 | D161: Tube | E161: 6771 | F161: S OF JCT CR452
A162: 1216 | B162: 2006 | C162: 12162006 | D162: Tube | E162: 6771 | F162: S OF JCT CR452
A163: 1216 | B163: 2011 | C163: 12162011 | D163: Tube | E163: 6771 | F163: S OF JCT CR452
A164: 1216 | B164: 2017 | C164: 12162017 | D164: Manual | E164: 6771 | F164: S OF JCT CR452
A165: 1217 | B165: 1993 | C165: 12171993 | D165: Manual | E165: 6738 | F165: 3.8 MI W OF TH75 NEAR GRACEVILLE
A166: 1217 | B166: 1995 | C166: 12171995 | D166: Tube | E166: 6738 | F166: 3.8 MI W OF TH75 NEAR GRACEVILLE
A167: 1217 | B167: 1997 | C167: 12171997 | D167: Tube | E167: 6738 | F167: 3.8 MI W OF TH75 NEAR GRACEVILLE
A168: 1217 | B168: 1999 | C168: 12171999 | D168: Tube | E168: 6738 | F168: 3.8 MI W OF TH75 NEAR GRACEVILLE
A169: 1217 | B169: 2001 | C169: 12172001 | D169: Tube | E169: 6738 | F169: 3.8 MI W OF TH75 NEAR GRACEVILLE
A170: 1217 | B170: 2002 | C170: 12172002 | D170: Tube | E170: 6738 | F170: 3.8 MI W OF TH75 NEAR GRACEVILLE
A171: 1217 | B171: 2008 | C171: 12172008 | D171: Tube | E171: 6738 | F171: 3.8 MI W OF TH75 NEAR GRACEVILLE
A172: 1217 | B172: 2014 | C172: 12172014 | D172: Tube | E172: 6738 | F172: 3.8 MI W OF TH75 NEAR GRACEVILLE
A173: 1218 | B173: 1994 | C173: 12181994 | D173: Manual | E173: 6743 | F173: S OF SWIFT-CHIPPEWA CO LINE
A174: 1218 | B174: 1996 | C174: 12181996 | D174: Manual | E174: 6743 | F174: S OF SWIFT-CHIPPEWA CO LINE
A175: 1218 | B175: 1998 | C175: 12181998 | D175: Tube | E175: 6743 | F175: S OF SWIFT-CHIPPEWA CO LINE
A176: 1218 | B176: 2000 | C176: 12182000 | D176: Tube | E176: 6743 | F176: S OF SWIFT-CHIPPEWA CO LINE
A177: 1218 | B177: 2002 | C177: 12182002 | D177: Tube | E177: 6743 | F177: S OF SWIFT-CHIPPEWA CO LINE
A178: 1218 | B178: 2008 | C178: 12182008 | D178: Tube | E178: 6743 | F178: S OF SWIFT-CHIPPEWA CO LINE
A179: 1218 | B179: 2014 | C179: 12182014 | D179: Tube | E179: 6743 | F179: S OF SWIFT-CHIPPEWA CO LINE
A180: 1219 | B180: 1994 | C180: 12191994 | D180: Manual | E180: 6765 | F180: 1 MI N OF JCT TH65
A181: 1219 | B181: 1996 | C181: 12191996 | D181: Tube | E181: 6765 | F181: 1 MI N OF JCT TH65
A182: 1219 | B182: 1997 | C182: 12191997 | D182: Tube | E182: 6765 | F182: 1 MI N OF JCT TH65
A183: 1219 | B183: 2001 | C183: 12192001 | D183: Manual | E183: 6765 | F183: 1 MI N OF JCT TH65
A184: 1219 | B184: 2003 | C184: 12192003 | D184: Tube | E184: 6765 | F184: 1 MI N OF JCT TH65
A185: 1220 | B185: 1994 | C185: 12201994 | D185: Manual | E185: 6727 | F185: .2 MI S OF JCT CR89 NEAR PARK RAPID
A186: 1220 | B186: 1996 | C186: 12201996 | D186: Tube | E186: 6727 | F186: .2 MI S OF JCT CR89 NEAR PARK RAPID
A187: 1220 | B187: 1998 | C187: 12201998 | D187: Tube | E187: 6727 | F187: .2 MI S OF JCT CR89 NEAR PARK RAPID
A188: 1220 | B188: 2000 | C188: 12202000 | D188: Manual | E188: 6727 | F188: .2 MI S OF JCT CR89 NEAR PARK RAPID
A189: 1220 | B189: 2000 | C189: 12202000 | D189: Tube | E189: 6727 | F189: .2 MI S OF JCT CR89 NEAR PARK RAPID
A190: 1220 | B190: 2002 | C190: 12202002 | D190: Tube | E190: 6727 | F190: .2 MI S OF JCT CR89 NEAR PARK RAPID
A191: 1223 | B191: 1993 | C191: 12231993 | D191: Manual | E191: 6772 | F191: 1 MI S OF S JCT TH200
A192: 1223 | B192: 1995 | C192: 12231995 | D192: Tube | E192: 6772 | F192: 1 MI S OF S JCT TH200
A193: 1223 | B193: 1997 | C193: 12231997 | D193: Tube | E193: 6772 | F193: 1 MI S OF S JCT TH200
A194: 1223 | B194: 1999 | C194: =A194&B194 -> 12231999 | D194: Tube | E194: 6772 | F194: 1 MI S OF S JCT TH200
A195: 1223 | B195: 2001 | C195: 12232001 | D195: Tube | E195: 6772 | F195: 1 MI S OF S JCT TH200
A196: 1223 | B196: 2003 | C196: 12232003 | D196: Tube | E196: 6772 | F196: 1 MI S OF S JCT TH200
A197: 1223 | B197: 2006 | C197: 12232006 | D197: Tube | E197: 6772 | F197: 1 MI S OF S JCT TH200
A198: 1224 | B198: 1994 | C198: 12241994 | D198: Manual | E198: 6778 | F198: 1.8 MI E OF JCT TH 4
A199: 1224 | B199: 1996 | C199: 12241996 | D199: Manual | E199: 6778 | F199: 1.8 MI E OF JCT TH 4
A200: 1224 | B200: 1998 | C200: 12241998 | D200: Tube | E200: 6778 | F200: 1.8 MI E OF JCT TH 4
... 5992 more rows

Sheet % Heavies (hidden)
A1: Site | B1: Year | C1: Type | D1: Site&Year | E1: 5axdump | F1: 5axtank | G1: 5axgrain | H1: 5axstlo | I1: 5axstun | J1: 5axother | K1: 6ax+ | L1: % Heavies
A2: 1050 | B2: 1993 | C2: Manual | D2: =A2&B2 -> 10501993 | E2: 2 | F2: 8 | G2: 0 | H2: 6 | I2: 10 | J2: 6 | K2: 8 | L2: =SUM(E2:H2)/SUM(E2:K2) -> 0.4 | N2: Data from 1993-2017
A3: 1050 | B3: 2016 | C3: Manual | D3: 10502016 | E3: 2 | F3: 8 | G3: 0 | H3: 6 | I3: 10 | J3: 6 | K3: 8 | L3: 0.4
A4: 1052 | B4: 1993 | C4: Manual | D4: 10521993 | E4: 0 | F4: 0 | G4: 0 | H4: 0 | I4: 5 | J4: 0 | K4: 3 | L4: 0
A5: 1052 | B5: 2016 | C5: Manual | D5: 10522016 | E5: 0 | F5: 0 | G5: 0 | H5: 0 | I5: 5 | J5: 0 | K5: 3 | L5: 0
A6: 1053 | B6: 1994 | C6: Manual | D6: 10531994 | E6: 5 | F6: 19 | G6: 7 | H6: 1 | I6: 1 | J6: 2 | K6: 4 | L6: 0.8205128205
A7: 1055 | B7: 1993 | C7: Manual | D7: 10551993 | E7: 0 | F7: 2 | G7: 0 | H7: 3 | I7: 4 | J7: 6 | K7: 9 | L7: 0.2083333333
A8: 1055 | B8: 1995 | C8: Manual | D8: 10551995 | E8: 4 | F8: 4 | G8: 0 | H8: 11 | I8: 10 | J8: 9 | K8: 0 | L8: 0.5
A9: 1055 | B9: 2016 | C9: Manual | D9: 10552016 | E9: 0 | F9: 2 | G9: 0 | H9: 3 | I9: 4 | J9: 6 | K9: 9 | L9: 0.2083333333
A10: 1164 | B10: 1994 | C10: Manual | D10: 11641994 | E10: 70 | F10: 254 | G10: 20 | H10: 97 | I10: 102 | J10: 393 | K10: 64 | L10: 0.441
A11: 1164 | B11: 2000 | C11: Manual | D11: 11642000 | E11: 34 | F11: 124 | G11: 12 | H11: 59 | I11: 69 | J11: 249 | K11: 55 | L11: 0.3803986711
A12: 1166 | B12: 1994 | C12: Manual | D12: 11661994 | E12: 4 | F12: 10 | G12: 1 | H12: 46 | I12: 57 | J12: 81 | K12: 5 | L12: 0.2990196078
A13: 1166 | B13: 2000 | C13: Manual | D13: 11662000 | E13: 0 | F13: 13 | G13: 0 | H13: 27 | I13: 23 | J13: 61 | K13: 10 | L13: 0.2985074627
A14: 1170 | B14: 1993 | C14: Manual | D14: 11701993 | E14: 0 | F14: 46 | G14: 189 | H14: 86 | I14: 25 | J14: 58 | K14: 8 | L14: 0.7791262136
A15: 1170 | B15: 2000 | C15: Manual | D15: 11702000 | E15: 3 | F15: 89 | G15: 214 | H15: 64 | I15: 61 | J15: 172 | K15: 14 | L15: 0.5996758509
A16: 1170 | B16: 2016 | C16: Manual | D16: 11702016 | E16: 0 | F16: 46 | G16: 189 | H16: 86 | I16: 25 | J16: 58 | K16: 8 | L16: 0.7791262136
A17: 1172 | B17: 1993 | C17: Manual | D17: 11721993 | E17: 317 | F17: 163 | G17: 186 | H17: 126 | I17: 47 | J17: 326 | K17: 554 | L17: 0.4607329843
A18: 1172 | B18: 1999 | C18: Manual | D18: 11721999 | E18: 369 | F18: 170 | G18: 133 | H18: 106 | I18: 72 | J18: 508 | K18: 721 | L18: 0.3742183742
A19: 1172 | B19: 2016 | C19: Manual | D19: 11722016 | E19: 317 | F19: 163 | G19: 186 | H19: 126 | I19: 47 | J19: 326 | K19: 554 | L19: 0.4607329843
A20: 1175 | B20: 1994 | C20: Manual | D20: 11751994 | E20: 32 | F20: 292 | G20: 742 | H20: 579 | I20: 127 | J20: 2270 | K20: 71 | L20: 0.3999513737
A21: 1175 | B21: 1996 | C21: Manual | D21: 11751996 | E21: 36 | F21: 171 | G21: 379 | H21: 410 | I21: 101 | J21: 1401 | K21: 54 | L21: 0.3902821317
A22: 1175 | B22: 2001 | C22: Manual | D22: 11752001 | E22: 65 | F22: 423 | G22: 802 | H22: 776 | I22: 179 | J22: 3687 | K22: 115 | L22: 0.34165702
A23: 1187 | B23: 1993 | C23: Manual | D23: 11871993 | E23: 6 | F23: 275 | G23: 178 | H23: 195 | I23: 135 | J23: 665 | K23: 57 | L23: 0.4328259431
A24: 1187 | B24: 2000 | C24: Manual | D24: 11872000 | E24: 28 | F24: 85 | G24: 59 | H24: 99 | I24: 82 | J24: 538 | K24: 55 | L24: 0.2864693446
A25: 1187 | B25: 2016 | C25: Manual | D25: 11872016 | E25: 6 | F25: 275 | G25: 178 | H25: 195 | I25: 135 | J25: 665 | K25: 57 | L25: 0.4328259431
A26: 1188 | B26: 1993 | C26: Manual | D26: 11881993 | E26: 182 | F26: 627 | G26: 138 | H26: 294 | I26: 97 | J26: 1228 | K26: 180 | L26: 0.4519300801
A27: 1188 | B27: 1995 | C27: Manual | D27: 11881995 | E27: 100 | F27: 322 | G27: 88 | H27: 318 | I27: 109 | J27: 1676 | K27: 150 | L27: 0.2996742671
A28: 1188 | B28: 1997 | C28: Manual | D28: 11881997 | E28: 277 | F28: 338 | G28: 49 | H28: 391 | I28: 218 | J28: 1829 | K28: 224 | L28: 0.3171978352
A29: 1188 | B29: 1999 | C29: Manual | D29: 11881999 | E29: 122 | F29: 170 | G29: 43 | H29: 207 | I29: 93 | J29: 1272 | K29: 214 | L29: 0.2555398397
A30: 1188 | B30: 2008 | C30: Manual | D30: 11882008 | E30: 19 | F30: 50 | G30: 10 | H30: 54 | I30: 35 | J30: 342 | K30: 14 | L30: 0.2538167939
A31: 1188 | B31: 2016 | C31: Manual | D31: 11882016 | E31: 182 | F31: 627 | G31: 138 | H31: 294 | I31: 97 | J31: 1228 | K31: 180 | L31: 0.4519300801
A32: 1191 | B32: 1993 | C32: Manual | D32: 11911993 | E32: 22 | F32: 213 | G32: 53 | H32: 99 | I32: 74 | J32: 338 | K32: 57 | L32: 0.4521028037
A33: 1191 | B33: 2016 | C33: Manual | D33: 11912016 | E33: 22 | F33: 213 | G33: 53 | H33: 99 | I33: 74 | J33: 338 | K33: 57 | L33: 0.4521028037
A34: 1196 | B34: 1994 | C34: Manual | D34: 11961994 | E34: 21 | F34: 130 | G34: 132 | H34: 161 | I34: 87 | J34: 1483 | K34: 30 | L34: 0.217221135
A35: 1196 | B35: 1996 | C35: Manual | D35: 11961996 | E35: 24 | F35: 267 | G35: 42 | H35: 278 | I35: 55 | J35: 1801 | K35: 21 | L35: 0.2455787781
A36: 1197 | B36: 1993 | C36: Manual | D36: 11971993 | E36: 5 | F36: 208 | G36: 165 | H36: 143 | I36: 50 | J36: 505 | K36: 42 | L36: 0.4660107335
A37: 1197 | B37: 2016 | C37: Manual | D37: 11972016 | E37: 5 | F37: 208 | G37: 165 | H37: 143 | I37: 50 | J37: 505 | K37: 42 | L37: 0.4660107335
A38: 1199 | B38: 1993 | C38: Manual | D38: 11991993 | E38: 0 | F38: 33 | G38: 14 | H38: 8 | I38: 9 | J38: 69 | K38: 7 | L38: 0.3928571429
A39: 1199 | B39: 1997 | C39: Manual | D39: 11991997 | E39: 15 | F39: 21 | G39: 51 | H39: 35 | I39: 23 | J39: 94 | K39: 17 | L39: 0.4765625
A40: 1199 | B40: 2016 | C40: Manual | D40: 11992016 | E40: 0 | F40: 33 | G40: 14 | H40: 8 | I40: 9 | J40: 69 | K40: 7 | L40: 0.3928571429
A41: 1204 | B41: 1994 | C41: Manual | D41: 12041994 | E41: 2 | F41: 21 | G41: 4 | H41: 38 | I41: 26 | J41: 92 | K41: 8 | L41: 0.3403141361
A42: 1204 | B42: 1996 | C42: Manual | D42: 12041996 | E42: 2 | F42: 12 | G42: 2 | H42: 49 | I42: 15 | J42: 118 | K42: 8 | L42: 0.3155339806
A43: 1204 | B43: 2000 | C43: Manual | D43: 12042000 | E43: 7 | F43: 14 | G43: 9 | H43: 48 | I43: 29 | J43: 136 | K43: 21 | L43: 0.2954545455
A44: 1207 | B44: 1993 | C44: Manual | D44: 12071993 | E44: 4 | F44: 41 | G44: 62 | H44: 55 | I44: 23 | J44: 132 | K44: 4 | L44: 0.5046728972
A45: 1207 | B45: 2016 | C45: Manual | D45: 12072016 | E45: 4 | F45: 41 | G45: 62 | H45: 55 | I45: 23 | J45: 132 | K45: 4 | L45: 0.5046728972
A46: 1208 | B46: 1994 | C46: Manual | D46: 12081994 | E46: 73 | F46: 178 | G46: 143 | H46: 338 | I46: 93 | J46: 1454 | K46: 103 | L46: 0.3073047859
A47: 1208 | B47: 1996 | C47: Manual | D47: 12081996 | E47: 36 | F47: 253 | G47: 292 | H47: 397 | I47: 152 | J47: 1895 | K47: 61 | L47: 0.3169151005
A48: 1208 | B48: 1998 | C48: Manual | D48: 12081998 | E48: 471 | F48: 426 | G48: 170 | H48: 803 | I48: 271 | J48: 4447 | K48: 183 | L48: 0.2761778172
A49: 1208 | B49: 2000 | C49: Manual | D49: 12082000 | E49: 81 | F49: 442 | G49: 375 | H49: 845 | I49: 291 | J49: 4877 | K49: 216 | L49: 0.2445629297
A50: 1208 | B50: 2002 | C50: Manual | D50: 12082002 | E50: 138 | F50: 475 | G50: 476 | H50: 729 | I50: 307 | J50: 5539 | K50: 375 | L50: 0.2261475308
A51: 1209 | B51: 1994 | C51: Manual | D51: 12091994 | E51: 1 | F51: 3 | G51: 16 | H51: 7 | I51: 4 | J51: 8 | K51: 0 | L51: 0.6923076923
A52: 1210 | B52: 1994 | C52: Manual | D52: 12101994 | E52: 0 | F52: 5 | G52: 5 | H52: 33 | I52: 42 | J52: 75 | K52: 14 | L52: 0.2471264368
A53: 1211 | B53: 1993 | C53: Manual | D53: 12111993 | E53: 7 | F53: 131 | G53: 36 | H53: 53 | I53: 47 | J53: 234 | K53: 51 | L53: 0.4060822898
A54: 1211 | B54: 2016 | C54: Manual | D54: 12112016 | E54: 7 | F54: 131 | G54: 36 | H54: 53 | I54: 47 | J54: 234 | K54: 51 | L54: 0.4060822898
A55: 1212 | B55: 1993 | C55: Manual | D55: 12121993 | E55: 62 | F55: 284 | G55: 100 | H55: 101 | I55: 65 | J55: 571 | K55: 83 | L55: 0.4320695103
A56: 1212 | B56: 1995 | C56: Manual | D56: 12121995 | E56: 83 | F56: 160 | G56: 142 | H56: 137 | I56: 50 | J56: 768 | K56: 33 | L56: 0.3801893664
A57: 1212 | B57: 1997 | C57: Manual | D57: 12121997 | E57: 102 | F57: 216 | G57: 108 | H57: 173 | I57: 95 | J57: 952 | K57: 78 | L57: 0.3474477958
A58: 1212 | B58: 2016 | C58: Manual | D58: 12122016 | E58: 62 | F58: 284 | G58: 100 | H58: 101 | I58: 65 | J58: 571 | K58: 83 | L58: 0.4320695103
A59: 1213 | B59: 1993 | C59: Manual | D59: 12131993 | E59: 16 | F59: 96 | G59: 46 | H59: 106 | I59: 101 | J59: 192 | K59: 11 | L59: 0.4647887324
A60: 1213 | B60: 2001 | C60: Manual | D60: 12132001 | E60: 3 | F60: 63 | G60: 1 | H60: 66 | I60: 45 | J60: 156 | K60: 17 | L60: 0.3789173789
A61: 1213 | B61: 2016 | C61: Manual | D61: 12132016 | E61: 16 | F61: 96 | G61: 46 | H61: 106 | I61: 101 | J61: 192 | K61: 11 | L61: 0.4647887324
A62: 1216 | B62: 1993 | C62: Manual | D62: 12161993 | E62: 0 | F62: 1 | G62: 13 | H62: 89 | I62: 101 | J62: 21 | K62: 14 | L62: 0.4309623431
A63: 1216 | B63: 1995 | C63: Manual | D63: 12161995 | E63: 2 | F63: 2 | G63: 2 | H63: 65 | I63: 56 | J63: 35 | K63: 8 | L63: 0.4176470588
A64: 1216 | B64: 2017 | C64: Manual | D64: 12162017 | E64: 8 | F64: 0 | G64: 2 | H64: 5 | I64: 3 | J64: 6 | K64: 5 | L64: 0.5172413793
A65: 1216 | B65: 2017 | C65: Manual | D65: 12162017 | E65: 8 | F65: 0 | G65: 2 | H65: 5 | I65: 3 | J65: 6 | K65: 5 | L65: 0.5172413793
A66: 1217 | B66: 1993 | C66: Manual | D66: =A66&B66 -> 12171993 | E66: 0 | F66: 7 | G66: 57 | H66: 16 | I66: 4 | J66: 31 | K66: 22 | L66: =SUM(E66:H66)/SUM(E66:K66) -> 0.5839416058
A67: 1217 | B67: 2016 | C67: Manual | D67: 12172016 | E67: 0 | F67: 7 | G67: 57 | H67: 16 | I67: 4 | J67: 31 | K67: 22 | L67: 0.5839416058
A68: 1218 | B68: 1994 | C68: Manual | D68: 12181994 | E68: 7 | F68: 31 | G68: 17 | H68: 11 | I68: 6 | J68: 25 | K68: 2 | L68: 0.6666666667
A69: 1218 | B69: 1996 | C69: Manual | D69: 12181996 | E69: 0 | F69: 18 | G69: 2 | H69: 3 | I69: 0 | J69: 17 | K69: 11 | L69: 0.4509803922
A70: 1219 | B70: 1994 | C70: Manual | D70: 12191994 | E70: 25 | F70: 71 | G70: 324 | H70: 70 | I70: 40 | J70: 209 | K70: 29 | L70: 0.6380208333
A71: 1219 | B71: 2001 | C71: Manual | D71: 12192001 | E71: 3 | F71: 54 | G71: 81 | H71: 56 | I71: 45 | J71: 209 | K71: 18 | L71: 0.4163090129
A72: 1220 | B72: 1994 | C72: Manual | D72: 12201994 | E72: 2 | F72: 41 | G72: 16 | H72: 108 | I72: 95 | J72: 98 | K72: 10 | L72: 0.4513513514
A73: 1220 | B73: 2000 | C73: Manual | D73: 12202000 | E73: 0 | F73: 0 | G73: 2 | H73: 2 | I73: 0 | J73: 8 | K73: 0 | L73: 0.3333333333
A74: 1223 | B74: 1993 | C74: Manual | D74: 12231993 | E74: 1 | F74: 19 | G74: 16 | H74: 58 | I74: 42 | J74: 60 | K74: 20 | L74: 0.4351851852
A75: 1223 | B75: 2016 | C75: Manual | D75: 12232016 | E75: 1 | F75: 19 | G75: 16 | H75: 58 | I75: 42 | J75: 60 | K75: 20 | L75: 0.4351851852
A76: 1224 | B76: 1994 | C76: Manual | D76: 12241994 | E76: 1 | F76: 16 | G76: 11 | H76: 18 | I76: 10 | J76: 37 | K76: 19 | L76: 0.4107142857
A77: 1224 | B77: 1996 | C77: Manual | D77: 12241996 | E77: 11 | F77: 14 | G77: 10 | H77: 22 | I77: 8 | J77: 31 | K77: 6 | L77: 0.5588235294
A78: 1225 | B78: 1993 | C78: Manual | D78: 12251993 | E78: 7 | F78: 50 | G78: 56 | H78: 19 | I78: 8 | J78: 41 | K78: 6 | L78: 0.7058823529
A79: 1225 | B79: 2016 | C79: Manual | D79: 12252016 | E79: 7 | F79: 50 | G79: 56 | H79: 19 | I79: 8 | J79: 41 | K79: 6 | L79: 0.7058823529
A80: 1227 | B80: 1994 | C80: Manual | D80: 12271994 | E80: 16 | F80: 120 | G80: 40 | H80: 141 | I80: 31 | J80: 719 | K80: 14 | L80: 0.2932469935
A81: 1227 | B81: 1996 | C81: Manual | D81: 12271996 | E81: 36 | F81: 284 | G81: 130 | H81: 277 | I81: 102 | J81: 1646 | K81: 34 | L81: 0.2897568752
A82: 1227 | B82: 1998 | C82: Manual | D82: 12271998 | E82: 69 | F82: 260 | G82: 51 | H82: 331 | I82: 89 | J82: 1879 | K82: 55 | L82: 0.2600585223
A83: 1227 | B83: 2002 | C83: Manual | D83: 12272002 | E83: 24 | F83: 273 | G83: 107 | H83: 290 | I83: 140 | J83: 2269 | K83: 85 | L83: 0.2176913425
A84: 1301 | B84: 1994 | C84: Manual | D84: 13011994 | E84: 185 | F84: 240 | G84: 95 | H84: 260 | I84: 154 | J84: 1757 | K84: 121 | L84: 0.2773826458
A85: 1301 | B85: 1997 | C85: Manual | D85: 13011997 | E85: 184 | F85: 172 | G85: 104 | H85: 204 | I85: 188 | J85: 1827 | K85: 168 | L85: 0.2332279593
A86: 1301 | B86: 1998 | C86: Manual | D86: 13011998 | E86: 253 | F86: 179 | G86: 105 | H86: 344 | I86: 195 | J86: 2073 | K86: 162 | L86: 0.2660827545
A87: 1301 | B87: 2000 | C87: Manual | D87: 13012000 | E87: 120 | F87: 234 | G87: 76 | H87: 238 | I87: 163 | J87: 2204 | K87: 156 | L87: 0.2093387653
A88: 1301 | B88: 2002 | C88: Manual | D88: 13012002 | E88: 99 | F88: 198 | G88: 80 | H88: 249 | I88: 140 | J88: 2080 | K88: 249 | L88: 0.2022617124
A89: 1301 | B89: 2006 | C89: Manual | D89: 13012006 | E89: 75 | F89: 93 | G89: 44 | H89: 202 | I89: 165 | J89: 1332 | K89: 121 | L89: 0.2037401575
A90: 1301 | B90: 2012 | C90: Manual | D90: 13012012 | E90: 130 | F90: 78 | G90: 49 | H90: 89 | I90: 58 | J90: 613 | K90: 107 | L90: 0.3078291815
A91: 1302 | B91: 1993 | C91: Manual | D91: 13021993 | E91: 57 | F91: 997 | G91: 263 | H91: 292 | I91: 131 | J91: 1514 | K91: 190 | L91: 0.4671893148
A92: 1302 | B92: 1995 | C92: Manual | D92: 13021995 | E92: 70 | F92: 512 | G92: 277 | H92: 298 | I92: 165 | J92: 2240 | K92: 90 | L92: 0.3168127054
A93: 1302 | B93: 1997 | C93: Manual | D93: 13021997 | E93: 38 | F93: 387 | G93: 352 | H93: 271 | I93: 214 | J93: 2298 | K93: 192 | L93: 0.2793176972
A94: 1302 | B94: 1999 | C94: Manual | D94: 13021999 | E94: 171 | F94: 465 | G94: 291 | H94: 331 | I94: 186 | J94: 2283 | K94: 167 | L94: 0.3230611197
A95: 1302 | B95: 2001 | C95: Manual | D95: 13022001 | E95: 338 | F95: 394 | G95: 320 | H95: 283 | I95: 135 | J95: 2343 | K95: 369 | L95: 0.3192252511
A96: 1302 | B96: 2003 | C96: Manual | D96: 13022003 | E96: 90 | F96: 223 | G96: 270 | H96: 158 | I96: 115 | J96: 1479 | K96: 197 | L96: 0.2926540284
A97: 1302 | B97: 2006 | C97: Manual | D97: 13022006 | E97: 25 | F97: 283 | G97: 129 | H97: 241 | I97: 136 | J97: 1465 | K97: 145 | L97: 0.2797029703
A98: 1302 | B98: 2011 | C98: Manual | D98: 13022011 | E98: 61 | F98: 167 | G98: 105 | H98: 111 | I98: 70 | J98: 633 | K98: 105 | L98: 0.3546325879
A99: 1302 | B99: 2016 | C99: Manual | D99: 13022016 | E99: 57 | F99: 997 | G99: 263 | H99: 292 | I99: 131 | J99: 1514 | K99: 190 | L99: 0.4671893148
A100: 1303 | B100: 1994 | C100: Manual | D100: 13031994 | E100: 62 | F100: 282 | G100: 19 | H100: 102 | I100: 93 | J100: 702 | K100: 239 | L100: 0.3102068045
A101: 1303 | B101: 1996 | C101: Manual | D101: 13031996 | E101: 118 | F101: 428 | G101: 98 | H101: 126 | I101: 102 | J101: 1020 | K101: 276 | L101: 0.3551660517
A102: 1303 | B102: 1998 | C102: Manual | D102: 13031998 | E102: 197 | F102: 405 | G102: 57 | H102: 146 | I102: 118 | J102: 1105 | K102: 186 | L102: 0.3635953026
A103: 1303 | B103: 2000 | C103: Manual | D103: 13032000 | E103: 85 | F103: 359 | G103: 76 | H103: 143 | I103: 122 | J103: 1168 | K103: 63 | L103: 0.3288690476
A104: 1303 | B104: 2002 | C104: Manual | D104: 13032002 | E104: 119 | F104: 483 | G104: 85 | H104: 195 | I104: 144 | J104: 1285 | K104: 149 | L104: 0.3585365854
A105: 1303 | B105: 2006 | C105: Manual | D105: 13032006 | E105: 205 | F105: 309 | G105: 70 | H105: 138 | I105: 124 | J105: 858 | K105: 206 | L105: 0.3780104712
A106: 1303 | B106: 2012 | C106: Manual | D106: 13032012 | E106: 96 | F106: 145 | G106: 50 | H106: 86 | I106: 58 | J106: 466 | K106: 21 | L106: 0.4088937093
A107: 1304 | B107: 1994 | C107: Manual | D107: 13041994 | E107: 217 | F107: 315 | G107: 227 | H107: 283 | I107: 198 | J107: 1613 | K107: 318 | L107: 0.3286029644
A108: 1304 | B108: 1997 | C108: Manual | D108: 13041997 | E108: 184 | F108: 206 | G108: 211 | H108: 299 | I108: 232 | J108: 2169 | K108: 295 | L108: 0.2502780868
A109: 1304 | B109: 1999 | C109: Manual | D109: 13041999 | E109: 289 | F109: 322 | G109: 115 | H109: 402 | I109: 223 | J109: 2283 | K109: 606 | L109: 0.2660377358
A110: 1304 | B110: 2001 | C110: Manual | D110: 13042001 | E110: 195 | F110: 347 | G110: 88 | H110: 377 | I110: 207 | J110: 2159 | K110: 435 | L110: 0.2644432773
A111: 1304 | B111: 2003 | C111: Manual | D111: 13042003 | E111: 56 | F111: 67 | G111: 112 | H111: 228 | I111: 107 | J111: 1649 | K111: 375 | L111: 0.1784888204
A112: 1304 | B112: 2006 | C112: Manual | D112: 13042006 | E112: 163 | F112: 138 | G112: 69 | H112: 387 | I112: 216 | J112: 1956 | K112: 338 | L112: 0.2317110499
A113: 1304 | B113: 2011 | C113: Manual | D113: 13042011 | E113: 69 | F113: 36 | G113: 34 | H113: 153 | I113: 66 | J113: 877 | K113: 146 | L113: 0.2114409848
A114: 1305 | B114: 1993 | C114: Manual | D114: 13051993 | E114: 64 | F114: 457 | G114: 187 | H114: 251 | I114: 105 | J114: 1131 | K114: 103 | L114: 0.4173194082
A115: 1305 | B115: 1995 | C115: Manual | D115: 13051995 | E115: 109 | F115: 216 | G115: 560 | H115: 318 | I115: 160 | J115: 2008 | K115: 334 | L115: 0.3246963563
A116: 1305 | B116: 1997 | C116: Manual | D116: 13051997 | E116: 101 | F116: 180 | G116: 477 | H116: 378 | I116: 235 | J116: 2428 | K116: 487 | L116: 0.2650489967
A117: 1305 | B117: 1999 | C117: Manual | D117: 13051999 | E117: 130 | F117: 164 | G117: 431 | H117: 552 | I117: 237 | J117: 3065 | K117: 442 | L117: 0.2543318064
A118: 1305 | B118: 2001 | C118: Manual | D118: 13052001 | E118: 51 | F118: 154 | G118: 256 | H118: 471 | I118: 189 | J118: 3046 | K118: 360 | L118: 0.205875856
A119: 1305 | B119: 2003 | C119: Manual | D119: 13052003 | E119: 35 | F119: 125 | G119: 97 | H119: 288 | I119: 180 | J119: 2130 | K119: 121 | L119: 0.1831317204
A120: 1305 | B120: 2006 | C120: Manual | D120: 13052006 | E120: 117 | F120: 203 | G120: 332 | H120: 389 | I120: 248 | J120: 2215 | K120: 327 | L120: 0.2717306186
A121: 1305 | B121: 2011 | C121: Manual | D121: 13052011 | E121: 49 | F121: 97 | G121: 107 | H121: 205 | I121: 77 | J121: 1274 | K121: 87 | L121: 0.2415611814
A122: 1305 | B122: 2016 | C122: Manual | D122: 13052016 | E122: 64 | F122: 457 | G122: 187 | H122: 251 | I122: 105 | J122: 1131 | K122: 103 | L122: 0.4173194082
A123: 1350 | B123: 1993 | C123: Manual | D123: 13501993 | E123: 3 | F123: 14 | G123: 7 | H123: 9 | I123: 7 | J123: 65 | K123: 3 | L123: 0.3055555556
A124: 1350 | B124: 1995 | C124: Manual | D124: 13501995 | E124: 17 | F124: 12 | G124: 1 | H124: 14 | I124: 12 | J124: 40 | K124: 10 | L124: 0.4150943396
A125: 1350 | B125: 2008 | C125: Manual | D125: 13502008 | E125: 4 | F125: 3 | G125: 3 | H125: 6 | I125: 7 | J125: 22 | K125: 6 | L125: 0.3137254902
A126: 1350 | B126: 2014 | C126: Manual | D126: 13502014 | E126: 8 | F126: 7 | G126: 0 | H126: 7 | I126: 1 | J126: 28 | K126: 9 | L126: 0.3666666667
A127: 1350 | B127: 2016 | C127: Manual | D127: 13502016 | E127: 3 | F127: 14 | G127: 7 | H127: 9 | I127: 7 | J127: 65 | K127: 3 | L127: 0.3055555556
A128: 1351 | B128: 1994 | C128: Manual | D128: 13511994 | E128: 4 | F128: 49 | G128: 18 | H128: 37 | I128: 19 | J128: 171 | K128: 20 | L128: 0.3396226415
A129: 1351 | B129: 1996 | C129: Manual | D129: 13511996 | E129: 11 | F129: 30 | G129: 24 | H129: 35 | I129: 38 | J129: 225 | K129: 3 | L129: 0.2732240437
A130: 1351 | B130: 2008 | C130: Manual | D130: =A130&B130 -> 13512008 | E130: 20 | F130: 20 | G130: 7 | H130: 23 | I130: 13 | J130: 96 | K130: 15 | L130: =SUM(E130:H130)/SUM(E130:K130) -> 0.3608247423
A131: 1351 | B131: 2014 | C131: Manual | D131: 13512014 | E131: 4 | F131: 26 | G131: 33 | H131: 20 | I131: 17 | J131: 117 | K131: 8 | L131: 0.3688888889
A132: 1352 | B132: 1993 | C132: Manual | D132: 13521993 | E132: 57 | F132: 47 | G132: 12 | H132: 25 | I132: 18 | J132: 109 | K132: 254 | L132: 0.2701149425
A133: 1352 | B133: 1995 | C133: Manual | D133: 13521995 | E133: 66 | F133: 11 | G133: 6 | H133: 19 | I133: 39 | J133: 89 | K133: 126 | L133: 0.2865168539
A134: 1352 | B134: 1999 | C134: Manual | D134: 13521999 | E134: 119 | F134: 34 | G134: 0 | H134: 37 | I134: 33 | J134: 238 | K134: 400 | L134: 0.2206736353
A135: 1352 | B135: 2001 | C135: Manual | D135: 13522001 | E135: 112 | F135: 64 | G135: 2 | H135: 56 | I135: 43 | J135: 299 | K135: 312 | L135: 0.2635135135
A136: 1352 | B136: 2007 | C136: Manual | D136: 13522007 | E136: 51 | F136: 16 | G136: 0 | H136: 21 | I136: 18 | J136: 157 | K136: 160 | L136: 0.2080378251
A137: 1352 | B137: 2016 | C137: Manual | D137: 13522016 | E137: 57 | F137: 47 | G137: 12 | H137: 25 | I137: 18 | J137: 109 | K137: 254 | L137: 0.2701149425
A138: 1353 | B138: 1993 | C138: Manual | D138: 13531993 | E138: 51 | F138: 255 | G138: 243 | H138: 125 | I138: 68 | J138: 396 | K138: 89 | L138: 0.5493072535
A139: 1353 | B139: 1995 | C139: Manual | D139: 13531995 | E139: 39 | F139: 123 | G139: 901 | H139: 101 | I139: 62 | J139: 670 | K139: 49 | L139: 0.5984575835
A140: 1353 | B140: 2000 | C140: Manual | D140: 13532000 | E140: 61 | F140: 212 | G140: 614 | H140: 144 | I140: 78 | J140: 850 | K140: 87 | L140: 0.5039100684
A141: 1353 | B141: 2016 | C141: Manual | D141: 13532016 | E141: 51 | F141: 255 | G141: 243 | H141: 125 | I141: 68 | J141: 396 | K141: 89 | L141: 0.5493072535
A142: 1354 | B142: 1993 | C142: Manual | D142: 13541993 | E142: 274 | F142: 818 | G142: 196 | H142: 358 | I142: 168 | J142: 2080 | K142: 483 | L142: 0.3760566598
A143: 1354 | B143: 1995 | C143: Manual | D143: 13541995 | E143: 248 | F143: 402 | G143: 177 | H143: 579 | I143: 196 | J143: 3415 | K143: 520 | L143: 0.2539281199
A144: 1354 | B144: 1997 | C144: Manual | D144: 13541997 | E144: 247 | F144: 384 | G144: 95 | H144: 553 | I144: 294 | J144: 3837 | K144: 422 | L144: 0.2193072702
A145: 1354 | B145: 1999 | C145: Manual | D145: 13541999 | E145: 325 | F145: 367 | G145: 160 | H145: 743 | I145: 244 | J145: 4536 | K145: 172 | L145: 0.2436230335
